Workbook

Sheet System load - top days
A3: Max of UE_SYSTEM_LOAD,0
A4: Months | B4: Date | C4: Total | D4: Annual Rank | F4: Jan | G4: 1 | H4: Top Days | I4: Date | J4: Date (formatted) | K4: 1 | L4: 2 | M4: 3 | N4: 4 | O4: 5 | P4: 6 | Q4: 7 | R4: 8 | S4: 9 | T4: 10 | U4: 11 | V4: 12 | W4: 13 | X4: 14 | Y4: 15 | Z4: 16 | AA4: 17 | AB4: 18 | AC4: 19 | AD4: 20 | AE4: 21 | AF4: 22 | AG4: 23 | AH4: 24
A5: Jan | B5: 01-Jan | C5: 6472 | D5: =RANK(C5,$C$5:$C$369) -> 55 | F5: Feb | G5: 2 | H5: 1 | I5: =OFFSET($B$4,MATCH(H5,$D$5:$D$369,0),0) -> 05-Jul | J5: =DATE(2018,VLOOKUP(RIGHT(I5,3),$F$4:$G$15,2,FALSE),LEFT(I5,2)*1) -> 2018-07-05 | K5: =OFFSET(Sheet1!$B$1,('System load - top days'!$J5-Sheet1!$D$2)*24+'System load - top days'!K$4,0) -> 4759 | L5: =OFFSET(Sheet1!$B$1,('System load - top days'!$J5-Sheet1!$D$2)*24+'System load - top days'!L$4,0) -> 4446 | M5: =OFFSET(Sheet1!$B$1,('System load - top days'!$J5-Sheet1!$D$2)*24+'System load - top days'!M$4,0) -> 4246 | N5: =OFFSET(Sheet1!$B$1,('System load - top days'!$J5-Sheet1!$D$2)*24+'System load - top days'!N$4,0) -> 4105 | O5: =OFFSET(Sheet1!$B$1,('System load - top days'!$J5-Sheet1!$D$2)*24+'System load - top days'!O$4,0) -> 4059 | P5: =OFFSET(Sheet1!$B$1,('System load - top days'!$J5-Sheet1!$D$2)*24+'System load - top days'!P$4,0) -> 4172 | Q5: =OFFSET(Sheet1!$B$1,('System load - top days'!$J5-Sheet1!$D$2)*24+'System load - top days'!Q$4,0) -> 4374 | R5: =OFFSET(Sheet1!$B$1,('System load - top days'!$J5-Sheet1!$D$2)*24+'System load - top days'!R$4,0) -> 4839 | S5: =OFFSET(Sheet1!$B$1,('System load - top days'!$J5-Sheet1!$D$2)*24+'System load - top days'!S$4,0) -> 5323 | T5: =OFFSET(Sheet1!$B$1,('System load - top days'!$J5-Sheet1!$D$2)*24+'System load - top days'!T$4,0) -> 5875 | U5: =OFFSET(Sheet1!$B$1,('System load - top days'!$J5-Sheet1!$D$2)*24+'System load - top days'!U$4,0) -> 6355 | V5: =OFFSET(Sheet1!$B$1,('System load - top days'!$J5-Sheet1!$D$2)*24+'System load - top days'!V$4,0) -> 6713 | W5: =OFFSET(Sheet1!$B$1,('System load - top days'!$J5-Sheet1!$D$2)*24+'System load - top days'!W$4,0) -> 7009 | X5: =OFFSET(Sheet1!$B$1,('System load - top days'!$J5-Sheet1!$D$2)*24+'System load - top days'!X$4,0) -> 7211 | Y5: =OFFSET(Sheet1!$B$1,('System load - top days'!$J5-Sheet1!$D$2)*24+'System load - top days'!Y$4,0) -> 7325 | Z5: =OFFSET(Sheet1!$B$1,('System load - top days'!$J5-Sheet1!$D$2)*24+'System load - top days'!Z$4,0) -> 7427 | AA5: =OFFSET(Sheet1!$B$1,('System load - top days'!$J5-Sheet1!$D$2)*24+'System load - top days'!AA$4,0) -> 7470 | AB5: =OFFSET(Sheet1!$B$1,('System load - top days'!$J5-Sheet1!$D$2)*24+'System load - top days'!AB$4,0) -> 7184 | AC5: =OFFSET(Sheet1!$B$1,('System load - top days'!$J5-Sheet1!$D$2)*24+'System load - top days'!AC$4,0) -> 6750 | AD5: =OFFSET(Sheet1!$B$1,('System load - top days'!$J5-Sheet1!$D$2)*24+'System load - top days'!AD$4,0) -> 6428 | AE5: =OFFSET(Sheet1!$B$1,('System load - top days'!$J5-Sheet1!$D$2)*24+'System load - top days'!AE$4,0) -> 6138 | AF5: =OFFSET(Sheet1!$B$1,('System load - top days'!$J5-Sheet1!$D$2)*24+'System load - top days'!AF$4,0) -> 5813 | AG5: =OFFSET(Sheet1!$B$1,('System load - top days'!$J5-Sheet1!$D$2)*24+'System load - top days'!AG$4,0) -> 5349 | AH5: =OFFSET(Sheet1!$B$1,('System load - top days'!$J5-Sheet1!$D$2)*24+'System load - top days'!AH$4,0) -> 4891
A6: Jan | B6: 02-Jan | C6: 6857 | D6: =RANK(C6,$C$5:$C$369) -> 25 | F6: Mar | G6: 3 | H6: 2 | I6: =OFFSET($B$4,MATCH(H6,$D$5:$D$369,0),0) -> 10-Jul | J6: =DATE(2018,VLOOKUP(RIGHT(I6,3),$F$4:$G$15,2,FALSE),LEFT(I6,2)*1) -> 2018-07-10 | K6: =OFFSET(Sheet1!$B$1,('System load - top days'!$J6-Sheet1!$D$2)*24+'System load - top days'!K$4,0) -> 4679 | L6: =OFFSET(Sheet1!$B$1,('System load - top days'!$J6-Sheet1!$D$2)*24+'System load - top days'!L$4,0) -> 4405 | M6: =OFFSET(Sheet1!$B$1,('System load - top days'!$J6-Sheet1!$D$2)*24+'System load - top days'!M$4,0) -> 4208 | N6: =OFFSET(Sheet1!$B$1,('System load - top days'!$J6-Sheet1!$D$2)*24+'System load - top days'!N$4,0) -> 4079 | O6: =OFFSET(Sheet1!$B$1,('System load - top days'!$J6-Sheet1!$D$2)*24+'System load - top days'!O$4,0) -> 4074 | P6: =OFFSET(Sheet1!$B$1,('System load - top days'!$J6-Sheet1!$D$2)*24+'System load - top days'!P$4,0) -> 4155 | Q6: =OFFSET(Sheet1!$B$1,('System load - top days'!$J6-Sheet1!$D$2)*24+'System load - top days'!Q$4,0) -> 4379 | R6: =OFFSET(Sheet1!$B$1,('System load - top days'!$J6-Sheet1!$D$2)*24+'System load - top days'!R$4,0) -> 4804 | S6: =OFFSET(Sheet1!$B$1,('System load - top days'!$J6-Sheet1!$D$2)*24+'System load - top days'!S$4,0) -> 5279 | T6: =OFFSET(Sheet1!$B$1,('System load - top days'!$J6-Sheet1!$D$2)*24+'System load - top days'!T$4,0) -> 5761 | U6: =OFFSET(Sheet1!$B$1,('System load - top days'!$J6-Sheet1!$D$2)*24+'System load - top days'!U$4,0) -> 6230 | V6: =OFFSET(Sheet1!$B$1,('System load - top days'!$J6-Sheet1!$D$2)*24+'System load - top days'!V$4,0) -> 6617 | W6: =OFFSET(Sheet1!$B$1,('System load - top days'!$J6-Sheet1!$D$2)*24+'System load - top days'!W$4,0) -> 6914 | X6: =OFFSET(Sheet1!$B$1,('System load - top days'!$J6-Sheet1!$D$2)*24+'System load - top days'!X$4,0) -> 7127 | Y6: =OFFSET(Sheet1!$B$1,('System load - top days'!$J6-Sheet1!$D$2)*24+'System load - top days'!Y$4,0) -> 7277 | Z6: =OFFSET(Sheet1!$B$1,('System load - top days'!$J6-Sheet1!$D$2)*24+'System load - top days'!Z$4,0) -> 7367 | AA6: =OFFSET(Sheet1!$B$1,('System load - top days'!$J6-Sheet1!$D$2)*24+'System load - top days'!AA$4,0) -> 7441 | AB6: =OFFSET(Sheet1!$B$1,('System load - top days'!$J6-Sheet1!$D$2)*24+'System load - top days'!AB$4,0) -> 7399 | AC6: =OFFSET(Sheet1!$B$1,('System load - top days'!$J6-Sheet1!$D$2)*24+'System load - top days'!AC$4,0) -> 7258 | AD6: =OFFSET(Sheet1!$B$1,('System load - top days'!$J6-Sheet1!$D$2)*24+'System load - top days'!AD$4,0) -> 6959 | AE6: =OFFSET(Sheet1!$B$1,('System load - top days'!$J6-Sheet1!$D$2)*24+'System load - top days'!AE$4,0) -> 6656 | AF6: =OFFSET(Sheet1!$B$1,('System load - top days'!$J6-Sheet1!$D$2)*24+'System load - top days'!AF$4,0) -> 6330 | AG6: =OFFSET(Sheet1!$B$1,('System load - top days'!$J6-Sheet1!$D$2)*24+'System load - top days'!AG$4,0) -> 5857 | AH6: =OFFSET(Sheet1!$B$1,('System load - top days'!$J6-Sheet1!$D$2)*24+'System load - top days'!AH$4,0) -> 5408
A7: Jan | B7: 03-Jan | C7: 6127 | D7: 78 | F7: Apr | G7: 4 | H7: 3 | I7: 13-Jul | J7: 2018-07-13 | K7: =OFFSET(Sheet1!$B$1,('System load - top days'!$J7-Sheet1!$D$2)*24+'System load - top days'!K$4,0) -> 4653 | L7: =OFFSET(Sheet1!$B$1,('System load - top days'!$J7-Sheet1!$D$2)*24+'System load - top days'!L$4,0) -> 4341 | M7: =OFFSET(Sheet1!$B$1,('System load - top days'!$J7-Sheet1!$D$2)*24+'System load - top days'!M$4,0) -> 4120 | N7: =OFFSET(Sheet1!$B$1,('System load - top days'!$J7-Sheet1!$D$2)*24+'System load - top days'!N$4,0) -> 3980 | O7: =OFFSET(Sheet1!$B$1,('System load - top days'!$J7-Sheet1!$D$2)*24+'System load - top days'!O$4,0) -> 3978 | P7: =OFFSET(Sheet1!$B$1,('System load - top days'!$J7-Sheet1!$D$2)*24+'System load - top days'!P$4,0) -> 4051 | Q7: =OFFSET(Sheet1!$B$1,('System load - top days'!$J7-Sheet1!$D$2)*24+'System load - top days'!Q$4,0) -> 4251 | R7: =OFFSET(Sheet1!$B$1,('System load - top days'!$J7-Sheet1!$D$2)*24+'System load - top days'!R$4,0) -> 4667 | S7: =OFFSET(Sheet1!$B$1,('System load - top days'!$J7-Sheet1!$D$2)*24+'System load - top days'!S$4,0) -> 5089 | T7: =OFFSET(Sheet1!$B$1,('System load - top days'!$J7-Sheet1!$D$2)*24+'System load - top days'!T$4,0) -> 5552 | U7: =OFFSET(Sheet1!$B$1,('System load - top days'!$J7-Sheet1!$D$2)*24+'System load - top days'!U$4,0) -> 6022 | V7: =OFFSET(Sheet1!$B$1,('System load - top days'!$J7-Sheet1!$D$2)*24+'System load - top days'!V$4,0) -> 6446 | W7: =OFFSET(Sheet1!$B$1,('System load - top days'!$J7-Sheet1!$D$2)*24+'System load - top days'!W$4,0) -> 6770 | X7: =OFFSET(Sheet1!$B$1,('System load - top days'!$J7-Sheet1!$D$2)*24+'System load - top days'!X$4,0) -> 7084 | Y7: =OFFSET(Sheet1!$B$1,('System load - top days'!$J7-Sheet1!$D$2)*24+'System load - top days'!Y$4,0) -> 7262 | Z7: =OFFSET(Sheet1!$B$1,('System load - top days'!$J7-Sheet1!$D$2)*24+'System load - top days'!Z$4,0) -> 7373 | AA7: =OFFSET(Sheet1!$B$1,('System load - top days'!$J7-Sheet1!$D$2)*24+'System load - top days'!AA$4,0) -> 7413 | AB7: =OFFSET(Sheet1!$B$1,('System load - top days'!$J7-Sheet1!$D$2)*24+'System load - top days'!AB$4,0) -> 7346 | AC7: =OFFSET(Sheet1!$B$1,('System load - top days'!$J7-Sheet1!$D$2)*24+'System load - top days'!AC$4,0) -> 7120 | AD7: =OFFSET(Sheet1!$B$1,('System load - top days'!$J7-Sheet1!$D$2)*24+'System load - top days'!AD$4,0) -> 6812 | AE7: =OFFSET(Sheet1!$B$1,('System load - top days'!$J7-Sheet1!$D$2)*24+'System load - top days'!AE$4,0) -> 6537 | AF7: =OFFSET(Sheet1!$B$1,('System load - top days'!$J7-Sheet1!$D$2)*24+'System load - top days'!AF$4,0) -> 6279 | AG7: =OFFSET(Sheet1!$B$1,('System load - top days'!$J7-Sheet1!$D$2)*24+'System load - top days'!AG$4,0) -> 5826 | AH7: =OFFSET(Sheet1!$B$1,('System load - top days'!$J7-Sheet1!$D$2)*24+'System load - top days'!AH$4,0) -> 5425
A8: Jan | B8: 04-Jan | C8: 6632 | D8: 46 | F8: May | G8: 5 | H8: 4 | I8: 18-Jun | J8: 2018-06-18 | K8: =OFFSET(Sheet1!$B$1,('System load - top days'!$J8-Sheet1!$D$2)*24+'System load - top days'!K$4,0) -> 4905 | L8: =OFFSET(Sheet1!$B$1,('System load - top days'!$J8-Sheet1!$D$2)*24+'System load - top days'!L$4,0) -> 4643 | M8: =OFFSET(Sheet1!$B$1,('System load - top days'!$J8-Sheet1!$D$2)*24+'System load - top days'!M$4,0) -> 4407 | N8: =OFFSET(Sheet1!$B$1,('System load - top days'!$J8-Sheet1!$D$2)*24+'System load - top days'!N$4,0) -> 4295 | O8: =OFFSET(Sheet1!$B$1,('System load - top days'!$J8-Sheet1!$D$2)*24+'System load - top days'!O$4,0) -> 4273 | P8: =OFFSET(Sheet1!$B$1,('System load - top days'!$J8-Sheet1!$D$2)*24+'System load - top days'!P$4,0) -> 4386 | Q8: =OFFSET(Sheet1!$B$1,('System load - top days'!$J8-Sheet1!$D$2)*24+'System load - top days'!Q$4,0) -> 4610 | R8: =OFFSET(Sheet1!$B$1,('System load - top days'!$J8-Sheet1!$D$2)*24+'System load - top days'!R$4,0) -> 5023 | S8: =OFFSET(Sheet1!$B$1,('System load - top days'!$J8-Sheet1!$D$2)*24+'System load - top days'!S$4,0) -> 5466 | T8: =OFFSET(Sheet1!$B$1,('System load - top days'!$J8-Sheet1!$D$2)*24+'System load - top days'!T$4,0) -> 5901 | U8: =OFFSET(Sheet1!$B$1,('System load - top days'!$J8-Sheet1!$D$2)*24+'System load - top days'!U$4,0) -> 6325 | V8: =OFFSET(Sheet1!$B$1,('System load - top days'!$J8-Sheet1!$D$2)*24+'System load - top days'!V$4,0) -> 6676 | W8: =OFFSET(Sheet1!$B$1,('System load - top days'!$J8-Sheet1!$D$2)*24+'System load - top days'!W$4,0) -> 6957 | X8: =OFFSET(Sheet1!$B$1,('System load - top days'!$J8-Sheet1!$D$2)*24+'System load - top days'!X$4,0) -> 7188 | Y8: =OFFSET(Sheet1!$B$1,('System load - top days'!$J8-Sheet1!$D$2)*24+'System load - top days'!Y$4,0) -> 7315 | Z8: =OFFSET(Sheet1!$B$1,('System load - top days'!$J8-Sheet1!$D$2)*24+'System load - top days'!Z$4,0) -> 7399 | AA8: =OFFSET(Sheet1!$B$1,('System load - top days'!$J8-Sheet1!$D$2)*24+'System load - top days'!AA$4,0) -> 7396 | AB8: =OFFSET(Sheet1!$B$1,('System load - top days'!$J8-Sheet1!$D$2)*24+'System load - top days'!AB$4,0) -> 7332 | AC8: =OFFSET(Sheet1!$B$1,('System load - top days'!$J8-Sheet1!$D$2)*24+'System load - top days'!AC$4,0) -> 7163 | AD8: =OFFSET(Sheet1!$B$1,('System load - top days'!$J8-Sheet1!$D$2)*24+'System load - top days'!AD$4,0) -> 6898 | AE8: =OFFSET(Sheet1!$B$1,('System load - top days'!$J8-Sheet1!$D$2)*24+'System load - top days'!AE$4,0) -> 6597 | AF8: =OFFSET(Sheet1!$B$1,('System load - top days'!$J8-Sheet1!$D$2)*24+'System load - top days'!AF$4,0) -> 6307 | AG8: =OFFSET(Sheet1!$B$1,('System load - top days'!$J8-Sheet1!$D$2)*24+'System load - top days'!AG$4,0) -> 5798 | AH8: =OFFSET(Sheet1!$B$1,('System load - top days'!$J8-Sheet1!$D$2)*24+'System load - top days'!AH$4,0) -> 5322
A9: Jan | B9: 05-Jan | C9: 6042 | D9: 87 | F9: Jun | G9: 6 | H9: 5 | I9: 28-Aug | J9: 2018-08-28 | K9: =OFFSET(Sheet1!$B$1,('System load - top days'!$J9-Sheet1!$D$2)*24+'System load - top days'!K$4,0) -> 4724 | L9: =OFFSET(Sheet1!$B$1,('System load - top days'!$J9-Sheet1!$D$2)*24+'System load - top days'!L$4,0) -> 4489 | M9: =OFFSET(Sheet1!$B$1,('System load - top days'!$J9-Sheet1!$D$2)*24+'System load - top days'!M$4,0) -> 4301 | N9: =OFFSET(Sheet1!$B$1,('System load - top days'!$J9-Sheet1!$D$2)*24+'System load - top days'!N$4,0) -> 4180 | O9: =OFFSET(Sheet1!$B$1,('System load - top days'!$J9-Sheet1!$D$2)*24+'System load - top days'!O$4,0) -> 4175 | P9: =OFFSET(Sheet1!$B$1,('System load - top days'!$J9-Sheet1!$D$2)*24+'System load - top days'!P$4,0) -> 4336 | Q9: =OFFSET(Sheet1!$B$1,('System load - top days'!$J9-Sheet1!$D$2)*24+'System load - top days'!Q$4,0) -> 4638 | R9: =OFFSET(Sheet1!$B$1,('System load - top days'!$J9-Sheet1!$D$2)*24+'System load - top days'!R$4,0) -> 4897 | S9: =OFFSET(Sheet1!$B$1,('System load - top days'!$J9-Sheet1!$D$2)*24+'System load - top days'!S$4,0) -> 5220 | T9: =OFFSET(Sheet1!$B$1,('System load - top days'!$J9-Sheet1!$D$2)*24+'System load - top days'!T$4,0) -> 5616 | U9: =OFFSET(Sheet1!$B$1,('System load - top days'!$J9-Sheet1!$D$2)*24+'System load - top days'!U$4,0) -> 6045 | V9: =OFFSET(Sheet1!$B$1,('System load - top days'!$J9-Sheet1!$D$2)*24+'System load - top days'!V$4,0) -> 6406 | W9: =OFFSET(Sheet1!$B$1,('System load - top days'!$J9-Sheet1!$D$2)*24+'System load - top days'!W$4,0) -> 6760 | X9: =OFFSET(Sheet1!$B$1,('System load - top days'!$J9-Sheet1!$D$2)*24+'System load - top days'!X$4,0) -> 7008 | Y9: =OFFSET(Sheet1!$B$1,('System load - top days'!$J9-Sheet1!$D$2)*24+'System load - top days'!Y$4,0) -> 7202 | Z9: =OFFSET(Sheet1!$B$1,('System load - top days'!$J9-Sheet1!$D$2)*24+'System load - top days'!Z$4,0) -> 7334 | AA9: =OFFSET(Sheet1!$B$1,('System load - top days'!$J9-Sheet1!$D$2)*24+'System load - top days'!AA$4,0) -> 7380 | AB9: =OFFSET(Sheet1!$B$1,('System load - top days'!$J9-Sheet1!$D$2)*24+'System load - top days'!AB$4,0) -> 7296 | AC9: =OFFSET(Sheet1!$B$1,('System load - top days'!$J9-Sheet1!$D$2)*24+'System load - top days'!AC$4,0) -> 7038 | AD9: =OFFSET(Sheet1!$B$1,('System load - top days'!$J9-Sheet1!$D$2)*24+'System load - top days'!AD$4,0) -> 6745 | AE9: =OFFSET(Sheet1!$B$1,('System load - top days'!$J9-Sheet1!$D$2)*24+'System load - top days'!AE$4,0) -> 6547 | AF9: =OFFSET(Sheet1!$B$1,('System load - top days'!$J9-Sheet1!$D$2)*24+'System load - top days'!AF$4,0) -> 6132 | AG9: =OFFSET(Sheet1!$B$1,('System load - top days'!$J9-Sheet1!$D$2)*24+'System load - top days'!AG$4,0) -> 5624 | AH9: =OFFSET(Sheet1!$B$1,('System load - top days'!$J9-Sheet1!$D$2)*24+'System load - top days'!AH$4,0) -> 5182
A10: Jan | B10: 06-Jan | C10: 5965 | D10: 93 | F10: Jul | G10: 7 | H10: 6 | I10: 06-Aug | J10: 2018-08-06 | K10: =OFFSET(Sheet1!$B$1,('System load - top days'!$J10-Sheet1!$D$2)*24+'System load - top days'!K$4,0) -> 4628 | L10: =OFFSET(Sheet1!$B$1,('System load - top days'!$J10-Sheet1!$D$2)*24+'System load - top days'!L$4,0) -> 4361 | M10: =OFFSET(Sheet1!$B$1,('System load - top days'!$J10-Sheet1!$D$2)*24+'System load - top days'!M$4,0) -> 4182 | N10: =OFFSET(Sheet1!$B$1,('System load - top days'!$J10-Sheet1!$D$2)*24+'System load - top days'!N$4,0) -> 4051 | O10: =OFFSET(Sheet1!$B$1,('System load - top days'!$J10-Sheet1!$D$2)*24+'System load - top days'!O$4,0) -> 4064 | P10: =OFFSET(Sheet1!$B$1,('System load - top days'!$J10-Sheet1!$D$2)*24+'System load - top days'!P$4,0) -> 4195 | Q10: =OFFSET(Sheet1!$B$1,('System load - top days'!$J10-Sheet1!$D$2)*24+'System load - top days'!Q$4,0) -> 4395 | R10: =OFFSET(Sheet1!$B$1,('System load - top days'!$J10-Sheet1!$D$2)*24+'System load - top days'!R$4,0) -> 4646 | S10: =OFFSET(Sheet1!$B$1,('System load - top days'!$J10-Sheet1!$D$2)*24+'System load - top days'!S$4,0) -> 4976 | T10: =OFFSET(Sheet1!$B$1,('System load - top days'!$J10-Sheet1!$D$2)*24+'System load - top days'!T$4,0) -> 5383 | U10: =OFFSET(Sheet1!$B$1,('System load - top days'!$J10-Sheet1!$D$2)*24+'System load - top days'!U$4,0) -> 5888 | V10: =OFFSET(Sheet1!$B$1,('System load - top days'!$J10-Sheet1!$D$2)*24+'System load - top days'!V$4,0) -> 6347 | W10: =OFFSET(Sheet1!$B$1,('System load - top days'!$J10-Sheet1!$D$2)*24+'System load - top days'!W$4,0) -> 6710 | X10: =OFFSET(Sheet1!$B$1,('System load - top days'!$J10-Sheet1!$D$2)*24+'System load - top days'!X$4,0) -> 6994 | Y10: =OFFSET(Sheet1!$B$1,('System load - top days'!$J10-Sheet1!$D$2)*24+'System load - top days'!Y$4,0) -> 7135 | Z10: =OFFSET(Sheet1!$B$1,('System load - top days'!$J10-Sheet1!$D$2)*24+'System load - top days'!Z$4,0) -> 7267 | AA10: =OFFSET(Sheet1!$B$1,('System load - top days'!$J10-Sheet1!$D$2)*24+'System load - top days'!AA$4,0) -> 7281 | AB10: =OFFSET(Sheet1!$B$1,('System load - top days'!$J10-Sheet1!$D$2)*24+'System load - top days'!AB$4,0) -> 7126 | AC10: =OFFSET(Sheet1!$B$1,('System load - top days'!$J10-Sheet1!$D$2)*24+'System load - top days'!AC$4,0) -> 6823 | AD10: =OFFSET(Sheet1!$B$1,('System load - top days'!$J10-Sheet1!$D$2)*24+'System load - top days'!AD$4,0) -> 6491 | AE10: =OFFSET(Sheet1!$B$1,('System load - top days'!$J10-Sheet1!$D$2)*24+'System load - top days'!AE$4,0) -> 6319 | AF10: =OFFSET(Sheet1!$B$1,('System load - top days'!$J10-Sheet1!$D$2)*24+'System load - top days'!AF$4,0) -> 5984 | AG10: =OFFSET(Sheet1!$B$1,('System load - top days'!$J10-Sheet1!$D$2)*24+'System load - top days'!AG$4,0) -> 5545 | AH10: =OFFSET(Sheet1!$B$1,('System load - top days'!$J10-Sheet1!$D$2)*24+'System load - top days'!AH$4,0) -> 5124
A11: Jan | B11: 07-Jan | C11: 5301 | D11: 150 | F11: Aug | G11: 8 | H11: 7 | I11: 16-Jul | J11: 2018-07-16 | K11: =OFFSET(Sheet1!$B$1,('System load - top days'!$J11-Sheet1!$D$2)*24+'System load - top days'!K$4,0) -> 4423 | L11: =OFFSET(Sheet1!$B$1,('System load - top days'!$J11-Sheet1!$D$2)*24+'System load - top days'!L$4,0) -> 4172 | M11: =OFFSET(Sheet1!$B$1,('System load - top days'!$J11-Sheet1!$D$2)*24+'System load - top days'!M$4,0) -> 4013 | N11: =OFFSET(Sheet1!$B$1,('System load - top days'!$J11-Sheet1!$D$2)*24+'System load - top days'!N$4,0) -> 3909 | O11: =OFFSET(Sheet1!$B$1,('System load - top days'!$J11-Sheet1!$D$2)*24+'System load - top days'!O$4,0) -> 3948 | P11: =OFFSET(Sheet1!$B$1,('System load - top days'!$J11-Sheet1!$D$2)*24+'System load - top days'!P$4,0) -> 4094 | Q11: =OFFSET(Sheet1!$B$1,('System load - top days'!$J11-Sheet1!$D$2)*24+'System load - top days'!Q$4,0) -> 4316 | R11: =OFFSET(Sheet1!$B$1,('System load - top days'!$J11-Sheet1!$D$2)*24+'System load - top days'!R$4,0) -> 4748 | S11: =OFFSET(Sheet1!$B$1,('System load - top days'!$J11-Sheet1!$D$2)*24+'System load - top days'!S$4,0) -> 5199 | T11: =OFFSET(Sheet1!$B$1,('System load - top days'!$J11-Sheet1!$D$2)*24+'System load - top days'!T$4,0) -> 5670 | U11: =OFFSET(Sheet1!$B$1,('System load - top days'!$J11-Sheet1!$D$2)*24+'System load - top days'!U$4,0) -> 6134 | V11: =OFFSET(Sheet1!$B$1,('System load - top days'!$J11-Sheet1!$D$2)*24+'System load - top days'!V$4,0) -> 6464 | W11: =OFFSET(Sheet1!$B$1,('System load - top days'!$J11-Sheet1!$D$2)*24+'System load - top days'!W$4,0) -> 6736 | X11: =OFFSET(Sheet1!$B$1,('System load - top days'!$J11-Sheet1!$D$2)*24+'System load - top days'!X$4,0) -> 6951 | Y11: =OFFSET(Sheet1!$B$1,('System load - top days'!$J11-Sheet1!$D$2)*24+'System load - top days'!Y$4,0) -> 7084 | Z11: =OFFSET(Sheet1!$B$1,('System load - top days'!$J11-Sheet1!$D$2)*24+'System load - top days'!Z$4,0) -> 7163 | AA11: =OFFSET(Sheet1!$B$1,('System load - top days'!$J11-Sheet1!$D$2)*24+'System load - top days'!AA$4,0) -> 7222 | AB11: =OFFSET(Sheet1!$B$1,('System load - top days'!$J11-Sheet1!$D$2)*24+'System load - top days'!AB$4,0) -> 7170 | AC11: =OFFSET(Sheet1!$B$1,('System load - top days'!$J11-Sheet1!$D$2)*24+'System load - top days'!AC$4,0) -> 6928 | AD11: =OFFSET(Sheet1!$B$1,('System load - top days'!$J11-Sheet1!$D$2)*24+'System load - top days'!AD$4,0) -> 6604 | AE11: =OFFSET(Sheet1!$B$1,('System load - top days'!$J11-Sheet1!$D$2)*24+'System load - top days'!AE$4,0) -> 6298 | AF11: =OFFSET(Sheet1!$B$1,('System load - top days'!$J11-Sheet1!$D$2)*24+'System load - top days'!AF$4,0) -> 5988 | AG11: =OFFSET(Sheet1!$B$1,('System load - top days'!$J11-Sheet1!$D$2)*24+'System load - top days'!AG$4,0) -> 5463 | AH11: =OFFSET(Sheet1!$B$1,('System load - top days'!$J11-Sheet1!$D$2)*24+'System load - top days'!AH$4,0) -> 4974
A12: Jan | B12: 08-Jan | C12: 5124 | D12: 169 | F12: Sep | G12: 9 | H12: 8 | I12: 11-Jul | J12: 2018-07-11 | K12: =OFFSET(Sheet1!$B$1,('System load - top days'!$J12-Sheet1!$D$2)*24+'System load - top days'!K$4,0) -> 5031 | L12: =OFFSET(Sheet1!$B$1,('System load - top days'!$J12-Sheet1!$D$2)*24+'System load - top days'!L$4,0) -> 4749 | M12: =OFFSET(Sheet1!$B$1,('System load - top days'!$J12-Sheet1!$D$2)*24+'System load - top days'!M$4,0) -> 4532 | N12: =OFFSET(Sheet1!$B$1,('System load - top days'!$J12-Sheet1!$D$2)*24+'System load - top days'!N$4,0) -> 4394 | O12: =OFFSET(Sheet1!$B$1,('System load - top days'!$J12-Sheet1!$D$2)*24+'System load - top days'!O$4,0) -> 4357 | P12: =OFFSET(Sheet1!$B$1,('System load - top days'!$J12-Sheet1!$D$2)*24+'System load - top days'!P$4,0) -> 4440 | Q12: =OFFSET(Sheet1!$B$1,('System load - top days'!$J12-Sheet1!$D$2)*24+'System load - top days'!Q$4,0) -> 4546 | R12: =OFFSET(Sheet1!$B$1,('System load - top days'!$J12-Sheet1!$D$2)*24+'System load - top days'!R$4,0) -> 4834 | S12: =OFFSET(Sheet1!$B$1,('System load - top days'!$J12-Sheet1!$D$2)*24+'System load - top days'!S$4,0) -> 5150 | T12: =OFFSET(Sheet1!$B$1,('System load - top days'!$J12-Sheet1!$D$2)*24+'System load - top days'!T$4,0) -> 5501 | U12: =OFFSET(Sheet1!$B$1,('System load - top days'!$J12-Sheet1!$D$2)*24+'System load - top days'!U$4,0) -> 5840 | V12: =OFFSET(Sheet1!$B$1,('System load - top days'!$J12-Sheet1!$D$2)*24+'System load - top days'!V$4,0) -> 6197 | W12: =OFFSET(Sheet1!$B$1,('System load - top days'!$J12-Sheet1!$D$2)*24+'System load - top days'!W$4,0) -> 6502 | X12: =OFFSET(Sheet1!$B$1,('System load - top days'!$J12-Sheet1!$D$2)*24+'System load - top days'!X$4,0) -> 6814 | Y12: =OFFSET(Sheet1!$B$1,('System load - top days'!$J12-Sheet1!$D$2)*24+'System load - top days'!Y$4,0) -> 7025 | Z12: =OFFSET(Sheet1!$B$1,('System load - top days'!$J12-Sheet1!$D$2)*24+'System load - top days'!Z$4,0) -> 7150 | AA12: =OFFSET(Sheet1!$B$1,('System load - top days'!$J12-Sheet1!$D$2)*24+'System load - top days'!AA$4,0) -> 7218 | AB12: =OFFSET(Sheet1!$B$1,('System load - top days'!$J12-Sheet1!$D$2)*24+'System load - top days'!AB$4,0) -> 7141 | AC12: =OFFSET(Sheet1!$B$1,('System load - top days'!$J12-Sheet1!$D$2)*24+'System load - top days'!AC$4,0) -> 6925 | AD12: =OFFSET(Sheet1!$B$1,('System load - top days'!$J12-Sheet1!$D$2)*24+'System load - top days'!AD$4,0) -> 6589 | AE12: =OFFSET(Sheet1!$B$1,('System load - top days'!$J12-Sheet1!$D$2)*24+'System load - top days'!AE$4,0) -> 6226 | AF12: =OFFSET(Sheet1!$B$1,('System load - top days'!$J12-Sheet1!$D$2)*24+'System load - top days'!AF$4,0) -> 5920 | AG12: =OFFSET(Sheet1!$B$1,('System load - top days'!$J12-Sheet1!$D$2)*24+'System load - top days'!AG$4,0) -> 5425 | AH12: =OFFSET(Sheet1!$B$1,('System load - top days'!$J12-Sheet1!$D$2)*24+'System load - top days'!AH$4,0) -> 4938
A13: Jan | B13: 09-Jan | C13: 5101 | D13: 173 | F13: Oct | G13: 10 | H13: 9 | I13: 12-Jul | J13: 2018-07-12 | K13: =OFFSET(Sheet1!$B$1,('System load - top days'!$J13-Sheet1!$D$2)*24+'System load - top days'!K$4,0) -> 4567 | L13: =OFFSET(Sheet1!$B$1,('System load - top days'!$J13-Sheet1!$D$2)*24+'System load - top days'!L$4,0) -> 4282 | M13: =OFFSET(Sheet1!$B$1,('System load - top days'!$J13-Sheet1!$D$2)*24+'System load - top days'!M$4,0) -> 4095 | N13: =OFFSET(Sheet1!$B$1,('System load - top days'!$J13-Sheet1!$D$2)*24+'System load - top days'!N$4,0) -> 3955 | O13: =OFFSET(Sheet1!$B$1,('System load - top days'!$J13-Sheet1!$D$2)*24+'System load - top days'!O$4,0) -> 3959 | P13: =OFFSET(Sheet1!$B$1,('System load - top days'!$J13-Sheet1!$D$2)*24+'System load - top days'!P$4,0) -> 4047 | Q13: =OFFSET(Sheet1!$B$1,('System load - top days'!$J13-Sheet1!$D$2)*24+'System load - top days'!Q$4,0) -> 4222 | R13: =OFFSET(Sheet1!$B$1,('System load - top days'!$J13-Sheet1!$D$2)*24+'System load - top days'!R$4,0) -> 4577 | S13: =OFFSET(Sheet1!$B$1,('System load - top days'!$J13-Sheet1!$D$2)*24+'System load - top days'!S$4,0) -> 4988 | T13: =OFFSET(Sheet1!$B$1,('System load - top days'!$J13-Sheet1!$D$2)*24+'System load - top days'!T$4,0) -> 5377 | U13: =OFFSET(Sheet1!$B$1,('System load - top days'!$J13-Sheet1!$D$2)*24+'System load - top days'!U$4,0) -> 5790 | V13: =OFFSET(Sheet1!$B$1,('System load - top days'!$J13-Sheet1!$D$2)*24+'System load - top days'!V$4,0) -> 6188 | W13: =OFFSET(Sheet1!$B$1,('System load - top days'!$J13-Sheet1!$D$2)*24+'System load - top days'!W$4,0) -> 6542 | X13: =OFFSET(Sheet1!$B$1,('System load - top days'!$J13-Sheet1!$D$2)*24+'System load - top days'!X$4,0) -> 6822 | Y13: =OFFSET(Sheet1!$B$1,('System load - top days'!$J13-Sheet1!$D$2)*24+'System load - top days'!Y$4,0) -> 7030 | Z13: =OFFSET(Sheet1!$B$1,('System load - top days'!$J13-Sheet1!$D$2)*24+'System load - top days'!Z$4,0) -> 7148 | AA13: =OFFSET(Sheet1!$B$1,('System load - top days'!$J13-Sheet1!$D$2)*24+'System load - top days'!AA$4,0) -> 7215 | AB13: =OFFSET(Sheet1!$B$1,('System load - top days'!$J13-Sheet1!$D$2)*24+'System load - top days'!AB$4,0) -> 7166 | AC13: =OFFSET(Sheet1!$B$1,('System load - top days'!$J13-Sheet1!$D$2)*24+'System load - top days'!AC$4,0) -> 6990 | AD13: =OFFSET(Sheet1!$B$1,('System load - top days'!$J13-Sheet1!$D$2)*24+'System load - top days'!AD$4,0) -> 6676 | AE13: =OFFSET(Sheet1!$B$1,('System load - top days'!$J13-Sheet1!$D$2)*24+'System load - top days'!AE$4,0) -> 6324 | AF13: =OFFSET(Sheet1!$B$1,('System load - top days'!$J13-Sheet1!$D$2)*24+'System load - top days'!AF$4,0) -> 6052 | AG13: =OFFSET(Sheet1!$B$1,('System load - top days'!$J13-Sheet1!$D$2)*24+'System load - top days'!AG$4,0) -> 5548 | AH13: =OFFSET(Sheet1!$B$1,('System load - top days'!$J13-Sheet1!$D$2)*24+'System load - top days'!AH$4,0) -> 5051
A14: Jan | B14: 10-Jan | C14: 4585 | D14: 237 | F14: Nov | G14: 11 | H14: 10 | I14: 27-Aug | J14: 2018-08-27 | K14: =OFFSET(Sheet1!$B$1,('System load - top days'!$J14-Sheet1!$D$2)*24+'System load - top days'!K$4,0) -> 4516 | L14: =OFFSET(Sheet1!$B$1,('System load - top days'!$J14-Sheet1!$D$2)*24+'System load - top days'!L$4,0) -> 4267 | M14: =OFFSET(Sheet1!$B$1,('System load - top days'!$J14-Sheet1!$D$2)*24+'System load - top days'!M$4,0) -> 4106 | N14: =OFFSET(Sheet1!$B$1,('System load - top days'!$J14-Sheet1!$D$2)*24+'System load - top days'!N$4,0) -> 4001 | O14: =OFFSET(Sheet1!$B$1,('System load - top days'!$J14-Sheet1!$D$2)*24+'System load - top days'!O$4,0) -> 4025 | P14: =OFFSET(Sheet1!$B$1,('System load - top days'!$J14-Sheet1!$D$2)*24+'System load - top days'!P$4,0) -> 4202 | Q14: =OFFSET(Sheet1!$B$1,('System load - top days'!$J14-Sheet1!$D$2)*24+'System load - top days'!Q$4,0) -> 4496 | R14: =OFFSET(Sheet1!$B$1,('System load - top days'!$J14-Sheet1!$D$2)*24+'System load - top days'!R$4,0) -> 4773 | S14: =OFFSET(Sheet1!$B$1,('System load - top days'!$J14-Sheet1!$D$2)*24+'System load - top days'!S$4,0) -> 5127 | T14: =OFFSET(Sheet1!$B$1,('System load - top days'!$J14-Sheet1!$D$2)*24+'System load - top days'!T$4,0) -> 5544 | U14: =OFFSET(Sheet1!$B$1,('System load - top days'!$J14-Sheet1!$D$2)*24+'System load - top days'!U$4,0) -> 5999 | V14: =OFFSET(Sheet1!$B$1,('System load - top days'!$J14-Sheet1!$D$2)*24+'System load - top days'!V$4,0) -> 6350 | W14: =OFFSET(Sheet1!$B$1,('System load - top days'!$J14-Sheet1!$D$2)*24+'System load - top days'!W$4,0) -> 6664 | X14: =OFFSET(Sheet1!$B$1,('System load - top days'!$J14-Sheet1!$D$2)*24+'System load - top days'!X$4,0) -> 6930 | Y14: =OFFSET(Sheet1!$B$1,('System load - top days'!$J14-Sheet1!$D$2)*24+'System load - top days'!Y$4,0) -> 7088 | Z14: =OFFSET(Sheet1!$B$1,('System load - top days'!$J14-Sheet1!$D$2)*24+'System load - top days'!Z$4,0) -> 7152 | AA14: =OFFSET(Sheet1!$B$1,('System load - top days'!$J14-Sheet1!$D$2)*24+'System load - top days'!AA$4,0) -> 7171 | AB14: =OFFSET(Sheet1!$B$1,('System load - top days'!$J14-Sheet1!$D$2)*24+'System load - top days'!AB$4,0) -> 7092 | AC14: =OFFSET(Sheet1!$B$1,('System load - top days'!$J14-Sheet1!$D$2)*24+'System load - top days'!AC$4,0) -> 6853 | AD14: =OFFSET(Sheet1!$B$1,('System load - top days'!$J14-Sheet1!$D$2)*24+'System load - top days'!AD$4,0) -> 6551 | AE14: =OFFSET(Sheet1!$B$1,('System load - top days'!$J14-Sheet1!$D$2)*24+'System load - top days'!AE$4,0) -> 6389 | AF14: =OFFSET(Sheet1!$B$1,('System load - top days'!$J14-Sheet1!$D$2)*24+'System load - top days'!AF$4,0) -> 5981 | AG14: =OFFSET(Sheet1!$B$1,('System load - top days'!$J14-Sheet1!$D$2)*24+'System load - top days'!AG$4,0) -> 5499 | AH14: =OFFSET(Sheet1!$B$1,('System load - top days'!$J14-Sheet1!$D$2)*24+'System load - top days'!AH$4,0) -> 5069
A15: Jan | B15: 11-Jan | C15: 4989 | D15: 188 | F15: Dec | G15: 12
A16: Jan | B16: 12-Jan | C16: 6111 | D16: 79
A17: Jan | B17: 13-Jan | C17: 5742 | D17: 106 | K17: =AVERAGE(K5:K14) -> 4688.5 | L17: =AVERAGE(L5:L14) -> 4415.5 | M17: 4221 | N17: 4094.9 | O17: 4091.2 | P17: 4207.8 | Q17: 4422.7 | R17: 4780.8 | S17: 5181.7 | T17: 5618 | U17: 6062.8 | V17: 6440.4 | W17: 6756.4 | X17: 7012.9 | Y17: 7174.3 | Z17: 7278 | AA17: 7320.7 | AB17: 7225.2 | AC17: 6984.8 | AD17: 6675.3 | AE17: 6403.1 | AF17: 6078.6 | AG17: 5593.4 | AH17: 5138.4
A18: Jan | B18: 14-Jan | C18: 5537 | D18: 127 | K18: =MAX(K5:K14) -> 5031 | L18: =MAX(L5:L14) -> 4749 | M18: 4532 | N18: 4394 | O18: 4357 | P18: 4440 | Q18: 4638 | R18: 5023 | S18: 5466 | T18: 5901 | U18: 6355 | V18: 6713 | W18: 7009 | X18: 7211 | Y18: 7325 | Z18: 7427 | AA18: 7470 | AB18: 7399 | AC18: 7258 | AD18: 6959 | AE18: 6656 | AF18: 6330 | AG18: 5857 | AH18: 5425
A19: Jan | B19: 15-Jan | C19: 6308 | D19: 65 | K19: =MIN(K5:K14) -> 4423 | L19: =MIN(L5:L14) -> 4172 | M19: 4013 | N19: 3909 | O19: 3948 | P19: 4047 | Q19: 4222 | R19: 4577 | S19: 4976 | T19: 5377 | U19: 5790 | V19: 6188 | W19: 6502 | X19: 6814 | Y19: 7025 | Z19: 7148 | AA19: 7171 | AB19: 7092 | AC19: 6750 | AD19: 6428 | AE19: 6138 | AF19: 5813 | AG19: 5349 | AH19: 4891
A20: Jan | B20: 16-Jan | C20: 6847 | D20: 27
A21: Jan | B21: 17-Jan | C21: 6837 | D21: 28
A22: Jan | B22: 18-Jan | C22: 6111 | D22: 79
A23: Jan | B23: 19-Jan | C23: 5405 | D23: 137
A24: Jan | B24: 20-Jan | C24: 4357 | D24: 270
A25: Jan | B25: 21-Jan | C25: 3844 | D25: 339
A26: Jan | B26: 22-Jan | C26: 4483 | D26: 250
A27: Jan | B27: 23-Jan | C27: 5066 | D27: 177
A28: Jan | B28: 24-Jan | C28: 5197 | D28: 160
A29: Jan | B29: 25-Jan | C29: 5118 | D29: 171
A30: Jan | B30: 26-Jan | C30: 4519 | D30: 246
A31: Jan | B31: 27-Jan | C31: 3923 | D31: 329
A32: Jan | B32: 28-Jan | C32: 4226 | D32: 286
A33: Jan | B33: 29-Jan | C33: 5323 | D33: 148
A34: Jan | B34: 30-Jan | C34: 5695 | D34: 113
A35: Jan | B35: 31-Jan | C35: 4923 | D35: 197
A36: Feb | B36: 01-Feb | C36: 5504 | D36: 131
A37: Feb | B37: 02-Feb | C37: 5994 | D37: 90
A38: Feb | B38: 03-Feb | C38: 4957 | D38: 193
A39: Feb | B39: 04-Feb | C39: 5464 | D39: 135
A40: Feb | B40: 05-Feb | C40: 6194 | D40: 71
A41: Feb | B41: 06-Feb | C41: 5741 | D41: 107
A42: Feb | B42: 07-Feb | C42: 5835 | D42: 100
A43: Feb | B43: 08-Feb | C43: 5596 | D43: 124
A44: Feb | B44: 09-Feb | C44: 4748 | D44: 215
A45: Feb | B45: 10-Feb | C45: 5342 | D45: 144
A46: Feb | B46: 11-Feb | C46: 5467 | D46: 133
A47: Feb | B47: 12-Feb | C47: 5880 | D47: 98
A48: Feb | B48: 13-Feb | C48: 5432 | D48: 136
A49: Feb | B49: 14-Feb | C49: 4498 | D49: 248
A50: Feb | B50: 15-Feb | C50: 3894 | D50: 331
A51: Feb | B51: 16-Feb | C51: 4557 | D51: 241
A52: Feb | B52: 17-Feb | C52: 4635 | D52: 231
A53: Feb | B53: 18-Feb | C53: 4362 | D53: 268
A54: Feb | B54: 19-Feb | C54: 4077 | D54: 308
A55: Feb | B55: 20-Feb | C55: 4286 | D55: 279
A56: Feb | B56: 21-Feb | C56: 5356 | D56: 142
A57: Feb | B57: 22-Feb | C57: 4923 | D57: 197
A58: Feb | B58: 23-Feb | C58: 4347 | D58: 271
A59: Feb | B59: 24-Feb | C59: 4154 | D59: 299
A60: Feb | B60: 25-Feb | C60: 4075 | D60: 310
A61: Feb | B61: 26-Feb | C61: 4657 | D61: 223
A62: Feb | B62: 27-Feb | C62: 4308 | D62: 276
A63: Feb | B63: 28-Feb | C63: 4044 | D63: 317
A64: Mar | B64: 01-Mar | C64: 4138 | D64: 301
A65: Mar | B65: 02-Mar | C65: 4571 | D65: 239
A66: Mar | B66: 03-Mar | C66: 4046 | D66: 316
A67: Mar | B67: 04-Mar | C67: 3800 | D67: 343
A68: Mar | B68: 05-Mar | C68: 4364 | D68: 267
A69: Mar | B69: 06-Mar | C69: 4911 | D69: 199
A70: Mar | B70: 07-Mar | C70: 4946 | D70: =RANK(C70,$C$5:$C$369) -> 195
A71: Mar | B71: 08-Mar | C71: 5018 | D71: 183
A72: Mar | B72: 09-Mar | C72: 4900 | D72: 202
A73: Mar | B73: 10-Mar | C73: 4010 | D73: 321
A74: Mar | B74: 11-Mar | C74: 4499 | D74: 247
A75: Mar | B75: 12-Mar | C75: 4941 | D75: 196
A76: Mar | B76: 13-Mar | C76: 4975 | D76: 189
A77: Mar | B77: 14-Mar | C77: 5119 | D77: 170
A78: Mar | B78: 15-Mar | C78: 4321 | D78: 274
A79: Mar | B79: 16-Mar | C79: 4259 | D79: 281
A80: Mar | B80: 17-Mar | C80: 3954 | D80: 325
A81: Mar | B81: 18-Mar | C81: 4108 | D81: 303
A82: Mar | B82: 19-Mar | C82: 4372 | D82: 266
A83: Mar | B83: 20-Mar | C83: 4657 | D83: 223
A84: Mar | B84: 21-Mar | C84: 4663 | D84: 222
A85: Mar | B85: 22-Mar | C85: 4739 | D85: 216
A86: Mar | B86: 23-Mar | C86: 4188 | D86: 293
A87: Mar | B87: 24-Mar | C87: 4076 | D87: 309
A88: Mar | B88: 25-Mar | C88: 4065 | D88: 313
A89: Mar | B89: 26-Mar | C89: 4521 | D89: 245
A90: Mar | B90: 27-Mar | C90: 4190 | D90: 292
A91: Mar | B91: 28-Mar | C91: 4220 | D91: 288
A92: Mar | B92: 29-Mar | C92: 4233 | D92: 283
A93: Mar | B93: 30-Mar | C93: 4105 | D93: 304
A94: Mar | B94: 31-Mar | C94: 3837 | D94: 340
A95: Apr | B95: 01-Apr | C95: 4465 | D95: 253
A96: Apr | B96: 02-Apr | C96: 5016 | D96: 184
A97: Apr | B97: 03-Apr | C97: 4390 | D97: 263
A98: Apr | B98: 04-Apr | C98: 4996 | D98: 187
A99: Apr | B99: 05-Apr | C99: 4880 | D99: 204
A100: Apr | B100: 06-Apr | C100: 4403 | D100: 260
A101: Apr | B101: 07-Apr | C101: 4527 | D101: 244
A102: Apr | B102: 08-Apr | C102: 4382 | D102: 265
A103: Apr | B103: 09-Apr | C103: 4636 | D103: 229
A104: Apr | B104: 10-Apr | C104: 4483 | D104: 250
A105: Apr | B105: 11-Apr | C105: 4089 | D105: 306
A106: Apr | B106: 12-Apr | C106: 3894 | D106: 331
A107: Apr | B107: 13-Apr | C107: 3794 | D107: 344
A108: Apr | B108: 14-Apr | C108: 3456 | D108: 362
A109: Apr | B109: 15-Apr | C109: 4452 | D109: 254
A110: Apr | B110: 16-Apr | C110: 4971 | D110: 190
A111: Apr | B111: 17-Apr | C111: 4558 | D111: 240
A112: Apr | B112: 18-Apr | C112: 3954 | D112: 325
A113: Apr | B113: 19-Apr | C113: 4421 | D113: 258
A114: Apr | B114: 20-Apr | C114: 4224 | D114: 287
A115: Apr | B115: 21-Apr | C115: 3478 | D115: 361
A116: Apr | B116: 22-Apr | C116: 3594 | D116: 358
A117: Apr | B117: 23-Apr | C117: 3876 | D117: 336
A118: Apr | B118: 24-Apr | C118: 3725 | D118: 348
A119: Apr | B119: 25-Apr | C119: 3704 | D119: 349
A120: Apr | B120: 26-Apr | C120: 3690 | D120: 351
A121: Apr | B121: 27-Apr | C121: 3607 | D121: 355
A122: Apr | B122: 28-Apr | C122: 3269 | D122: 365
A123: Apr | B123: 29-Apr | C123: 3397 | D123: 364
A124: Apr | B124: 30-Apr | C124: 3867 | D124: 337
A125: May | B125: 01-May | C125: 4324 | D125: 273
A126: May | B126: 02-May | C126: 4899 | D126: 203
A127: May | B127: 03-May | C127: 4173 | D127: 296
A128: May | B128: 04-May | C128: 4202 | D128: 291
A129: May | B129: 05-May | C129: 4123 | D129: 302
A130: May | B130: 06-May | C130: 4340 | D130: 272
A131: May | B131: 07-May | C131: 4607 | D131: 236
A132: May | B132: 08-May | C132: 4714 | D132: 219
A133: May | B133: 09-May | C133: 5324 | D133: 147
A134: May | B134: 10-May | C134: 5510 | D134: =RANK(C134,$C$5:$C$369) -> 130
A135: May | B135: 11-May | C135: 5355 | D135: 143
A136: May | B136: 12-May | C136: 5391 | D136: 139
A137: May | B137: 13-May | C137: 5678 | D137: 115
A138: May | B138: 14-May | C138: 6307 | D138: 66
A139: May | B139: 15-May | C139: 5275 | D139: 155
A140: May | B140: 16-May | C140: 5634 | D140: 118
A141: May | B141: 17-May | C141: 5281 | D141: 153
A142: May | B142: 18-May | C142: 4227 | D142: 284
A143: May | B143: 19-May | C143: 4576 | D143: 238
A144: May | B144: 20-May | C144: 4678 | D144: 221
A145: May | B145: 21-May | C145: 5103 | D145: 172
A146: May | B146: 22-May | C146: 5773 | D146: 102
A147: May | B147: 23-May | C147: 6034 | D147: 89
A148: May | B148: 24-May | C148: 6170 | D148: 73
A149: May | B149: 25-May | C149: 5638 | D149: 117
A150: May | B150: 26-May | C150: 6065 | D150: 84
A151: May | B151: 27-May | C151: 6092 | D151: 83
A152: May | B152: 28-May | C152: 6312 | D152: 64
A153: May | B153: 29-May | C153: 5740 | D153: 108
A154: May | B154: 30-May | C154: 6465 | D154: 56
A155: May | B155: 31-May | C155: 5966 | D155: 92
A156: Jun | B156: 01-Jun | C156: 6774 | D156: 35
A157: Jun | B157: 02-Jun | C157: 5364 | D157: 141
A158: Jun | B158: 03-Jun | C158: 5054 | D158: 179
A159: Jun | B159: 04-Jun | C159: 4967 | D159: 192
A160: Jun | B160: 05-Jun | C160: 5932 | D160: 95
A161: Jun | B161: 06-Jun | C161: 6454 | D161: 58
A162: Jun | B162: 07-Jun | C162: 6819 | D162: 30
A163: Jun | B163: 08-Jun | C163: 6607 | D163: 49
A164: Jun | B164: 09-Jun | C164: 5242 | D164: 158
A165: Jun | B165: 10-Jun | C165: 6535 | D165: 53
A166: Jun | B166: 11-Jun | C166: 7092 | D166: 13
A167: Jun | B167: 12-Jun | C167: 6571 | D167: 52
A168: Jun | B168: 13-Jun | C168: 6764 | D168: 37
A169: Jun | B169: 14-Jun | C169: 6837 | D169: 28
A170: Jun | B170: 15-Jun | C170: 7059 | D170: 16
A171: Jun | B171: 16-Jun | C171: 6792 | D171: 34
A172: Jun | B172: 17-Jun | C172: 6851 | D172: 26
A173: Jun | B173: 18-Jun | C173: 7399 | D173: 4
A174: Jun | B174: 19-Jun | C174: 7146 | D174: 11
A175: Jun | B175: 20-Jun | C175: 6721 | D175: 41
A176: Jun | B176: 21-Jun | C176: 5728 | D176: 109
A177: Jun | B177: 22-Jun | C177: 4634 | D177: 232
A178: Jun | B178: 23-Jun | C178: 5088 | D178: 175
A179: Jun | B179: 24-Jun | C179: 5065 | D179: 178
A180: Jun | B180: 25-Jun | C180: 5993 | D180: 91
A181: Jun | B181: 26-Jun | C181: 5083 | D181: 176
A182: Jun | B182: 27-Jun | C182: 6612 | D182: 48
A183: Jun | B183: 28-Jun | C183: 7146 | D183: 11
A184: Jun | B184: 29-Jun | C184: 7074 | D184: 14
A185: Jun | B185: 30-Jun | C185: 6936 | D185: 21
A186: Jul | B186: 01-Jul | C186: 6594 | D186: 50
A187: Jul | B187: 02-Jul | C187: 6765 | D187: 36
A188: Jul | B188: 03-Jul | C188: 7062 | D188: 15
A189: Jul | B189: 04-Jul | C189: 6819 | D189: 30
A190: Jul | B190: 05-Jul | C190: 7470 | D190: 1
A191: Jul | B191: 06-Jul | C191: 6713 | D191: 42
A192: Jul | B192: 07-Jul | C192: 5325 | D192: 146
A193: Jul | B193: 08-Jul | C193: 6101 | D193: 82
A194: Jul | B194: 09-Jul | C194: 6961 | D194: 18
A195: Jul | B195: 10-Jul | C195: 7441 | D195: 2
A196: Jul | B196: 11-Jul | C196: 7218 | D196: 8
A197: Jul | B197: 12-Jul | C197: 7215 | D197: 9
A198: Jul | B198: 13-Jul | C198: 7413 | D198: =RANK(C198,$C$5:$C$369) -> 3
A199: Jul | B199: 14-Jul | C199: 6937 | D199: 20
A200: Jul | B200: 15-Jul | C200: 6288 | D200: 67
A201: Jul | B201: 16-Jul | C201: 7222 | D201: 7
A202: Jul | B202: 17-Jul | C202: 6590 | D202: 51
... 168 more rows

Sheet System load - top winter days
A3: Max of UE_SYSTEM_LOAD,0
A4: Months | B4: Date | C4: Total | D4: Annual Rank | F4: Winter Rank | G4: Jan | H4: 1 | I4: Top Days | J4: Date | K4: Date (formatted) | L4: 1 | M4: 2 | N4: 3 | O4: 4 | P4: 5 | Q4: 6 | R4: 7 | S4: 8 | T4: 9 | U4: 10 | V4: 11 | W4: 12 | X4: 13 | Y4: 14 | Z4: 15 | AA4: 16 | AB4: 17 | AC4: 18 | AD4: 19 | AE4: 20 | AF4: 21 | AG4: 22 | AH4: 23 | AI4: 24
A5: Jan | B5: 01-Jan | C5: 6472 | D5: =RANK(C5,$C$5:$C$369) -> 55 | E5: =D5 -> 55 | F5: =RANK(E5,$E$5:$E$369,1) -> 5 | G5: Feb | H5: 2 | I5: 1 | J5: =OFFSET($B$4,MATCH(I5,$F$5:$F$369,0),0) -> 02-Jan | K5: =DATE(2018,VLOOKUP(RIGHT(J5,3),$G$4:$H$15,2,FALSE),LEFT(J5,2)*1) -> 2018-01-02 | L5: =OFFSET(Sheet1!$B$1,('System load - top winter days'!$K5-Sheet1!$D$2)*24+'System load - top winter days'!L$4,0) -> 5932 | M5: =OFFSET(Sheet1!$B$1,('System load - top winter days'!$K5-Sheet1!$D$2)*24+'System load - top winter days'!M$4,0) -> 5906 | N5: =OFFSET(Sheet1!$B$1,('System load - top winter days'!$K5-Sheet1!$D$2)*24+'System load - top winter days'!N$4,0) -> 5949 | O5: =OFFSET(Sheet1!$B$1,('System load - top winter days'!$K5-Sheet1!$D$2)*24+'System load - top winter days'!O$4,0) -> 6021 | P5: =OFFSET(Sheet1!$B$1,('System load - top winter days'!$K5-Sheet1!$D$2)*24+'System load - top winter days'!P$4,0) -> 6125 | Q5: =OFFSET(Sheet1!$B$1,('System load - top winter days'!$K5-Sheet1!$D$2)*24+'System load - top winter days'!Q$4,0) -> 6368 | R5: =OFFSET(Sheet1!$B$1,('System load - top winter days'!$K5-Sheet1!$D$2)*24+'System load - top winter days'!R$4,0) -> 6697 | S5: =OFFSET(Sheet1!$B$1,('System load - top winter days'!$K5-Sheet1!$D$2)*24+'System load - top winter days'!S$4,0) -> 6857 | T5: =OFFSET(Sheet1!$B$1,('System load - top winter days'!$K5-Sheet1!$D$2)*24+'System load - top winter days'!T$4,0) -> 6789 | U5: =OFFSET(Sheet1!$B$1,('System load - top winter days'!$K5-Sheet1!$D$2)*24+'System load - top winter days'!U$4,0) -> 6608 | V5: =OFFSET(Sheet1!$B$1,('System load - top winter days'!$K5-Sheet1!$D$2)*24+'System load - top winter days'!V$4,0) -> 6414 | W5: =OFFSET(Sheet1!$B$1,('System load - top winter days'!$K5-Sheet1!$D$2)*24+'System load - top winter days'!W$4,0) -> 6201 | X5: =OFFSET(Sheet1!$B$1,('System load - top winter days'!$K5-Sheet1!$D$2)*24+'System load - top winter days'!X$4,0) -> 6002 | Y5: =OFFSET(Sheet1!$B$1,('System load - top winter days'!$K5-Sheet1!$D$2)*24+'System load - top winter days'!Y$4,0) -> 5855 | Z5: =OFFSET(Sheet1!$B$1,('System load - top winter days'!$K5-Sheet1!$D$2)*24+'System load - top winter days'!Z$4,0) -> 5657 | AA5: =OFFSET(Sheet1!$B$1,('System load - top winter days'!$K5-Sheet1!$D$2)*24+'System load - top winter days'!AA$4,0) -> 5701 | AB5: =OFFSET(Sheet1!$B$1,('System load - top winter days'!$K5-Sheet1!$D$2)*24+'System load - top winter days'!AB$4,0) -> 5891 | AC5: =OFFSET(Sheet1!$B$1,('System load - top winter days'!$K5-Sheet1!$D$2)*24+'System load - top winter days'!AC$4,0) -> 6315 | AD5: =OFFSET(Sheet1!$B$1,('System load - top winter days'!$K5-Sheet1!$D$2)*24+'System load - top winter days'!AD$4,0) -> 6413 | AE5: =OFFSET(Sheet1!$B$1,('System load - top winter days'!$K5-Sheet1!$D$2)*24+'System load - top winter days'!AE$4,0) -> 6386 | AF5: =OFFSET(Sheet1!$B$1,('System load - top winter days'!$K5-Sheet1!$D$2)*24+'System load - top winter days'!AF$4,0) -> 6296 | AG5: =OFFSET(Sheet1!$B$1,('System load - top winter days'!$K5-Sheet1!$D$2)*24+'System load - top winter days'!AG$4,0) -> 6113 | AH5: =OFFSET(Sheet1!$B$1,('System load - top winter days'!$K5-Sheet1!$D$2)*24+'System load - top winter days'!AH$4,0) -> 5843 | AI5: =OFFSET(Sheet1!$B$1,('System load - top winter days'!$K5-Sheet1!$D$2)*24+'System load - top winter days'!AI$4,0) -> 5652
A6: Jan | B6: 02-Jan | C6: 6857 | D6: =RANK(C6,$C$5:$C$369) -> 25 | E6: =D6 -> 25 | F6: =RANK(E6,$E$5:$E$369,1) -> 1 | G6: Mar | H6: 3 | I6: 2 | J6: =OFFSET($B$4,MATCH(I6,$F$5:$F$369,0),0) -> 16-Jan | K6: =DATE(2018,VLOOKUP(RIGHT(J6,3),$G$4:$H$15,2,FALSE),LEFT(J6,2)*1) -> 2018-01-16 | L6: =OFFSET(Sheet1!$B$1,('System load - top winter days'!$K6-Sheet1!$D$2)*24+'System load - top winter days'!L$4,0) -> 5761 | M6: =OFFSET(Sheet1!$B$1,('System load - top winter days'!$K6-Sheet1!$D$2)*24+'System load - top winter days'!M$4,0) -> 5775 | N6: =OFFSET(Sheet1!$B$1,('System load - top winter days'!$K6-Sheet1!$D$2)*24+'System load - top winter days'!N$4,0) -> 5822 | O6: =OFFSET(Sheet1!$B$1,('System load - top winter days'!$K6-Sheet1!$D$2)*24+'System load - top winter days'!O$4,0) -> 5907 | P6: =OFFSET(Sheet1!$B$1,('System load - top winter days'!$K6-Sheet1!$D$2)*24+'System load - top winter days'!P$4,0) -> 6031 | Q6: =OFFSET(Sheet1!$B$1,('System load - top winter days'!$K6-Sheet1!$D$2)*24+'System load - top winter days'!Q$4,0) -> 6323 | R6: =OFFSET(Sheet1!$B$1,('System load - top winter days'!$K6-Sheet1!$D$2)*24+'System load - top winter days'!R$4,0) -> 6670 | S6: =OFFSET(Sheet1!$B$1,('System load - top winter days'!$K6-Sheet1!$D$2)*24+'System load - top winter days'!S$4,0) -> 6847 | T6: =OFFSET(Sheet1!$B$1,('System load - top winter days'!$K6-Sheet1!$D$2)*24+'System load - top winter days'!T$4,0) -> 6845 | U6: =OFFSET(Sheet1!$B$1,('System load - top winter days'!$K6-Sheet1!$D$2)*24+'System load - top winter days'!U$4,0) -> 6804 | V6: =OFFSET(Sheet1!$B$1,('System load - top winter days'!$K6-Sheet1!$D$2)*24+'System load - top winter days'!V$4,0) -> 6613 | W6: =OFFSET(Sheet1!$B$1,('System load - top winter days'!$K6-Sheet1!$D$2)*24+'System load - top winter days'!W$4,0) -> 6417 | X6: =OFFSET(Sheet1!$B$1,('System load - top winter days'!$K6-Sheet1!$D$2)*24+'System load - top winter days'!X$4,0) -> 6294 | Y6: =OFFSET(Sheet1!$B$1,('System load - top winter days'!$K6-Sheet1!$D$2)*24+'System load - top winter days'!Y$4,0) -> 6207 | Z6: =OFFSET(Sheet1!$B$1,('System load - top winter days'!$K6-Sheet1!$D$2)*24+'System load - top winter days'!Z$4,0) -> 6187 | AA6: =OFFSET(Sheet1!$B$1,('System load - top winter days'!$K6-Sheet1!$D$2)*24+'System load - top winter days'!AA$4,0) -> 6255 | AB6: =OFFSET(Sheet1!$B$1,('System load - top winter days'!$K6-Sheet1!$D$2)*24+'System load - top winter days'!AB$4,0) -> 6373 | AC6: =OFFSET(Sheet1!$B$1,('System load - top winter days'!$K6-Sheet1!$D$2)*24+'System load - top winter days'!AC$4,0) -> 6687 | AD6: =OFFSET(Sheet1!$B$1,('System load - top winter days'!$K6-Sheet1!$D$2)*24+'System load - top winter days'!AD$4,0) -> 6755 | AE6: =OFFSET(Sheet1!$B$1,('System load - top winter days'!$K6-Sheet1!$D$2)*24+'System load - top winter days'!AE$4,0) -> 6664 | AF6: =OFFSET(Sheet1!$B$1,('System load - top winter days'!$K6-Sheet1!$D$2)*24+'System load - top winter days'!AF$4,0) -> 6581 | AG6: =OFFSET(Sheet1!$B$1,('System load - top winter days'!$K6-Sheet1!$D$2)*24+'System load - top winter days'!AG$4,0) -> 6364 | AH6: =OFFSET(Sheet1!$B$1,('System load - top winter days'!$K6-Sheet1!$D$2)*24+'System load - top winter days'!AH$4,0) -> 6093 | AI6: =OFFSET(Sheet1!$B$1,('System load - top winter days'!$K6-Sheet1!$D$2)*24+'System load - top winter days'!AI$4,0) -> 5929
A7: Jan | B7: 03-Jan | C7: 6127 | D7: 78 | E7: 78 | F7: 8 | G7: Apr | H7: 4 | I7: 3 | J7: 17-Jan | K7: 2018-01-17 | L7: =OFFSET(Sheet1!$B$1,('System load - top winter days'!$K7-Sheet1!$D$2)*24+'System load - top winter days'!L$4,0) -> 5857 | M7: =OFFSET(Sheet1!$B$1,('System load - top winter days'!$K7-Sheet1!$D$2)*24+'System load - top winter days'!M$4,0) -> 5820 | N7: =OFFSET(Sheet1!$B$1,('System load - top winter days'!$K7-Sheet1!$D$2)*24+'System load - top winter days'!N$4,0) -> 5861 | O7: =OFFSET(Sheet1!$B$1,('System load - top winter days'!$K7-Sheet1!$D$2)*24+'System load - top winter days'!O$4,0) -> 5911 | P7: =OFFSET(Sheet1!$B$1,('System load - top winter days'!$K7-Sheet1!$D$2)*24+'System load - top winter days'!P$4,0) -> 6047 | Q7: =OFFSET(Sheet1!$B$1,('System load - top winter days'!$K7-Sheet1!$D$2)*24+'System load - top winter days'!Q$4,0) -> 6309 | R7: =OFFSET(Sheet1!$B$1,('System load - top winter days'!$K7-Sheet1!$D$2)*24+'System load - top winter days'!R$4,0) -> 6705 | S7: =OFFSET(Sheet1!$B$1,('System load - top winter days'!$K7-Sheet1!$D$2)*24+'System load - top winter days'!S$4,0) -> 6837 | T7: =OFFSET(Sheet1!$B$1,('System load - top winter days'!$K7-Sheet1!$D$2)*24+'System load - top winter days'!T$4,0) -> 6648 | U7: =OFFSET(Sheet1!$B$1,('System load - top winter days'!$K7-Sheet1!$D$2)*24+'System load - top winter days'!U$4,0) -> 6415 | V7: =OFFSET(Sheet1!$B$1,('System load - top winter days'!$K7-Sheet1!$D$2)*24+'System load - top winter days'!V$4,0) -> 6189 | W7: =OFFSET(Sheet1!$B$1,('System load - top winter days'!$K7-Sheet1!$D$2)*24+'System load - top winter days'!W$4,0) -> 5947 | X7: =OFFSET(Sheet1!$B$1,('System load - top winter days'!$K7-Sheet1!$D$2)*24+'System load - top winter days'!X$4,0) -> 5707 | Y7: =OFFSET(Sheet1!$B$1,('System load - top winter days'!$K7-Sheet1!$D$2)*24+'System load - top winter days'!Y$4,0) -> 5559 | Z7: =OFFSET(Sheet1!$B$1,('System load - top winter days'!$K7-Sheet1!$D$2)*24+'System load - top winter days'!Z$4,0) -> 5424 | AA7: =OFFSET(Sheet1!$B$1,('System load - top winter days'!$K7-Sheet1!$D$2)*24+'System load - top winter days'!AA$4,0) -> 5397 | AB7: =OFFSET(Sheet1!$B$1,('System load - top winter days'!$K7-Sheet1!$D$2)*24+'System load - top winter days'!AB$4,0) -> 5564 | AC7: =OFFSET(Sheet1!$B$1,('System load - top winter days'!$K7-Sheet1!$D$2)*24+'System load - top winter days'!AC$4,0) -> 5950 | AD7: =OFFSET(Sheet1!$B$1,('System load - top winter days'!$K7-Sheet1!$D$2)*24+'System load - top winter days'!AD$4,0) -> 6068 | AE7: =OFFSET(Sheet1!$B$1,('System load - top winter days'!$K7-Sheet1!$D$2)*24+'System load - top winter days'!AE$4,0) -> 6032 | AF7: =OFFSET(Sheet1!$B$1,('System load - top winter days'!$K7-Sheet1!$D$2)*24+'System load - top winter days'!AF$4,0) -> 5983 | AG7: =OFFSET(Sheet1!$B$1,('System load - top winter days'!$K7-Sheet1!$D$2)*24+'System load - top winter days'!AG$4,0) -> 5826 | AH7: =OFFSET(Sheet1!$B$1,('System load - top winter days'!$K7-Sheet1!$D$2)*24+'System load - top winter days'!AH$4,0) -> 5565 | AI7: =OFFSET(Sheet1!$B$1,('System load - top winter days'!$K7-Sheet1!$D$2)*24+'System load - top winter days'!AI$4,0) -> 5416
A8: Jan | B8: 04-Jan | C8: 6632 | D8: 46 | E8: 46 | F8: 4 | G8: May | H8: 5 | I8: 4 | J8: 04-Jan | K8: 2018-01-04 | L8: =OFFSET(Sheet1!$B$1,('System load - top winter days'!$K8-Sheet1!$D$2)*24+'System load - top winter days'!L$4,0) -> 5585 | M8: =OFFSET(Sheet1!$B$1,('System load - top winter days'!$K8-Sheet1!$D$2)*24+'System load - top winter days'!M$4,0) -> 5569 | N8: =OFFSET(Sheet1!$B$1,('System load - top winter days'!$K8-Sheet1!$D$2)*24+'System load - top winter days'!N$4,0) -> 5593 | O8: =OFFSET(Sheet1!$B$1,('System load - top winter days'!$K8-Sheet1!$D$2)*24+'System load - top winter days'!O$4,0) -> 5659 | P8: =OFFSET(Sheet1!$B$1,('System load - top winter days'!$K8-Sheet1!$D$2)*24+'System load - top winter days'!P$4,0) -> 5793 | Q8: =OFFSET(Sheet1!$B$1,('System load - top winter days'!$K8-Sheet1!$D$2)*24+'System load - top winter days'!Q$4,0) -> 6086 | R8: =OFFSET(Sheet1!$B$1,('System load - top winter days'!$K8-Sheet1!$D$2)*24+'System load - top winter days'!R$4,0) -> 6465 | S8: =OFFSET(Sheet1!$B$1,('System load - top winter days'!$K8-Sheet1!$D$2)*24+'System load - top winter days'!S$4,0) -> 6632 | T8: =OFFSET(Sheet1!$B$1,('System load - top winter days'!$K8-Sheet1!$D$2)*24+'System load - top winter days'!T$4,0) -> 6485 | U8: =OFFSET(Sheet1!$B$1,('System load - top winter days'!$K8-Sheet1!$D$2)*24+'System load - top winter days'!U$4,0) -> 6302 | V8: =OFFSET(Sheet1!$B$1,('System load - top winter days'!$K8-Sheet1!$D$2)*24+'System load - top winter days'!V$4,0) -> 6113 | W8: =OFFSET(Sheet1!$B$1,('System load - top winter days'!$K8-Sheet1!$D$2)*24+'System load - top winter days'!W$4,0) -> 5921 | X8: =OFFSET(Sheet1!$B$1,('System load - top winter days'!$K8-Sheet1!$D$2)*24+'System load - top winter days'!X$4,0) -> 5783 | Y8: =OFFSET(Sheet1!$B$1,('System load - top winter days'!$K8-Sheet1!$D$2)*24+'System load - top winter days'!Y$4,0) -> 5680 | Z8: =OFFSET(Sheet1!$B$1,('System load - top winter days'!$K8-Sheet1!$D$2)*24+'System load - top winter days'!Z$4,0) -> 5616 | AA8: =OFFSET(Sheet1!$B$1,('System load - top winter days'!$K8-Sheet1!$D$2)*24+'System load - top winter days'!AA$4,0) -> 5674 | AB8: =OFFSET(Sheet1!$B$1,('System load - top winter days'!$K8-Sheet1!$D$2)*24+'System load - top winter days'!AB$4,0) -> 5899 | AC8: =OFFSET(Sheet1!$B$1,('System load - top winter days'!$K8-Sheet1!$D$2)*24+'System load - top winter days'!AC$4,0) -> 6182 | AD8: =OFFSET(Sheet1!$B$1,('System load - top winter days'!$K8-Sheet1!$D$2)*24+'System load - top winter days'!AD$4,0) -> 6163 | AE8: =OFFSET(Sheet1!$B$1,('System load - top winter days'!$K8-Sheet1!$D$2)*24+'System load - top winter days'!AE$4,0) -> 6101 | AF8: =OFFSET(Sheet1!$B$1,('System load - top winter days'!$K8-Sheet1!$D$2)*24+'System load - top winter days'!AF$4,0) -> 5994 | AG8: =OFFSET(Sheet1!$B$1,('System load - top winter days'!$K8-Sheet1!$D$2)*24+'System load - top winter days'!AG$4,0) -> 5799 | AH8: =OFFSET(Sheet1!$B$1,('System load - top winter days'!$K8-Sheet1!$D$2)*24+'System load - top winter days'!AH$4,0) -> 5515 | AI8: =OFFSET(Sheet1!$B$1,('System load - top winter days'!$K8-Sheet1!$D$2)*24+'System load - top winter days'!AI$4,0) -> 5324
A9: Jan | B9: 05-Jan | C9: 6042 | D9: 87 | E9: 87 | F9: 11 | G9: Jun | H9: 6 | I9: 5 | J9: 01-Jan | K9: 2018-01-01 | L9: =OFFSET(Sheet1!$B$1,('System load - top winter days'!$K9-Sheet1!$D$2)*24+'System load - top winter days'!L$4,0) -> 5862 | M9: =OFFSET(Sheet1!$B$1,('System load - top winter days'!$K9-Sheet1!$D$2)*24+'System load - top winter days'!M$4,0) -> 5829 | N9: =OFFSET(Sheet1!$B$1,('System load - top winter days'!$K9-Sheet1!$D$2)*24+'System load - top winter days'!N$4,0) -> 5837 | O9: =OFFSET(Sheet1!$B$1,('System load - top winter days'!$K9-Sheet1!$D$2)*24+'System load - top winter days'!O$4,0) -> 5873 | P9: =OFFSET(Sheet1!$B$1,('System load - top winter days'!$K9-Sheet1!$D$2)*24+'System load - top winter days'!P$4,0) -> 5946 | Q9: =OFFSET(Sheet1!$B$1,('System load - top winter days'!$K9-Sheet1!$D$2)*24+'System load - top winter days'!Q$4,0) -> 6069 | R9: =OFFSET(Sheet1!$B$1,('System load - top winter days'!$K9-Sheet1!$D$2)*24+'System load - top winter days'!R$4,0) -> 6176 | S9: =OFFSET(Sheet1!$B$1,('System load - top winter days'!$K9-Sheet1!$D$2)*24+'System load - top winter days'!S$4,0) -> 6219 | T9: =OFFSET(Sheet1!$B$1,('System load - top winter days'!$K9-Sheet1!$D$2)*24+'System load - top winter days'!T$4,0) -> 6192 | U9: =OFFSET(Sheet1!$B$1,('System load - top winter days'!$K9-Sheet1!$D$2)*24+'System load - top winter days'!U$4,0) -> 6155 | V9: =OFFSET(Sheet1!$B$1,('System load - top winter days'!$K9-Sheet1!$D$2)*24+'System load - top winter days'!V$4,0) -> 6084 | W9: =OFFSET(Sheet1!$B$1,('System load - top winter days'!$K9-Sheet1!$D$2)*24+'System load - top winter days'!W$4,0) -> 5992 | X9: =OFFSET(Sheet1!$B$1,('System load - top winter days'!$K9-Sheet1!$D$2)*24+'System load - top winter days'!X$4,0) -> 5857 | Y9: =OFFSET(Sheet1!$B$1,('System load - top winter days'!$K9-Sheet1!$D$2)*24+'System load - top winter days'!Y$4,0) -> 5720 | Z9: =OFFSET(Sheet1!$B$1,('System load - top winter days'!$K9-Sheet1!$D$2)*24+'System load - top winter days'!Z$4,0) -> 5619 | AA9: =OFFSET(Sheet1!$B$1,('System load - top winter days'!$K9-Sheet1!$D$2)*24+'System load - top winter days'!AA$4,0) -> 5653 | AB9: =OFFSET(Sheet1!$B$1,('System load - top winter days'!$K9-Sheet1!$D$2)*24+'System load - top winter days'!AB$4,0) -> 5947 | AC9: =OFFSET(Sheet1!$B$1,('System load - top winter days'!$K9-Sheet1!$D$2)*24+'System load - top winter days'!AC$4,0) -> 6391 | AD9: =OFFSET(Sheet1!$B$1,('System load - top winter days'!$K9-Sheet1!$D$2)*24+'System load - top winter days'!AD$4,0) -> 6472 | AE9: =OFFSET(Sheet1!$B$1,('System load - top winter days'!$K9-Sheet1!$D$2)*24+'System load - top winter days'!AE$4,0) -> 6463 | AF9: =OFFSET(Sheet1!$B$1,('System load - top winter days'!$K9-Sheet1!$D$2)*24+'System load - top winter days'!AF$4,0) -> 6403 | AG9: =OFFSET(Sheet1!$B$1,('System load - top winter days'!$K9-Sheet1!$D$2)*24+'System load - top winter days'!AG$4,0) -> 6295 | AH9: =OFFSET(Sheet1!$B$1,('System load - top winter days'!$K9-Sheet1!$D$2)*24+'System load - top winter days'!AH$4,0) -> 6113 | AI9: =OFFSET(Sheet1!$B$1,('System load - top winter days'!$K9-Sheet1!$D$2)*24+'System load - top winter days'!AI$4,0) -> 5999
A10: Jan | B10: 06-Jan | C10: 5965 | D10: 93 | E10: 93 | F10: 13 | G10: Jul | H10: 7 | I10: 6 | J10: 15-Jan | K10: 2018-01-15 | L10: =OFFSET(Sheet1!$B$1,('System load - top winter days'!$K10-Sheet1!$D$2)*24+'System load - top winter days'!L$4,0) -> 4742 | M10: =OFFSET(Sheet1!$B$1,('System load - top winter days'!$K10-Sheet1!$D$2)*24+'System load - top winter days'!M$4,0) -> 4666 | N10: =OFFSET(Sheet1!$B$1,('System load - top winter days'!$K10-Sheet1!$D$2)*24+'System load - top winter days'!N$4,0) -> 4641 | O10: =OFFSET(Sheet1!$B$1,('System load - top winter days'!$K10-Sheet1!$D$2)*24+'System load - top winter days'!O$4,0) -> 4631 | P10: =OFFSET(Sheet1!$B$1,('System load - top winter days'!$K10-Sheet1!$D$2)*24+'System load - top winter days'!P$4,0) -> 4732 | Q10: =OFFSET(Sheet1!$B$1,('System load - top winter days'!$K10-Sheet1!$D$2)*24+'System load - top winter days'!Q$4,0) -> 4903 | R10: =OFFSET(Sheet1!$B$1,('System load - top winter days'!$K10-Sheet1!$D$2)*24+'System load - top winter days'!R$4,0) -> 5119 | S10: =OFFSET(Sheet1!$B$1,('System load - top winter days'!$K10-Sheet1!$D$2)*24+'System load - top winter days'!S$4,0) -> 5262 | T10: =OFFSET(Sheet1!$B$1,('System load - top winter days'!$K10-Sheet1!$D$2)*24+'System load - top winter days'!T$4,0) -> 5368 | U10: =OFFSET(Sheet1!$B$1,('System load - top winter days'!$K10-Sheet1!$D$2)*24+'System load - top winter days'!U$4,0) -> 5533 | V10: =OFFSET(Sheet1!$B$1,('System load - top winter days'!$K10-Sheet1!$D$2)*24+'System load - top winter days'!V$4,0) -> 5602 | W10: =OFFSET(Sheet1!$B$1,('System load - top winter days'!$K10-Sheet1!$D$2)*24+'System load - top winter days'!W$4,0) -> 5643 | X10: =OFFSET(Sheet1!$B$1,('System load - top winter days'!$K10-Sheet1!$D$2)*24+'System load - top winter days'!X$4,0) -> 5608 | Y10: =OFFSET(Sheet1!$B$1,('System load - top winter days'!$K10-Sheet1!$D$2)*24+'System load - top winter days'!Y$4,0) -> 5559 | Z10: =OFFSET(Sheet1!$B$1,('System load - top winter days'!$K10-Sheet1!$D$2)*24+'System load - top winter days'!Z$4,0) -> 5584 | AA10: =OFFSET(Sheet1!$B$1,('System load - top winter days'!$K10-Sheet1!$D$2)*24+'System load - top winter days'!AA$4,0) -> 5672 | AB10: =OFFSET(Sheet1!$B$1,('System load - top winter days'!$K10-Sheet1!$D$2)*24+'System load - top winter days'!AB$4,0) -> 5898 | AC10: =OFFSET(Sheet1!$B$1,('System load - top winter days'!$K10-Sheet1!$D$2)*24+'System load - top winter days'!AC$4,0) -> 6241 | AD10: =OFFSET(Sheet1!$B$1,('System load - top winter days'!$K10-Sheet1!$D$2)*24+'System load - top winter days'!AD$4,0) -> 6308 | AE10: =OFFSET(Sheet1!$B$1,('System load - top winter days'!$K10-Sheet1!$D$2)*24+'System load - top winter days'!AE$4,0) -> 6300 | AF10: =OFFSET(Sheet1!$B$1,('System load - top winter days'!$K10-Sheet1!$D$2)*24+'System load - top winter days'!AF$4,0) -> 6258 | AG10: =OFFSET(Sheet1!$B$1,('System load - top winter days'!$K10-Sheet1!$D$2)*24+'System load - top winter days'!AG$4,0) -> 6096 | AH10: =OFFSET(Sheet1!$B$1,('System load - top winter days'!$K10-Sheet1!$D$2)*24+'System load - top winter days'!AH$4,0) -> 5926 | AI10: =OFFSET(Sheet1!$B$1,('System load - top winter days'!$K10-Sheet1!$D$2)*24+'System load - top winter days'!AI$4,0) -> 5788
A11: Jan | B11: 07-Jan | C11: 5301 | D11: 150 | E11: 150 | F11: 37 | G11: Aug | H11: 8 | I11: 7 | J11: 05-Feb | K11: 2018-02-05 | L11: =OFFSET(Sheet1!$B$1,('System load - top winter days'!$K11-Sheet1!$D$2)*24+'System load - top winter days'!L$4,0) -> 5064 | M11: =OFFSET(Sheet1!$B$1,('System load - top winter days'!$K11-Sheet1!$D$2)*24+'System load - top winter days'!M$4,0) -> 5068 | N11: =OFFSET(Sheet1!$B$1,('System load - top winter days'!$K11-Sheet1!$D$2)*24+'System load - top winter days'!N$4,0) -> 5113 | O11: =OFFSET(Sheet1!$B$1,('System load - top winter days'!$K11-Sheet1!$D$2)*24+'System load - top winter days'!O$4,0) -> 5223 | P11: =OFFSET(Sheet1!$B$1,('System load - top winter days'!$K11-Sheet1!$D$2)*24+'System load - top winter days'!P$4,0) -> 5382 | Q11: =OFFSET(Sheet1!$B$1,('System load - top winter days'!$K11-Sheet1!$D$2)*24+'System load - top winter days'!Q$4,0) -> 5697 | R11: =OFFSET(Sheet1!$B$1,('System load - top winter days'!$K11-Sheet1!$D$2)*24+'System load - top winter days'!R$4,0) -> 6102 | S11: =OFFSET(Sheet1!$B$1,('System load - top winter days'!$K11-Sheet1!$D$2)*24+'System load - top winter days'!S$4,0) -> 6194 | T11: =OFFSET(Sheet1!$B$1,('System load - top winter days'!$K11-Sheet1!$D$2)*24+'System load - top winter days'!T$4,0) -> 6040 | U11: =OFFSET(Sheet1!$B$1,('System load - top winter days'!$K11-Sheet1!$D$2)*24+'System load - top winter days'!U$4,0) -> 5843 | V11: =OFFSET(Sheet1!$B$1,('System load - top winter days'!$K11-Sheet1!$D$2)*24+'System load - top winter days'!V$4,0) -> 5695 | W11: =OFFSET(Sheet1!$B$1,('System load - top winter days'!$K11-Sheet1!$D$2)*24+'System load - top winter days'!W$4,0) -> 5499 | X11: =OFFSET(Sheet1!$B$1,('System load - top winter days'!$K11-Sheet1!$D$2)*24+'System load - top winter days'!X$4,0) -> 5287 | Y11: =OFFSET(Sheet1!$B$1,('System load - top winter days'!$K11-Sheet1!$D$2)*24+'System load - top winter days'!Y$4,0) -> 5136 | Z11: =OFFSET(Sheet1!$B$1,('System load - top winter days'!$K11-Sheet1!$D$2)*24+'System load - top winter days'!Z$4,0) -> 5103 | AA11: =OFFSET(Sheet1!$B$1,('System load - top winter days'!$K11-Sheet1!$D$2)*24+'System load - top winter days'!AA$4,0) -> 5177 | AB11: =OFFSET(Sheet1!$B$1,('System load - top winter days'!$K11-Sheet1!$D$2)*24+'System load - top winter days'!AB$4,0) -> 5298 | AC11: =OFFSET(Sheet1!$B$1,('System load - top winter days'!$K11-Sheet1!$D$2)*24+'System load - top winter days'!AC$4,0) -> 5516 | AD11: =OFFSET(Sheet1!$B$1,('System load - top winter days'!$K11-Sheet1!$D$2)*24+'System load - top winter days'!AD$4,0) -> 5560 | AE11: =OFFSET(Sheet1!$B$1,('System load - top winter days'!$K11-Sheet1!$D$2)*24+'System load - top winter days'!AE$4,0) -> 5467 | AF11: =OFFSET(Sheet1!$B$1,('System load - top winter days'!$K11-Sheet1!$D$2)*24+'System load - top winter days'!AF$4,0) -> 5336 | AG11: =OFFSET(Sheet1!$B$1,('System load - top winter days'!$K11-Sheet1!$D$2)*24+'System load - top winter days'!AG$4,0) -> 5150 | AH11: =OFFSET(Sheet1!$B$1,('System load - top winter days'!$K11-Sheet1!$D$2)*24+'System load - top winter days'!AH$4,0) -> 4902 | AI11: =OFFSET(Sheet1!$B$1,('System load - top winter days'!$K11-Sheet1!$D$2)*24+'System load - top winter days'!AI$4,0) -> 4736
A12: Jan | B12: 08-Jan | C12: 5124 | D12: 169 | E12: 169 | F12: 45 | G12: Sep | H12: 9 | I12: 8 | J12: 03-Jan | K12: 2018-01-03 | L12: =OFFSET(Sheet1!$B$1,('System load - top winter days'!$K12-Sheet1!$D$2)*24+'System load - top winter days'!L$4,0) -> 5527 | M12: =OFFSET(Sheet1!$B$1,('System load - top winter days'!$K12-Sheet1!$D$2)*24+'System load - top winter days'!M$4,0) -> 5425 | N12: =OFFSET(Sheet1!$B$1,('System load - top winter days'!$K12-Sheet1!$D$2)*24+'System load - top winter days'!N$4,0) -> 5368 | O12: =OFFSET(Sheet1!$B$1,('System load - top winter days'!$K12-Sheet1!$D$2)*24+'System load - top winter days'!O$4,0) -> 5320 | P12: =OFFSET(Sheet1!$B$1,('System load - top winter days'!$K12-Sheet1!$D$2)*24+'System load - top winter days'!P$4,0) -> 5375 | Q12: =OFFSET(Sheet1!$B$1,('System load - top winter days'!$K12-Sheet1!$D$2)*24+'System load - top winter days'!Q$4,0) -> 5589 | R12: =OFFSET(Sheet1!$B$1,('System load - top winter days'!$K12-Sheet1!$D$2)*24+'System load - top winter days'!R$4,0) -> 5862 | S12: =OFFSET(Sheet1!$B$1,('System load - top winter days'!$K12-Sheet1!$D$2)*24+'System load - top winter days'!S$4,0) -> 5978 | T12: =OFFSET(Sheet1!$B$1,('System load - top winter days'!$K12-Sheet1!$D$2)*24+'System load - top winter days'!T$4,0) -> 5916 | U12: =OFFSET(Sheet1!$B$1,('System load - top winter days'!$K12-Sheet1!$D$2)*24+'System load - top winter days'!U$4,0) -> 5889 | V12: =OFFSET(Sheet1!$B$1,('System load - top winter days'!$K12-Sheet1!$D$2)*24+'System load - top winter days'!V$4,0) -> 5837 | W12: =OFFSET(Sheet1!$B$1,('System load - top winter days'!$K12-Sheet1!$D$2)*24+'System load - top winter days'!W$4,0) -> 5756 | X12: =OFFSET(Sheet1!$B$1,('System load - top winter days'!$K12-Sheet1!$D$2)*24+'System load - top winter days'!X$4,0) -> 5683 | Y12: =OFFSET(Sheet1!$B$1,('System load - top winter days'!$K12-Sheet1!$D$2)*24+'System load - top winter days'!Y$4,0) -> 5566 | Z12: =OFFSET(Sheet1!$B$1,('System load - top winter days'!$K12-Sheet1!$D$2)*24+'System load - top winter days'!Z$4,0) -> 5425 | AA12: =OFFSET(Sheet1!$B$1,('System load - top winter days'!$K12-Sheet1!$D$2)*24+'System load - top winter days'!AA$4,0) -> 5423 | AB12: =OFFSET(Sheet1!$B$1,('System load - top winter days'!$K12-Sheet1!$D$2)*24+'System load - top winter days'!AB$4,0) -> 5633 | AC12: =OFFSET(Sheet1!$B$1,('System load - top winter days'!$K12-Sheet1!$D$2)*24+'System load - top winter days'!AC$4,0) -> 6029 | AD12: =OFFSET(Sheet1!$B$1,('System load - top winter days'!$K12-Sheet1!$D$2)*24+'System load - top winter days'!AD$4,0) -> 6110 | AE12: =OFFSET(Sheet1!$B$1,('System load - top winter days'!$K12-Sheet1!$D$2)*24+'System load - top winter days'!AE$4,0) -> 6127 | AF12: =OFFSET(Sheet1!$B$1,('System load - top winter days'!$K12-Sheet1!$D$2)*24+'System load - top winter days'!AF$4,0) -> 6081 | AG12: =OFFSET(Sheet1!$B$1,('System load - top winter days'!$K12-Sheet1!$D$2)*24+'System load - top winter days'!AG$4,0) -> 5960 | AH12: =OFFSET(Sheet1!$B$1,('System load - top winter days'!$K12-Sheet1!$D$2)*24+'System load - top winter days'!AH$4,0) -> 5752 | AI12: =OFFSET(Sheet1!$B$1,('System load - top winter days'!$K12-Sheet1!$D$2)*24+'System load - top winter days'!AI$4,0) -> 5624
A13: Jan | B13: 09-Jan | C13: 5101 | D13: 173 | E13: 173 | F13: 48 | G13: Oct | H13: 10 | I13: 9 | J13: 12-Jan | K13: 2018-01-12 | L13: =OFFSET(Sheet1!$B$1,('System load - top winter days'!$K13-Sheet1!$D$2)*24+'System load - top winter days'!L$4,0) -> 4768 | M13: =OFFSET(Sheet1!$B$1,('System load - top winter days'!$K13-Sheet1!$D$2)*24+'System load - top winter days'!M$4,0) -> 4797 | N13: =OFFSET(Sheet1!$B$1,('System load - top winter days'!$K13-Sheet1!$D$2)*24+'System load - top winter days'!N$4,0) -> 4851 | O13: =OFFSET(Sheet1!$B$1,('System load - top winter days'!$K13-Sheet1!$D$2)*24+'System load - top winter days'!O$4,0) -> 4954 | P13: =OFFSET(Sheet1!$B$1,('System load - top winter days'!$K13-Sheet1!$D$2)*24+'System load - top winter days'!P$4,0) -> 5141 | Q13: =OFFSET(Sheet1!$B$1,('System load - top winter days'!$K13-Sheet1!$D$2)*24+'System load - top winter days'!Q$4,0) -> 5475 | R13: =OFFSET(Sheet1!$B$1,('System load - top winter days'!$K13-Sheet1!$D$2)*24+'System load - top winter days'!R$4,0) -> 5829 | S13: =OFFSET(Sheet1!$B$1,('System load - top winter days'!$K13-Sheet1!$D$2)*24+'System load - top winter days'!S$4,0) -> 6037 | T13: =OFFSET(Sheet1!$B$1,('System load - top winter days'!$K13-Sheet1!$D$2)*24+'System load - top winter days'!T$4,0) -> 6094 | U13: =OFFSET(Sheet1!$B$1,('System load - top winter days'!$K13-Sheet1!$D$2)*24+'System load - top winter days'!U$4,0) -> 6111 | V13: =OFFSET(Sheet1!$B$1,('System load - top winter days'!$K13-Sheet1!$D$2)*24+'System load - top winter days'!V$4,0) -> 6106 | W13: =OFFSET(Sheet1!$B$1,('System load - top winter days'!$K13-Sheet1!$D$2)*24+'System load - top winter days'!W$4,0) -> 6083 | X13: =OFFSET(Sheet1!$B$1,('System load - top winter days'!$K13-Sheet1!$D$2)*24+'System load - top winter days'!X$4,0) -> 5982 | Y13: =OFFSET(Sheet1!$B$1,('System load - top winter days'!$K13-Sheet1!$D$2)*24+'System load - top winter days'!Y$4,0) -> 5876 | Z13: =OFFSET(Sheet1!$B$1,('System load - top winter days'!$K13-Sheet1!$D$2)*24+'System load - top winter days'!Z$4,0) -> 5789 | AA13: =OFFSET(Sheet1!$B$1,('System load - top winter days'!$K13-Sheet1!$D$2)*24+'System load - top winter days'!AA$4,0) -> 5748 | AB13: =OFFSET(Sheet1!$B$1,('System load - top winter days'!$K13-Sheet1!$D$2)*24+'System load - top winter days'!AB$4,0) -> 5842 | AC13: =OFFSET(Sheet1!$B$1,('System load - top winter days'!$K13-Sheet1!$D$2)*24+'System load - top winter days'!AC$4,0) -> 6083 | AD13: =OFFSET(Sheet1!$B$1,('System load - top winter days'!$K13-Sheet1!$D$2)*24+'System load - top winter days'!AD$4,0) -> 6090 | AE13: =OFFSET(Sheet1!$B$1,('System load - top winter days'!$K13-Sheet1!$D$2)*24+'System load - top winter days'!AE$4,0) -> 6021 | AF13: =OFFSET(Sheet1!$B$1,('System load - top winter days'!$K13-Sheet1!$D$2)*24+'System load - top winter days'!AF$4,0) -> 5949 | AG13: =OFFSET(Sheet1!$B$1,('System load - top winter days'!$K13-Sheet1!$D$2)*24+'System load - top winter days'!AG$4,0) -> 5800 | AH13: =OFFSET(Sheet1!$B$1,('System load - top winter days'!$K13-Sheet1!$D$2)*24+'System load - top winter days'!AH$4,0) -> 5562 | AI13: =OFFSET(Sheet1!$B$1,('System load - top winter days'!$K13-Sheet1!$D$2)*24+'System load - top winter days'!AI$4,0) -> 5359
A14: Jan | B14: 10-Jan | C14: 4585 | D14: 237 | E14: 237 | F14: 93 | G14: Nov | H14: 11 | I14: 10 | J14: 18-Jan | K14: 2018-01-18 | L14: =OFFSET(Sheet1!$B$1,('System load - top winter days'!$K14-Sheet1!$D$2)*24+'System load - top winter days'!L$4,0) -> 5313 | M14: =OFFSET(Sheet1!$B$1,('System load - top winter days'!$K14-Sheet1!$D$2)*24+'System load - top winter days'!M$4,0) -> 5277 | N14: =OFFSET(Sheet1!$B$1,('System load - top winter days'!$K14-Sheet1!$D$2)*24+'System load - top winter days'!N$4,0) -> 5258 | O14: =OFFSET(Sheet1!$B$1,('System load - top winter days'!$K14-Sheet1!$D$2)*24+'System load - top winter days'!O$4,0) -> 5296 | P14: =OFFSET(Sheet1!$B$1,('System load - top winter days'!$K14-Sheet1!$D$2)*24+'System load - top winter days'!P$4,0) -> 5441 | Q14: =OFFSET(Sheet1!$B$1,('System load - top winter days'!$K14-Sheet1!$D$2)*24+'System load - top winter days'!Q$4,0) -> 5697 | R14: =OFFSET(Sheet1!$B$1,('System load - top winter days'!$K14-Sheet1!$D$2)*24+'System load - top winter days'!R$4,0) -> 6050 | S14: =OFFSET(Sheet1!$B$1,('System load - top winter days'!$K14-Sheet1!$D$2)*24+'System load - top winter days'!S$4,0) -> 6111 | T14: =OFFSET(Sheet1!$B$1,('System load - top winter days'!$K14-Sheet1!$D$2)*24+'System load - top winter days'!T$4,0) -> 5912 | U14: =OFFSET(Sheet1!$B$1,('System load - top winter days'!$K14-Sheet1!$D$2)*24+'System load - top winter days'!U$4,0) -> 5628 | V14: =OFFSET(Sheet1!$B$1,('System load - top winter days'!$K14-Sheet1!$D$2)*24+'System load - top winter days'!V$4,0) -> 5384 | W14: =OFFSET(Sheet1!$B$1,('System load - top winter days'!$K14-Sheet1!$D$2)*24+'System load - top winter days'!W$4,0) -> 5151 | X14: =OFFSET(Sheet1!$B$1,('System load - top winter days'!$K14-Sheet1!$D$2)*24+'System load - top winter days'!X$4,0) -> 4955 | Y14: =OFFSET(Sheet1!$B$1,('System load - top winter days'!$K14-Sheet1!$D$2)*24+'System load - top winter days'!Y$4,0) -> 4762 | Z14: =OFFSET(Sheet1!$B$1,('System load - top winter days'!$K14-Sheet1!$D$2)*24+'System load - top winter days'!Z$4,0) -> 4619 | AA14: =OFFSET(Sheet1!$B$1,('System load - top winter days'!$K14-Sheet1!$D$2)*24+'System load - top winter days'!AA$4,0) -> 4570 | AB14: =OFFSET(Sheet1!$B$1,('System load - top winter days'!$K14-Sheet1!$D$2)*24+'System load - top winter days'!AB$4,0) -> 4708 | AC14: =OFFSET(Sheet1!$B$1,('System load - top winter days'!$K14-Sheet1!$D$2)*24+'System load - top winter days'!AC$4,0) -> 5083 | AD14: =OFFSET(Sheet1!$B$1,('System load - top winter days'!$K14-Sheet1!$D$2)*24+'System load - top winter days'!AD$4,0) -> 5205 | AE14: =OFFSET(Sheet1!$B$1,('System load - top winter days'!$K14-Sheet1!$D$2)*24+'System load - top winter days'!AE$4,0) -> 5186 | AF14: =OFFSET(Sheet1!$B$1,('System load - top winter days'!$K14-Sheet1!$D$2)*24+'System load - top winter days'!AF$4,0) -> 5129 | AG14: =OFFSET(Sheet1!$B$1,('System load - top winter days'!$K14-Sheet1!$D$2)*24+'System load - top winter days'!AG$4,0) -> 4981 | AH14: =OFFSET(Sheet1!$B$1,('System load - top winter days'!$K14-Sheet1!$D$2)*24+'System load - top winter days'!AH$4,0) -> 4781 | AI14: =OFFSET(Sheet1!$B$1,('System load - top winter days'!$K14-Sheet1!$D$2)*24+'System load - top winter days'!AI$4,0) -> 4596
A15: Jan | B15: 11-Jan | C15: 4989 | D15: 188 | E15: 188 | F15: 58 | G15: Dec | H15: 12
A16: Jan | B16: 12-Jan | C16: 6111 | D16: 79 | E16: 79 | F16: 9 | K16: avg. | L16: =AVERAGE(L5:L14) -> 5441.1 | M16: =AVERAGE(M5:M14) -> 5413.2 | N16: 5429.3 | O16: 5479.5 | P16: 5601.3 | Q16: 5851.6 | R16: 6167.5 | S16: 6297.4 | T16: 6228.9 | U16: 6128.8 | V16: 6003.7 | W16: 5861 | X16: 5715.8 | Y16: 5592 | Z16: 5502.3 | AA16: 5527 | AB16: 5705.3 | AC16: 6047.7 | AD16: 6114.4 | AE16: 6074.7 | AF16: 6001 | AG16: 5838.4 | AH16: 5605.2 | AI16: 5442.3
A17: Jan | B17: 13-Jan | C17: 5742 | D17: 106 | E17: 106 | F17: 16 | K17: max | L17: =MAX(L5:L14) -> 5932 | M17: =MAX(M5:M14) -> 5906 | N17: 5949 | O17: 6021 | P17: 6125 | Q17: 6368 | R17: 6705 | S17: 6857 | T17: 6845 | U17: 6804 | V17: 6613 | W17: 6417 | X17: 6294 | Y17: 6207 | Z17: 6187 | AA17: 6255 | AB17: 6373 | AC17: 6687 | AD17: 6755 | AE17: 6664 | AF17: 6581 | AG17: 6364 | AH17: 6113 | AI17: 5999
A18: Jan | B18: 14-Jan | C18: 5537 | D18: 127 | E18: 127 | F18: 23 | K18: min | L18: =MIN(L5:L14) -> 4742 | M18: =MIN(M5:M14) -> 4666 | N18: 4641 | O18: 4631 | P18: 4732 | Q18: 4903 | R18: 5119 | S18: 5262 | T18: 5368 | U18: 5533 | V18: 5384 | W18: 5151 | X18: 4955 | Y18: 4762 | Z18: 4619 | AA18: 4570 | AB18: 4708 | AC18: 5083 | AD18: 5205 | AE18: 5186 | AF18: 5129 | AG18: 4981 | AH18: 4781 | AI18: 4596
A19: Jan | B19: 15-Jan | C19: 6308 | D19: 65 | E19: 65 | F19: 6
A20: Jan | B20: 16-Jan | C20: 6847 | D20: 27 | E20: 27 | F20: 2
A21: Jan | B21: 17-Jan | C21: 6837 | D21: 28 | E21: 28 | F21: 3
A22: Jan | B22: 18-Jan | C22: 6111 | D22: 79 | E22: 79 | F22: =RANK(E22,$E$5:$E$369,1)+1 -> 10
A23: Jan | B23: 19-Jan | C23: 5405 | D23: 137 | E23: 137 | F23: 30
A24: Jan | B24: 20-Jan | C24: 4357 | D24: 270 | E24: 270 | F24: 121
A25: Jan | B25: 21-Jan | C25: 3844 | D25: 339 | E25: 339 | F25: 165
A26: Jan | B26: 22-Jan | C26: 4483 | D26: 250 | E26: 250 | F26: 104
A27: Jan | B27: 23-Jan | C27: 5066 | D27: 177 | E27: 177 | F27: 50
A28: Jan | B28: 24-Jan | C28: 5197 | D28: 160 | E28: 160 | F28: 41
A29: Jan | B29: 25-Jan | C29: 5118 | D29: 171 | E29: 171 | F29: 47
A30: Jan | B30: 26-Jan | C30: 4519 | D30: 246 | E30: 246 | F30: 101
A31: Jan | B31: 27-Jan | C31: 3923 | D31: 329 | E31: 329 | F31: 159
A32: Jan | B32: 28-Jan | C32: 4226 | D32: 286 | E32: 286 | F32: 133
A33: Jan | B33: 29-Jan | C33: 5323 | D33: 148 | E33: 148 | F33: 35
A34: Jan | B34: 30-Jan | C34: 5695 | D34: 113 | E34: 113 | F34: 19
A35: Jan | B35: 31-Jan | C35: 4923 | D35: 197 | E35: 197 | F35: 66
A36: Feb | B36: 01-Feb | C36: 5504 | D36: 131 | E36: 131 | F36: 26
A37: Feb | B37: 02-Feb | C37: 5994 | D37: 90 | E37: 90 | F37: 12
A38: Feb | B38: 03-Feb | C38: 4957 | D38: 193 | E38: 193 | F38: 62
A39: Feb | B39: 04-Feb | C39: 5464 | D39: 135 | E39: 135 | F39: 28
A40: Feb | B40: 05-Feb | C40: 6194 | D40: 71 | E40: 71 | F40: 7
A41: Feb | B41: 06-Feb | C41: 5741 | D41: 107 | E41: 107 | F41: 17
A42: Feb | B42: 07-Feb | C42: 5835 | D42: 100 | E42: 100 | F42: 15
A43: Feb | B43: 08-Feb | C43: 5596 | D43: 124 | E43: 124 | F43: 21
A44: Feb | B44: 09-Feb | C44: 4748 | D44: 215 | E44: 215 | F44: 78
A45: Feb | B45: 10-Feb | C45: 5342 | D45: 144 | E45: 144 | F45: 34
A46: Feb | B46: 11-Feb | C46: 5467 | D46: 133 | E46: 133 | F46: 27
A47: Feb | B47: 12-Feb | C47: 5880 | D47: 98 | E47: 98 | F47: 14
A48: Feb | B48: 13-Feb | C48: 5432 | D48: 136 | E48: 136 | F48: 29
A49: Feb | B49: 14-Feb | C49: 4498 | D49: 248 | E49: 248 | F49: 103
A50: Feb | B50: 15-Feb | C50: 3894 | D50: 331 | E50: 331 | F50: 160
A51: Feb | B51: 16-Feb | C51: 4557 | D51: 241 | E51: 241 | F51: 96
A52: Feb | B52: 17-Feb | C52: 4635 | D52: 231 | E52: 231 | F52: 89
A53: Feb | B53: 18-Feb | C53: 4362 | D53: 268 | E53: 268 | F53: 120
A54: Feb | B54: 19-Feb | C54: 4077 | D54: 308 | E54: 308 | F54: 148
A55: Feb | B55: 20-Feb | C55: 4286 | D55: 279 | E55: 279 | F55: 128
A56: Feb | B56: 21-Feb | C56: 5356 | D56: 142 | E56: 142 | F56: 33
A57: Feb | B57: 22-Feb | C57: 4923 | D57: 197 | E57: 197 | F57: 66
A58: Feb | B58: 23-Feb | C58: 4347 | D58: 271 | E58: 271 | F58: 122
A59: Feb | B59: 24-Feb | C59: 4154 | D59: 299 | E59: 299 | F59: 142
A60: Feb | B60: 25-Feb | C60: 4075 | D60: 310 | E60: 310 | F60: 150
A61: Feb | B61: 26-Feb | C61: 4657 | D61: 223 | E61: 223 | F61: 83
A62: Feb | B62: 27-Feb | C62: 4308 | D62: 276 | E62: 276 | F62: 125
A63: Feb | B63: 28-Feb | C63: 4044 | D63: 317 | E63: 317 | F63: 154
A64: Mar | B64: 01-Mar | C64: 4138 | D64: 301 | E64: 301 | F64: 144
A65: Mar | B65: 02-Mar | C65: 4571 | D65: 239 | E65: 239 | F65: 94
A66: Mar | B66: 03-Mar | C66: 4046 | D66: 316 | E66: 316 | F66: 153
A67: Mar | B67: 04-Mar | C67: 3800 | D67: 343 | E67: 343 | F67: 169
A68: Mar | B68: 05-Mar | C68: 4364 | D68: 267 | E68: 267 | F68: 119
A69: Mar | B69: 06-Mar | C69: 4911 | D69: 199 | E69: 199 | F69: 68
A70: Mar | B70: 07-Mar | C70: 4946 | D70: =RANK(C70,$C$5:$C$369) -> 195 | E70: =D70 -> 195 | F70: =RANK(E70,$E$5:$E$369,1) -> 64
A71: Mar | B71: 08-Mar | C71: 5018 | D71: 183 | E71: 183 | F71: 53
A72: Mar | B72: 09-Mar | C72: 4900 | D72: 202 | E72: 202 | F72: 69
A73: Mar | B73: 10-Mar | C73: 4010 | D73: 321 | E73: 321 | F73: 156
A74: Mar | B74: 11-Mar | C74: 4499 | D74: 247 | E74: 247 | F74: 102
A75: Mar | B75: 12-Mar | C75: 4941 | D75: 196 | E75: 196 | F75: 65
A76: Mar | B76: 13-Mar | C76: 4975 | D76: 189 | E76: 189 | F76: 59
A77: Mar | B77: 14-Mar | C77: 5119 | D77: 170 | E77: 170 | F77: 46
A78: Mar | B78: 15-Mar | C78: 4321 | D78: 274 | E78: 274 | F78: 123
A79: Mar | B79: 16-Mar | C79: 4259 | D79: 281 | E79: 281 | F79: 130
A80: Mar | B80: 17-Mar | C80: 3954 | D80: 325 | E80: 325 | F80: 157
A81: Mar | B81: 18-Mar | C81: 4108 | D81: 303 | E81: 303 | F81: 145
A82: Mar | B82: 19-Mar | C82: 4372 | D82: 266 | E82: 266 | F82: 118
A83: Mar | B83: 20-Mar | C83: 4657 | D83: 223 | E83: 223 | F83: 83
A84: Mar | B84: 21-Mar | C84: 4663 | D84: 222 | E84: 222 | F84: 82
A85: Mar | B85: 22-Mar | C85: 4739 | D85: 216 | E85: 216 | F85: 79
A86: Mar | B86: 23-Mar | C86: 4188 | D86: 293 | E86: 293 | F86: 138
A87: Mar | B87: 24-Mar | C87: 4076 | D87: 309 | E87: 309 | F87: 149
A88: Mar | B88: 25-Mar | C88: 4065 | D88: 313 | E88: 313 | F88: 152
A89: Mar | B89: 26-Mar | C89: 4521 | D89: 245 | E89: 245 | F89: 100
A90: Mar | B90: 27-Mar | C90: 4190 | D90: 292 | E90: 292 | F90: 137
A91: Mar | B91: 28-Mar | C91: 4220 | D91: 288 | E91: 288 | F91: 135
A92: Mar | B92: 29-Mar | C92: 4233 | D92: 283 | E92: 283 | F92: 131
A93: Mar | B93: 30-Mar | C93: 4105 | D93: 304 | E93: 304 | F93: 146
A94: Mar | B94: 31-Mar | C94: 3837 | D94: 340 | E94: 340 | F94: 166
A95: Apr | B95: 01-Apr | C95: 4465 | D95: 253 | E95: 253 | F95: 106
A96: Apr | B96: 02-Apr | C96: 5016 | D96: 184 | E96: 184 | F96: 54
A97: Apr | B97: 03-Apr | C97: 4390 | D97: 263 | E97: 263 | F97: 116
A98: Apr | B98: 04-Apr | C98: 4996 | D98: 187 | E98: 187 | F98: 57
A99: Apr | B99: 05-Apr | C99: 4880 | D99: 204 | E99: 204 | F99: 70
A100: Apr | B100: 06-Apr | C100: 4403 | D100: 260 | E100: 260 | F100: 113
A101: Apr | B101: 07-Apr | C101: 4527 | D101: 244 | E101: 244 | F101: 99
A102: Apr | B102: 08-Apr | C102: 4382 | D102: 265 | E102: 265 | F102: 117
A103: Apr | B103: 09-Apr | C103: 4636 | D103: 229 | E103: 229 | F103: 87
A104: Apr | B104: 10-Apr | C104: 4483 | D104: 250 | E104: 250 | F104: 104
A105: Apr | B105: 11-Apr | C105: 4089 | D105: 306 | E105: 306 | F105: 147
A106: Apr | B106: 12-Apr | C106: 3894 | D106: 331 | E106: 331 | F106: 160
A107: Apr | B107: 13-Apr | C107: 3794 | D107: 344 | E107: 344 | F107: 170
A108: Apr | B108: 14-Apr | C108: 3456 | D108: 362 | E108: 362 | F108: 179
A109: Apr | B109: 15-Apr | C109: 4452 | D109: 254 | E109: 254 | F109: 107
A110: Apr | B110: 16-Apr | C110: 4971 | D110: 190 | E110: 190 | F110: 60
A111: Apr | B111: 17-Apr | C111: 4558 | D111: 240 | E111: 240 | F111: 95
A112: Apr | B112: 18-Apr | C112: 3954 | D112: 325 | E112: 325 | F112: 157
A113: Apr | B113: 19-Apr | C113: 4421 | D113: 258 | E113: 258 | F113: 111
A114: Apr | B114: 20-Apr | C114: 4224 | D114: 287 | E114: 287 | F114: 134
A115: Apr | B115: 21-Apr | C115: 3478 | D115: 361 | E115: 361 | F115: 178
A116: Apr | B116: 22-Apr | C116: 3594 | D116: 358 | E116: 358 | F116: 177
A117: Apr | B117: 23-Apr | C117: 3876 | D117: 336 | E117: 336 | F117: 162
A118: Apr | B118: 24-Apr | C118: 3725 | D118: 348 | E118: 348 | F118: 172
A119: Apr | B119: 25-Apr | C119: 3704 | D119: 349 | E119: 349 | F119: 173
A120: Apr | B120: 26-Apr | C120: 3690 | D120: 351 | E120: 351 | F120: 174
A121: Apr | B121: 27-Apr | C121: 3607 | D121: 355 | E121: 355 | F121: 176
A122: Apr | B122: 28-Apr | C122: 3269 | D122: 365 | E122: 365 | F122: 181
A123: Apr | B123: 29-Apr | C123: 3397 | D123: 364 | E123: 364 | F123: 180
A124: Apr | B124: 30-Apr | C124: 3867 | D124: 337 | E124: 337 | F124: 163
A125: May | B125: 01-May | C125: 4324 | D125: 273 | E125: 1000 | F125: 182
A126: May | B126: 02-May | C126: 4899 | D126: 203 | E126: 1000 | F126: 182
A127: May | B127: 03-May | C127: 4173 | D127: 296 | E127: 1000 | F127: 182
A128: May | B128: 04-May | C128: 4202 | D128: 291 | E128: 1000 | F128: 182
A129: May | B129: 05-May | C129: 4123 | D129: 302 | E129: 1000 | F129: 182
A130: May | B130: 06-May | C130: 4340 | D130: 272 | E130: 1000 | F130: 182
A131: May | B131: 07-May | C131: 4607 | D131: 236 | E131: 1000 | F131: 182
A132: May | B132: 08-May | C132: 4714 | D132: 219 | E132: 1000 | F132: 182
A133: May | B133: 09-May | C133: 5324 | D133: 147 | E133: 1000 | F133: 182
A134: May | B134: 10-May | C134: 5510 | D134: =RANK(C134,$C$5:$C$369) -> 130 | E134: 1000 | F134: =RANK(E134,$E$5:$E$369,1) -> 182
A135: May | B135: 11-May | C135: 5355 | D135: 143 | E135: 1000 | F135: 182
A136: May | B136: 12-May | C136: 5391 | D136: 139 | E136: 1000 | F136: 182
A137: May | B137: 13-May | C137: 5678 | D137: 115 | E137: 1000 | F137: 182
A138: May | B138: 14-May | C138: 6307 | D138: 66 | E138: 1000 | F138: 182
A139: May | B139: 15-May | C139: 5275 | D139: 155 | E139: 1000 | F139: 182
A140: May | B140: 16-May | C140: 5634 | D140: 118 | E140: 1000 | F140: 182
A141: May | B141: 17-May | C141: 5281 | D141: 153 | E141: 1000 | F141: 182
A142: May | B142: 18-May | C142: 4227 | D142: 284 | E142: 1000 | F142: 182
A143: May | B143: 19-May | C143: 4576 | D143: 238 | E143: 1000 | F143: 182
A144: May | B144: 20-May | C144: 4678 | D144: 221 | E144: 1000 | F144: 182
A145: May | B145: 21-May | C145: 5103 | D145: 172 | E145: 1000 | F145: 182
A146: May | B146: 22-May | C146: 5773 | D146: 102 | E146: 1000 | F146: 182
A147: May | B147: 23-May | C147: 6034 | D147: 89 | E147: 1000 | F147: 182
A148: May | B148: 24-May | C148: 6170 | D148: 73 | E148: 1000 | F148: 182
A149: May | B149: 25-May | C149: 5638 | D149: 117 | E149: 1000 | F149: 182
A150: May | B150: 26-May | C150: 6065 | D150: 84 | E150: 1000 | F150: 182
A151: May | B151: 27-May | C151: 6092 | D151: 83 | E151: 1000 | F151: 182
A152: May | B152: 28-May | C152: 6312 | D152: 64 | E152: 1000 | F152: 182
A153: May | B153: 29-May | C153: 5740 | D153: 108 | E153: 1000 | F153: 182
A154: May | B154: 30-May | C154: 6465 | D154: 56 | E154: 1000 | F154: 182
A155: May | B155: 31-May | C155: 5966 | D155: 92 | E155: 1000 | F155: 182
A156: Jun | B156: 01-Jun | C156: 6774 | D156: 35 | E156: 1000 | F156: 182
A157: Jun | B157: 02-Jun | C157: 5364 | D157: 141 | E157: 1000 | F157: 182
A158: Jun | B158: 03-Jun | C158: 5054 | D158: 179 | E158: 1000 | F158: 182
A159: Jun | B159: 04-Jun | C159: 4967 | D159: 192 | E159: 1000 | F159: 182
A160: Jun | B160: 05-Jun | C160: 5932 | D160: 95 | E160: 1000 | F160: 182
A161: Jun | B161: 06-Jun | C161: 6454 | D161: 58 | E161: 1000 | F161: 182
A162: Jun | B162: 07-Jun | C162: 6819 | D162: 30 | E162: 1000 | F162: 182
A163: Jun | B163: 08-Jun | C163: 6607 | D163: 49 | E163: 1000 | F163: 182
A164: Jun | B164: 09-Jun | C164: 5242 | D164: 158 | E164: 1000 | F164: 182
A165: Jun | B165: 10-Jun | C165: 6535 | D165: 53 | E165: 1000 | F165: 182
A166: Jun | B166: 11-Jun | C166: 7092 | D166: 13 | E166: 1000 | F166: 182
A167: Jun | B167: 12-Jun | C167: 6571 | D167: 52 | E167: 1000 | F167: 182
A168: Jun | B168: 13-Jun | C168: 6764 | D168: 37 | E168: 1000 | F168: 182
A169: Jun | B169: 14-Jun | C169: 6837 | D169: 28 | E169: 1000 | F169: 182
A170: Jun | B170: 15-Jun | C170: 7059 | D170: 16 | E170: 1000 | F170: 182
A171: Jun | B171: 16-Jun | C171: 6792 | D171: 34 | E171: 1000 | F171: 182
A172: Jun | B172: 17-Jun | C172: 6851 | D172: 26 | E172: 1000 | F172: 182
A173: Jun | B173: 18-Jun | C173: 7399 | D173: 4 | E173: 1000 | F173: 182
A174: Jun | B174: 19-Jun | C174: 7146 | D174: 11 | E174: 1000 | F174: 182
A175: Jun | B175: 20-Jun | C175: 6721 | D175: 41 | E175: 1000 | F175: 182
A176: Jun | B176: 21-Jun | C176: 5728 | D176: 109 | E176: 1000 | F176: 182
A177: Jun | B177: 22-Jun | C177: 4634 | D177: 232 | E177: 1000 | F177: 182
A178: Jun | B178: 23-Jun | C178: 5088 | D178: 175 | E178: 1000 | F178: 182
A179: Jun | B179: 24-Jun | C179: 5065 | D179: 178 | E179: 1000 | F179: 182
A180: Jun | B180: 25-Jun | C180: 5993 | D180: 91 | E180: 1000 | F180: 182
A181: Jun | B181: 26-Jun | C181: 5083 | D181: 176 | E181: 1000 | F181: 182
A182: Jun | B182: 27-Jun | C182: 6612 | D182: 48 | E182: 1000 | F182: 182
A183: Jun | B183: 28-Jun | C183: 7146 | D183: 11 | E183: 1000 | F183: 182
A184: Jun | B184: 29-Jun | C184: 7074 | D184: 14 | E184: 1000 | F184: 182
A185: Jun | B185: 30-Jun | C185: 6936 | D185: 21 | E185: 1000 | F185: 182
A186: Jul | B186: 01-Jul | C186: 6594 | D186: 50 | E186: 1000 | F186: 182
A187: Jul | B187: 02-Jul | C187: 6765 | D187: 36 | E187: 1000 | F187: 182
A188: Jul | B188: 03-Jul | C188: 7062 | D188: 15 | E188: 1000 | F188: 182
A189: Jul | B189: 04-Jul | C189: 6819 | D189: 30 | E189: 1000 | F189: 182
A190: Jul | B190: 05-Jul | C190: 7470 | D190: 1 | E190: 1000 | F190: 182
A191: Jul | B191: 06-Jul | C191: 6713 | D191: 42 | E191: 1000 | F191: 182
A192: Jul | B192: 07-Jul | C192: 5325 | D192: 146 | E192: 1000 | F192: 182
A193: Jul | B193: 08-Jul | C193: 6101 | D193: 82 | E193: 1000 | F193: 182
A194: Jul | B194: 09-Jul | C194: 6961 | D194: 18 | E194: 1000 | F194: 182
A195: Jul | B195: 10-Jul | C195: 7441 | D195: 2 | E195: 1000 | F195: 182
A196: Jul | B196: 11-Jul | C196: 7218 | D196: 8 | E196: 1000 | F196: 182
A197: Jul | B197: 12-Jul | C197: 7215 | D197: 9 | E197: 1000 | F197: 182
A198: Jul | B198: 13-Jul | C198: 7413 | D198: =RANK(C198,$C$5:$C$369) -> 3 | E198: 1000 | F198: =RANK(E198,$E$5:$E$369,1) -> 182
A199: Jul | B199: 14-Jul | C199: 6937 | D199: 20 | E199: 1000 | F199: 182
A200: Jul | B200: 15-Jul | C200: 6288 | D200: 67 | E200: 1000 | F200: 182
A201: Jul | B201: 16-Jul | C201: 7222 | D201: 7 | E201: 1000 | F201: 182
A202: Jul | B202: 17-Jul | C202: 6590 | D202: 51 | E202: 1000 | F202: 182
... 168 more rows

Sheet Res load - top winter day
A3: Max of RESMO-CLBR-MTR,0
A4: Months | B4: Date | C4: Total | D4: Annual Rank | F4: Winter Rank | G4: Jan | H4: 1 | I4: Top Days | J4: Date | K4: Date (formatted) | L4: 1 | M4: 2 | N4: 3 | O4: 4 | P4: 5 | Q4: 6 | R4: 7 | S4: 8 | T4: 9 | U4: 10 | V4: 11 | W4: 12 | X4: 13 | Y4: 14 | Z4: 15 | AA4: 16 | AB4: 17 | AC4: 18 | AD4: 19 | AE4: 20 | AF4: 21 | AG4: 22 | AH4: 23 | AI4: 24
A5: Jan | B5: 01-Jan | C5: 3397.849204 | D5: =RANK(C5,$C$5:$C$369) -> 11 | E5: =D5 -> 11 | F5: =RANK(E5,$E$5:$E$369,1) -> 1 | G5: Feb | H5: 2 | I5: 1 | J5: =OFFSET($B$4,MATCH(I5,$F$5:$F$369,0),0) -> 01-Jan | K5: =DATE(2018,VLOOKUP(RIGHT(J5,3),$G$4:$H$15,2,FALSE),LEFT(J5,2)*1) -> 2018-01-01 | L5: =OFFSET(Sheet1!$C$1,('Res load - top winter day'!$K5-Sheet1!$D$2)*24+'Res load - top winter day'!L$4,0) -> 2916.194648 | M5: =OFFSET(Sheet1!$C$1,('Res load - top winter day'!$K5-Sheet1!$D$2)*24+'Res load - top winter day'!M$4,0) -> 2887.168509 | N5: =OFFSET(Sheet1!$C$1,('Res load - top winter day'!$K5-Sheet1!$D$2)*24+'Res load - top winter day'!N$4,0) -> 2889.236202 | O5: =OFFSET(Sheet1!$C$1,('Res load - top winter day'!$K5-Sheet1!$D$2)*24+'Res load - top winter day'!O$4,0) -> 2818.354633 | P5: =OFFSET(Sheet1!$C$1,('Res load - top winter day'!$K5-Sheet1!$D$2)*24+'Res load - top winter day'!P$4,0) -> 2910.574819 | Q5: =OFFSET(Sheet1!$C$1,('Res load - top winter day'!$K5-Sheet1!$D$2)*24+'Res load - top winter day'!Q$4,0) -> 2950.983045 | R5: =OFFSET(Sheet1!$C$1,('Res load - top winter day'!$K5-Sheet1!$D$2)*24+'Res load - top winter day'!R$4,0) -> 3002.790088 | S5: =OFFSET(Sheet1!$C$1,('Res load - top winter day'!$K5-Sheet1!$D$2)*24+'Res load - top winter day'!S$4,0) -> 3030.36945 | T5: =OFFSET(Sheet1!$C$1,('Res load - top winter day'!$K5-Sheet1!$D$2)*24+'Res load - top winter day'!T$4,0) -> 2982.992085 | U5: =OFFSET(Sheet1!$C$1,('Res load - top winter day'!$K5-Sheet1!$D$2)*24+'Res load - top winter day'!U$4,0) -> 3132.266118 | V5: =OFFSET(Sheet1!$C$1,('Res load - top winter day'!$K5-Sheet1!$D$2)*24+'Res load - top winter day'!V$4,0) -> 3112.279113 | W5: =OFFSET(Sheet1!$C$1,('Res load - top winter day'!$K5-Sheet1!$D$2)*24+'Res load - top winter day'!W$4,0) -> 3078.346532 | X5: =OFFSET(Sheet1!$C$1,('Res load - top winter day'!$K5-Sheet1!$D$2)*24+'Res load - top winter day'!X$4,0) -> 2942.889272 | Y5: =OFFSET(Sheet1!$C$1,('Res load - top winter day'!$K5-Sheet1!$D$2)*24+'Res load - top winter day'!Y$4,0) -> 2863.216242 | Z5: =OFFSET(Sheet1!$C$1,('Res load - top winter day'!$K5-Sheet1!$D$2)*24+'Res load - top winter day'!Z$4,0) -> 2812.148152 | AA5: =OFFSET(Sheet1!$C$1,('Res load - top winter day'!$K5-Sheet1!$D$2)*24+'Res load - top winter day'!AA$4,0) -> 2826.829202 | AB5: =OFFSET(Sheet1!$C$1,('Res load - top winter day'!$K5-Sheet1!$D$2)*24+'Res load - top winter day'!AB$4,0) -> 3012.271873 | AC5: =OFFSET(Sheet1!$C$1,('Res load - top winter day'!$K5-Sheet1!$D$2)*24+'Res load - top winter day'!AC$4,0) -> 3279.271778 | AD5: =OFFSET(Sheet1!$C$1,('Res load - top winter day'!$K5-Sheet1!$D$2)*24+'Res load - top winter day'!AD$4,0) -> 3397.849204 | AE5: =OFFSET(Sheet1!$C$1,('Res load - top winter day'!$K5-Sheet1!$D$2)*24+'Res load - top winter day'!AE$4,0) -> 3374.517951 | AF5: =OFFSET(Sheet1!$C$1,('Res load - top winter day'!$K5-Sheet1!$D$2)*24+'Res load - top winter day'!AF$4,0) -> 3362.139483 | AG5: =OFFSET(Sheet1!$C$1,('Res load - top winter day'!$K5-Sheet1!$D$2)*24+'Res load - top winter day'!AG$4,0) -> 3192.738305 | AH5: =OFFSET(Sheet1!$C$1,('Res load - top winter day'!$K5-Sheet1!$D$2)*24+'Res load - top winter day'!AH$4,0) -> 3136.0373 | AI5: =OFFSET(Sheet1!$C$1,('Res load - top winter day'!$K5-Sheet1!$D$2)*24+'Res load - top winter day'!AI$4,0) -> 2976.982688
A6: Jan | B6: 02-Jan | C6: 3290.008735 | D6: 19 | E6: =D6 -> 19 | F6: =RANK(E6,$E$5:$E$369,1) -> 2 | G6: Mar | H6: 3 | I6: 2 | J6: 02-Jan | K6: =DATE(2018,VLOOKUP(RIGHT(J6,3),$G$4:$H$15,2,FALSE),LEFT(J6,2)*1) -> 2018-01-02 | L6: =OFFSET(Sheet1!$C$1,('Res load - top winter day'!$K6-Sheet1!$D$2)*24+'Res load - top winter day'!L$4,0) -> 2924.00821 | M6: =OFFSET(Sheet1!$C$1,('Res load - top winter day'!$K6-Sheet1!$D$2)*24+'Res load - top winter day'!M$4,0) -> 2917.522195 | N6: =OFFSET(Sheet1!$C$1,('Res load - top winter day'!$K6-Sheet1!$D$2)*24+'Res load - top winter day'!N$4,0) -> 2929.374018 | O6: =OFFSET(Sheet1!$C$1,('Res load - top winter day'!$K6-Sheet1!$D$2)*24+'Res load - top winter day'!O$4,0) -> 2991.075239 | P6: =OFFSET(Sheet1!$C$1,('Res load - top winter day'!$K6-Sheet1!$D$2)*24+'Res load - top winter day'!P$4,0) -> 3021.165293 | Q6: =OFFSET(Sheet1!$C$1,('Res load - top winter day'!$K6-Sheet1!$D$2)*24+'Res load - top winter day'!Q$4,0) -> 3123.221148 | R6: =OFFSET(Sheet1!$C$1,('Res load - top winter day'!$K6-Sheet1!$D$2)*24+'Res load - top winter day'!R$4,0) -> 3244.156148 | S6: =OFFSET(Sheet1!$C$1,('Res load - top winter day'!$K6-Sheet1!$D$2)*24+'Res load - top winter day'!S$4,0) -> 3290.008735 | T6: =OFFSET(Sheet1!$C$1,('Res load - top winter day'!$K6-Sheet1!$D$2)*24+'Res load - top winter day'!T$4,0) -> 3128.301849 | U6: =OFFSET(Sheet1!$C$1,('Res load - top winter day'!$K6-Sheet1!$D$2)*24+'Res load - top winter day'!U$4,0) -> 3038.204502 | V6: =OFFSET(Sheet1!$C$1,('Res load - top winter day'!$K6-Sheet1!$D$2)*24+'Res load - top winter day'!V$4,0) -> 2913.636332 | W6: =OFFSET(Sheet1!$C$1,('Res load - top winter day'!$K6-Sheet1!$D$2)*24+'Res load - top winter day'!W$4,0) -> 2748.103027 | X6: =OFFSET(Sheet1!$C$1,('Res load - top winter day'!$K6-Sheet1!$D$2)*24+'Res load - top winter day'!X$4,0) -> 2611.20205 | Y6: =OFFSET(Sheet1!$C$1,('Res load - top winter day'!$K6-Sheet1!$D$2)*24+'Res load - top winter day'!Y$4,0) -> 2559.340239 | Z6: =OFFSET(Sheet1!$C$1,('Res load - top winter day'!$K6-Sheet1!$D$2)*24+'Res load - top winter day'!Z$4,0) -> 2445.936969 | AA6: =OFFSET(Sheet1!$C$1,('Res load - top winter day'!$K6-Sheet1!$D$2)*24+'Res load - top winter day'!AA$4,0) -> 2484.583079 | AB6: =OFFSET(Sheet1!$C$1,('Res load - top winter day'!$K6-Sheet1!$D$2)*24+'Res load - top winter day'!AB$4,0) -> 2666.950536 | AC6: =OFFSET(Sheet1!$C$1,('Res load - top winter day'!$K6-Sheet1!$D$2)*24+'Res load - top winter day'!AC$4,0) -> 3042.388885 | AD6: =OFFSET(Sheet1!$C$1,('Res load - top winter day'!$K6-Sheet1!$D$2)*24+'Res load - top winter day'!AD$4,0) -> 3187.340465 | AE6: =OFFSET(Sheet1!$C$1,('Res load - top winter day'!$K6-Sheet1!$D$2)*24+'Res load - top winter day'!AE$4,0) -> 3161.981836 | AF6: =OFFSET(Sheet1!$C$1,('Res load - top winter day'!$K6-Sheet1!$D$2)*24+'Res load - top winter day'!AF$4,0) -> 3133.654807 | AG6: =OFFSET(Sheet1!$C$1,('Res load - top winter day'!$K6-Sheet1!$D$2)*24+'Res load - top winter day'!AG$4,0) -> 2991.361183 | AH6: =OFFSET(Sheet1!$C$1,('Res load - top winter day'!$K6-Sheet1!$D$2)*24+'Res load - top winter day'!AH$4,0) -> 2792.705725 | AI6: =OFFSET(Sheet1!$C$1,('Res load - top winter day'!$K6-Sheet1!$D$2)*24+'Res load - top winter day'!AI$4,0) -> 2682.735102
A7: Jan | B7: 03-Jan | C7: 2939.682924 | D7: 62 | E7: 62 | F7: 7 | G7: Apr | H7: 4 | I7: 3 | J7: 16-Jan | K7: 2018-01-16 | L7: =OFFSET(Sheet1!$C$1,('Res load - top winter day'!$K7-Sheet1!$D$2)*24+'Res load - top winter day'!L$4,0) -> 2690.554114 | M7: =OFFSET(Sheet1!$C$1,('Res load - top winter day'!$K7-Sheet1!$D$2)*24+'Res load - top winter day'!M$4,0) -> 2712.131499 | N7: =OFFSET(Sheet1!$C$1,('Res load - top winter day'!$K7-Sheet1!$D$2)*24+'Res load - top winter day'!N$4,0) -> 2695.572746 | O7: =OFFSET(Sheet1!$C$1,('Res load - top winter day'!$K7-Sheet1!$D$2)*24+'Res load - top winter day'!O$4,0) -> 2768.802534 | P7: =OFFSET(Sheet1!$C$1,('Res load - top winter day'!$K7-Sheet1!$D$2)*24+'Res load - top winter day'!P$4,0) -> 2843.661726 | Q7: =OFFSET(Sheet1!$C$1,('Res load - top winter day'!$K7-Sheet1!$D$2)*24+'Res load - top winter day'!Q$4,0) -> 2949.951172 | R7: =OFFSET(Sheet1!$C$1,('Res load - top winter day'!$K7-Sheet1!$D$2)*24+'Res load - top winter day'!R$4,0) -> 3084.332677 | S7: =OFFSET(Sheet1!$C$1,('Res load - top winter day'!$K7-Sheet1!$D$2)*24+'Res load - top winter day'!S$4,0) -> 3076.930015 | T7: =OFFSET(Sheet1!$C$1,('Res load - top winter day'!$K7-Sheet1!$D$2)*24+'Res load - top winter day'!T$4,0) -> 3107.612747 | U7: =OFFSET(Sheet1!$C$1,('Res load - top winter day'!$K7-Sheet1!$D$2)*24+'Res load - top winter day'!U$4,0) -> 2987.706795 | V7: =OFFSET(Sheet1!$C$1,('Res load - top winter day'!$K7-Sheet1!$D$2)*24+'Res load - top winter day'!V$4,0) -> 2790.449552 | W7: =OFFSET(Sheet1!$C$1,('Res load - top winter day'!$K7-Sheet1!$D$2)*24+'Res load - top winter day'!W$4,0) -> 2727.325496 | X7: =OFFSET(Sheet1!$C$1,('Res load - top winter day'!$K7-Sheet1!$D$2)*24+'Res load - top winter day'!X$4,0) -> 2659.130213 | Y7: =OFFSET(Sheet1!$C$1,('Res load - top winter day'!$K7-Sheet1!$D$2)*24+'Res load - top winter day'!Y$4,0) -> 2647.294864 | Z7: =OFFSET(Sheet1!$C$1,('Res load - top winter day'!$K7-Sheet1!$D$2)*24+'Res load - top winter day'!Z$4,0) -> 2594.788022 | AA7: =OFFSET(Sheet1!$C$1,('Res load - top winter day'!$K7-Sheet1!$D$2)*24+'Res load - top winter day'!AA$4,0) -> 2671.064216 | AB7: =OFFSET(Sheet1!$C$1,('Res load - top winter day'!$K7-Sheet1!$D$2)*24+'Res load - top winter day'!AB$4,0) -> 2874.195704 | AC7: =OFFSET(Sheet1!$C$1,('Res load - top winter day'!$K7-Sheet1!$D$2)*24+'Res load - top winter day'!AC$4,0) -> 3180.01902 | AD7: =OFFSET(Sheet1!$C$1,('Res load - top winter day'!$K7-Sheet1!$D$2)*24+'Res load - top winter day'!AD$4,0) -> 3274.756852 | AE7: =OFFSET(Sheet1!$C$1,('Res load - top winter day'!$K7-Sheet1!$D$2)*24+'Res load - top winter day'!AE$4,0) -> 3231.167327 | AF7: =OFFSET(Sheet1!$C$1,('Res load - top winter day'!$K7-Sheet1!$D$2)*24+'Res load - top winter day'!AF$4,0) -> 3245.051666 | AG7: =OFFSET(Sheet1!$C$1,('Res load - top winter day'!$K7-Sheet1!$D$2)*24+'Res load - top winter day'!AG$4,0) -> 3095.281822 | AH7: =OFFSET(Sheet1!$C$1,('Res load - top winter day'!$K7-Sheet1!$D$2)*24+'Res load - top winter day'!AH$4,0) -> 2894.45781 | AI7: =OFFSET(Sheet1!$C$1,('Res load - top winter day'!$K7-Sheet1!$D$2)*24+'Res load - top winter day'!AI$4,0) -> 2770.598282
A8: Jan | B8: 04-Jan | C8: 2959.801249 | D8: 59 | E8: 59 | F8: 6 | G8: May | H8: 5 | I8: 4 | J8: 15-Jan | K8: 2018-01-15 | L8: =OFFSET(Sheet1!$C$1,('Res load - top winter day'!$K8-Sheet1!$D$2)*24+'Res load - top winter day'!L$4,0) -> 2130.7945 | M8: =OFFSET(Sheet1!$C$1,('Res load - top winter day'!$K8-Sheet1!$D$2)*24+'Res load - top winter day'!M$4,0) -> 2072.915786 | N8: =OFFSET(Sheet1!$C$1,('Res load - top winter day'!$K8-Sheet1!$D$2)*24+'Res load - top winter day'!N$4,0) -> 2027.582118 | O8: =OFFSET(Sheet1!$C$1,('Res load - top winter day'!$K8-Sheet1!$D$2)*24+'Res load - top winter day'!O$4,0) -> 2002.225499 | P8: =OFFSET(Sheet1!$C$1,('Res load - top winter day'!$K8-Sheet1!$D$2)*24+'Res load - top winter day'!P$4,0) -> 2081.098133 | Q8: =OFFSET(Sheet1!$C$1,('Res load - top winter day'!$K8-Sheet1!$D$2)*24+'Res load - top winter day'!Q$4,0) -> 2148.762114 | R8: =OFFSET(Sheet1!$C$1,('Res load - top winter day'!$K8-Sheet1!$D$2)*24+'Res load - top winter day'!R$4,0) -> 2232.363678 | S8: =OFFSET(Sheet1!$C$1,('Res load - top winter day'!$K8-Sheet1!$D$2)*24+'Res load - top winter day'!S$4,0) -> 2282.542189 | T8: =OFFSET(Sheet1!$C$1,('Res load - top winter day'!$K8-Sheet1!$D$2)*24+'Res load - top winter day'!T$4,0) -> 2332.141246 | U8: =OFFSET(Sheet1!$C$1,('Res load - top winter day'!$K8-Sheet1!$D$2)*24+'Res load - top winter day'!U$4,0) -> 2451.199684 | V8: =OFFSET(Sheet1!$C$1,('Res load - top winter day'!$K8-Sheet1!$D$2)*24+'Res load - top winter day'!V$4,0) -> 2467.772503 | W8: =OFFSET(Sheet1!$C$1,('Res load - top winter day'!$K8-Sheet1!$D$2)*24+'Res load - top winter day'!W$4,0) -> 2493.137532 | X8: =OFFSET(Sheet1!$C$1,('Res load - top winter day'!$K8-Sheet1!$D$2)*24+'Res load - top winter day'!X$4,0) -> 2489.098734 | Y8: =OFFSET(Sheet1!$C$1,('Res load - top winter day'!$K8-Sheet1!$D$2)*24+'Res load - top winter day'!Y$4,0) -> 2471.866005 | Z8: =OFFSET(Sheet1!$C$1,('Res load - top winter day'!$K8-Sheet1!$D$2)*24+'Res load - top winter day'!Z$4,0) -> 2457.897808 | AA8: =OFFSET(Sheet1!$C$1,('Res load - top winter day'!$K8-Sheet1!$D$2)*24+'Res load - top winter day'!AA$4,0) -> 2531.72894 | AB8: =OFFSET(Sheet1!$C$1,('Res load - top winter day'!$K8-Sheet1!$D$2)*24+'Res load - top winter day'!AB$4,0) -> 2742.271246 | AC8: =OFFSET(Sheet1!$C$1,('Res load - top winter day'!$K8-Sheet1!$D$2)*24+'Res load - top winter day'!AC$4,0) -> 3006.743959 | AD8: =OFFSET(Sheet1!$C$1,('Res load - top winter day'!$K8-Sheet1!$D$2)*24+'Res load - top winter day'!AD$4,0) -> 3118.127851 | AE8: =OFFSET(Sheet1!$C$1,('Res load - top winter day'!$K8-Sheet1!$D$2)*24+'Res load - top winter day'!AE$4,0) -> 3153.240432 | AF8: =OFFSET(Sheet1!$C$1,('Res load - top winter day'!$K8-Sheet1!$D$2)*24+'Res load - top winter day'!AF$4,0) -> 3131.011014 | AG8: =OFFSET(Sheet1!$C$1,('Res load - top winter day'!$K8-Sheet1!$D$2)*24+'Res load - top winter day'!AG$4,0) -> 2986.146107 | AH8: =OFFSET(Sheet1!$C$1,('Res load - top winter day'!$K8-Sheet1!$D$2)*24+'Res load - top winter day'!AH$4,0) -> 2869.093791 | AI8: =OFFSET(Sheet1!$C$1,('Res load - top winter day'!$K8-Sheet1!$D$2)*24+'Res load - top winter day'!AI$4,0) -> 2731.661204
A9: Jan | B9: 05-Jan | C9: 2841.068438 | D9: 74 | E9: 74 | F9: 10 | G9: Jun | H9: 6 | I9: 5 | J9: 17-Jan | K9: 2018-01-17 | L9: =OFFSET(Sheet1!$C$1,('Res load - top winter day'!$K9-Sheet1!$D$2)*24+'Res load - top winter day'!L$4,0) -> 2735.781043 | M9: =OFFSET(Sheet1!$C$1,('Res load - top winter day'!$K9-Sheet1!$D$2)*24+'Res load - top winter day'!M$4,0) -> 2706.040999 | N9: =OFFSET(Sheet1!$C$1,('Res load - top winter day'!$K9-Sheet1!$D$2)*24+'Res load - top winter day'!N$4,0) -> 2724.259346 | O9: =OFFSET(Sheet1!$C$1,('Res load - top winter day'!$K9-Sheet1!$D$2)*24+'Res load - top winter day'!O$4,0) -> 2745.095706 | P9: =OFFSET(Sheet1!$C$1,('Res load - top winter day'!$K9-Sheet1!$D$2)*24+'Res load - top winter day'!P$4,0) -> 2820.173439 | Q9: =OFFSET(Sheet1!$C$1,('Res load - top winter day'!$K9-Sheet1!$D$2)*24+'Res load - top winter day'!Q$4,0) -> 2926.720494 | R9: =OFFSET(Sheet1!$C$1,('Res load - top winter day'!$K9-Sheet1!$D$2)*24+'Res load - top winter day'!R$4,0) -> 3131.779469 | S9: =OFFSET(Sheet1!$C$1,('Res load - top winter day'!$K9-Sheet1!$D$2)*24+'Res load - top winter day'!S$4,0) -> 3071.728212 | T9: =OFFSET(Sheet1!$C$1,('Res load - top winter day'!$K9-Sheet1!$D$2)*24+'Res load - top winter day'!T$4,0) -> 2898.293618 | U9: =OFFSET(Sheet1!$C$1,('Res load - top winter day'!$K9-Sheet1!$D$2)*24+'Res load - top winter day'!U$4,0) -> 2779.519612 | V9: =OFFSET(Sheet1!$C$1,('Res load - top winter day'!$K9-Sheet1!$D$2)*24+'Res load - top winter day'!V$4,0) -> 2601.284912 | W9: =OFFSET(Sheet1!$C$1,('Res load - top winter day'!$K9-Sheet1!$D$2)*24+'Res load - top winter day'!W$4,0) -> 2483.901801 | X9: =OFFSET(Sheet1!$C$1,('Res load - top winter day'!$K9-Sheet1!$D$2)*24+'Res load - top winter day'!X$4,0) -> 2316.774313 | Y9: =OFFSET(Sheet1!$C$1,('Res load - top winter day'!$K9-Sheet1!$D$2)*24+'Res load - top winter day'!Y$4,0) -> 2237.689118 | Z9: =OFFSET(Sheet1!$C$1,('Res load - top winter day'!$K9-Sheet1!$D$2)*24+'Res load - top winter day'!Z$4,0) -> 2205.819469 | AA9: =OFFSET(Sheet1!$C$1,('Res load - top winter day'!$K9-Sheet1!$D$2)*24+'Res load - top winter day'!AA$4,0) -> 2234.511072 | AB9: =OFFSET(Sheet1!$C$1,('Res load - top winter day'!$K9-Sheet1!$D$2)*24+'Res load - top winter day'!AB$4,0) -> 2420.058465 | AC9: =OFFSET(Sheet1!$C$1,('Res load - top winter day'!$K9-Sheet1!$D$2)*24+'Res load - top winter day'!AC$4,0) -> 2728.964845 | AD9: =OFFSET(Sheet1!$C$1,('Res load - top winter day'!$K9-Sheet1!$D$2)*24+'Res load - top winter day'!AD$4,0) -> 2857.453239 | AE9: =OFFSET(Sheet1!$C$1,('Res load - top winter day'!$K9-Sheet1!$D$2)*24+'Res load - top winter day'!AE$4,0) -> 2870.252077 | AF9: =OFFSET(Sheet1!$C$1,('Res load - top winter day'!$K9-Sheet1!$D$2)*24+'Res load - top winter day'!AF$4,0) -> 2866.019263 | AG9: =OFFSET(Sheet1!$C$1,('Res load - top winter day'!$K9-Sheet1!$D$2)*24+'Res load - top winter day'!AG$4,0) -> 2786.269004 | AH9: =OFFSET(Sheet1!$C$1,('Res load - top winter day'!$K9-Sheet1!$D$2)*24+'Res load - top winter day'!AH$4,0) -> 2636.827998 | AI9: =OFFSET(Sheet1!$C$1,('Res load - top winter day'!$K9-Sheet1!$D$2)*24+'Res load - top winter day'!AI$4,0) -> 2499.188203
A10: Jan | B10: 06-Jan | C10: 2892.799201 | D10: 69 | E10: 69 | F10: 9 | G10: Jul | H10: 7 | I10: 6 | J10: 04-Jan | K10: 2018-01-04 | L10: =OFFSET(Sheet1!$C$1,('Res load - top winter day'!$K10-Sheet1!$D$2)*24+'Res load - top winter day'!L$4,0) -> 2571.935314 | M10: =OFFSET(Sheet1!$C$1,('Res load - top winter day'!$K10-Sheet1!$D$2)*24+'Res load - top winter day'!M$4,0) -> 2544.597461 | N10: =OFFSET(Sheet1!$C$1,('Res load - top winter day'!$K10-Sheet1!$D$2)*24+'Res load - top winter day'!N$4,0) -> 2570.696329 | O10: =OFFSET(Sheet1!$C$1,('Res load - top winter day'!$K10-Sheet1!$D$2)*24+'Res load - top winter day'!O$4,0) -> 2589.628365 | P10: =OFFSET(Sheet1!$C$1,('Res load - top winter day'!$K10-Sheet1!$D$2)*24+'Res load - top winter day'!P$4,0) -> 2684.956601 | Q10: =OFFSET(Sheet1!$C$1,('Res load - top winter day'!$K10-Sheet1!$D$2)*24+'Res load - top winter day'!Q$4,0) -> 2835.109181 | R10: =OFFSET(Sheet1!$C$1,('Res load - top winter day'!$K10-Sheet1!$D$2)*24+'Res load - top winter day'!R$4,0) -> 2958.913636 | S10: =OFFSET(Sheet1!$C$1,('Res load - top winter day'!$K10-Sheet1!$D$2)*24+'Res load - top winter day'!S$4,0) -> 2952.846297 | T10: =OFFSET(Sheet1!$C$1,('Res load - top winter day'!$K10-Sheet1!$D$2)*24+'Res load - top winter day'!T$4,0) -> 2834.678165 | U10: =OFFSET(Sheet1!$C$1,('Res load - top winter day'!$K10-Sheet1!$D$2)*24+'Res load - top winter day'!U$4,0) -> 2718.185555 | V10: =OFFSET(Sheet1!$C$1,('Res load - top winter day'!$K10-Sheet1!$D$2)*24+'Res load - top winter day'!V$4,0) -> 2556.00932 | W10: =OFFSET(Sheet1!$C$1,('Res load - top winter day'!$K10-Sheet1!$D$2)*24+'Res load - top winter day'!W$4,0) -> 2412.363404 | X10: =OFFSET(Sheet1!$C$1,('Res load - top winter day'!$K10-Sheet1!$D$2)*24+'Res load - top winter day'!X$4,0) -> 2390.919877 | Y10: =OFFSET(Sheet1!$C$1,('Res load - top winter day'!$K10-Sheet1!$D$2)*24+'Res load - top winter day'!Y$4,0) -> 2333.441073 | Z10: =OFFSET(Sheet1!$C$1,('Res load - top winter day'!$K10-Sheet1!$D$2)*24+'Res load - top winter day'!Z$4,0) -> 2322.660629 | AA10: =OFFSET(Sheet1!$C$1,('Res load - top winter day'!$K10-Sheet1!$D$2)*24+'Res load - top winter day'!AA$4,0) -> 2367.554531 | AB10: =OFFSET(Sheet1!$C$1,('Res load - top winter day'!$K10-Sheet1!$D$2)*24+'Res load - top winter day'!AB$4,0) -> 2582.331572 | AC10: =OFFSET(Sheet1!$C$1,('Res load - top winter day'!$K10-Sheet1!$D$2)*24+'Res load - top winter day'!AC$4,0) -> 2896.122275 | AD10: =OFFSET(Sheet1!$C$1,('Res load - top winter day'!$K10-Sheet1!$D$2)*24+'Res load - top winter day'!AD$4,0) -> 2951.838397 | AE10: =OFFSET(Sheet1!$C$1,('Res load - top winter day'!$K10-Sheet1!$D$2)*24+'Res load - top winter day'!AE$4,0) -> 2959.801249 | AF10: =OFFSET(Sheet1!$C$1,('Res load - top winter day'!$K10-Sheet1!$D$2)*24+'Res load - top winter day'!AF$4,0) -> 2893.346392 | AG10: =OFFSET(Sheet1!$C$1,('Res load - top winter day'!$K10-Sheet1!$D$2)*24+'Res load - top winter day'!AG$4,0) -> 2771.035861 | AH10: =OFFSET(Sheet1!$C$1,('Res load - top winter day'!$K10-Sheet1!$D$2)*24+'Res load - top winter day'!AH$4,0) -> 2553.934881 | AI10: =OFFSET(Sheet1!$C$1,('Res load - top winter day'!$K10-Sheet1!$D$2)*24+'Res load - top winter day'!AI$4,0) -> 2439.518983
A11: Jan | B11: 07-Jan | C11: 2627.398143 | D11: 96 | E11: 96 | F11: 17 | G11: Aug | H11: 8 | I11: 7 | J11: 03-Jan | K11: 2018-01-03 | L11: =OFFSET(Sheet1!$C$1,('Res load - top winter day'!$K11-Sheet1!$D$2)*24+'Res load - top winter day'!L$4,0) -> 2573.495625 | M11: =OFFSET(Sheet1!$C$1,('Res load - top winter day'!$K11-Sheet1!$D$2)*24+'Res load - top winter day'!M$4,0) -> 2510.495687 | N11: =OFFSET(Sheet1!$C$1,('Res load - top winter day'!$K11-Sheet1!$D$2)*24+'Res load - top winter day'!N$4,0) -> 2462.097345 | O11: =OFFSET(Sheet1!$C$1,('Res load - top winter day'!$K11-Sheet1!$D$2)*24+'Res load - top winter day'!O$4,0) -> 2391.901512 | P11: =OFFSET(Sheet1!$C$1,('Res load - top winter day'!$K11-Sheet1!$D$2)*24+'Res load - top winter day'!P$4,0) -> 2428.508187 | Q11: =OFFSET(Sheet1!$C$1,('Res load - top winter day'!$K11-Sheet1!$D$2)*24+'Res load - top winter day'!Q$4,0) -> 2525.076875 | R11: =OFFSET(Sheet1!$C$1,('Res load - top winter day'!$K11-Sheet1!$D$2)*24+'Res load - top winter day'!R$4,0) -> 2628.671284 | S11: =OFFSET(Sheet1!$C$1,('Res load - top winter day'!$K11-Sheet1!$D$2)*24+'Res load - top winter day'!S$4,0) -> 2644.525493 | T11: =OFFSET(Sheet1!$C$1,('Res load - top winter day'!$K11-Sheet1!$D$2)*24+'Res load - top winter day'!T$4,0) -> 2580.67895 | U11: =OFFSET(Sheet1!$C$1,('Res load - top winter day'!$K11-Sheet1!$D$2)*24+'Res load - top winter day'!U$4,0) -> 2518.201747 | V11: =OFFSET(Sheet1!$C$1,('Res load - top winter day'!$K11-Sheet1!$D$2)*24+'Res load - top winter day'!V$4,0) -> 2406.53747 | W11: =OFFSET(Sheet1!$C$1,('Res load - top winter day'!$K11-Sheet1!$D$2)*24+'Res load - top winter day'!W$4,0) -> 2403.687328 | X11: =OFFSET(Sheet1!$C$1,('Res load - top winter day'!$K11-Sheet1!$D$2)*24+'Res load - top winter day'!X$4,0) -> 2376.537326 | Y11: =OFFSET(Sheet1!$C$1,('Res load - top winter day'!$K11-Sheet1!$D$2)*24+'Res load - top winter day'!Y$4,0) -> 2302.83375 | Z11: =OFFSET(Sheet1!$C$1,('Res load - top winter day'!$K11-Sheet1!$D$2)*24+'Res load - top winter day'!Z$4,0) -> 2230.84895 | AA11: =OFFSET(Sheet1!$C$1,('Res load - top winter day'!$K11-Sheet1!$D$2)*24+'Res load - top winter day'!AA$4,0) -> 2244.349279 | AB11: =OFFSET(Sheet1!$C$1,('Res load - top winter day'!$K11-Sheet1!$D$2)*24+'Res load - top winter day'!AB$4,0) -> 2469.413303 | AC11: =OFFSET(Sheet1!$C$1,('Res load - top winter day'!$K11-Sheet1!$D$2)*24+'Res load - top winter day'!AC$4,0) -> 2821.399543 | AD11: =OFFSET(Sheet1!$C$1,('Res load - top winter day'!$K11-Sheet1!$D$2)*24+'Res load - top winter day'!AD$4,0) -> 2931.239475 | AE11: =OFFSET(Sheet1!$C$1,('Res load - top winter day'!$K11-Sheet1!$D$2)*24+'Res load - top winter day'!AE$4,0) -> 2939.682924 | AF11: =OFFSET(Sheet1!$C$1,('Res load - top winter day'!$K11-Sheet1!$D$2)*24+'Res load - top winter day'!AF$4,0) -> 2936.178227 | AG11: =OFFSET(Sheet1!$C$1,('Res load - top winter day'!$K11-Sheet1!$D$2)*24+'Res load - top winter day'!AG$4,0) -> 2888.540854 | AH11: =OFFSET(Sheet1!$C$1,('Res load - top winter day'!$K11-Sheet1!$D$2)*24+'Res load - top winter day'!AH$4,0) -> 2722.014137 | AI11: =OFFSET(Sheet1!$C$1,('Res load - top winter day'!$K11-Sheet1!$D$2)*24+'Res load - top winter day'!AI$4,0) -> 2618.609249
A12: Jan | B12: 08-Jan | C12: 2335.303461 | D12: 133 | E12: 133 | F12: 34 | G12: Sep | H12: 9 | I12: 8 | J12: 12-Jan | K12: 2018-01-12 | L12: =OFFSET(Sheet1!$C$1,('Res load - top winter day'!$K12-Sheet1!$D$2)*24+'Res load - top winter day'!L$4,0) -> 2017.344828 | M12: =OFFSET(Sheet1!$C$1,('Res load - top winter day'!$K12-Sheet1!$D$2)*24+'Res load - top winter day'!M$4,0) -> 2062.723515 | N12: =OFFSET(Sheet1!$C$1,('Res load - top winter day'!$K12-Sheet1!$D$2)*24+'Res load - top winter day'!N$4,0) -> 2113.369188 | O12: =OFFSET(Sheet1!$C$1,('Res load - top winter day'!$K12-Sheet1!$D$2)*24+'Res load - top winter day'!O$4,0) -> 2172.260446 | P12: =OFFSET(Sheet1!$C$1,('Res load - top winter day'!$K12-Sheet1!$D$2)*24+'Res load - top winter day'!P$4,0) -> 2284.434886 | Q12: =OFFSET(Sheet1!$C$1,('Res load - top winter day'!$K12-Sheet1!$D$2)*24+'Res load - top winter day'!Q$4,0) -> 2461.337868 | R12: =OFFSET(Sheet1!$C$1,('Res load - top winter day'!$K12-Sheet1!$D$2)*24+'Res load - top winter day'!R$4,0) -> 2621.966277 | S12: =OFFSET(Sheet1!$C$1,('Res load - top winter day'!$K12-Sheet1!$D$2)*24+'Res load - top winter day'!S$4,0) -> 2675.202809 | T12: =OFFSET(Sheet1!$C$1,('Res load - top winter day'!$K12-Sheet1!$D$2)*24+'Res load - top winter day'!T$4,0) -> 2678.28936 | U12: =OFFSET(Sheet1!$C$1,('Res load - top winter day'!$K12-Sheet1!$D$2)*24+'Res load - top winter day'!U$4,0) -> 2614.961572 | V12: =OFFSET(Sheet1!$C$1,('Res load - top winter day'!$K12-Sheet1!$D$2)*24+'Res load - top winter day'!V$4,0) -> 2604.077045 | W12: =OFFSET(Sheet1!$C$1,('Res load - top winter day'!$K12-Sheet1!$D$2)*24+'Res load - top winter day'!W$4,0) -> 2593.855392 | X12: =OFFSET(Sheet1!$C$1,('Res load - top winter day'!$K12-Sheet1!$D$2)*24+'Res load - top winter day'!X$4,0) -> 2549.600005 | Y12: =OFFSET(Sheet1!$C$1,('Res load - top winter day'!$K12-Sheet1!$D$2)*24+'Res load - top winter day'!Y$4,0) -> 2457.869656 | Z12: =OFFSET(Sheet1!$C$1,('Res load - top winter day'!$K12-Sheet1!$D$2)*24+'Res load - top winter day'!Z$4,0) -> 2461.372286 | AA12: =OFFSET(Sheet1!$C$1,('Res load - top winter day'!$K12-Sheet1!$D$2)*24+'Res load - top winter day'!AA$4,0) -> 2472.831347 | AB12: =OFFSET(Sheet1!$C$1,('Res load - top winter day'!$K12-Sheet1!$D$2)*24+'Res load - top winter day'!AB$4,0) -> 2611.291645 | AC12: =OFFSET(Sheet1!$C$1,('Res load - top winter day'!$K12-Sheet1!$D$2)*24+'Res load - top winter day'!AC$4,0) -> 2842.928002 | AD12: =OFFSET(Sheet1!$C$1,('Res load - top winter day'!$K12-Sheet1!$D$2)*24+'Res load - top winter day'!AD$4,0) -> 2917.471348 | AE12: =OFFSET(Sheet1!$C$1,('Res load - top winter day'!$K12-Sheet1!$D$2)*24+'Res load - top winter day'!AE$4,0) -> 2879.331497 | AF12: =OFFSET(Sheet1!$C$1,('Res load - top winter day'!$K12-Sheet1!$D$2)*24+'Res load - top winter day'!AF$4,0) -> 2851.09311 | AG12: =OFFSET(Sheet1!$C$1,('Res load - top winter day'!$K12-Sheet1!$D$2)*24+'Res load - top winter day'!AG$4,0) -> 2766.191872 | AH12: =OFFSET(Sheet1!$C$1,('Res load - top winter day'!$K12-Sheet1!$D$2)*24+'Res load - top winter day'!AH$4,0) -> 2637.536374 | AI12: =OFFSET(Sheet1!$C$1,('Res load - top winter day'!$K12-Sheet1!$D$2)*24+'Res load - top winter day'!AI$4,0) -> 2559.314096
A13: Jan | B13: 09-Jan | C13: 2260.561188 | D13: 152 | E13: 152 | F13: 46 | G13: Oct | H13: 10 | I13: 9 | J13: 06-Jan | K13: 2018-01-06 | L13: =OFFSET(Sheet1!$C$1,('Res load - top winter day'!$K13-Sheet1!$D$2)*24+'Res load - top winter day'!L$4,0) -> 2555.10408 | M13: =OFFSET(Sheet1!$C$1,('Res load - top winter day'!$K13-Sheet1!$D$2)*24+'Res load - top winter day'!M$4,0) -> 2508.597582 | N13: =OFFSET(Sheet1!$C$1,('Res load - top winter day'!$K13-Sheet1!$D$2)*24+'Res load - top winter day'!N$4,0) -> 2514.079782 | O13: =OFFSET(Sheet1!$C$1,('Res load - top winter day'!$K13-Sheet1!$D$2)*24+'Res load - top winter day'!O$4,0) -> 2516.15208 | P13: =OFFSET(Sheet1!$C$1,('Res load - top winter day'!$K13-Sheet1!$D$2)*24+'Res load - top winter day'!P$4,0) -> 2539.268594 | Q13: =OFFSET(Sheet1!$C$1,('Res load - top winter day'!$K13-Sheet1!$D$2)*24+'Res load - top winter day'!Q$4,0) -> 2617.494271 | R13: =OFFSET(Sheet1!$C$1,('Res load - top winter day'!$K13-Sheet1!$D$2)*24+'Res load - top winter day'!R$4,0) -> 2710.783161 | S13: =OFFSET(Sheet1!$C$1,('Res load - top winter day'!$K13-Sheet1!$D$2)*24+'Res load - top winter day'!S$4,0) -> 2852.469026 | T13: =OFFSET(Sheet1!$C$1,('Res load - top winter day'!$K13-Sheet1!$D$2)*24+'Res load - top winter day'!T$4,0) -> 2892.799201 | U13: =OFFSET(Sheet1!$C$1,('Res load - top winter day'!$K13-Sheet1!$D$2)*24+'Res load - top winter day'!U$4,0) -> 2842.242602 | V13: =OFFSET(Sheet1!$C$1,('Res load - top winter day'!$K13-Sheet1!$D$2)*24+'Res load - top winter day'!V$4,0) -> 2734.998477 | W13: =OFFSET(Sheet1!$C$1,('Res load - top winter day'!$K13-Sheet1!$D$2)*24+'Res load - top winter day'!W$4,0) -> 2626.195301 | X13: =OFFSET(Sheet1!$C$1,('Res load - top winter day'!$K13-Sheet1!$D$2)*24+'Res load - top winter day'!X$4,0) -> 2502.581127 | Y13: =OFFSET(Sheet1!$C$1,('Res load - top winter day'!$K13-Sheet1!$D$2)*24+'Res load - top winter day'!Y$4,0) -> 2398.409926 | Z13: =OFFSET(Sheet1!$C$1,('Res load - top winter day'!$K13-Sheet1!$D$2)*24+'Res load - top winter day'!Z$4,0) -> 2362.394334 | AA13: =OFFSET(Sheet1!$C$1,('Res load - top winter day'!$K13-Sheet1!$D$2)*24+'Res load - top winter day'!AA$4,0) -> 2395.0146 | AB13: =OFFSET(Sheet1!$C$1,('Res load - top winter day'!$K13-Sheet1!$D$2)*24+'Res load - top winter day'!AB$4,0) -> 2547.751956 | AC13: =OFFSET(Sheet1!$C$1,('Res load - top winter day'!$K13-Sheet1!$D$2)*24+'Res load - top winter day'!AC$4,0) -> 2799.194095 | AD13: =OFFSET(Sheet1!$C$1,('Res load - top winter day'!$K13-Sheet1!$D$2)*24+'Res load - top winter day'!AD$4,0) -> 2849.871877 | AE13: =OFFSET(Sheet1!$C$1,('Res load - top winter day'!$K13-Sheet1!$D$2)*24+'Res load - top winter day'!AE$4,0) -> 2860.256795 | AF13: =OFFSET(Sheet1!$C$1,('Res load - top winter day'!$K13-Sheet1!$D$2)*24+'Res load - top winter day'!AF$4,0) -> 2813.706694 | AG13: =OFFSET(Sheet1!$C$1,('Res load - top winter day'!$K13-Sheet1!$D$2)*24+'Res load - top winter day'!AG$4,0) -> 2753.672396 | AH13: =OFFSET(Sheet1!$C$1,('Res load - top winter day'!$K13-Sheet1!$D$2)*24+'Res load - top winter day'!AH$4,0) -> 2603.270633 | AI13: =OFFSET(Sheet1!$C$1,('Res load - top winter day'!$K13-Sheet1!$D$2)*24+'Res load - top winter day'!AI$4,0) -> 2494.748471
A14: Jan | B14: 10-Jan | C14: 1725.060576 | D14: 269 | E14: 269 | F14: 126 | G14: Nov | H14: 11 | I14: 10 | J14: 05-Jan | K14: 2018-01-05 | L14: =OFFSET(Sheet1!$C$1,('Res load - top winter day'!$K14-Sheet1!$D$2)*24+'Res load - top winter day'!L$4,0) -> 2345.726984 | M14: =OFFSET(Sheet1!$C$1,('Res load - top winter day'!$K14-Sheet1!$D$2)*24+'Res load - top winter day'!M$4,0) -> 2310.249121 | N14: =OFFSET(Sheet1!$C$1,('Res load - top winter day'!$K14-Sheet1!$D$2)*24+'Res load - top winter day'!N$4,0) -> 2301.025279 | O14: =OFFSET(Sheet1!$C$1,('Res load - top winter day'!$K14-Sheet1!$D$2)*24+'Res load - top winter day'!O$4,0) -> 2307.294884 | P14: =OFFSET(Sheet1!$C$1,('Res load - top winter day'!$K14-Sheet1!$D$2)*24+'Res load - top winter day'!P$4,0) -> 2396.802845 | Q14: =OFFSET(Sheet1!$C$1,('Res load - top winter day'!$K14-Sheet1!$D$2)*24+'Res load - top winter day'!Q$4,0) -> 2519.335907 | R14: =OFFSET(Sheet1!$C$1,('Res load - top winter day'!$K14-Sheet1!$D$2)*24+'Res load - top winter day'!R$4,0) -> 2655.278512 | S14: =OFFSET(Sheet1!$C$1,('Res load - top winter day'!$K14-Sheet1!$D$2)*24+'Res load - top winter day'!S$4,0) -> 2658.805207 | T14: =OFFSET(Sheet1!$C$1,('Res load - top winter day'!$K14-Sheet1!$D$2)*24+'Res load - top winter day'!T$4,0) -> 2633.811349 | U14: =OFFSET(Sheet1!$C$1,('Res load - top winter day'!$K14-Sheet1!$D$2)*24+'Res load - top winter day'!U$4,0) -> 2545.698928 | V14: =OFFSET(Sheet1!$C$1,('Res load - top winter day'!$K14-Sheet1!$D$2)*24+'Res load - top winter day'!V$4,0) -> 2477.062399 | W14: =OFFSET(Sheet1!$C$1,('Res load - top winter day'!$K14-Sheet1!$D$2)*24+'Res load - top winter day'!W$4,0) -> 2349.226526 | X14: =OFFSET(Sheet1!$C$1,('Res load - top winter day'!$K14-Sheet1!$D$2)*24+'Res load - top winter day'!X$4,0) -> 2244.643018 | Y14: =OFFSET(Sheet1!$C$1,('Res load - top winter day'!$K14-Sheet1!$D$2)*24+'Res load - top winter day'!Y$4,0) -> 2201.662366 | Z14: =OFFSET(Sheet1!$C$1,('Res load - top winter day'!$K14-Sheet1!$D$2)*24+'Res load - top winter day'!Z$4,0) -> 2151.733917 | AA14: =OFFSET(Sheet1!$C$1,('Res load - top winter day'!$K14-Sheet1!$D$2)*24+'Res load - top winter day'!AA$4,0) -> 2215.991544 | AB14: =OFFSET(Sheet1!$C$1,('Res load - top winter day'!$K14-Sheet1!$D$2)*24+'Res load - top winter day'!AB$4,0) -> 2424.143534 | AC14: =OFFSET(Sheet1!$C$1,('Res load - top winter day'!$K14-Sheet1!$D$2)*24+'Res load - top winter day'!AC$4,0) -> 2685.093187 | AD14: =OFFSET(Sheet1!$C$1,('Res load - top winter day'!$K14-Sheet1!$D$2)*24+'Res load - top winter day'!AD$4,0) -> 2780.004284 | AE14: =OFFSET(Sheet1!$C$1,('Res load - top winter day'!$K14-Sheet1!$D$2)*24+'Res load - top winter day'!AE$4,0) -> 2806.688705 | AF14: =OFFSET(Sheet1!$C$1,('Res load - top winter day'!$K14-Sheet1!$D$2)*24+'Res load - top winter day'!AF$4,0) -> 2841.068438 | AG14: =OFFSET(Sheet1!$C$1,('Res load - top winter day'!$K14-Sheet1!$D$2)*24+'Res load - top winter day'!AG$4,0) -> 2799.704205 | AH14: =OFFSET(Sheet1!$C$1,('Res load - top winter day'!$K14-Sheet1!$D$2)*24+'Res load - top winter day'!AH$4,0) -> 2687.983952 | AI14: =OFFSET(Sheet1!$C$1,('Res load - top winter day'!$K14-Sheet1!$D$2)*24+'Res load - top winter day'!AI$4,0) -> 2600.368311
A15: Jan | B15: 11-Jan | C15: 2289.627675 | D15: 145 | E15: 145 | F15: 41 | G15: Dec | H15: 12
A16: Jan | B16: 12-Jan | C16: 2917.471348 | D16: 65 | E16: 65 | F16: 8 | K16: avg. | L16: =AVERAGE(L5:L14) -> 2546.093935 | M16: =AVERAGE(M5:M14) -> 2523.244235 | N16: 2522.729235 | O16: 2530.27909 | P16: 2601.064452 | Q16: 2705.799208 | R16: 2827.103493 | S16: 2853.542743 | T16: 2806.959857 | U16: 2762.818712 | V16: 2666.410712 | W16: 2591.614234 | X16: 2508.337594 | Y16: 2447.362324 | Z16: 2404.560054 | AA16: 2444.445781 | AB16: 2635.067983 | AC16: 2928.212559 | AD16: 3026.595299 | AE16: 3023.692079 | AF16: 3007.326909 | AG16: 2903.094161 | AH16: 2753.38626 | AI16: 2637.372459
A17: Jan | B17: 13-Jan | C17: 2768.926304 | D17: 79 | E17: 79 | F17: 12 | K17: max | L17: =MAX(L5:L14) -> 2924.00821 | M17: =MAX(M5:M14) -> 2917.522195 | N17: 2929.374018 | O17: 2991.075239 | P17: 3021.165293 | Q17: 3123.221148 | R17: 3244.156148 | S17: 3290.008735 | T17: 3128.301849 | U17: 3132.266118 | V17: 3112.279113 | W17: 3078.346532 | X17: 2942.889272 | Y17: 2863.216242 | Z17: 2812.148152 | AA17: 2826.829202 | AB17: 3012.271873 | AC17: 3279.271778 | AD17: 3397.849204 | AE17: 3374.517951 | AF17: 3362.139483 | AG17: 3192.738305 | AH17: 3136.0373 | AI17: 2976.982688
A18: Jan | B18: 14-Jan | C18: 2766.793234 | D18: 81 | E18: 81 | F18: 13 | K18: min | L18: =MIN(L5:L14) -> 2017.344828 | M18: =MIN(M5:M14) -> 2062.723515 | N18: 2027.582118 | O18: 2002.225499 | P18: 2081.098133 | Q18: 2148.762114 | R18: 2232.363678 | S18: 2282.542189 | T18: 2332.141246 | U18: 2451.199684 | V18: 2406.53747 | W18: 2349.226526 | X18: 2244.643018 | Y18: 2201.662366 | Z18: 2151.733917 | AA18: 2215.991544 | AB18: 2420.058465 | AC18: 2685.093187 | AD18: 2780.004284 | AE18: 2806.688705 | AF18: 2813.706694 | AG18: 2753.672396 | AH18: 2553.934881 | AI18: 2439.518983
A19: Jan | B19: 15-Jan | C19: 3153.240432 | D19: 33 | E19: 33 | F19: 4
A20: Jan | B20: 16-Jan | C20: 3274.756852 | D20: 26 | E20: 26 | F20: 3
A21: Jan | B21: 17-Jan | C21: 3131.779469 | D21: 34 | E21: 34 | F21: 5
A22: Jan | B22: 18-Jan | C22: 2727.101003 | D22: 85 | E22: 85 | F22: =RANK(E22,$E$5:$E$369,1)+1 -> 15
A23: Jan | B23: 19-Jan | C23: 2301.026915 | D23: 140 | E23: 140 | F23: 38
A24: Jan | B24: 20-Jan | C24: 1917.718881 | D24: 225 | E24: 225 | F24: 94
A25: Jan | B25: 21-Jan | C25: 1596.105053 | D25: 294 | E25: 294 | F25: 146
A26: Jan | B26: 22-Jan | C26: 1934.925727 | D26: 220 | E26: 220 | F26: 91
A27: Jan | B27: 23-Jan | C27: 2278.194462 | D27: 147 | E27: 147 | F27: 43
A28: Jan | B28: 24-Jan | C28: 2213.527031 | D28: 162 | E28: 162 | F28: 52
A29: Jan | B29: 25-Jan | C29: 2157.899067 | D29: 172 | E29: 172 | F29: 55
A30: Jan | B30: 26-Jan | C30: 1814.532654 | D30: 247 | E30: 247 | F30: 110
A31: Jan | B31: 27-Jan | C31: 1645.007322 | D31: 284 | E31: 284 | F31: 139
A32: Jan | B32: 28-Jan | C32: 1884.417397 | D32: 236 | E32: 236 | F32: 104
A33: Jan | B33: 29-Jan | C33: 2396.407397 | D33: 125 | E33: 125 | F33: 30
A34: Jan | B34: 30-Jan | C34: 2465.228941 | D34: 112 | E34: 112 | F34: 25
A35: Jan | B35: 31-Jan | C35: 2035.321853 | D35: 193 | E35: 193 | F35: 68
A36: Feb | B36: 01-Feb | C36: 2472.466175 | D36: 111 | E36: 111 | F36: 24
A37: Feb | B37: 02-Feb | C37: 2679.139018 | D37: 90 | E37: 90 | F37: 15
A38: Feb | B38: 03-Feb | C38: 2251.010797 | D38: 154 | E38: 154 | F38: 48
A39: Feb | B39: 04-Feb | C39: 2645.433914 | D39: 93 | E39: 93 | F39: 16
A40: Feb | B40: 05-Feb | C40: 2810.265597 | D40: 76 | E40: 76 | F40: 11
A41: Feb | B41: 06-Feb | C41: 2528.058896 | D41: 104 | E41: 104 | F41: 20
A42: Feb | B42: 07-Feb | C42: 2517.423267 | D42: 106 | E42: 106 | F42: 21
A43: Feb | B43: 08-Feb | C43: 2379.115952 | D43: 128 | E43: 128 | F43: 32
A44: Feb | B44: 09-Feb | C44: 1912.060133 | D44: 226 | E44: 226 | F44: 95
A45: Feb | B45: 10-Feb | C45: 2459.519299 | D45: 116 | E45: 116 | F45: 27
A46: Feb | B46: 11-Feb | C46: 2601.974202 | D46: 101 | E46: 101 | F46: 18
A47: Feb | B47: 12-Feb | C47: 2575.936349 | D47: 102 | E47: 102 | F47: 19
A48: Feb | B48: 13-Feb | C48: 2280.646586 | D48: 146 | E48: 146 | F48: 42
A49: Feb | B49: 14-Feb | C49: 1679.661957 | D49: 278 | E49: 278 | F49: 134
A50: Feb | B50: 15-Feb | C50: 1437.58045 | D50: 322 | E50: 322 | F50: 165
A51: Feb | B51: 16-Feb | C51: 1957.108783 | D51: 217 | E51: 217 | F51: 88
A52: Feb | B52: 17-Feb | C52: 2053.512311 | D52: 190 | E52: 190 | F52: 67
A53: Feb | B53: 18-Feb | C53: 1964.364778 | D53: 213 | E53: 213 | F53: 84
A54: Feb | B54: 19-Feb | C54: 1600.624973 | D54: 292 | E54: 292 | F54: 145
A55: Feb | B55: 20-Feb | C55: 1749.638798 | D55: 261 | E55: 261 | F55: 118
A56: Feb | B56: 21-Feb | C56: 2380.818807 | D56: 127 | E56: 127 | F56: 31
A57: Feb | B57: 22-Feb | C57: 1980.396099 | D57: 207 | E57: 207 | F57: 80
A58: Feb | B58: 23-Feb | C58: 1718.310772 | D58: 271 | E58: 271 | F58: 128
A59: Feb | B59: 24-Feb | C59: 1752.368502 | D59: 259 | E59: 259 | F59: 116
A60: Feb | B60: 25-Feb | C60: 1756.943728 | D60: 258 | E60: 258 | F60: 115
A61: Feb | B61: 26-Feb | C61: 1900.298753 | D61: 232 | E61: 232 | F61: 100
A62: Feb | B62: 27-Feb | C62: 1664.524721 | D62: 280 | E62: 280 | F62: 136
A63: Feb | B63: 28-Feb | C63: 1461.199588 | D63: 319 | E63: 319 | F63: 164
A64: Mar | B64: 01-Mar | C64: 1587.689493 | D64: 296 | E64: 296 | F64: 148
A65: Mar | B65: 02-Mar | C65: 1743.292284 | D65: 264 | E65: 264 | F65: 121
A66: Mar | B66: 03-Mar | C66: 1639.442564 | D66: 285 | E66: 285 | F66: 140
A67: Mar | B67: 04-Mar | C67: 1539.621669 | D67: 307 | E67: 307 | F67: 156
A68: Mar | B68: 05-Mar | C68: 1688.722583 | D68: 277 | E68: 277 | F68: 133
A69: Mar | B69: 06-Mar | C69: 2026.689169 | D69: =RANK(C69,$C$5:$C$369) -> 197 | E69: 197 | F69: 72
A70: Mar | B70: 07-Mar | C70: 2022.136722 | D70: 198 | E70: =D70 -> 198 | F70: =RANK(E70,$E$5:$E$369,1) -> 73
A71: Mar | B71: 08-Mar | C71: 1966.375523 | D71: 212 | E71: 212 | F71: 83
A72: Mar | B72: 09-Mar | C72: 1957.437168 | D72: 216 | E72: 216 | F72: 87
A73: Mar | B73: 10-Mar | C73: 1582.641082 | D73: 297 | E73: 297 | F73: 149
A74: Mar | B74: 11-Mar | C74: 2028.616155 | D74: 196 | E74: 196 | F74: 71
A75: Mar | B75: 12-Mar | C75: 1879.050205 | D75: 237 | E75: 237 | F75: 105
A76: Mar | B76: 13-Mar | C76: 1872.748059 | D76: 241 | E76: 241 | F76: 107
A77: Mar | B77: 14-Mar | C77: 1975.370136 | D77: 208 | E77: 208 | F77: 81
A78: Mar | B78: 15-Mar | C78: 1565.5665 | D78: 302 | E78: 302 | F78: 153
A79: Mar | B79: 16-Mar | C79: 1566.280227 | D79: 301 | E79: 301 | F79: 152
A80: Mar | B80: 17-Mar | C80: 1570.364308 | D80: 300 | E80: 300 | F80: 151
A81: Mar | B81: 18-Mar | C81: 1724.502171 | D81: 270 | E81: 270 | F81: 127
A82: Mar | B82: 19-Mar | C82: 1726.956736 | D82: 268 | E82: 268 | F82: 125
A83: Mar | B83: 20-Mar | C83: 1758.96737 | D83: 255 | E83: 255 | F83: 114
A84: Mar | B84: 21-Mar | C84: 1744.576832 | D84: 263 | E84: 263 | F84: 120
A85: Mar | B85: 22-Mar | C85: 1798.273609 | D85: 252 | E85: 252 | F85: 112
A86: Mar | B86: 23-Mar | C86: 1611.456461 | D86: 287 | E86: 287 | F86: 141
A87: Mar | B87: 24-Mar | C87: 1677.020306 | D87: 279 | E87: 279 | F87: 135
A88: Mar | B88: 25-Mar | C88: 1718.1818 | D88: 272 | E88: 272 | F88: 129
A89: Mar | B89: 26-Mar | C89: 1699.57331 | D89: 275 | E89: 275 | F89: 131
A90: Mar | B90: 27-Mar | C90: 1577.103498 | D90: 299 | E90: 299 | F90: 150
A91: Mar | B91: 28-Mar | C91: 1525.169581 | D91: 309 | E91: 309 | F91: 157
A92: Mar | B92: 29-Mar | C92: 1699.652085 | D92: 274 | E92: 274 | F92: 130
A93: Mar | B93: 30-Mar | C93: 1517.323447 | D93: 310 | E93: 310 | F93: 158
A94: Mar | B94: 31-Mar | C94: 1646.347886 | D94: 283 | E94: 283 | F94: 138
A95: Apr | B95: 01-Apr | C95: 2145.152684 | D95: 176 | E95: 176 | F95: 58
A96: Apr | B96: 02-Apr | C96: 2033.790584 | D96: 195 | E96: 195 | F96: 70
A97: Apr | B97: 03-Apr | C97: 1730.833994 | D97: 266 | E97: 266 | F97: 123
A98: Apr | B98: 04-Apr | C98: 1899.696591 | D98: 233 | E98: 233 | F98: 101
A99: Apr | B99: 05-Apr | C99: 1896.413935 | D99: 234 | E99: 234 | F99: 102
A100: Apr | B100: 06-Apr | C100: 1745.997533 | D100: 262 | E100: 262 | F100: 119
A101: Apr | B101: 07-Apr | C101: 1905.471908 | D101: 229 | E101: 229 | F101: 98
A102: Apr | B102: 08-Apr | C102: 1910.115879 | D102: 227 | E102: 227 | F102: 96
A103: Apr | B103: 09-Apr | C103: 1729.382838 | D103: 267 | E103: 267 | F103: 124
A104: Apr | B104: 10-Apr | C104: 1602.292022 | D104: 291 | E104: 291 | F104: 144
A105: Apr | B105: 11-Apr | C105: 1376.055467 | D105: 328 | E105: 328 | F105: 170
A106: Apr | B106: 12-Apr | C106: 1424.370949 | D106: 325 | E106: 325 | F106: 168
A107: Apr | B107: 13-Apr | C107: 1290.983987 | D107: 342 | E107: 342 | F107: 174
A108: Apr | B108: 14-Apr | C108: 1299.84558 | D108: 340 | E108: 340 | F108: 172
A109: Apr | B109: 15-Apr | C109: 2012.885018 | D109: 199 | E109: 199 | F109: 74
A110: Apr | B110: 16-Apr | C110: 1955.593579 | D110: 218 | E110: 218 | F110: 89
A111: Apr | B111: 17-Apr | C111: 1751.046116 | D111: 260 | E111: 260 | F111: 117
A112: Apr | B112: 18-Apr | C112: 1426.708436 | D112: 324 | E112: 324 | F112: 167
A113: Apr | B113: 19-Apr | C113: 1592.012518 | D113: 295 | E113: 295 | F113: 147
A114: Apr | B114: 20-Apr | C114: 1564.356566 | D114: 303 | E114: 303 | F114: 154
A115: Apr | B115: 21-Apr | C115: 1244.829747 | D115: 350 | E115: 350 | F115: 175
A116: Apr | B116: 22-Apr | C116: 1384.282063 | D116: 327 | E116: 327 | F116: 169
A117: Apr | B117: 23-Apr | C117: 1294.214308 | D117: 341 | E117: 341 | F117: 173
A118: Apr | B118: 24-Apr | C118: 1195.285433 | D118: 359 | E118: 359 | F118: 178
A119: Apr | B119: 25-Apr | C119: 1212.063759 | D119: 355 | E119: 355 | F119: 176
A120: Apr | B120: 26-Apr | C120: 1194.977259 | D120: 360 | E120: 360 | F120: 179
A121: Apr | B121: 27-Apr | C121: 1125.607866 | D121: 364 | E121: 364 | F121: 180
A122: Apr | B122: 28-Apr | C122: 1114.89103 | D122: 365 | E122: 365 | F122: 181
A123: Apr | B123: 29-Apr | C123: 1208.732436 | D123: 357 | E123: 357 | F123: 177
A124: Apr | B124: 30-Apr | C124: 1356.262989 | D124: 332 | E124: 332 | F124: 171
A125: May | B125: 01-May | C125: 1466.547689 | D125: 317 | E125: 1000 | F125: 182
A126: May | B126: 02-May | C126: 1811.657683 | D126: 248 | E126: 1000 | F126: 182
A127: May | B127: 03-May | C127: 1311.499124 | D127: 338 | E127: 1000 | F127: 182
A128: May | B128: 04-May | C128: 1278.234056 | D128: 345 | E128: 1000 | F128: 182
A129: May | B129: 05-May | C129: 1559.474429 | D129: 304 | E129: 1000 | F129: 182
A130: May | B130: 06-May | C130: 1821.269336 | D130: 245 | E130: 1000 | F130: 182
A131: May | B131: 07-May | C131: 1703.499606 | D131: 273 | E131: 1000 | F131: 182
A132: May | B132: 08-May | C132: 1656.988837 | D132: 282 | E132: 1000 | F132: 182
A133: May | B133: 09-May | C133: 2048.349392 | D133: =RANK(C133,$C$5:$C$369) -> 192 | E133: 1000 | F133: 182
A134: May | B134: 10-May | C134: 2196.733269 | D134: 163 | E134: 1000 | F134: =RANK(E134,$E$5:$E$369,1) -> 182
A135: May | B135: 11-May | C135: 2184.994578 | D135: 166 | E135: 1000 | F135: 182
A136: May | B136: 12-May | C136: 2460.146085 | D136: 114 | E136: 1000 | F136: 182
A137: May | B137: 13-May | C137: 2749.324794 | D137: 84 | E137: 1000 | F137: 182
A138: May | B138: 14-May | C138: 2672.839362 | D138: 91 | E138: 1000 | F138: 182
A139: May | B139: 15-May | C139: 2113.07892 | D139: 183 | E139: 1000 | F139: 182
A140: May | B140: 16-May | C140: 2309.07442 | D140: 138 | E140: 1000 | F140: 182
A141: May | B141: 17-May | C141: 1861.311876 | D141: 243 | E141: 1000 | F141: 182
A142: May | B142: 18-May | C142: 1361.824134 | D142: 330 | E142: 1000 | F142: 182
A143: May | B143: 19-May | C143: 1783.558658 | D143: 253 | E143: 1000 | F143: 182
A144: May | B144: 20-May | C144: 2049.984271 | D144: 191 | E144: 1000 | F144: 182
A145: May | B145: 21-May | C145: 1972.9967 | D145: 209 | E145: 1000 | F145: 182
A146: May | B146: 22-May | C146: 2459.768704 | D146: 115 | E146: 1000 | F146: 182
A147: May | B147: 23-May | C147: 2527.526202 | D147: 105 | E147: 1000 | F147: 182
A148: May | B148: 24-May | C148: 2636.922027 | D148: 95 | E148: 1000 | F148: 182
A149: May | B149: 25-May | C149: 2298.325106 | D149: 141 | E149: 1000 | F149: 182
A150: May | B150: 26-May | C150: 2963.017758 | D150: 58 | E150: 1000 | F150: 182
A151: May | B151: 27-May | C151: 2993.797604 | D151: 51 | E151: 1000 | F151: 182
A152: May | B152: 28-May | C152: 3287.557308 | D152: 20 | E152: 1000 | F152: 182
A153: May | B153: 29-May | C153: 2376.629207 | D153: 129 | E153: 1000 | F153: 182
A154: May | B154: 30-May | C154: 2864.865361 | D154: 73 | E154: 1000 | F154: 182
A155: May | B155: 31-May | C155: 2572.716425 | D155: 103 | E155: 1000 | F155: 182
A156: Jun | B156: 01-Jun | C156: 3091.523517 | D156: 39 | E156: 1000 | F156: 182
A157: Jun | B157: 02-Jun | C157: 2407.948329 | D157: 122 | E157: 1000 | F157: 182
A158: Jun | B158: 03-Jun | C158: 2366.012098 | D158: 130 | E158: 1000 | F158: 182
A159: Jun | B159: 04-Jun | C159: 1876.125144 | D159: 240 | E159: 1000 | F159: 182
A160: Jun | B160: 05-Jun | C160: 2684.620514 | D160: 89 | E160: 1000 | F160: 182
A161: Jun | B161: 06-Jun | C161: 2890.77062 | D161: 70 | E161: 1000 | F161: 182
A162: Jun | B162: 07-Jun | C162: 3116.8166 | D162: 35 | E162: 1000 | F162: 182
A163: Jun | B163: 08-Jun | C163: 2981.024542 | D163: 56 | E163: 1000 | F163: 182
A164: Jun | B164: 09-Jun | C164: 2382.589024 | D164: 126 | E164: 1000 | F164: 182
A165: Jun | B165: 10-Jun | C165: 3279.172985 | D165: 23 | E165: 1000 | F165: 182
A166: Jun | B166: 11-Jun | C166: 3276.240639 | D166: 25 | E166: 1000 | F166: 182
A167: Jun | B167: 12-Jun | C167: 3016.681082 | D167: 50 | E167: 1000 | F167: 182
A168: Jun | B168: 13-Jun | C168: 3071.075222 | D168: 43 | E168: 1000 | F168: 182
A169: Jun | B169: 14-Jun | C169: 2900.100387 | D169: 68 | E169: 1000 | F169: 182
A170: Jun | B170: 15-Jun | C170: 3286.722196 | D170: 21 | E170: 1000 | F170: 182
A171: Jun | B171: 16-Jun | C171: 3370.163187 | D171: 12 | E171: 1000 | F171: 182
A172: Jun | B172: 17-Jun | C172: 3443.183379 | D172: 5 | E172: 1000 | F172: 182
A173: Jun | B173: 18-Jun | C173: 3463.96227 | D173: 2 | E173: 1000 | F173: 182
A174: Jun | B174: 19-Jun | C174: 3262.448382 | D174: 27 | E174: 1000 | F174: 182
A175: Jun | B175: 20-Jun | C175: 2945.057302 | D175: 61 | E175: 1000 | F175: 182
A176: Jun | B176: 21-Jun | C176: 2231.499151 | D176: 160 | E176: 1000 | F176: 182
A177: Jun | B177: 22-Jun | C177: 1605.2843 | D177: 289 | E177: 1000 | F177: 182
A178: Jun | B178: 23-Jun | C178: 2274.136543 | D178: 149 | E178: 1000 | F178: 182
A179: Jun | B179: 24-Jun | C179: 2278.074663 | D179: 148 | E179: 1000 | F179: 182
A180: Jun | B180: 25-Jun | C180: 2619.899511 | D180: 98 | E180: 1000 | F180: 182
A181: Jun | B181: 26-Jun | C181: 1870.017817 | D181: 242 | E181: 1000 | F181: 182
A182: Jun | B182: 27-Jun | C182: 3028.595789 | D182: 48 | E182: 1000 | F182: 182
A183: Jun | B183: 28-Jun | C183: 3278.123151 | D183: 24 | E183: 1000 | F183: 182
A184: Jun | B184: 29-Jun | C184: 3319.811906 | D184: 18 | E184: 1000 | F184: 182
A185: Jun | B185: 30-Jun | C185: 3417.799838 | D185: 8 | E185: 1000 | F185: 182
A186: Jul | B186: 01-Jul | C186: 3243.638018 | D186: 28 | E186: 1000 | F186: 182
A187: Jul | B187: 02-Jul | C187: 3076.798175 | D187: 42 | E187: 1000 | F187: 182
A188: Jul | B188: 03-Jul | C188: 3107.452263 | D188: 36 | E188: 1000 | F188: 182
A189: Jul | B189: 04-Jul | C189: 3462.044826 | D189: 3 | E189: 1000 | F189: 182
A190: Jul | B190: 05-Jul | C190: 3439.233967 | D190: 6 | E190: 1000 | F190: 182
A191: Jul | B191: 06-Jul | C191: 2968.619555 | D191: 57 | E191: 1000 | F191: 182
A192: Jul | B192: 07-Jul | C192: 2459.136659 | D192: 117 | E192: 1000 | F192: 182
A193: Jul | B193: 08-Jul | C193: 3054.340637 | D193: 46 | E193: 1000 | F193: 182
A194: Jul | B194: 09-Jul | C194: 3178.233708 | D194: 31 | E194: 1000 | F194: 182
A195: Jul | B195: 10-Jul | C195: 3477.821692 | D195: 1 | E195: 1000 | F195: 182
A196: Jul | B196: 11-Jul | C196: 3326.630323 | D196: 16 | E196: 1000 | F196: 182
A197: Jul | B197: 12-Jul | C197: 3322.001122 | D197: =RANK(C197,$C$5:$C$369) -> 17 | E197: 1000 | F197: 182
A198: Jul | B198: 13-Jul | C198: 3447.061268 | D198: 4 | E198: 1000 | F198: =RANK(E198,$E$5:$E$369,1) -> 182
A199: Jul | B199: 14-Jul | C199: 3339.357383 | D199: 13 | E199: 1000 | F199: 182
A200: Jul | B200: 15-Jul | C200: 3017.761637 | D200: 49 | E200: 1000 | F200: 182
A201: Jul | B201: 16-Jul | C201: 3283.221638 | D201: 22 | E201: 1000 | F201: 182
A202: Jul | B202: 17-Jul | C202: 2889.544281 | D202: 71 | E202: 1000 | F202: 182
... 168 more rows

Sheet Res load - top days
A3: Max of RESMO-CLBR-MTR,0
A4: Months | B4: Date | C4: Total | D4: Annual Rank | F4: Jan | G4: 1 | H4: Top Days | I4: Date | J4: Date (formatted) | L4: 1 | M4: 2 | N4: 3 | O4: 4 | P4: 5 | Q4: 6 | R4: 7 | S4: 8 | T4: 9 | U4: 10 | V4: 11 | W4: 12 | X4: 13 | Y4: 14 | Z4: 15 | AA4: 16 | AB4: 17 | AC4: 18 | AD4: 19 | AE4: 20 | AF4: 21 | AG4: 22 | AH4: 23 | AI4: 24
A5: Jan | B5: 01-Jan | C5: 3397.849204 | D5: =RANK(C5,$C$5:$C$369) -> 11 | F5: Feb | G5: 2 | H5: 1 | I5: =OFFSET($B$4,MATCH(H5,$D$5:$D$369,0),0) -> 10-Jul | J5: =DATE(2018,VLOOKUP(RIGHT(I5,3),$F$4:$G$15,2,FALSE),LEFT(I5,2)*1) -> 2018-07-10 | K5: =WEEKDAY(J5) -> 3 | L5: =OFFSET(Sheet1!$B$1,('Res load - top days'!$J5-Sheet1!$D$2)*24+'Res load - top days'!L$4,0) -> 4679 | M5: =OFFSET(Sheet1!$B$1,('Res load - top days'!$J5-Sheet1!$D$2)*24+'Res load - top days'!M$4,0) -> 4405 | N5: =OFFSET(Sheet1!$B$1,('Res load - top days'!$J5-Sheet1!$D$2)*24+'Res load - top days'!N$4,0) -> 4208 | O5: =OFFSET(Sheet1!$B$1,('Res load - top days'!$J5-Sheet1!$D$2)*24+'Res load - top days'!O$4,0) -> 4079 | P5: =OFFSET(Sheet1!$B$1,('Res load - top days'!$J5-Sheet1!$D$2)*24+'Res load - top days'!P$4,0) -> 4074 | Q5: =OFFSET(Sheet1!$B$1,('Res load - top days'!$J5-Sheet1!$D$2)*24+'Res load - top days'!Q$4,0) -> 4155 | R5: =OFFSET(Sheet1!$B$1,('Res load - top days'!$J5-Sheet1!$D$2)*24+'Res load - top days'!R$4,0) -> 4379 | S5: =OFFSET(Sheet1!$B$1,('Res load - top days'!$J5-Sheet1!$D$2)*24+'Res load - top days'!S$4,0) -> 4804 | T5: =OFFSET(Sheet1!$B$1,('Res load - top days'!$J5-Sheet1!$D$2)*24+'Res load - top days'!T$4,0) -> 5279 | U5: =OFFSET(Sheet1!$B$1,('Res load - top days'!$J5-Sheet1!$D$2)*24+'Res load - top days'!U$4,0) -> 5761 | V5: =OFFSET(Sheet1!$B$1,('Res load - top days'!$J5-Sheet1!$D$2)*24+'Res load - top days'!V$4,0) -> 6230 | W5: =OFFSET(Sheet1!$B$1,('Res load - top days'!$J5-Sheet1!$D$2)*24+'Res load - top days'!W$4,0) -> 6617 | X5: =OFFSET(Sheet1!$B$1,('Res load - top days'!$J5-Sheet1!$D$2)*24+'Res load - top days'!X$4,0) -> 6914 | Y5: =OFFSET(Sheet1!$B$1,('Res load - top days'!$J5-Sheet1!$D$2)*24+'Res load - top days'!Y$4,0) -> 7127 | Z5: =OFFSET(Sheet1!$B$1,('Res load - top days'!$J5-Sheet1!$D$2)*24+'Res load - top days'!Z$4,0) -> 7277 | AA5: =OFFSET(Sheet1!$B$1,('Res load - top days'!$J5-Sheet1!$D$2)*24+'Res load - top days'!AA$4,0) -> 7367 | AB5: =OFFSET(Sheet1!$B$1,('Res load - top days'!$J5-Sheet1!$D$2)*24+'Res load - top days'!AB$4,0) -> 7441 | AC5: =OFFSET(Sheet1!$B$1,('Res load - top days'!$J5-Sheet1!$D$2)*24+'Res load - top days'!AC$4,0) -> 7399 | AD5: =OFFSET(Sheet1!$B$1,('Res load - top days'!$J5-Sheet1!$D$2)*24+'Res load - top days'!AD$4,0) -> 7258 | AE5: =OFFSET(Sheet1!$B$1,('Res load - top days'!$J5-Sheet1!$D$2)*24+'Res load - top days'!AE$4,0) -> 6959 | AF5: =OFFSET(Sheet1!$B$1,('Res load - top days'!$J5-Sheet1!$D$2)*24+'Res load - top days'!AF$4,0) -> 6656 | AG5: =OFFSET(Sheet1!$B$1,('Res load - top days'!$J5-Sheet1!$D$2)*24+'Res load - top days'!AG$4,0) -> 6330 | AH5: =OFFSET(Sheet1!$B$1,('Res load - top days'!$J5-Sheet1!$D$2)*24+'Res load - top days'!AH$4,0) -> 5857 | AI5: =OFFSET(Sheet1!$B$1,('Res load - top days'!$J5-Sheet1!$D$2)*24+'Res load - top days'!AI$4,0) -> 5408
A6: Jan | B6: 02-Jan | C6: 3290.008735 | D6: 19 | F6: Mar | G6: 3 | H6: 2 | I6: 18-Jun | J6: =DATE(2018,VLOOKUP(RIGHT(I6,3),$F$4:$G$15,2,FALSE),LEFT(I6,2)*1) -> 2018-06-18 | K6: =WEEKDAY(J6) -> 2 | L6: =OFFSET(Sheet1!$B$1,('Res load - top days'!$J6-Sheet1!$D$2)*24+'Res load - top days'!L$4,0) -> 4905 | M6: =OFFSET(Sheet1!$B$1,('Res load - top days'!$J6-Sheet1!$D$2)*24+'Res load - top days'!M$4,0) -> 4643 | N6: =OFFSET(Sheet1!$B$1,('Res load - top days'!$J6-Sheet1!$D$2)*24+'Res load - top days'!N$4,0) -> 4407 | O6: =OFFSET(Sheet1!$B$1,('Res load - top days'!$J6-Sheet1!$D$2)*24+'Res load - top days'!O$4,0) -> 4295 | P6: =OFFSET(Sheet1!$B$1,('Res load - top days'!$J6-Sheet1!$D$2)*24+'Res load - top days'!P$4,0) -> 4273 | Q6: =OFFSET(Sheet1!$B$1,('Res load - top days'!$J6-Sheet1!$D$2)*24+'Res load - top days'!Q$4,0) -> 4386 | R6: =OFFSET(Sheet1!$B$1,('Res load - top days'!$J6-Sheet1!$D$2)*24+'Res load - top days'!R$4,0) -> 4610 | S6: =OFFSET(Sheet1!$B$1,('Res load - top days'!$J6-Sheet1!$D$2)*24+'Res load - top days'!S$4,0) -> 5023 | T6: =OFFSET(Sheet1!$B$1,('Res load - top days'!$J6-Sheet1!$D$2)*24+'Res load - top days'!T$4,0) -> 5466 | U6: =OFFSET(Sheet1!$B$1,('Res load - top days'!$J6-Sheet1!$D$2)*24+'Res load - top days'!U$4,0) -> 5901 | V6: =OFFSET(Sheet1!$B$1,('Res load - top days'!$J6-Sheet1!$D$2)*24+'Res load - top days'!V$4,0) -> 6325 | W6: =OFFSET(Sheet1!$B$1,('Res load - top days'!$J6-Sheet1!$D$2)*24+'Res load - top days'!W$4,0) -> 6676 | X6: =OFFSET(Sheet1!$B$1,('Res load - top days'!$J6-Sheet1!$D$2)*24+'Res load - top days'!X$4,0) -> 6957 | Y6: =OFFSET(Sheet1!$B$1,('Res load - top days'!$J6-Sheet1!$D$2)*24+'Res load - top days'!Y$4,0) -> 7188 | Z6: =OFFSET(Sheet1!$B$1,('Res load - top days'!$J6-Sheet1!$D$2)*24+'Res load - top days'!Z$4,0) -> 7315 | AA6: =OFFSET(Sheet1!$B$1,('Res load - top days'!$J6-Sheet1!$D$2)*24+'Res load - top days'!AA$4,0) -> 7399 | AB6: =OFFSET(Sheet1!$B$1,('Res load - top days'!$J6-Sheet1!$D$2)*24+'Res load - top days'!AB$4,0) -> 7396 | AC6: =OFFSET(Sheet1!$B$1,('Res load - top days'!$J6-Sheet1!$D$2)*24+'Res load - top days'!AC$4,0) -> 7332 | AD6: =OFFSET(Sheet1!$B$1,('Res load - top days'!$J6-Sheet1!$D$2)*24+'Res load - top days'!AD$4,0) -> 7163 | AE6: =OFFSET(Sheet1!$B$1,('Res load - top days'!$J6-Sheet1!$D$2)*24+'Res load - top days'!AE$4,0) -> 6898 | AF6: =OFFSET(Sheet1!$B$1,('Res load - top days'!$J6-Sheet1!$D$2)*24+'Res load - top days'!AF$4,0) -> 6597 | AG6: =OFFSET(Sheet1!$B$1,('Res load - top days'!$J6-Sheet1!$D$2)*24+'Res load - top days'!AG$4,0) -> 6307 | AH6: =OFFSET(Sheet1!$B$1,('Res load - top days'!$J6-Sheet1!$D$2)*24+'Res load - top days'!AH$4,0) -> 5798 | AI6: =OFFSET(Sheet1!$B$1,('Res load - top days'!$J6-Sheet1!$D$2)*24+'Res load - top days'!AI$4,0) -> 5322
A7: Jan | B7: 03-Jan | C7: 2939.682924 | D7: 62 | F7: Apr | G7: 4 | H7: 3 | I7: 04-Jul | J7: 2018-07-04 | K7: 4 | L7: =OFFSET(Sheet1!$B$1,('Res load - top days'!$J7-Sheet1!$D$2)*24+'Res load - top days'!L$4,0) -> 4625 | M7: =OFFSET(Sheet1!$B$1,('Res load - top days'!$J7-Sheet1!$D$2)*24+'Res load - top days'!M$4,0) -> 4343 | N7: =OFFSET(Sheet1!$B$1,('Res load - top days'!$J7-Sheet1!$D$2)*24+'Res load - top days'!N$4,0) -> 4139 | O7: =OFFSET(Sheet1!$B$1,('Res load - top days'!$J7-Sheet1!$D$2)*24+'Res load - top days'!O$4,0) -> 4002 | P7: =OFFSET(Sheet1!$B$1,('Res load - top days'!$J7-Sheet1!$D$2)*24+'Res load - top days'!P$4,0) -> 3949 | Q7: =OFFSET(Sheet1!$B$1,('Res load - top days'!$J7-Sheet1!$D$2)*24+'Res load - top days'!Q$4,0) -> 3926 | R7: =OFFSET(Sheet1!$B$1,('Res load - top days'!$J7-Sheet1!$D$2)*24+'Res load - top days'!R$4,0) -> 3966 | S7: =OFFSET(Sheet1!$B$1,('Res load - top days'!$J7-Sheet1!$D$2)*24+'Res load - top days'!S$4,0) -> 4292 | T7: =OFFSET(Sheet1!$B$1,('Res load - top days'!$J7-Sheet1!$D$2)*24+'Res load - top days'!T$4,0) -> 4751 | U7: =OFFSET(Sheet1!$B$1,('Res load - top days'!$J7-Sheet1!$D$2)*24+'Res load - top days'!U$4,0) -> 5300 | V7: =OFFSET(Sheet1!$B$1,('Res load - top days'!$J7-Sheet1!$D$2)*24+'Res load - top days'!V$4,0) -> 5749 | W7: =OFFSET(Sheet1!$B$1,('Res load - top days'!$J7-Sheet1!$D$2)*24+'Res load - top days'!W$4,0) -> 6060 | X7: =OFFSET(Sheet1!$B$1,('Res load - top days'!$J7-Sheet1!$D$2)*24+'Res load - top days'!X$4,0) -> 6299 | Y7: =OFFSET(Sheet1!$B$1,('Res load - top days'!$J7-Sheet1!$D$2)*24+'Res load - top days'!Y$4,0) -> 6514 | Z7: =OFFSET(Sheet1!$B$1,('Res load - top days'!$J7-Sheet1!$D$2)*24+'Res load - top days'!Z$4,0) -> 6671 | AA7: =OFFSET(Sheet1!$B$1,('Res load - top days'!$J7-Sheet1!$D$2)*24+'Res load - top days'!AA$4,0) -> 6773 | AB7: =OFFSET(Sheet1!$B$1,('Res load - top days'!$J7-Sheet1!$D$2)*24+'Res load - top days'!AB$4,0) -> 6813 | AC7: =OFFSET(Sheet1!$B$1,('Res load - top days'!$J7-Sheet1!$D$2)*24+'Res load - top days'!AC$4,0) -> 6819 | AD7: =OFFSET(Sheet1!$B$1,('Res load - top days'!$J7-Sheet1!$D$2)*24+'Res load - top days'!AD$4,0) -> 6648 | AE7: =OFFSET(Sheet1!$B$1,('Res load - top days'!$J7-Sheet1!$D$2)*24+'Res load - top days'!AE$4,0) -> 6371 | AF7: =OFFSET(Sheet1!$B$1,('Res load - top days'!$J7-Sheet1!$D$2)*24+'Res load - top days'!AF$4,0) -> 6040 | AG7: =OFFSET(Sheet1!$B$1,('Res load - top days'!$J7-Sheet1!$D$2)*24+'Res load - top days'!AG$4,0) -> 5726 | AH7: =OFFSET(Sheet1!$B$1,('Res load - top days'!$J7-Sheet1!$D$2)*24+'Res load - top days'!AH$4,0) -> 5445 | AI7: =OFFSET(Sheet1!$B$1,('Res load - top days'!$J7-Sheet1!$D$2)*24+'Res load - top days'!AI$4,0) -> 5137
A8: Jan | B8: 04-Jan | C8: 2959.801249 | D8: 59 | F8: May | G8: 5 | H8: 4 | I8: 13-Jul | J8: 2018-07-13 | K8: 6 | L8: =OFFSET(Sheet1!$B$1,('Res load - top days'!$J8-Sheet1!$D$2)*24+'Res load - top days'!L$4,0) -> 4653 | M8: =OFFSET(Sheet1!$B$1,('Res load - top days'!$J8-Sheet1!$D$2)*24+'Res load - top days'!M$4,0) -> 4341 | N8: =OFFSET(Sheet1!$B$1,('Res load - top days'!$J8-Sheet1!$D$2)*24+'Res load - top days'!N$4,0) -> 4120 | O8: =OFFSET(Sheet1!$B$1,('Res load - top days'!$J8-Sheet1!$D$2)*24+'Res load - top days'!O$4,0) -> 3980 | P8: =OFFSET(Sheet1!$B$1,('Res load - top days'!$J8-Sheet1!$D$2)*24+'Res load - top days'!P$4,0) -> 3978 | Q8: =OFFSET(Sheet1!$B$1,('Res load - top days'!$J8-Sheet1!$D$2)*24+'Res load - top days'!Q$4,0) -> 4051 | R8: =OFFSET(Sheet1!$B$1,('Res load - top days'!$J8-Sheet1!$D$2)*24+'Res load - top days'!R$4,0) -> 4251 | S8: =OFFSET(Sheet1!$B$1,('Res load - top days'!$J8-Sheet1!$D$2)*24+'Res load - top days'!S$4,0) -> 4667 | T8: =OFFSET(Sheet1!$B$1,('Res load - top days'!$J8-Sheet1!$D$2)*24+'Res load - top days'!T$4,0) -> 5089 | U8: =OFFSET(Sheet1!$B$1,('Res load - top days'!$J8-Sheet1!$D$2)*24+'Res load - top days'!U$4,0) -> 5552 | V8: =OFFSET(Sheet1!$B$1,('Res load - top days'!$J8-Sheet1!$D$2)*24+'Res load - top days'!V$4,0) -> 6022 | W8: =OFFSET(Sheet1!$B$1,('Res load - top days'!$J8-Sheet1!$D$2)*24+'Res load - top days'!W$4,0) -> 6446 | X8: =OFFSET(Sheet1!$B$1,('Res load - top days'!$J8-Sheet1!$D$2)*24+'Res load - top days'!X$4,0) -> 6770 | Y8: =OFFSET(Sheet1!$B$1,('Res load - top days'!$J8-Sheet1!$D$2)*24+'Res load - top days'!Y$4,0) -> 7084 | Z8: =OFFSET(Sheet1!$B$1,('Res load - top days'!$J8-Sheet1!$D$2)*24+'Res load - top days'!Z$4,0) -> 7262 | AA8: =OFFSET(Sheet1!$B$1,('Res load - top days'!$J8-Sheet1!$D$2)*24+'Res load - top days'!AA$4,0) -> 7373 | AB8: =OFFSET(Sheet1!$B$1,('Res load - top days'!$J8-Sheet1!$D$2)*24+'Res load - top days'!AB$4,0) -> 7413 | AC8: =OFFSET(Sheet1!$B$1,('Res load - top days'!$J8-Sheet1!$D$2)*24+'Res load - top days'!AC$4,0) -> 7346 | AD8: =OFFSET(Sheet1!$B$1,('Res load - top days'!$J8-Sheet1!$D$2)*24+'Res load - top days'!AD$4,0) -> 7120 | AE8: =OFFSET(Sheet1!$B$1,('Res load - top days'!$J8-Sheet1!$D$2)*24+'Res load - top days'!AE$4,0) -> 6812 | AF8: =OFFSET(Sheet1!$B$1,('Res load - top days'!$J8-Sheet1!$D$2)*24+'Res load - top days'!AF$4,0) -> 6537 | AG8: =OFFSET(Sheet1!$B$1,('Res load - top days'!$J8-Sheet1!$D$2)*24+'Res load - top days'!AG$4,0) -> 6279 | AH8: =OFFSET(Sheet1!$B$1,('Res load - top days'!$J8-Sheet1!$D$2)*24+'Res load - top days'!AH$4,0) -> 5826 | AI8: =OFFSET(Sheet1!$B$1,('Res load - top days'!$J8-Sheet1!$D$2)*24+'Res load - top days'!AI$4,0) -> 5425
A9: Jan | B9: 05-Jan | C9: 2841.068438 | D9: 74 | F9: Jun | G9: 6 | H9: 5 | I9: 17-Jun | J9: 2018-06-17 | K9: 1 | L9: =OFFSET(Sheet1!$B$1,('Res load - top days'!$J9-Sheet1!$D$2)*24+'Res load - top days'!L$4,0) -> 4800 | M9: =OFFSET(Sheet1!$B$1,('Res load - top days'!$J9-Sheet1!$D$2)*24+'Res load - top days'!M$4,0) -> 4508 | N9: =OFFSET(Sheet1!$B$1,('Res load - top days'!$J9-Sheet1!$D$2)*24+'Res load - top days'!N$4,0) -> 4289 | O9: =OFFSET(Sheet1!$B$1,('Res load - top days'!$J9-Sheet1!$D$2)*24+'Res load - top days'!O$4,0) -> 4129 | P9: =OFFSET(Sheet1!$B$1,('Res load - top days'!$J9-Sheet1!$D$2)*24+'Res load - top days'!P$4,0) -> 3990 | Q9: =OFFSET(Sheet1!$B$1,('Res load - top days'!$J9-Sheet1!$D$2)*24+'Res load - top days'!Q$4,0) -> 3921 | R9: =OFFSET(Sheet1!$B$1,('Res load - top days'!$J9-Sheet1!$D$2)*24+'Res load - top days'!R$4,0) -> 3938 | S9: =OFFSET(Sheet1!$B$1,('Res load - top days'!$J9-Sheet1!$D$2)*24+'Res load - top days'!S$4,0) -> 4248 | T9: =OFFSET(Sheet1!$B$1,('Res load - top days'!$J9-Sheet1!$D$2)*24+'Res load - top days'!T$4,0) -> 4794 | U9: =OFFSET(Sheet1!$B$1,('Res load - top days'!$J9-Sheet1!$D$2)*24+'Res load - top days'!U$4,0) -> 5331 | V9: =OFFSET(Sheet1!$B$1,('Res load - top days'!$J9-Sheet1!$D$2)*24+'Res load - top days'!V$4,0) -> 5743 | W9: =OFFSET(Sheet1!$B$1,('Res load - top days'!$J9-Sheet1!$D$2)*24+'Res load - top days'!W$4,0) -> 6060 | X9: =OFFSET(Sheet1!$B$1,('Res load - top days'!$J9-Sheet1!$D$2)*24+'Res load - top days'!X$4,0) -> 6297 | Y9: =OFFSET(Sheet1!$B$1,('Res load - top days'!$J9-Sheet1!$D$2)*24+'Res load - top days'!Y$4,0) -> 6504 | Z9: =OFFSET(Sheet1!$B$1,('Res load - top days'!$J9-Sheet1!$D$2)*24+'Res load - top days'!Z$4,0) -> 6668 | AA9: =OFFSET(Sheet1!$B$1,('Res load - top days'!$J9-Sheet1!$D$2)*24+'Res load - top days'!AA$4,0) -> 6761 | AB9: =OFFSET(Sheet1!$B$1,('Res load - top days'!$J9-Sheet1!$D$2)*24+'Res load - top days'!AB$4,0) -> 6851 | AC9: =OFFSET(Sheet1!$B$1,('Res load - top days'!$J9-Sheet1!$D$2)*24+'Res load - top days'!AC$4,0) -> 6839 | AD9: =OFFSET(Sheet1!$B$1,('Res load - top days'!$J9-Sheet1!$D$2)*24+'Res load - top days'!AD$4,0) -> 6701 | AE9: =OFFSET(Sheet1!$B$1,('Res load - top days'!$J9-Sheet1!$D$2)*24+'Res load - top days'!AE$4,0) -> 6474 | AF9: =OFFSET(Sheet1!$B$1,('Res load - top days'!$J9-Sheet1!$D$2)*24+'Res load - top days'!AF$4,0) -> 6270 | AG9: =OFFSET(Sheet1!$B$1,('Res load - top days'!$J9-Sheet1!$D$2)*24+'Res load - top days'!AG$4,0) -> 6071 | AH9: =OFFSET(Sheet1!$B$1,('Res load - top days'!$J9-Sheet1!$D$2)*24+'Res load - top days'!AH$4,0) -> 5685 | AI9: =OFFSET(Sheet1!$B$1,('Res load - top days'!$J9-Sheet1!$D$2)*24+'Res load - top days'!AI$4,0) -> 5259
A10: Jan | B10: 06-Jan | C10: 2892.799201 | D10: 69 | F10: Jul | G10: 7 | H10: 6 | I10: 05-Jul | J10: 2018-07-05 | K10: 5 | L10: =OFFSET(Sheet1!$B$1,('Res load - top days'!$J10-Sheet1!$D$2)*24+'Res load - top days'!L$4,0) -> 4759 | M10: =OFFSET(Sheet1!$B$1,('Res load - top days'!$J10-Sheet1!$D$2)*24+'Res load - top days'!M$4,0) -> 4446 | N10: =OFFSET(Sheet1!$B$1,('Res load - top days'!$J10-Sheet1!$D$2)*24+'Res load - top days'!N$4,0) -> 4246 | O10: =OFFSET(Sheet1!$B$1,('Res load - top days'!$J10-Sheet1!$D$2)*24+'Res load - top days'!O$4,0) -> 4105 | P10: =OFFSET(Sheet1!$B$1,('Res load - top days'!$J10-Sheet1!$D$2)*24+'Res load - top days'!P$4,0) -> 4059 | Q10: =OFFSET(Sheet1!$B$1,('Res load - top days'!$J10-Sheet1!$D$2)*24+'Res load - top days'!Q$4,0) -> 4172 | R10: =OFFSET(Sheet1!$B$1,('Res load - top days'!$J10-Sheet1!$D$2)*24+'Res load - top days'!R$4,0) -> 4374 | S10: =OFFSET(Sheet1!$B$1,('Res load - top days'!$J10-Sheet1!$D$2)*24+'Res load - top days'!S$4,0) -> 4839 | T10: =OFFSET(Sheet1!$B$1,('Res load - top days'!$J10-Sheet1!$D$2)*24+'Res load - top days'!T$4,0) -> 5323 | U10: =OFFSET(Sheet1!$B$1,('Res load - top days'!$J10-Sheet1!$D$2)*24+'Res load - top days'!U$4,0) -> 5875 | V10: =OFFSET(Sheet1!$B$1,('Res load - top days'!$J10-Sheet1!$D$2)*24+'Res load - top days'!V$4,0) -> 6355 | W10: =OFFSET(Sheet1!$B$1,('Res load - top days'!$J10-Sheet1!$D$2)*24+'Res load - top days'!W$4,0) -> 6713 | X10: =OFFSET(Sheet1!$B$1,('Res load - top days'!$J10-Sheet1!$D$2)*24+'Res load - top days'!X$4,0) -> 7009 | Y10: =OFFSET(Sheet1!$B$1,('Res load - top days'!$J10-Sheet1!$D$2)*24+'Res load - top days'!Y$4,0) -> 7211 | Z10: =OFFSET(Sheet1!$B$1,('Res load - top days'!$J10-Sheet1!$D$2)*24+'Res load - top days'!Z$4,0) -> 7325 | AA10: =OFFSET(Sheet1!$B$1,('Res load - top days'!$J10-Sheet1!$D$2)*24+'Res load - top days'!AA$4,0) -> 7427 | AB10: =OFFSET(Sheet1!$B$1,('Res load - top days'!$J10-Sheet1!$D$2)*24+'Res load - top days'!AB$4,0) -> 7470 | AC10: =OFFSET(Sheet1!$B$1,('Res load - top days'!$J10-Sheet1!$D$2)*24+'Res load - top days'!AC$4,0) -> 7184 | AD10: =OFFSET(Sheet1!$B$1,('Res load - top days'!$J10-Sheet1!$D$2)*24+'Res load - top days'!AD$4,0) -> 6750 | AE10: =OFFSET(Sheet1!$B$1,('Res load - top days'!$J10-Sheet1!$D$2)*24+'Res load - top days'!AE$4,0) -> 6428 | AF10: =OFFSET(Sheet1!$B$1,('Res load - top days'!$J10-Sheet1!$D$2)*24+'Res load - top days'!AF$4,0) -> 6138 | AG10: =OFFSET(Sheet1!$B$1,('Res load - top days'!$J10-Sheet1!$D$2)*24+'Res load - top days'!AG$4,0) -> 5813 | AH10: =OFFSET(Sheet1!$B$1,('Res load - top days'!$J10-Sheet1!$D$2)*24+'Res load - top days'!AH$4,0) -> 5349 | AI10: =OFFSET(Sheet1!$B$1,('Res load - top days'!$J10-Sheet1!$D$2)*24+'Res load - top days'!AI$4,0) -> 4891
A11: Jan | B11: 07-Jan | C11: 2627.398143 | D11: 96 | F11: Aug | G11: 8 | H11: 7 | I11: 26-Aug | J11: 2018-08-26 | K11: 1 | L11: =OFFSET(Sheet1!$B$1,('Res load - top days'!$J11-Sheet1!$D$2)*24+'Res load - top days'!L$4,0) -> 4390 | M11: =OFFSET(Sheet1!$B$1,('Res load - top days'!$J11-Sheet1!$D$2)*24+'Res load - top days'!M$4,0) -> 4211 | N11: =OFFSET(Sheet1!$B$1,('Res load - top days'!$J11-Sheet1!$D$2)*24+'Res load - top days'!N$4,0) -> 4057 | O11: =OFFSET(Sheet1!$B$1,('Res load - top days'!$J11-Sheet1!$D$2)*24+'Res load - top days'!O$4,0) -> 3966 | P11: =OFFSET(Sheet1!$B$1,('Res load - top days'!$J11-Sheet1!$D$2)*24+'Res load - top days'!P$4,0) -> 3931 | Q11: =OFFSET(Sheet1!$B$1,('Res load - top days'!$J11-Sheet1!$D$2)*24+'Res load - top days'!Q$4,0) -> 3942 | R11: =OFFSET(Sheet1!$B$1,('Res load - top days'!$J11-Sheet1!$D$2)*24+'Res load - top days'!R$4,0) -> 3930 | S11: =OFFSET(Sheet1!$B$1,('Res load - top days'!$J11-Sheet1!$D$2)*24+'Res load - top days'!S$4,0) -> 4026 | T11: =OFFSET(Sheet1!$B$1,('Res load - top days'!$J11-Sheet1!$D$2)*24+'Res load - top days'!T$4,0) -> 4396 | U11: =OFFSET(Sheet1!$B$1,('Res load - top days'!$J11-Sheet1!$D$2)*24+'Res load - top days'!U$4,0) -> 4932 | V11: =OFFSET(Sheet1!$B$1,('Res load - top days'!$J11-Sheet1!$D$2)*24+'Res load - top days'!V$4,0) -> 5415 | W11: =OFFSET(Sheet1!$B$1,('Res load - top days'!$J11-Sheet1!$D$2)*24+'Res load - top days'!W$4,0) -> 5852 | X11: =OFFSET(Sheet1!$B$1,('Res load - top days'!$J11-Sheet1!$D$2)*24+'Res load - top days'!X$4,0) -> 6191 | Y11: =OFFSET(Sheet1!$B$1,('Res load - top days'!$J11-Sheet1!$D$2)*24+'Res load - top days'!Y$4,0) -> 6486 | Z11: =OFFSET(Sheet1!$B$1,('Res load - top days'!$J11-Sheet1!$D$2)*24+'Res load - top days'!Z$4,0) -> 6652 | AA11: =OFFSET(Sheet1!$B$1,('Res load - top days'!$J11-Sheet1!$D$2)*24+'Res load - top days'!AA$4,0) -> 6757 | AB11: =OFFSET(Sheet1!$B$1,('Res load - top days'!$J11-Sheet1!$D$2)*24+'Res load - top days'!AB$4,0) -> 6806 | AC11: =OFFSET(Sheet1!$B$1,('Res load - top days'!$J11-Sheet1!$D$2)*24+'Res load - top days'!AC$4,0) -> 6761 | AD11: =OFFSET(Sheet1!$B$1,('Res load - top days'!$J11-Sheet1!$D$2)*24+'Res load - top days'!AD$4,0) -> 6553 | AE11: =OFFSET(Sheet1!$B$1,('Res load - top days'!$J11-Sheet1!$D$2)*24+'Res load - top days'!AE$4,0) -> 6293 | AF11: =OFFSET(Sheet1!$B$1,('Res load - top days'!$J11-Sheet1!$D$2)*24+'Res load - top days'!AF$4,0) -> 6128 | AG11: =OFFSET(Sheet1!$B$1,('Res load - top days'!$J11-Sheet1!$D$2)*24+'Res load - top days'!AG$4,0) -> 5753 | AH11: =OFFSET(Sheet1!$B$1,('Res load - top days'!$J11-Sheet1!$D$2)*24+'Res load - top days'!AH$4,0) -> 5270 | AI11: =OFFSET(Sheet1!$B$1,('Res load - top days'!$J11-Sheet1!$D$2)*24+'Res load - top days'!AI$4,0) -> 4868
A12: Jan | B12: 08-Jan | C12: 2335.303461 | D12: 133 | F12: Sep | G12: 9 | H12: 8 | I12: 30-Jun | J12: 2018-06-30 | K12: 7 | L12: =OFFSET(Sheet1!$B$1,('Res load - top days'!$J12-Sheet1!$D$2)*24+'Res load - top days'!L$4,0) -> 4909 | M12: =OFFSET(Sheet1!$B$1,('Res load - top days'!$J12-Sheet1!$D$2)*24+'Res load - top days'!M$4,0) -> 4615 | N12: =OFFSET(Sheet1!$B$1,('Res load - top days'!$J12-Sheet1!$D$2)*24+'Res load - top days'!N$4,0) -> 4352 | O12: =OFFSET(Sheet1!$B$1,('Res load - top days'!$J12-Sheet1!$D$2)*24+'Res load - top days'!O$4,0) -> 4219 | P12: =OFFSET(Sheet1!$B$1,('Res load - top days'!$J12-Sheet1!$D$2)*24+'Res load - top days'!P$4,0) -> 4139 | Q12: =OFFSET(Sheet1!$B$1,('Res load - top days'!$J12-Sheet1!$D$2)*24+'Res load - top days'!Q$4,0) -> 4135 | R12: =OFFSET(Sheet1!$B$1,('Res load - top days'!$J12-Sheet1!$D$2)*24+'Res load - top days'!R$4,0) -> 4186 | S12: =OFFSET(Sheet1!$B$1,('Res load - top days'!$J12-Sheet1!$D$2)*24+'Res load - top days'!S$4,0) -> 4537 | T12: =OFFSET(Sheet1!$B$1,('Res load - top days'!$J12-Sheet1!$D$2)*24+'Res load - top days'!T$4,0) -> 5048 | U12: =OFFSET(Sheet1!$B$1,('Res load - top days'!$J12-Sheet1!$D$2)*24+'Res load - top days'!U$4,0) -> 5510 | V12: =OFFSET(Sheet1!$B$1,('Res load - top days'!$J12-Sheet1!$D$2)*24+'Res load - top days'!V$4,0) -> 5895 | W12: =OFFSET(Sheet1!$B$1,('Res load - top days'!$J12-Sheet1!$D$2)*24+'Res load - top days'!W$4,0) -> 6236 | X12: =OFFSET(Sheet1!$B$1,('Res load - top days'!$J12-Sheet1!$D$2)*24+'Res load - top days'!X$4,0) -> 6501 | Y12: =OFFSET(Sheet1!$B$1,('Res load - top days'!$J12-Sheet1!$D$2)*24+'Res load - top days'!Y$4,0) -> 6694 | Z12: =OFFSET(Sheet1!$B$1,('Res load - top days'!$J12-Sheet1!$D$2)*24+'Res load - top days'!Z$4,0) -> 6817 | AA12: =OFFSET(Sheet1!$B$1,('Res load - top days'!$J12-Sheet1!$D$2)*24+'Res load - top days'!AA$4,0) -> 6872 | AB12: =OFFSET(Sheet1!$B$1,('Res load - top days'!$J12-Sheet1!$D$2)*24+'Res load - top days'!AB$4,0) -> 6936 | AC12: =OFFSET(Sheet1!$B$1,('Res load - top days'!$J12-Sheet1!$D$2)*24+'Res load - top days'!AC$4,0) -> 6870 | AD12: =OFFSET(Sheet1!$B$1,('Res load - top days'!$J12-Sheet1!$D$2)*24+'Res load - top days'!AD$4,0) -> 6688 | AE12: =OFFSET(Sheet1!$B$1,('Res load - top days'!$J12-Sheet1!$D$2)*24+'Res load - top days'!AE$4,0) -> 6413 | AF12: =OFFSET(Sheet1!$B$1,('Res load - top days'!$J12-Sheet1!$D$2)*24+'Res load - top days'!AF$4,0) -> 6152 | AG12: =OFFSET(Sheet1!$B$1,('Res load - top days'!$J12-Sheet1!$D$2)*24+'Res load - top days'!AG$4,0) -> 5903 | AH12: =OFFSET(Sheet1!$B$1,('Res load - top days'!$J12-Sheet1!$D$2)*24+'Res load - top days'!AH$4,0) -> 5514 | AI12: =OFFSET(Sheet1!$B$1,('Res load - top days'!$J12-Sheet1!$D$2)*24+'Res load - top days'!AI$4,0) -> 5099
A13: Jan | B13: 09-Jan | C13: 2260.561188 | D13: 152 | F13: Oct | G13: 10 | H13: 9 | I13: 28-Aug | J13: 2018-08-28 | K13: 3 | L13: =OFFSET(Sheet1!$B$1,('Res load - top days'!$J13-Sheet1!$D$2)*24+'Res load - top days'!L$4,0) -> 4724 | M13: =OFFSET(Sheet1!$B$1,('Res load - top days'!$J13-Sheet1!$D$2)*24+'Res load - top days'!M$4,0) -> 4489 | N13: =OFFSET(Sheet1!$B$1,('Res load - top days'!$J13-Sheet1!$D$2)*24+'Res load - top days'!N$4,0) -> 4301 | O13: =OFFSET(Sheet1!$B$1,('Res load - top days'!$J13-Sheet1!$D$2)*24+'Res load - top days'!O$4,0) -> 4180 | P13: =OFFSET(Sheet1!$B$1,('Res load - top days'!$J13-Sheet1!$D$2)*24+'Res load - top days'!P$4,0) -> 4175 | Q13: =OFFSET(Sheet1!$B$1,('Res load - top days'!$J13-Sheet1!$D$2)*24+'Res load - top days'!Q$4,0) -> 4336 | R13: =OFFSET(Sheet1!$B$1,('Res load - top days'!$J13-Sheet1!$D$2)*24+'Res load - top days'!R$4,0) -> 4638 | S13: =OFFSET(Sheet1!$B$1,('Res load - top days'!$J13-Sheet1!$D$2)*24+'Res load - top days'!S$4,0) -> 4897 | T13: =OFFSET(Sheet1!$B$1,('Res load - top days'!$J13-Sheet1!$D$2)*24+'Res load - top days'!T$4,0) -> 5220 | U13: =OFFSET(Sheet1!$B$1,('Res load - top days'!$J13-Sheet1!$D$2)*24+'Res load - top days'!U$4,0) -> 5616 | V13: =OFFSET(Sheet1!$B$1,('Res load - top days'!$J13-Sheet1!$D$2)*24+'Res load - top days'!V$4,0) -> 6045 | W13: =OFFSET(Sheet1!$B$1,('Res load - top days'!$J13-Sheet1!$D$2)*24+'Res load - top days'!W$4,0) -> 6406 | X13: =OFFSET(Sheet1!$B$1,('Res load - top days'!$J13-Sheet1!$D$2)*24+'Res load - top days'!X$4,0) -> 6760 | Y13: =OFFSET(Sheet1!$B$1,('Res load - top days'!$J13-Sheet1!$D$2)*24+'Res load - top days'!Y$4,0) -> 7008 | Z13: =OFFSET(Sheet1!$B$1,('Res load - top days'!$J13-Sheet1!$D$2)*24+'Res load - top days'!Z$4,0) -> 7202 | AA13: =OFFSET(Sheet1!$B$1,('Res load - top days'!$J13-Sheet1!$D$2)*24+'Res load - top days'!AA$4,0) -> 7334 | AB13: =OFFSET(Sheet1!$B$1,('Res load - top days'!$J13-Sheet1!$D$2)*24+'Res load - top days'!AB$4,0) -> 7380 | AC13: =OFFSET(Sheet1!$B$1,('Res load - top days'!$J13-Sheet1!$D$2)*24+'Res load - top days'!AC$4,0) -> 7296 | AD13: =OFFSET(Sheet1!$B$1,('Res load - top days'!$J13-Sheet1!$D$2)*24+'Res load - top days'!AD$4,0) -> 7038 | AE13: =OFFSET(Sheet1!$B$1,('Res load - top days'!$J13-Sheet1!$D$2)*24+'Res load - top days'!AE$4,0) -> 6745 | AF13: =OFFSET(Sheet1!$B$1,('Res load - top days'!$J13-Sheet1!$D$2)*24+'Res load - top days'!AF$4,0) -> 6547 | AG13: =OFFSET(Sheet1!$B$1,('Res load - top days'!$J13-Sheet1!$D$2)*24+'Res load - top days'!AG$4,0) -> 6132 | AH13: =OFFSET(Sheet1!$B$1,('Res load - top days'!$J13-Sheet1!$D$2)*24+'Res load - top days'!AH$4,0) -> 5624 | AI13: =OFFSET(Sheet1!$B$1,('Res load - top days'!$J13-Sheet1!$D$2)*24+'Res load - top days'!AI$4,0) -> 5182
A14: Jan | B14: 10-Jan | C14: 1725.060576 | D14: 269 | F14: Nov | G14: 11 | H14: 10 | I14: 05-Aug | J14: 2018-08-05 | K14: 1 | L14: =OFFSET(Sheet1!$B$1,('Res load - top days'!$J14-Sheet1!$D$2)*24+'Res load - top days'!L$4,0) -> 4315 | M14: =OFFSET(Sheet1!$B$1,('Res load - top days'!$J14-Sheet1!$D$2)*24+'Res load - top days'!M$4,0) -> 4068 | N14: =OFFSET(Sheet1!$B$1,('Res load - top days'!$J14-Sheet1!$D$2)*24+'Res load - top days'!N$4,0) -> 3863 | O14: =OFFSET(Sheet1!$B$1,('Res load - top days'!$J14-Sheet1!$D$2)*24+'Res load - top days'!O$4,0) -> 3736 | P14: =OFFSET(Sheet1!$B$1,('Res load - top days'!$J14-Sheet1!$D$2)*24+'Res load - top days'!P$4,0) -> 3672 | Q14: =OFFSET(Sheet1!$B$1,('Res load - top days'!$J14-Sheet1!$D$2)*24+'Res load - top days'!Q$4,0) -> 3640 | R14: =OFFSET(Sheet1!$B$1,('Res load - top days'!$J14-Sheet1!$D$2)*24+'Res load - top days'!R$4,0) -> 3628 | S14: =OFFSET(Sheet1!$B$1,('Res load - top days'!$J14-Sheet1!$D$2)*24+'Res load - top days'!S$4,0) -> 3798 | T14: =OFFSET(Sheet1!$B$1,('Res load - top days'!$J14-Sheet1!$D$2)*24+'Res load - top days'!T$4,0) -> 4256 | U14: =OFFSET(Sheet1!$B$1,('Res load - top days'!$J14-Sheet1!$D$2)*24+'Res load - top days'!U$4,0) -> 4805 | V14: =OFFSET(Sheet1!$B$1,('Res load - top days'!$J14-Sheet1!$D$2)*24+'Res load - top days'!V$4,0) -> 5297 | W14: =OFFSET(Sheet1!$B$1,('Res load - top days'!$J14-Sheet1!$D$2)*24+'Res load - top days'!W$4,0) -> 5756 | X14: =OFFSET(Sheet1!$B$1,('Res load - top days'!$J14-Sheet1!$D$2)*24+'Res load - top days'!X$4,0) -> 6095 | Y14: =OFFSET(Sheet1!$B$1,('Res load - top days'!$J14-Sheet1!$D$2)*24+'Res load - top days'!Y$4,0) -> 6362 | Z14: =OFFSET(Sheet1!$B$1,('Res load - top days'!$J14-Sheet1!$D$2)*24+'Res load - top days'!Z$4,0) -> 6499 | AA14: =OFFSET(Sheet1!$B$1,('Res load - top days'!$J14-Sheet1!$D$2)*24+'Res load - top days'!AA$4,0) -> 6632 | AB14: =OFFSET(Sheet1!$B$1,('Res load - top days'!$J14-Sheet1!$D$2)*24+'Res load - top days'!AB$4,0) -> 6733 | AC14: =OFFSET(Sheet1!$B$1,('Res load - top days'!$J14-Sheet1!$D$2)*24+'Res load - top days'!AC$4,0) -> 6755 | AD14: =OFFSET(Sheet1!$B$1,('Res load - top days'!$J14-Sheet1!$D$2)*24+'Res load - top days'!AD$4,0) -> 6596 | AE14: =OFFSET(Sheet1!$B$1,('Res load - top days'!$J14-Sheet1!$D$2)*24+'Res load - top days'!AE$4,0) -> 6321 | AF14: =OFFSET(Sheet1!$B$1,('Res load - top days'!$J14-Sheet1!$D$2)*24+'Res load - top days'!AF$4,0) -> 6144 | AG14: =OFFSET(Sheet1!$B$1,('Res load - top days'!$J14-Sheet1!$D$2)*24+'Res load - top days'!AG$4,0) -> 5822 | AH14: =OFFSET(Sheet1!$B$1,('Res load - top days'!$J14-Sheet1!$D$2)*24+'Res load - top days'!AH$4,0) -> 5395 | AI14: =OFFSET(Sheet1!$B$1,('Res load - top days'!$J14-Sheet1!$D$2)*24+'Res load - top days'!AI$4,0) -> 4970
A15: Jan | B15: 11-Jan | C15: 2289.627675 | D15: 145 | F15: Dec | G15: 12
A16: Jan | B16: 12-Jan | C16: 2917.471348 | D16: 65
A17: Jan | B17: 13-Jan | C17: 2768.926304 | D17: 79 | L17: =AVERAGE(L5:L14) -> 4675.9 | M17: =AVERAGE(M5:M14) -> 4406.9 | N17: 4198.2 | O17: 4069.1 | P17: 4024 | Q17: 4066.4 | R17: 4190 | S17: 4513.1 | T17: 4962.2 | U17: 5458.3 | V17: 5907.6 | W17: 6282.2 | X17: 6579.3 | Y17: 6817.8 | Z17: 6968.8 | AA17: 7069.5 | AB17: 7123.9 | AC17: 7060.1 | AD17: 6851.5 | AE17: 6571.4 | AF17: 6320.9 | AG17: 6013.6 | AH17: 5576.3 | AI17: 5156.1
A18: Jan | B18: 14-Jan | C18: 2766.793234 | D18: 81 | L18: =MAX(L5:L14) -> 4909 | M18: =MAX(M5:M14) -> 4643 | N18: 4407 | O18: 4295 | P18: 4273 | Q18: 4386 | R18: 4638 | S18: 5023 | T18: 5466 | U18: 5901 | V18: 6355 | W18: 6713 | X18: 7009 | Y18: 7211 | Z18: 7325 | AA18: 7427 | AB18: 7470 | AC18: 7399 | AD18: 7258 | AE18: 6959 | AF18: 6656 | AG18: 6330 | AH18: 5857 | AI18: 5425
A19: Jan | B19: 15-Jan | C19: 3153.240432 | D19: 33 | L19: =MIN(L5:L14) -> 4315 | M19: =MIN(M5:M14) -> 4068 | N19: 3863 | O19: 3736 | P19: 3672 | Q19: 3640 | R19: 3628 | S19: 3798 | T19: 4256 | U19: 4805 | V19: 5297 | W19: 5756 | X19: 6095 | Y19: 6362 | Z19: 6499 | AA19: 6632 | AB19: 6733 | AC19: 6755 | AD19: 6553 | AE19: 6293 | AF19: 6040 | AG19: 5726 | AH19: 5270 | AI19: 4868
A20: Jan | B20: 16-Jan | C20: 3274.756852 | D20: 26
A21: Jan | B21: 17-Jan | C21: 3131.779469 | D21: 34
A22: Jan | B22: 18-Jan | C22: 2727.101003 | D22: 85
A23: Jan | B23: 19-Jan | C23: 2301.026915 | D23: 140
A24: Jan | B24: 20-Jan | C24: 1917.718881 | D24: 225
A25: Jan | B25: 21-Jan | C25: 1596.105053 | D25: 294
A26: Jan | B26: 22-Jan | C26: 1934.925727 | D26: 220
A27: Jan | B27: 23-Jan | C27: 2278.194462 | D27: 147
A28: Jan | B28: 24-Jan | C28: 2213.527031 | D28: 162
A29: Jan | B29: 25-Jan | C29: 2157.899067 | D29: 172
A30: Jan | B30: 26-Jan | C30: 1814.532654 | D30: 247
A31: Jan | B31: 27-Jan | C31: 1645.007322 | D31: 284
A32: Jan | B32: 28-Jan | C32: 1884.417397 | D32: 236
A33: Jan | B33: 29-Jan | C33: 2396.407397 | D33: 125
A34: Jan | B34: 30-Jan | C34: 2465.228941 | D34: 112
A35: Jan | B35: 31-Jan | C35: 2035.321853 | D35: 193
A36: Feb | B36: 01-Feb | C36: 2472.466175 | D36: 111
A37: Feb | B37: 02-Feb | C37: 2679.139018 | D37: 90
A38: Feb | B38: 03-Feb | C38: 2251.010797 | D38: 154
A39: Feb | B39: 04-Feb | C39: 2645.433914 | D39: 93
A40: Feb | B40: 05-Feb | C40: 2810.265597 | D40: 76
A41: Feb | B41: 06-Feb | C41: 2528.058896 | D41: 104
A42: Feb | B42: 07-Feb | C42: 2517.423267 | D42: 106
A43: Feb | B43: 08-Feb | C43: 2379.115952 | D43: 128
A44: Feb | B44: 09-Feb | C44: 1912.060133 | D44: 226
A45: Feb | B45: 10-Feb | C45: 2459.519299 | D45: 116
A46: Feb | B46: 11-Feb | C46: 2601.974202 | D46: 101
A47: Feb | B47: 12-Feb | C47: 2575.936349 | D47: 102
A48: Feb | B48: 13-Feb | C48: 2280.646586 | D48: 146
A49: Feb | B49: 14-Feb | C49: 1679.661957 | D49: 278
A50: Feb | B50: 15-Feb | C50: 1437.58045 | D50: 322
A51: Feb | B51: 16-Feb | C51: 1957.108783 | D51: 217
A52: Feb | B52: 17-Feb | C52: 2053.512311 | D52: 190
A53: Feb | B53: 18-Feb | C53: 1964.364778 | D53: 213
A54: Feb | B54: 19-Feb | C54: 1600.624973 | D54: 292
A55: Feb | B55: 20-Feb | C55: 1749.638798 | D55: 261
A56: Feb | B56: 21-Feb | C56: 2380.818807 | D56: 127
A57: Feb | B57: 22-Feb | C57: 1980.396099 | D57: 207
A58: Feb | B58: 23-Feb | C58: 1718.310772 | D58: 271
A59: Feb | B59: 24-Feb | C59: 1752.368502 | D59: 259
A60: Feb | B60: 25-Feb | C60: 1756.943728 | D60: 258
A61: Feb | B61: 26-Feb | C61: 1900.298753 | D61: 232
A62: Feb | B62: 27-Feb | C62: 1664.524721 | D62: 280
A63: Feb | B63: 28-Feb | C63: 1461.199588 | D63: 319
A64: Mar | B64: 01-Mar | C64: 1587.689493 | D64: 296
A65: Mar | B65: 02-Mar | C65: 1743.292284 | D65: 264
A66: Mar | B66: 03-Mar | C66: 1639.442564 | D66: 285
A67: Mar | B67: 04-Mar | C67: 1539.621669 | D67: 307
A68: Mar | B68: 05-Mar | C68: 1688.722583 | D68: 277
A69: Mar | B69: 06-Mar | C69: 2026.689169 | D69: =RANK(C69,$C$5:$C$369) -> 197
A70: Mar | B70: 07-Mar | C70: 2022.136722 | D70: 198
A71: Mar | B71: 08-Mar | C71: 1966.375523 | D71: 212
A72: Mar | B72: 09-Mar | C72: 1957.437168 | D72: 216
A73: Mar | B73: 10-Mar | C73: 1582.641082 | D73: 297
A74: Mar | B74: 11-Mar | C74: 2028.616155 | D74: 196
A75: Mar | B75: 12-Mar | C75: 1879.050205 | D75: 237
A76: Mar | B76: 13-Mar | C76: 1872.748059 | D76: 241
A77: Mar | B77: 14-Mar | C77: 1975.370136 | D77: 208
A78: Mar | B78: 15-Mar | C78: 1565.5665 | D78: 302
A79: Mar | B79: 16-Mar | C79: 1566.280227 | D79: 301
A80: Mar | B80: 17-Mar | C80: 1570.364308 | D80: 300
A81: Mar | B81: 18-Mar | C81: 1724.502171 | D81: 270
A82: Mar | B82: 19-Mar | C82: 1726.956736 | D82: 268
A83: Mar | B83: 20-Mar | C83: 1758.96737 | D83: 255
A84: Mar | B84: 21-Mar | C84: 1744.576832 | D84: 263
A85: Mar | B85: 22-Mar | C85: 1798.273609 | D85: 252
A86: Mar | B86: 23-Mar | C86: 1611.456461 | D86: 287
A87: Mar | B87: 24-Mar | C87: 1677.020306 | D87: 279
A88: Mar | B88: 25-Mar | C88: 1718.1818 | D88: 272
A89: Mar | B89: 26-Mar | C89: 1699.57331 | D89: 275
A90: Mar | B90: 27-Mar | C90: 1577.103498 | D90: 299
A91: Mar | B91: 28-Mar | C91: 1525.169581 | D91: 309
A92: Mar | B92: 29-Mar | C92: 1699.652085 | D92: 274
A93: Mar | B93: 30-Mar | C93: 1517.323447 | D93: 310
A94: Mar | B94: 31-Mar | C94: 1646.347886 | D94: 283
A95: Apr | B95: 01-Apr | C95: 2145.152684 | D95: 176
A96: Apr | B96: 02-Apr | C96: 2033.790584 | D96: 195
A97: Apr | B97: 03-Apr | C97: 1730.833994 | D97: 266
A98: Apr | B98: 04-Apr | C98: 1899.696591 | D98: 233
A99: Apr | B99: 05-Apr | C99: 1896.413935 | D99: 234
A100: Apr | B100: 06-Apr | C100: 1745.997533 | D100: 262
A101: Apr | B101: 07-Apr | C101: 1905.471908 | D101: 229
A102: Apr | B102: 08-Apr | C102: 1910.115879 | D102: 227
A103: Apr | B103: 09-Apr | C103: 1729.382838 | D103: 267
A104: Apr | B104: 10-Apr | C104: 1602.292022 | D104: 291
A105: Apr | B105: 11-Apr | C105: 1376.055467 | D105: 328
A106: Apr | B106: 12-Apr | C106: 1424.370949 | D106: 325
A107: Apr | B107: 13-Apr | C107: 1290.983987 | D107: 342
A108: Apr | B108: 14-Apr | C108: 1299.84558 | D108: 340
A109: Apr | B109: 15-Apr | C109: 2012.885018 | D109: 199
A110: Apr | B110: 16-Apr | C110: 1955.593579 | D110: 218
A111: Apr | B111: 17-Apr | C111: 1751.046116 | D111: 260
A112: Apr | B112: 18-Apr | C112: 1426.708436 | D112: 324
A113: Apr | B113: 19-Apr | C113: 1592.012518 | D113: 295
A114: Apr | B114: 20-Apr | C114: 1564.356566 | D114: 303
A115: Apr | B115: 21-Apr | C115: 1244.829747 | D115: 350
A116: Apr | B116: 22-Apr | C116: 1384.282063 | D116: 327
A117: Apr | B117: 23-Apr | C117: 1294.214308 | D117: 341
A118: Apr | B118: 24-Apr | C118: 1195.285433 | D118: 359
A119: Apr | B119: 25-Apr | C119: 1212.063759 | D119: 355
A120: Apr | B120: 26-Apr | C120: 1194.977259 | D120: 360
A121: Apr | B121: 27-Apr | C121: 1125.607866 | D121: 364
A122: Apr | B122: 28-Apr | C122: 1114.89103 | D122: 365
A123: Apr | B123: 29-Apr | C123: 1208.732436 | D123: 357
A124: Apr | B124: 30-Apr | C124: 1356.262989 | D124: 332
A125: May | B125: 01-May | C125: 1466.547689 | D125: 317
A126: May | B126: 02-May | C126: 1811.657683 | D126: 248
A127: May | B127: 03-May | C127: 1311.499124 | D127: 338
A128: May | B128: 04-May | C128: 1278.234056 | D128: 345
A129: May | B129: 05-May | C129: 1559.474429 | D129: 304
A130: May | B130: 06-May | C130: 1821.269336 | D130: 245
A131: May | B131: 07-May | C131: 1703.499606 | D131: 273
A132: May | B132: 08-May | C132: 1656.988837 | D132: 282
A133: May | B133: 09-May | C133: 2048.349392 | D133: =RANK(C133,$C$5:$C$369) -> 192
A134: May | B134: 10-May | C134: 2196.733269 | D134: 163
A135: May | B135: 11-May | C135: 2184.994578 | D135: 166
A136: May | B136: 12-May | C136: 2460.146085 | D136: 114
A137: May | B137: 13-May | C137: 2749.324794 | D137: 84
A138: May | B138: 14-May | C138: 2672.839362 | D138: 91
A139: May | B139: 15-May | C139: 2113.07892 | D139: 183
A140: May | B140: 16-May | C140: 2309.07442 | D140: 138
A141: May | B141: 17-May | C141: 1861.311876 | D141: 243
A142: May | B142: 18-May | C142: 1361.824134 | D142: 330
A143: May | B143: 19-May | C143: 1783.558658 | D143: 253
A144: May | B144: 20-May | C144: 2049.984271 | D144: 191
A145: May | B145: 21-May | C145: 1972.9967 | D145: 209
A146: May | B146: 22-May | C146: 2459.768704 | D146: 115
A147: May | B147: 23-May | C147: 2527.526202 | D147: 105
A148: May | B148: 24-May | C148: 2636.922027 | D148: 95
A149: May | B149: 25-May | C149: 2298.325106 | D149: 141
A150: May | B150: 26-May | C150: 2963.017758 | D150: 58
A151: May | B151: 27-May | C151: 2993.797604 | D151: 51
A152: May | B152: 28-May | C152: 3287.557308 | D152: 20
A153: May | B153: 29-May | C153: 2376.629207 | D153: 129
A154: May | B154: 30-May | C154: 2864.865361 | D154: 73
A155: May | B155: 31-May | C155: 2572.716425 | D155: 103
A156: Jun | B156: 01-Jun | C156: 3091.523517 | D156: 39
A157: Jun | B157: 02-Jun | C157: 2407.948329 | D157: 122
A158: Jun | B158: 03-Jun | C158: 2366.012098 | D158: 130
A159: Jun | B159: 04-Jun | C159: 1876.125144 | D159: 240
A160: Jun | B160: 05-Jun | C160: 2684.620514 | D160: 89
A161: Jun | B161: 06-Jun | C161: 2890.77062 | D161: 70
A162: Jun | B162: 07-Jun | C162: 3116.8166 | D162: 35
A163: Jun | B163: 08-Jun | C163: 2981.024542 | D163: 56
A164: Jun | B164: 09-Jun | C164: 2382.589024 | D164: 126
A165: Jun | B165: 10-Jun | C165: 3279.172985 | D165: 23
A166: Jun | B166: 11-Jun | C166: 3276.240639 | D166: 25
A167: Jun | B167: 12-Jun | C167: 3016.681082 | D167: 50
A168: Jun | B168: 13-Jun | C168: 3071.075222 | D168: 43
A169: Jun | B169: 14-Jun | C169: 2900.100387 | D169: 68
A170: Jun | B170: 15-Jun | C170: 3286.722196 | D170: 21
A171: Jun | B171: 16-Jun | C171: 3370.163187 | D171: 12
A172: Jun | B172: 17-Jun | C172: 3443.183379 | D172: 5
A173: Jun | B173: 18-Jun | C173: 3463.96227 | D173: 2
A174: Jun | B174: 19-Jun | C174: 3262.448382 | D174: 27
A175: Jun | B175: 20-Jun | C175: 2945.057302 | D175: 61
A176: Jun | B176: 21-Jun | C176: 2231.499151 | D176: 160
A177: Jun | B177: 22-Jun | C177: 1605.2843 | D177: 289
A178: Jun | B178: 23-Jun | C178: 2274.136543 | D178: 149
A179: Jun | B179: 24-Jun | C179: 2278.074663 | D179: 148
A180: Jun | B180: 25-Jun | C180: 2619.899511 | D180: 98
A181: Jun | B181: 26-Jun | C181: 1870.017817 | D181: 242
A182: Jun | B182: 27-Jun | C182: 3028.595789 | D182: 48
A183: Jun | B183: 28-Jun | C183: 3278.123151 | D183: 24
A184: Jun | B184: 29-Jun | C184: 3319.811906 | D184: 18
A185: Jun | B185: 30-Jun | C185: 3417.799838 | D185: 8
A186: Jul | B186: 01-Jul | C186: 3243.638018 | D186: 28
A187: Jul | B187: 02-Jul | C187: 3076.798175 | D187: 42
A188: Jul | B188: 03-Jul | C188: 3107.452263 | D188: 36
A189: Jul | B189: 04-Jul | C189: 3462.044826 | D189: 3
A190: Jul | B190: 05-Jul | C190: 3439.233967 | D190: 6
A191: Jul | B191: 06-Jul | C191: 2968.619555 | D191: 57
A192: Jul | B192: 07-Jul | C192: 2459.136659 | D192: 117
A193: Jul | B193: 08-Jul | C193: 3054.340637 | D193: 46
A194: Jul | B194: 09-Jul | C194: 3178.233708 | D194: 31
A195: Jul | B195: 10-Jul | C195: 3477.821692 | D195: 1
A196: Jul | B196: 11-Jul | C196: 3326.630323 | D196: 16
A197: Jul | B197: 12-Jul | C197: 3322.001122 | D197: =RANK(C197,$C$5:$C$369) -> 17
A198: Jul | B198: 13-Jul | C198: 3447.061268 | D198: 4
A199: Jul | B199: 14-Jul | C199: 3339.357383 | D199: 13
A200: Jul | B200: 15-Jul | C200: 3017.761637 | D200: 49
A201: Jul | B201: 16-Jul | C201: 3283.221638 | D201: 22
A202: Jul | B202: 17-Jul | C202: 2889.544281 | D202: 71
... 168 more rows

Sheet Sheet1
A1: TIME | B1: UE_SYSTEM_LOAD,0 | C1: RESMO-CLBR-MTR,0 | D1: Date | E1: Hour Ending | G1: UE_SYSTEM_LOAD Duration Curve | H1: Residential Load Duration Curve
A2: 2018-01-01 | B2: 5862 | C2: 2916.194648 | D2: =ROUNDDOWN(A2,0) -> 2018-01-01 | E2: =ROUND((A2-D2)*24,0)+1 -> 1 | G2: 7470 | H2: 3477.821692 | U2: 1 | V2: 2 | W2: 3 | X2: 4 | Y2: 5 | Z2: 6 | AA2: 7 | AB2: 8 | AC2: 9 | AD2: 10 | AE2: 11 | AF2: 12 | AG2: 13 | AH2: 14 | AI2: 15 | AJ2: 16 | AK2: 17 | AL2: 18 | AM2: 19 | AN2: 20 | AO2: 21 | AP2: 22 | AQ2: 23 | AR2: 24
A3: 2018-01-01T01:00:00 | B3: 5829 | C3: 2887.168509 | D3: =ROUNDDOWN(A3,0) -> 2018-01-01 | E3: =ROUND((A3-D3)*24,0)+1 -> 2 | G3: 7441 | H3: 3463.96227 | S3: 2018-01-01 | T3: 1 | U3: =OFFSET($C$1,($T3-1)*24+U$2,0) -> 2916.194648 | V3: =OFFSET($C$1,($T3-1)*24+V$2,0) -> 2887.168509 | W3: 2889.236202 | X3: 2818.354633 | Y3: 2910.574819 | Z3: 2950.983045 | AA3: 3002.790088 | AB3: 3030.36945 | AC3: 2982.992085 | AD3: 3132.266118 | AE3: 3112.279113 | AF3: 3078.346532 | AG3: 2942.889272 | AH3: 2863.216242 | AI3: 2812.148152 | AJ3: 2826.829202 | AK3: 3012.271873 | AL3: =OFFSET($C$1,($T3-1)*24+AL$2,0) -> 3279.271778 | AM3: 3397.849204 | AN3: 3374.517951 | AO3: 3362.139483 | AP3: 3192.738305 | AQ3: 3136.0373 | AR3: 2976.982688
A4: 2018-01-01T02:00:00 | B4: 5837 | C4: 2889.236202 | D4: 2018-01-01 | E4: 3 | G4: 7427 | H4: 3462.044826 | S4: 2018-01-02 | T4: 2 | U4: 2924.00821 | V4: 2917.522195 | W4: 2929.374018 | X4: 2991.075239 | Y4: 3021.165293 | Z4: 3123.221148 | AA4: 3244.156148 | AB4: 3290.008735 | AC4: 3128.301849 | AD4: 3038.204502 | AE4: 2913.636332 | AF4: 2748.103027 | AG4: 2611.20205 | AH4: 2559.340239 | AI4: 2445.936969 | AJ4: 2484.583079 | AK4: 2666.950536 | AL4: 3042.388885 | AM4: 3187.340465 | AN4: 3161.981836 | AO4: 3133.654807 | AP4: 2991.361183 | AQ4: 2792.705725 | AR4: 2682.735102
A5: 2018-01-01T03:00:00 | B5: 5873 | C5: 2818.354633 | D5: 2018-01-01 | E5: 4 | G5: 7413 | H5: 3460.196865 | S5: 2018-01-03 | T5: 3 | U5: 2573.495625 | V5: 2510.495687 | W5: 2462.097345 | X5: 2391.901512 | Y5: 2428.508187 | Z5: 2525.076875 | AA5: 2628.671284 | AB5: 2644.525493 | AC5: 2580.67895 | AD5: 2518.201747 | AE5: 2406.53747 | AF5: 2403.687328 | AG5: 2376.537326 | AH5: 2302.83375 | AI5: 2230.84895 | AJ5: 2244.349279 | AK5: 2469.413303 | AL5: 2821.399543 | AM5: 2931.239475 | AN5: 2939.682924 | AO5: 2936.178227 | AP5: 2888.540854 | AQ5: 2722.014137 | AR5: 2618.609249
A6: 2018-01-01T04:00:00 | B6: 5946 | C6: 2910.574819 | D6: 2018-01-01 | E6: 5 | G6: 7399 | H6: 3457.16922 | S6: 2018-01-04 | T6: 4 | U6: 2571.935314 | V6: 2544.597461 | W6: 2570.696329 | X6: 2589.628365 | Y6: 2684.956601 | Z6: 2835.109181 | AA6: 2958.913636 | AB6: 2952.846297 | AC6: 2834.678165 | AD6: 2718.185555 | AE6: 2556.00932 | AF6: 2412.363404 | AG6: 2390.919877 | AH6: 2333.441073 | AI6: 2322.660629 | AJ6: 2367.554531 | AK6: 2582.331572 | AL6: 2896.122275 | AM6: 2951.838397 | AN6: 2959.801249 | AO6: 2893.346392 | AP6: 2771.035861 | AQ6: 2553.934881 | AR6: 2439.518983
A7: 2018-01-01T05:00:00 | B7: 6069 | C7: 2950.983045 | D7: 2018-01-01 | E7: 6 | G7: 7399 | H7: 3447.061268 | S7: 2018-01-05 | T7: 5 | U7: 2345.726984 | V7: 2310.249121 | W7: 2301.025279 | X7: 2307.294884 | Y7: 2396.802845 | Z7: 2519.335907 | AA7: 2655.278512 | AB7: 2658.805207 | AC7: 2633.811349 | AD7: 2545.698928 | AE7: 2477.062399 | AF7: 2349.226526 | AG7: 2244.643018 | AH7: 2201.662366 | AI7: 2151.733917 | AJ7: 2215.991544 | AK7: 2424.143534 | AL7: 2685.093187 | AM7: 2780.004284 | AN7: 2806.688705 | AO7: 2841.068438 | AP7: 2799.704205 | AQ7: 2687.983952 | AR7: 2600.368311
A8: 2018-01-01T06:00:00 | B8: 6176 | C8: 3002.790088 | D8: 2018-01-01 | E8: 7 | G8: 7396 | H8: 3443.183379 | S8: 2018-01-06 | T8: 6 | U8: 2555.10408 | V8: 2508.597582 | W8: 2514.079782 | X8: 2516.15208 | Y8: 2539.268594 | Z8: 2617.494271 | AA8: 2710.783161 | AB8: 2852.469026 | AC8: 2892.799201 | AD8: 2842.242602 | AE8: 2734.998477 | AF8: 2626.195301 | AG8: 2502.581127 | AH8: 2398.409926 | AI8: 2362.394334 | AJ8: 2395.0146 | AK8: 2547.751956 | AL8: 2799.194095 | AM8: 2849.871877 | AN8: 2860.256795 | AO8: 2813.706694 | AP8: 2753.672396 | AQ8: 2603.270633 | AR8: 2494.748471
A9: 2018-01-01T07:00:00 | B9: 6219 | C9: 3030.36945 | D9: 2018-01-01 | E9: 8 | G9: 7380 | H9: 3439.233967 | S9: 2018-01-07 | T9: 7 | U9: 2399.904048 | V9: 2329.798089 | W9: 2264.757034 | X9: 2229.859913 | Y9: 2187.382096 | Z9: 2225.244646 | AA9: 2268.548891 | AB9: 2351.366291 | AC9: 2409.769619 | AD9: 2426.19753 | AE9: 2419.079177 | AF9: 2446.054387 | AG9: 2449.482187 | AH9: 2443.786633 | AI9: 2424.102687 | AJ9: 2423.516814 | AK9: 2522.75447 | AL9: 2627.398143 | AM9: 2569.978353 | AN9: 2496.195089 | AO9: 2385.165791 | AP9: 2232.616851 | AQ9: 2027.373354 | AR9: 1832.34302
A10: 2018-01-01T08:00:00 | B10: 6192 | C10: 2982.992085 | D10: 2018-01-01 | E10: 9 | G10: 7373 | H10: 3438.252279 | S10: 2018-01-08 | T10: 8 | U10: 1748.327971 | V10: 1652.986704 | W10: 1643.102508 | X10: 1623.95077 | Y10: 1700.984676 | Z10: 1819.474722 | AA10: 1958.211909 | AB10: 1966.920521 | AC10: 1955.156198 | AD10: 1907.279251 | AE10: 1896.231096 | AF10: 1876.014931 | AG10: 1862.978357 | AH10: 1876.083857 | AI10: 1876.292893 | AJ10: 1892.187056 | AK10: 2037.840866 | AL10: 2258.540825 | AM10: 2310.56221 | AN10: 2335.303461 | AO10: 2311.388021 | AP10: 2197.290611 | AQ10: 2012.258352 | AR10: 1886.78254
A11: 2018-01-01T09:00:00 | B11: 6155 | C11: 3132.266118 | D11: 2018-01-01 | E11: 10 | G11: 7367 | H11: 3437.072561 | S11: 2018-01-09 | T11: 9 | U11: 1782.919668 | V11: 1757.391096 | W11: 1698.667325 | X11: 1721.844286 | Y11: 1782.972128 | Z11: 1912.110377 | AA11: 2062.71152 | AB11: 2049.022482 | AC11: 1981.663102 | AD11: 1958.455066 | AE11: 1961.913075 | AF11: 1942.938609 | AG11: 1913.950884 | AH11: 1897.38044 | AI11: 1893.553542 | AJ11: 1923.124052 | AK11: 2039.975931 | AL11: 2217.603126 | AM11: 2260.561188 | AN11: 2217.154582 | AO11: 2163.467517 | AP11: 1975.579455 | AQ11: 1745.681646 | AR11: 1622.897217
A12: 2018-01-01T10:00:00 | B12: 6084 | C12: 3112.279113 | D12: 2018-01-01 | E12: 11 | G12: 7346 | H12: 3425.959657 | S12: 2018-01-10 | T12: 10 | U12: 1540.403257 | V12: 1481.490845 | W12: 1468.265142 | X12: 1445.87155 | Y12: 1478.196751 | Z12: 1539.161921 | AA12: 1706.025984 | AB12: 1725.060576 | AC12: 1678.385732 | AD12: 1557.970189 | AE12: 1505.297333 | AF12: 1425.330972 | AG12: 1400.802145 | AH12: 1356.134952 | AI12: 1360.595959 | AJ12: 1371.485356 | AK12: 1445.378821 | AL12: 1623.582605 | AM12: 1690.906332 | AN12: 1618.436759 | AO12: 1609.42993 | AP12: 1564.056239 | AQ12: 1414.701455 | AR12: 1240.206934
A13: 2018-01-01T11:00:00 | B13: 5992 | C13: 3078.346532 | D13: 2018-01-01 | E13: 12 | G13: 7334 | H13: 3417.799838 | S13: 2018-01-11 | T13: 11 | U13: 1063.039915 | V13: 978.2951721 | W13: 948.6626148 | X13: 982.24835 | Y13: 1026.624357 | Z13: 1070.455518 | AA13: 1239.289915 | AB13: 1373.193725 | AC13: 1291.769138 | AD13: 1229.744447 | AE13: 1185.785429 | AF13: 1171.166705 | AG13: 1161.613124 | AH13: 1296.881123 | AI13: 1362.531482 | AJ13: 1430.360066 | AK13: 1632.908292 | AL13: 1973.447659 | AM13: 2152.803419 | AN13: 2247.504734 | AO13: 2289.627675 | AP13: 2246.545693 | AQ13: 2137.017444 | AR13: 2082.474502
A14: 2018-01-01T12:00:00 | B14: 5857 | C14: 2942.889272 | D14: 2018-01-01 | E14: 13 | G14: 7332 | H14: 3417.375049 | S14: 2018-01-12 | T14: 12 | U14: 2017.344828 | V14: 2062.723515 | W14: 2113.369188 | X14: 2172.260446 | Y14: 2284.434886 | Z14: 2461.337868 | AA14: 2621.966277 | AB14: 2675.202809 | AC14: 2678.28936 | AD14: 2614.961572 | AE14: 2604.077045 | AF14: 2593.855392 | AG14: 2549.600005 | AH14: 2457.869656 | AI14: 2461.372286 | AJ14: 2472.831347 | AK14: 2611.291645 | AL14: 2842.928002 | AM14: 2917.471348 | AN14: 2879.331497 | AO14: 2851.09311 | AP14: 2766.191872 | AQ14: 2637.536374 | AR14: 2559.314096
A15: 2018-01-01T13:00:00 | B15: 5720 | C15: 2863.216242 | D15: 2018-01-01 | E15: 14 | G15: 7325 | H15: 3404.91952 | S15: 2018-01-13 | T15: 13 | U15: 2421.137939 | V15: 2419.075023 | W15: 2378.308071 | X15: 2386.47705 | Y15: 2389.111324 | Z15: 2457.671588 | AA15: 2541.047802 | AB15: 2674.46974 | AC15: 2754.233281 | AD15: 2768.926304 | AE15: 2681.220617 | AF15: 2565.819371 | AG15: 2463.684262 | AH15: 2416.479826 | AI15: 2424.447161 | AJ15: 2461.100492 | AK15: 2523.239506 | AL15: 2685.424795 | AM15: 2679.12046 | AN15: 2635.195071 | AO15: 2621.779315 | AP15: 2593.43202 | AQ15: 2467.460498 | AR15: 2364.608768
A16: 2018-01-01T14:00:00 | B16: 5619 | C16: 2812.148152 | D16: 2018-01-01 | E16: 15 | G16: 7315 | H16: 3399.636849 | S16: 2018-01-14 | T16: 14 | U16: 2357.827312 | V16: 2340.725966 | W16: 2317.752799 | X16: 2299.485038 | Y16: 2290.508983 | Z16: 2338.787099 | AA16: 2429.522617 | AB16: 2561.378316 | AC16: 2613.591783 | AD16: 2633.656683 | AE16: 2554.253911 | AF16: 2521.510151 | AG16: 2568.29489 | AH16: 2523.356255 | AI16: 2540.9763 | AJ16: 2570.520015 | AK16: 2614.181748 | AL16: 2743.86977 | AM16: 2766.793234 | AN16: 2696.034289 | AO16: 2666.132076 | AP16: 2540.611779 | AQ16: 2355.619739 | AR16: 2182.535516
A17: 2018-01-01T15:00:00 | B17: 5653 | C17: 2826.829202 | D17: 2018-01-01 | E17: 16 | G17: 7296 | H17: 3397.849204 | S17: 2018-01-15 | T17: 15 | U17: 2130.7945 | V17: 2072.915786 | W17: 2027.582118 | X17: 2002.225499 | Y17: 2081.098133 | Z17: 2148.762114 | AA17: 2232.363678 | AB17: 2282.542189 | AC17: 2332.141246 | AD17: 2451.199684 | AE17: 2467.772503 | AF17: 2493.137532 | AG17: 2489.098734 | AH17: 2471.866005 | AI17: 2457.897808 | AJ17: 2531.72894 | AK17: 2742.271246 | AL17: 3006.743959 | AM17: 3118.127851 | AN17: 3153.240432 | AO17: 3131.011014 | AP17: 2986.146107 | AQ17: 2869.093791 | AR17: 2731.661204
A18: 2018-01-01T16:00:00 | B18: 5947 | C18: 3012.271873 | D18: 2018-01-01 | E18: 17 | G18: 7281 | H18: 3388.663503 | S18: 2018-01-16 | T18: 16 | U18: 2690.554114 | V18: 2712.131499 | W18: 2695.572746 | X18: 2768.802534 | Y18: 2843.661726 | Z18: 2949.951172 | AA18: 3084.332677 | AB18: 3076.930015 | AC18: 3107.612747 | AD18: 2987.706795 | AE18: 2790.449552 | AF18: 2727.325496 | AG18: 2659.130213 | AH18: 2647.294864 | AI18: 2594.788022 | AJ18: 2671.064216 | AK18: =OFFSET($C$1,($T18-1)*24+AK$2,0) -> 2874.195704 | AL18: 3180.01902 | AM18: 3274.756852 | AN18: 3231.167327 | AO18: 3245.051666 | AP18: 3095.281822 | AQ18: 2894.45781 | AR18: 2770.598282
A19: 2018-01-01T17:00:00 | B19: 6391 | C19: 3279.271778 | D19: 2018-01-01 | E19: 18 | G19: 7277 | H19: 3385.767721 | S19: 2018-01-17 | T19: 17 | U19: 2735.781043 | V19: =OFFSET($C$1,($T19-1)*24+V$2,0) -> 2706.040999 | W19: 2724.259346 | X19: 2745.095706 | Y19: 2820.173439 | Z19: 2926.720494 | AA19: 3131.779469 | AB19: 3071.728212 | AC19: 2898.293618 | AD19: 2779.519612 | AE19: 2601.284912 | AF19: 2483.901801 | AG19: 2316.774313 | AH19: 2237.689118 | AI19: 2205.819469 | AJ19: 2234.511072 | AK19: 2420.058465 | AL19: 2728.964845 | AM19: 2857.453239 | AN19: 2870.252077 | AO19: 2866.019263 | AP19: 2786.269004 | AQ19: 2636.827998 | AR19: 2499.188203
A20: 2018-01-01T18:00:00 | B20: 6472 | C20: 3397.849204 | D20: 2018-01-01 | E20: 19 | G20: 7267 | H20: 3384.562331 | S20: 2018-01-18 | T20: 18 | U20: =OFFSET($C$1,($T20-1)*24+U$2,0) -> 2423.658474 | V20: 2387.973531 | W20: 2362.443342 | X20: 2388.56379 | Y20: 2467.800776 | Z20: 2588.596842 | AA20: 2727.101003 | AB20: 2726.725089 | AC20: 2518.530647 | AD20: 2259.821428 | AE20: 2056.498432 | AF20: 1903.419331 | AG20: 1848.437723 | AH20: 1736.990988 | AI20: 1657.165496 | AJ20: 1700.273401 | AK20: 1865.789852 | AL20: 2183.337714 | AM20: 2342.456056 | AN20: 2362.942554 | AO20: 2368.126092 | AP20: 2280.700853 | AQ20: 2146.526848 | AR20: 2004.311562
A21: 2018-01-01T19:00:00 | B21: 6463 | C21: 3374.517951 | D21: 2018-01-01 | E21: 20 | G21: 7262 | H21: 3384.239647 | S21: 2018-01-19 | T21: 19 | U21: 1941.090033 | V21: 1907.8794 | W21: 1878.248661 | X21: 1913.166911 | Y21: 1983.651153 | Z21: 2145.951078 | AA21: 2301.026915 | AB21: 2279.436493 | AC21: 2123.785757 | AD21: 1933.343883 | AE21: 1774.38915 | AF21: 1672.966732 | AG21: 1571.541706 | AH21: 1494.31469 | AI21: 1446.457743 | AJ21: 1470.437342 | AK21: 1614.421589 | AL21: 1819.253906 | AM21: 1950.237637 | AN21: 1953.210218 | AO21: 1947.282867 | AP21: 1869.482682 | AQ21: 1790.822404 | AR21: 1640.78308
A22: 2018-01-01T20:00:00 | B22: 6403 | C22: 3362.139483 | D22: 2018-01-01 | E22: 21 | G22: 7258 | H22: 3378.935784 | S22: 2018-01-20 | T22: 20 | U22: 1575.778853 | V22: 1589.261423 | W22: 1535.010925 | X22: 1589.492078 | Y22: 1641.190062 | Z22: 1725.828872 | AA22: 1802.596468 | AB22: 1895.863645 | AC22: 1917.718881 | AD22: 1866.959532 | AE22: 1813.754634 | AF22: 1709.499522 | AG22: 1639.140004 | AH22: 1497.571604 | AI22: 1481.624796 | AJ22: 1460.178523 | AK22: 1487.566868 | AL22: 1621.275729 | AM22: 1746.487239 | AN22: 1734.030965 | AO22: 1736.487323 | AP22: 1692.990281 | AQ22: 1595.095545 | AR22: 1469.189012
A23: 2018-01-01T21:00:00 | B23: 6295 | C23: 3192.738305 | D23: 2018-01-01 | E23: 22 | G23: 7222 | H23: 3378.75695 | S23: 2018-01-21 | T23: 21 | U23: 1376.536228 | V23: 1353.955748 | W23: 1334.851231 | X23: 1301.456996 | Y23: 1259.643821 | Z23: 1327.326302 | AA23: 1404.569743 | AB23: 1519.075904 | AC23: 1567.715046 | AD23: 1463.3978 | AE23: 1431.875678 | AF23: 1411.678336 | AG23: 1343.567401 | AH23: 1319.843006 | AI23: 1325.416128 | AJ23: 1365.234308 | AK23: 1432.599532 | AL23: 1596.105053 | AM23: 1592.583587 | AN23: 1570.601971 | AO23: 1537.418088 | AP23: 1431.363781 | AQ23: 1284.348104 | AR23: 1064.456973
A24: 2018-01-01T22:00:00 | B24: 6113 | C24: 3136.0373 | D24: 2018-01-01 | E24: 23 | G24: 7218 | H24: 3374.88328 | S24: 2018-01-22 | T24: 22 | U24: 954.5905439 | V24: 932.4901029 | W24: 888.3933746 | X24: 928.4320356 | Y24: 952.5874433 | Z24: 1114.745634 | AA24: 1295.150466 | AB24: 1361.855851 | AC24: 1225.691635 | AD24: 1193.787257 | AE24: 1155.744282 | AF24: 1186.727855 | AG24: 1193.89676 | AH24: 1208.029003 | AI24: 1215.201023 | AJ24: 1336.246257 | AK24: 1551.935071 | AL24: 1808.127308 | AM24: 1895.104525 | AN24: 1934.925727 | AO24: 1931.744264 | AP24: 1831.852066 | AQ24: 1675.529735 | AR24: 1599.690735
A25: 2018-01-01T23:00:00 | B25: 5999 | C25: 2976.982688 | D25: 2018-01-01 | E25: 24 | G25: 7215 | H25: 3374.517951 | S25: 2018-01-23 | T25: 23 | U25: 1509.501569 | V25: 1498.699958 | W25: 1524.053337 | X25: 1533.504309 | Y25: 1607.919379 | Z25: 1757.354049 | AA25: 1954.086449 | AB25: 1983.742172 | AC25: 1924.922632 | AD25: 1872.367784 | AE25: 1853.641447 | AF25: 1882.588072 | AG25: 1879.266449 | AH25: 1879.929482 | AI25: 1877.339436 | AJ25: 1890.103838 | AK25: 2023.231122 | AL25: 2194.724161 | AM25: 2278.194462 | AN25: 2236.851764 | AO25: 2204.248598 | AP25: 2119.352491 | AQ25: 1961.148389 | AR25: 1814.6825
A26: 2018-01-02 | B26: 5932 | C26: 2924.00821 | D26: 2018-01-02 | E26: 1 | G26: 7211 | H26: 3370.471807 | S26: 2018-01-24 | T26: 24 | U26: 1741.184938 | V26: 1697.278411 | W26: 1673.773157 | X26: 1747.339193 | Y26: 1809.343371 | Z26: 2000.001037 | AA26: 2184.351722 | AB26: 2213.527031 | AC26: 2021.04417 | AD26: 1848.356978 | AE26: 1697.454337 | AF26: 1622.739797 | AG26: 1542.11157 | AH26: 1465.852835 | AI26: 1445.05448 | AJ26: 1464.319922 | AK26: 1623.92523 | AL26: 1925.165367 | AM26: 2084.268824 | AN26: 2120.289242 | AO26: 2167.564732 | AP26: 2089.221464 | AQ26: 1927.104866 | AR26: 1818.490332
A27: 2018-01-02T01:00:00 | B27: 5906 | C27: 2917.522195 | D27: 2018-01-02 | E27: 2 | G27: 7202 | H27: 3370.33981 | S27: 2018-01-25 | T27: 25 | U27: 1777.107909 | V27: 1755.911965 | W27: 1741.853142 | X27: 1774.483812 | Y27: 1807.421198 | Z27: 1970.261646 | AA27: 2149.262501 | AB27: 2157.899067 | AC27: 1893.311303 | AD27: 1694.263389 | AE27: 1488.894683 | AF27: 1392.883025 | AG27: 1224.221863 | AH27: 1151.646994 | AI27: 1084.478457 | AJ27: 1166.624177 | AK27: 1256.776099 | AL27: 1513.436143 | AM27: 1704.68833 | AN27: 1743.052995 | AO27: 1690.068583 | AP27: 1634.872097 | AQ27: 1487.962526 | AR27: 1414.658595
A28: 2018-01-02T02:00:00 | B28: 5949 | C28: 2929.374018 | D28: 2018-01-02 | E28: 3 | G28: 7188 | H28: 3370.163187 | S28: 2018-01-26 | T28: 26 | U28: 1347.01731 | V28: 1329.779415 | W28: 1374.132369 | X28: 1388.187945 | Y28: 1443.939704 | Z28: 1607.935929 | AA28: 1790.768469 | AB28: 1814.532654 | AC28: 1691.417631 | AD28: 1545.329559 | AE28: 1408.669808 | AF28: 1459.351116 | AG28: 1450.264658 | AH28: 1327.081332 | AI28: 1299.292042 | AJ28: 1344.816761 | AK28: 1450.628135 | AL28: 1647.657858 | AM28: 1643.730112 | AN28: 1647.275637 | AO28: 1594.490394 | AP28: 1522.372697 | AQ28: 1408.596431 | AR28: 1302.037164
A29: 2018-01-02T03:00:00 | B29: 6021 | C29: 2991.075239 | D29: 2018-01-02 | E29: 4 | G29: 7184 | H29: 3362.139483 | S29: 2018-01-27 | T29: 27 | U29: 1180.870183 | V29: 1159.178057 | W29: 1116.80741 | X29: 1094.161833 | Y29: 1122.126912 | Z29: 1206.62478 | AA29: 1221.493109 | AB29: 1347.183462 | AC29: 1453.993527 | AD29: 1417.78702 | AE29: 1405.592239 | AF29: 1342.035538 | AG29: 1272.355056 | AH29: 1263.934116 | AI29: 1220.881546 | AJ29: 1224.288867 | AK29: 1314.954287 | AL29: 1473.663762 | AM29: 1593.085217 | AN29: 1645.007322 | AO29: 1642.198951 | AP29: 1620.144091 | AQ29: 1616.882517 | AR29: 1534.569546
A30: 2018-01-02T04:00:00 | B30: 6125 | C30: 3021.165293 | D30: 2018-01-02 | E30: 5 | G30: 7171 | H30: 3354.756823 | S30: 2018-01-28 | T30: 28 | U30: 1535.488424 | V30: 1482.904147 | W30: 1462.418414 | X30: 1464.727926 | Y30: 1532.580646 | Z30: 1614.125805 | AA30: 1728.168773 | AB30: 1884.417397 | AC30: 1881.567955 | AD30: 1764.151436 | AE30: 1593.147072 | AF30: 1590.209293 | AG30: 1515.592317 | AH30: 1471.689481 | AI30: 1450.694155 | AJ30: 1511.758947 | AK30: 1617.952857 | AL30: 1805.262246 | AM30: 1848.006815 | AN30: 1856.780686 | AO30: 1794.949934 | AP30: 1737.37384 | AQ30: 1598.873748 | AR30: 1522.5652
A31: 2018-01-02T05:00:00 | B31: 6368 | C31: 3123.221148 | D31: 2018-01-02 | E31: 6 | G31: 7170 | H31: 3352.363082 | S31: 2018-01-29 | T31: 29 | U31: 1457.127789 | V31: 1441.567057 | W31: 1459.877121 | X31: 1507.158445 | Y31: 1592.721231 | Z31: 1785.152598 | AA31: 2005.649051 | AB31: 2113.082249 | AC31: 2067.342721 | AD31: 2035.61076 | AE31: 1999.958273 | AF31: 1980.169922 | AG31: 1901.291774 | AH31: 1800.331985 | AI31: 1763.188198 | AJ31: 1783.780184 | AK31: 1940.646931 | AL31: 2208.144974 | AM31: 2262.911842 | AN31: 2378.627134 | AO31: 2396.407397 | AP31: 2271.289551 | AQ31: 2127.091859 | AR31: 2059.644098
A32: 2018-01-02T06:00:00 | B32: 6697 | C32: 3244.156148 | D32: 2018-01-02 | E32: 7 | G32: 7166 | H32: 3351.877111 | S32: 2018-01-30 | T32: 30 | U32: 1996.75912 | V32: 1969.415468 | W32: 2028.678001 | X32: 1994.878046 | Y32: 2083.11789 | Z32: 2241.286434 | AA32: 2461.747819 | AB32: 2465.228941 | AC32: 2289.815503 | AD32: 2134.227201 | AE32: 1999.398281 | AF32: 1844.821301 | AG32: 1737.394417 | AH32: 1664.682645 | AI32: 1606.434188 | AJ32: 1640.686637 | AK32: 1785.346975 | AL32: 2152.340671 | AM32: 2306.488428 | AN32: 2356.347877 | AO32: 2346.955592 | AP32: 2238.885686 | AQ32: 2048.159385 | AR32: 1861.134298
A33: 2018-01-02T07:00:00 | B33: 6857 | C33: 3290.008735 | D33: 2018-01-02 | E33: 8 | G33: 7163 | H33: 3348.76977 | S33: 2018-01-31 | T33: 31 | U33: 1728.620663 | V33: 1754.488794 | W33: 1682.292278 | X33: 1662.505043 | Y33: 1680.286371 | Z33: 1877.210025 | AA33: 2035.321853 | AB33: 2025.43037 | AC33: 1841.980754 | AD33: 1684.506906 | AE33: 1561.641943 | AF33: 1433.180129 | AG33: 1321.199373 | AH33: 1249.19791 | AI33: 1227.706469 | AJ33: 1233.003679 | AK33: 1363.614549 | AL33: 1604.243621 | AM33: 1781.481249 | AN33: 1789.260774 | AO33: 1744.124953 | AP33: 1711.340617 | AQ33: 1542.270458 | AR33: 1459.00083
A34: 2018-01-02T08:00:00 | B34: 6789 | C34: 3128.301849 | D34: 2018-01-02 | E34: 9 | G34: 7163 | H34: 3340.062419 | S34: 2018-02-01 | T34: 32 | U34: 1370.281039 | V34: 1351.710592 | W34: 1265.729208 | X34: 1391.258741 | Y34: 1400.092513 | Z34: 1540.628762 | AA34: 1725.322456 | AB34: 1791.548928 | AC34: 1711.566487 | AD34: 1763.633248 | AE34: 1785.778454 | AF34: 1788.608953 | AG34: 1873.784997 | AH34: 1858.28616 | AI34: 1848.524564 | AJ34: 1846.755005 | AK34: =OFFSET($C$1,($T34-1)*24+AK$2,0) -> 1995.499267 | AL34: 2277.86025 | AM34: 2438.761854 | AN34: 2472.466175 | AO34: 2465.81951 | AP34: 2385.952502 | AQ34: 2258.81564 | AR34: 2155.977985
A35: 2018-01-02T09:00:00 | B35: 6608 | C35: 3038.204502 | D35: 2018-01-02 | E35: 10 | G35: 7152 | H35: 3339.357383 | S35: 2018-02-02 | T35: 33 | U35: 2124.908954 | V35: 2126.856685 | W35: 2149.249908 | X35: 2183.21262 | Y35: 2252.882152 | Z35: 2431.815074 | AA35: 2640.351456 | AB35: 2679.139018 | AC35: 2508.080363 | AD35: 2338.62479 | AE35: 2184.768997 | AF35: 2034.637531 | AG35: 1929.088761 | AH35: 1821.918784 | AI35: 1817.589016 | AJ35: =OFFSET($C$1,($T35-1)*24+AJ$2,0) -> 1765.60985 | AK35: 1910.110013 | AL35: 2164.092243 | AM35: 2312.808737 | AN35: 2363.627083 | AO35: 2320.595327 | AP35: 2243.692931 | AQ35: 2114.103667 | AR35: 1987.469519
A36: 2018-01-02T10:00:00 | B36: 6414 | C36: 2913.636332 | D36: 2018-01-02 | E36: 11 | G36: 7150 | H36: 3337.426165 | S36: 2018-02-03 | T36: 34 | U36: =OFFSET($C$1,($T36-1)*24+U$2,0) -> 1957.566798 | V36: 1902.503398 | W36: 1880.966752 | X36: 1853.176831 | Y36: 1888.10802 | Z36: 1924.043094 | AA36: 2017.512259 | AB36: 2135.647782 | AC36: 2225.622346 | AD36: 2251.010797 | AE36: 2193.212563 | AF36: 2119.998345 | AG36: 2027.133198 | AH36: 1919.76236 | AI36: 1844.447809 | AJ36: 1852.660582 | AK36: 1959.402087 | AL36: 2084.516062 | AM36: 2096.2929 | AN36: 2048.231919 | AO36: 2008.189386 | AP36: 1942.532183 | AQ36: 1774.73256 | AR36: 1651.856919
A37: 2018-01-02T11:00:00 | B37: 6201 | C37: 2748.103027 | D37: 2018-01-02 | E37: 12 | G37: 7148 | H37: 3333.018828 | S37: 2018-02-04 | T37: 35 | U37: 1564.924553 | V37: 1582.836681 | W37: 1558.623121 | X37: 1511.338418 | Y37: 1576.515354 | Z37: 1670.465552 | AA37: 1788.406212 | AB37: 1921.220658 | AC37: 2005.284251 | AD37: 2117.148586 | AE37: 2153.080611 | AF37: 2179.057676 | AG37: 2211.078132 | AH37: 2307.387834 | AI37: 2375.478783 | AJ37: 2432.275799 | AK37: 2550.930718 | AL37: 2578.884802 | AM37: 2642.665163 | AN37: 2643.559937 | AO37: 2645.433914 | AP37: 2553.168601 | AQ37: 2523.594205 | AR37: 2390.319596
A38: 2018-01-02T12:00:00 | B38: 6002 | C38: 2611.20205 | D38: 2018-01-02 | E38: 13 | G38: 7146 | H38: 3332.535663 | S38: 2018-02-05 | T38: 36 | U38: 2294.929024 | V38: 2311.566742 | W38: 2309.234208 | X38: 2370.658515 | Y38: 2435.079706 | Z38: 2596.132069 | AA38: 2810.265597 | AB38: 2741.426021 | AC38: 2526.374736 | AD38: 2439.651672 | AE38: 2286.633236 | AF38: 2160.292296 | AG38: 2026.02628 | AH38: 1936.112864 | AI38: 1946.804421 | AJ38: 2016.965609 | AK38: 2172.141166 | AL38: 2388.086537 | AM38: 2492.480123 | AN38: 2454.78813 | AO38: 2380.104675 | AP38: 2222.21001 | AQ38: 2065.609615 | AR38: 1932.720764
A39: 2018-01-02T13:00:00 | B39: 5855 | C39: 2559.340239 | D39: 2018-01-02 | E39: 14 | G39: 7146 | H39: 3331.471802 | S39: 2018-02-06 | T39: 37 | U39: 1875.674601 | V39: 1852.428584 | W39: 1896.979027 | X39: 1920.377293 | Y39: 2013.806824 | Z39: 2169.59121 | AA39: 2343.22794 | AB39: 2435.596953 | AC39: 2286.205843 | AD39: 2298.137945 | AE39: 2218.75314 | AF39: 2094.3035 | AG39: 2110.116211 | AH39: 2032.047377 | AI39: 1953.761428 | AJ39: 1995.99091 | AK39: 2142.489501 | AL39: 2332.419795 | AM39: 2528.058896 | AN39: 2493.971851 | AO39: 2472.855872 | AP39: 2365.832458 | AQ39: 2170.846108 | AR39: 2057.813469
A40: 2018-01-02T14:00:00 | B40: 5657 | C40: 2445.936969 | D40: 2018-01-02 | E40: 15 | G40: 7141 | H40: 3326.630323 | S40: 2018-02-07 | T40: 38 | U40: 2005.485906 | V40: 1979.726923 | W40: 2017.405011 | X40: 1993.009658 | Y40: 2086.857011 | Z40: 2257.561501 | AA40: 2441.639157 | AB40: 2517.423267 | AC40: 2318.828529 | AD40: 2148.180427 | AE40: 2046.117914 | AF40: 1940.067165 | AG40: 1846.557444 | AH40: 1720.348579 | AI40: 1691.358718 | AJ40: 1674.508328 | AK40: 1810.937107 | AL40: 2090.607431 | AM40: 2326.081089 | AN40: 2342.157501 | AO40: 2355.352845 | AP40: 2233.670422 | AQ40: 2085.922449 | AR40: 1969.21685
A41: 2018-01-02T15:00:00 | B41: 5701 | C41: 2484.583079 | D41: 2018-01-02 | E41: 16 | G41: 7137 | H41: 3325.91048 | S41: 2018-02-08 | T41: 39 | U41: 1887.626966 | V41: 1872.370325 | W41: 1876.914737 | X41: 1918.790001 | Y41: 1999.493631 | Z41: 2159.053049 | AA41: 2379.115952 | AB41: 2368.485048 | AC41: 2167.875861 | AD41: 1923.377541 | AE41: 1744.161268 | AF41: 1604.526916 | AG41: 1478.192998 | AH41: 1420.960175 | AI41: 1367.973184 | AJ41: 1359.497353 | AK41: 1490.722388 | AL41: 1754.442138 | AM41: 1918.290387 | AN41: 1970.464681 | AO41: 1970.91705 | AP41: 1907.717 | AQ41: 1769.277347 | AR41: 1640.804436
A42: 2018-01-02T16:00:00 | B42: 5891 | C42: 2666.950536 | D42: 2018-01-02 | E42: 17 | G42: 7135 | H42: 3322.001122 | S42: 2018-02-09 | T42: 40 | U42: 1519.940508 | V42: 1490.218723 | W42: 1498.132066 | X42: 1482.132093 | Y42: 1519.393842 | Z42: 1648.139777 | AA42: 1780.677242 | AB42: 1840.495184 | AC42: 1736.758179 | AD42: 1639.437862 | AE42: 1487.099852 | AF42: 1401.686614 | AG42: 1339.685239 | AH42: 1286.621848 | AI42: 1324.80537 | AJ42: 1307.263202 | AK42: 1507.382615 | AL42: 1738.809589 | AM42: 1867.347889 | AN42: 1898.026481 | AO42: 1912.060133 | AP42: 1876.033256 | AQ42: 1797.353532 | AR42: 1701.006321
A43: 2018-01-02T17:00:00 | B43: 6315 | C43: 3042.388885 | D43: 2018-01-02 | E43: 18 | G43: 7127 | H43: 3319.811906 | S43: 2018-02-10 | T43: 41 | U43: 1644.787246 | V43: 1629.306851 | W43: 1616.668744 | X43: 1673.593692 | Y43: 1729.649224 | Z43: 1801.603217 | AA43: 1964.120195 | AB43: 2154.631948 | AC43: 2207.223509 | AD43: 2299.60213 | AE43: 2330.944167 | AF43: 2314.755518 | AG43: 2302.011204 | AH43: 2288.832688 | AI43: 2280.718638 | AJ43: 2304.340687 | AK43: 2340.997344 | AL43: 2444.65825 | AM43: 2459.519299 | AN43: 2435.280784 | AO43: 2366.719493 | AP43: 2264.540028 | AQ43: 2123.426719 | AR43: 2020.464123
A44: 2018-01-02T18:00:00 | B44: 6413 | C44: 3187.340465 | D44: 2018-01-02 | E44: 19 | G44: 7126 | H44: 3316.494916 | S44: 2018-02-11 | T44: 42 | U44: 1933.054856 | V44: 1900.511925 | W44: 1893.385027 | X44: 1908.107883 | Y44: 1946.234344 | Z44: 2026.10328 | AA44: 2123.312759 | AB44: 2274.12228 | AC44: 2451.242768 | AD44: 2523.728223 | AE44: 2583.250623 | AF44: 2545.712591 | AG44: 2505.509177 | AH44: 2444.435867 | AI44: 2419.183665 | AJ44: 2390.005326 | AK44: 2423.116107 | AL44: 2536.211807 | AM44: 2601.974202 | AN44: 2585.955751 | AO44: 2511.035999 | AP44: 2398.531788 | AQ44: 2228.824815 | AR44: 2106.670988
A45: 2018-01-02T19:00:00 | B45: 6386 | C45: 3161.981836 | D45: 2018-01-02 | E45: 20 | G45: 7120 | H45: 3310.916865 | S45: 2018-02-12 | T45: 43 | U45: 2104.209535 | V45: 2090.90725 | W45: 2092.564639 | X45: 2101.894215 | Y45: 2209.310322 | Z45: 2346.068305 | AA45: 2575.936349 | AB45: 2552.525865 | AC45: 2326.881417 | AD45: 2155.468266 | AE45: 2008.499985 | AF45: 1920.974434 | AG45: 1790.144289 | AH45: 1698.341436 | AI45: 1607.294369 | AJ45: 1650.016314 | AK45: 1742.394865 | AL45: 2010.655214 | AM45: 2240.633513 | AN45: 2263.827581 | AO45: 2259.701833 | AP45: 2183.561818 | AQ45: 2064.914545 | AR45: 1948.477816
A46: 2018-01-02T20:00:00 | B46: 6296 | C46: 3133.654807 | D46: 2018-01-02 | E46: 21 | G46: 7097 | H46: 3307.075461 | S46: 2018-02-13 | T46: 44 | U46: 1913.918116 | V46: 1879.194303 | W46: 1896.343845 | X46: 1907.988088 | Y46: 1941.684957 | Z46: 2122.274288 | AA46: 2280.646586 | AB46: 2274.997019 | AC46: 2114.843458 | AD46: 1842.625466 | AE46: 1708.801087 | AF46: 1608.869965 | AG46: 1490.540273 | AH46: 1426.852499 | AI46: 1436.210443 | AJ46: 1507.943256 | AK46: 1648.14566 | AL46: 1807.586834 | AM46: 1974.12987 | AN46: 1996.382983 | AO46: 1974.596511 | AP46: 1907.851774 | AQ46: 1737.260869 | AR46: 1547.947042
A47: 2018-01-02T21:00:00 | B47: 6113 | C47: 2991.361183 | D47: 2018-01-02 | E47: 22 | G47: 7092 | H47: 3305.163291 | S47: 2018-02-14 | T47: 45 | U47: 1437.194984 | V47: 1361.186035 | W47: 1313.867128 | X47: 1299.107469 | Y47: 1353.598136 | Z47: 1475.203134 | AA47: 1631.479654 | AB47: 1679.661957 | AC47: 1571.70401 | AD47: 1463.776834 | AE47: 1362.146619 | AF47: 1265.014219 | AG47: 1171.391354 | AH47: 1155.990774 | AI47: 1100.003622 | AJ47: 1092.467573 | AK47: 1170.19977 | AL47: 1350.644479 | AM47: 1470.832564 | AN47: 1458.635157 | AO47: 1473.46561 | AP47: 1390.577084 | AQ47: 1243.769478 | AR47: 1086.37377
A48: 2018-01-02T22:00:00 | B48: 5843 | C48: 2792.705725 | D48: 2018-01-02 | E48: 23 | G48: 7092 | H48: 3295.102151 | S48: 2018-02-15 | T48: 46 | U48: 1019.739712 | V48: 920.3505288 | W48: 939.0301449 | X48: 941.03652 | Y48: 941.8649296 | Z48: 1065.876203 | AA48: 1187.594739 | AB48: 1235.862172 | AC48: 1144.929501 | AD48: 1093.864431 | AE48: 1053.906818 | AF48: 1004.740729 | AG48: 1011.580943 | AH48: 1036.105623 | AI48: 1041.10474 | AJ48: 1068.251574 | AK48: 1111.787467 | AL48: 1312.462904 | AM48: 1420.359894 | AN48: 1437.58045 | AO48: 1393.625984 | AP48: 1292.936135 | AQ48: 1163.96626 | AR48: 976.3392211
A49: 2018-01-02T23:00:00 | B49: 5652 | C49: 2682.735102 | D49: 2018-01-02 | E49: 24 | G49: 7088 | H49: 3294.550258 | S49: 2018-02-16 | T49: 47 | U49: 881.5159319 | V49: 906.5272511 | W49: 951.0381855 | X49: 990.0884931 | Y49: 1077.601778 | Z49: 1245.129053 | AA49: 1454.140028 | AB49: 1612.627872 | AC49: 1657.6935 | AD49: 1632.35279 | AE49: 1602.733105 | AF49: 1531.309879 | AG49: 1511.875646 | AH49: 1476.241239 | AI49: 1461.541248 | AJ49: 1450.88572 | AK49: 1547.470366 | AL49: 1747.060658 | AM49: 1907.199993 | AN49: 1940.057114 | AO49: 1957.108783 | AP49: 1909.03112 | AQ49: 1803.379384 | AR49: 1703.355284
A50: 2018-01-03 | B50: 5527 | C50: 2573.495625 | D50: 2018-01-03 | E50: 1 | G50: 7084 | H50: 3293.286698 | S50: 2018-02-17 | T50: 48 | U50: 1635.719349 | V50: 1609.581529 | W50: 1577.708003 | X50: 1570.078931 | Y50: 1555.800936 | Z50: 1636.535087 | AA50: 1723.17689 | AB50: 1878.134591 | AC50: 1974.386534 | AD50: 2053.512311 | AE50: 2028.633472 | AF50: 1968.262098 | AG50: 1967.361141 | AH50: 1925.873247 | AI50: 1828.500405 | AJ50: 1810.644427 | AK50: =OFFSET($C$1,($T50-1)*24+AK$2,0) -> 1742.109037 | AL50: 1809.552424 | AM50: 1915.169772 | AN50: 1908.437637 | AO50: 1883.955545 | AP50: 1817.049308 | AQ50: 1751.34627 | AR50: 1726.081211
A51: 2018-01-03T01:00:00 | B51: 5425 | C51: 2510.495687 | D51: 2018-01-03 | E51: 2 | G51: 7084 | H51: 3292.344906 | S51: 2018-02-18 | T51: 49 | U51: 1661.590695 | V51: 1636.647169 | W51: 1655.551693 | X51: 1701.767858 | Y51: 1695.86926 | Z51: 1749.546125 | AA51: 1856.264629 | AB51: 1964.364778 | AC51: 1944.719702 | AD51: 1799.36667 | AE51: 1664.316071 | AF51: 1604.266434 | AG51: 1573.755687 | AH51: 1549.759154 | AI51: 1481.619822 | AJ51: 1503.421334 | AK51: =OFFSET($C$1,($T51-1)*24+AK$2,0) -> 1622.13105 | AL51: 1723.241534 | AM51: 1821.041487 | AN51: 1786.764236 | AO51: 1705.194216 | AP51: 1616.317572 | AQ51: 1455.304673 | AR51: 1277.457294
A52: 2018-01-03T02:00:00 | B52: 5368 | C52: 2462.097345 | D52: 2018-01-03 | E52: 3 | G52: 7074 | H52: 3290.008735 | S52: 2018-02-19 | T52: 50 | U52: =OFFSET($C$1,($T52-1)*24+U$2,0) -> 1202.412545 | V52: 1070.20797 | W52: 1032.981298 | X52: 993.9189899 | Y52: 1008.59814 | Z52: 1115.634436 | AA52: 1195.900465 | AB52: 1273.565958 | AC52: 1354.443747 | AD52: 1336.937108 | AE52: 1355.089486 | AF52: 1363.599896 | AG52: 1348.375945 | AH52: 1394.656993 | AI52: 1317.535529 | AJ52: 1280.850093 | AK52: 1393.451347 | AL52: 1498.349417 | AM52: 1600.624973 | AN52: 1574.301761 | AO52: 1465.735321 | AP52: 1331.819401 | AQ52: 1208.439985 | AR52: 996.4552565
A53: 2018-01-03T03:00:00 | B53: 5320 | C53: 2391.901512 | D53: 2018-01-03 | E53: 4 | G53: 7062 | H53: 3288.697763 | S53: 2018-02-20 | T53: 51 | U53: 847.7188067 | V53: 838.8950715 | W53: 788.6788004 | X53: 743.4156161 | Y53: 771.0826844 | Z53: 846.5031516 | AA53: 1009.926134 | AB53: 1078.920163 | AC53: 996.5301708 | AD53: 1104.925935 | AE53: 1146.827133 | AF53: 1199.664618 | AG53: 1195.900329 | AH53: 1213.567337 | AI53: 1229.271974 | AJ53: 1252.288826 | AK53: 1380.785561 | AL53: 1579.208324 | AM53: 1717.287542 | AN53: 1749.638798 | AO53: 1749.554789 | AP53: 1702.571914 | AQ53: 1579.061819 | AR53: 1448.676539
A54: 2018-01-03T04:00:00 | B54: 5375 | C54: 2428.508187 | D54: 2018-01-03 | E54: 5 | G54: 7059 | H54: 3287.557308 | S54: 2018-02-21 | T54: 52 | U54: 1393.702919 | V54: 1351.245323 | W54: 1325.776757 | X54: 1395.611803 | Y54: 1483.889963 | Z54: 1665.417666 | AA54: 1904.996513 | AB54: 2012.214744 | AC54: 1926.331147 | AD54: 1922.444582 | AE54: 1951.365843 | AF54: 1956.063704 | AG54: 1985.443799 | AH54: 2005.588201 | AI54: 2006.438837 | AJ54: 2042.482519 | AK54: 2164.833075 | AL54: 2295.690144 | AM54: 2380.818807 | AN54: 2339.147985 | AO54: 2239.067378 | AP54: 2161.818324 | AQ54: 1978.253959 | AR54: 1830.383854
A55: 2018-01-03T05:00:00 | B55: 5589 | C55: 2525.076875 | D55: 2018-01-03 | E55: 6 | G55: 7058 | H55: 3286.722196 | S55: 2018-02-22 | T55: 53 | U55: 1729.113862 | V55: 1666.457936 | W55: 1612.036694 | X55: 1574.500897 | Y55: 1644.169074 | Z55: 1807.267359 | AA55: 1954.331985 | AB55: 1980.396099 | AC55: 1872.609959 | AD55: 1670.608348 | AE55: 1721.261782 | AF55: 1666.345089 | AG55: 1630.52081 | AH55: 1608.376331 | AI55: 1600.565788 | AJ55: 1647.210326 | AK55: 1744.087072 | AL55: 1846.156783 | AM55: 1944.148022 | AN55: 1939.827984 | AO55: 1900.949677 | AP55: 1788.564289 | AQ55: 1651.271399 | AR55: 1504.798122
A56: 2018-01-03T06:00:00 | B56: 5862 | C56: 2628.671284 | D56: 2018-01-03 | E56: 7 | G56: 7038 | H56: 3285.769938 | S56: 2018-02-23 | T56: 54 | U56: 1379.428522 | V56: 1306.072055 | W56: 1255.148357 | X56: 1251.885225 | Y56: 1295.810632 | Z56: 1447.789477 | AA56: 1605.451989 | AB56: 1649.201225 | AC56: 1552.500744 | AD56: 1494.100413 | AE56: 1443.240095 | AF56: 1430.262743 | AG56: 1400.489541 | AH56: 1382.390029 | AI56: 1364.46502 | AJ56: 1447.244201 | AK56: 1499.594568 | AL56: 1644.81158 | AM56: 1718.310772 | AN56: 1716.546131 | AO56: 1706.982675 | AP56: 1653.238367 | AQ56: 1552.222847 | AR56: 1463.293027
A57: 2018-01-03T07:00:00 | B57: 5978 | C57: 2644.525493 | D57: 2018-01-03 | E57: 8 | G57: 7034 | H57: 3283.221638 | S57: 2018-02-24 | T57: 55 | U57: 1372.212431 | V57: 1322.216446 | W57: 1310.57615 | X57: 1301.271618 | Y57: 1366.808171 | Z57: 1416.948053 | AA57: 1519.433461 | AB57: 1622.762534 | AC57: 1687.593807 | AD57: 1752.368502 | AE57: 1724.66368 | AF57: 1703.301965 | AG57: 1675.128335 | AH57: 1655.479296 | AI57: 1679.154595 | AJ57: 1684.253364 | AK57: 1696.827372 | AL57: 1666.980455 | AM57: 1662.470219 | AN57: 1636.569458 | AO57: 1593.580235 | AP57: 1537.492035 | AQ57: 1496.431695 | AR57: 1430.81691
A58: 2018-01-03T08:00:00 | B58: 5916 | C58: 2580.67895 | D58: 2018-01-03 | E58: 9 | G58: 7030 | H58: 3281.386716 | S58: 2018-02-25 | T58: 56 | U58: 1359.464482 | V58: 1335.379236 | W58: 1342.248156 | X58: 1372.837868 | Y58: 1430.566014 | Z58: 1515.307472 | AA58: 1658.941314 | AB58: 1756.943728 | AC58: 1729.970566 | AD58: 1633.609741 | AE58: 1547.3848 | AF58: 1475.762596 | AG58: 1445.383021 | AH58: 1383.446929 | AI58: 1352.895683 | AJ58: 1321.614091 | AK58: 1347.045675 | AL58: 1494.430841 | AM58: 1660.221335 | AN58: 1736.598694 | AO58: 1732.357522 | AP58: 1675.853569 | AQ58: 1591.271445 | AR58: 1436.735743
A59: 2018-01-03T09:00:00 | B59: 5889 | C59: 2518.201747 | D59: 2018-01-03 | E59: 10 | G59: 7030 | H59: 3279.271778 | S59: 2018-02-26 | T59: 57 | U59: 1409.041138 | V59: 1387.716365 | W59: 1405.513868 | X59: 1436.952123 | Y59: 1513.825454 | Z59: 1730.554498 | AA59: 1897.975018 | AB59: 1900.298753 | AC59: 1625.88824 | AD59: 1456.572768 | AE59: 1297.998013 | AF59: 1200.007104 | AG59: 1179.951331 | AH59: 1077.612675 | AI59: 1077.262499 | AJ59: 1061.911352 | AK59: 1132.824412 | AL59: 1352.80628 | AM59: 1541.157153 | AN59: 1590.145082 | AO59: 1564.523855 | AP59: 1483.433263 | AQ59: 1381.522712 | AR59: 1276.475848
A60: 2018-01-03T10:00:00 | B60: 5837 | C60: 2406.53747 | D60: 2018-01-03 | E60: 11 | G60: 7028 | H60: 3279.172985 | S60: 2018-02-27 | T60: 58 | U60: 1265.376141 | V60: 1226.402249 | W60: 1218.229625 | X60: 1266.771918 | Y60: 1336.994663 | Z60: 1508.402178 | AA60: 1664.524721 | AB60: 1660.620864 | AC60: 1380.853363 | AD60: 1284.112387 | AE60: 1140.369902 | AF60: 1090.754879 | AG60: 1086.938069 | AH60: 1035.589288 | AI60: 955.9863753 | AJ60: 1012.199335 | AK60: 1070.937301 | AL60: 1291.479973 | AM60: 1417.238695 | AN60: 1435.941917 | AO60: 1411.541215 | AP60: 1312.093464 | AQ60: 1142.64847 | AR60: 992.2310557
A61: 2018-01-03T11:00:00 | B61: 5756 | C61: 2403.687328 | D61: 2018-01-03 | E61: 12 | G61: 7025 | H61: 3278.474363 | S61: 2018-02-28 | T61: 59 | U61: 956.0437208 | V61: 866.4318195 | W61: 888.9151201 | X61: 883.928483 | Y61: 948.1370623 | Z61: 1083.987935 | AA61: 1232.260945 | AB61: 1271.431065 | AC61: 1261.094157 | AD61: 1188.398649 | AE61: 1140.013468 | AF61: 1176.761917 | AG61: 1169.128132 | AH61: 1178.417727 | AI61: 1158.00317 | AJ61: 1161.134983 | AK61: 1222.33262 | AL61: 1363.124969 | AM61: 1461.199588 | AN61: 1440.185131 | AO61: 1426.92595 | AP61: 1358.629789 | AQ61: 1202.487529 | AR61: 1049.453309
A62: 2018-01-03T12:00:00 | B62: 5683 | C62: 2376.537326 | D62: 2018-01-03 | E62: 13 | G62: 7021 | H62: 3278.123151 | S62: 2018-03-01 | T62: 60 | U62: 938.833281 | V62: 870.8093571 | W62: 834.6091945 | X62: 795.945475 | Y62: 868.8872831 | Z62: 994.1156711 | AA62: 1154.358998 | AB62: 1205.41717 | AC62: 1164.859947 | AD62: 1172.169211 | AE62: 1150.169367 | AF62: 1118.779225 | AG62: 1086.948419 | AH62: 1051.297841 | AI62: 1020.178157 | AJ62: 1016.187915 | AK62: 1082.986514 | AL62: 1292.240238 | AM62: 1464.048538 | AN62: 1560.54002 | AO62: 1587.689493 | AP62: 1529.571551 | AQ62: 1442.10126 | AR62: 1325.419022
A63: 2018-01-03T13:00:00 | B63: 5566 | C63: 2302.83375 | D63: 2018-01-03 | E63: 14 | G63: 7019 | H63: 3276.240639 | S63: 2018-03-02 | T63: 61 | U63: 1300.105753 | V63: 1236.1726 | W63: 1302.098725 | X63: 1315.512701 | Y63: 1382.334193 | Z63: 1557.518449 | AA63: 1743.292284 | AB63: 1711.031096 | AC63: 1509.063864 | AD63: 1354.2397 | AE63: 1221.644498 | AF63: 1116.142002 | AG63: 1044.775657 | AH63: 1008.578301 | AI63: 973.8284402 | AJ63: 960.8280762 | AK63: 1027.947105 | AL63: 1186.043247 | AM63: 1365.146799 | AN63: 1458.204908 | AO63: 1527.161444 | AP63: 1509.242328 | AQ63: 1454.99854 | AR63: 1392.789745
A64: 2018-01-03T14:00:00 | B64: 5425 | C64: 2230.84895 | D64: 2018-01-03 | E64: 15 | G64: 7009 | H64: 3274.787954 | S64: 2018-03-03 | T64: 62 | U64: 1327.336488 | V64: 1350.884626 | W64: 1320.99029 | X64: 1345.385568 | Y64: 1367.391572 | Z64: 1446.373198 | AA64: 1583.31678 | AB64: 1639.442564 | AC64: 1569.064077 | AD64: 1480.441991 | AE64: 1378.618397 | AF64: 1304.291527 | AG64: 1228.011384 | AH64: 1124.571902 | AI64: 1096.803605 | AJ64: 1090.35903 | AK64: 1143.168897 | AL64: 1210.538247 | AM64: 1363.361232 | AN64: 1393.733373 | AO64: 1422.434363 | AP64: 1368.769005 | AQ64: 1331.448585 | AR64: 1239.359865
A65: 2018-01-03T15:00:00 | B65: 5423 | C65: 2244.349279 | D65: 2018-01-03 | E65: 16 | G65: 7009 | H65: 3274.756852 | S65: 2018-03-04 | T65: 63 | U65: 1222.291286 | V65: 1225.914355 | W65: 1269.889786 | X65: 1242.130844 | Y65: 1229.665072 | Z65: 1310.516501 | AA65: 1447.038382 | AB65: 1539.621669 | AC65: 1447.721709 | AD65: 1434.262844 | AE65: 1338.960623 | AF65: 1280.07455 | AG65: 1231.219022 | AH65: 1213.100996 | AI65: 1161.158165 | AJ65: 1165.515995 | AK65: 1235.62595 | AL65: 1365.296086 | AM65: 1483.806527 | AN65: 1500.348917 | AO65: 1479.528934 | AP65: 1400.348467 | AQ65: 1243.451746 | AR65: 1112.785176
A66: 2018-01-03T16:00:00 | B66: 5633 | C66: 2469.413303 | D66: 2018-01-03 | E66: 17 | G66: 7008 | H66: 3274.594018 | S66: 2018-03-05 | T66: 64 | U66: 1035.207801 | V66: 986.1249919 | W66: 1007.454964 | X66: 1006.6964 | Y66: 1064.008546 | Z66: 1179.962122 | AA66: 1411.055066 | AB66: 1442.250333 | AC66: 1383.462197 | AD66: 1373.61001 | AE66: 1350.84711 | AF66: 1348.731934 | AG66: 1322.103375 | AH66: 1318.030138 | AI66: 1314.288918 | AJ66: 1284.839466 | AK66: 1362.603406 | AL66: 1467.880324 | AM66: 1639.587058 | AN66: 1688.722583 | AO66: 1647.607839 | AP66: 1596.438737 | AQ66: 1438.747684 | AR66: 1340.530071
A67: 2018-01-03T17:00:00 | B67: 6029 | C67: 2821.399543 | D67: =ROUNDDOWN(A67,0) -> 2018-01-03 | E67: =ROUND((A67-D67)*24,0)+1 -> 18 | G67: 6997 | H67: 3272.420987 | S67: 2018-03-06 | T67: 65 | U67: 1275.357762 | V67: 1297.414129 | W67: 1261.635376 | X67: 1322.345135 | Y67: 1376.583011 | Z67: 1520.695241 | AA67: 1719.663431 | AB67: 1657.52662 | AC67: 1437.445384 | AD67: 1289.997746 | AE67: 1299.030414 | AF67: 1323.809842 | AG67: 1351.635167 | AH67: 1356.30437 | AI67: 1391.223275 | AJ67: =OFFSET($C$1,($T67-1)*24+AJ$2,0) -> 1490.033682 | AK67: 1663.712865 | AL67: 1856.475404 | AM67: 2005.478542 | AN67: 2026.689169 | AO67: 1984.141524 | AP67: 1910.588176 | AQ67: 1740.809477 | AR67: 1615.156976
A68: 2018-01-03T18:00:00 | B68: 6110 | C68: 2931.239475 | D68: 2018-01-03 | E68: 19 | G68: 6994 | H68: 3265.297072 | S68: 2018-03-07 | T68: 66 | U68: =OFFSET($C$1,($T68-1)*24+U$2,0) -> 1480.722406 | V68: 1459.311654 | W68: 1475.468022 | X68: 1467.857738 | Y68: 1511.81504 | Z68: 1655.391317 | AA68: 1880.461793 | AB68: 1904.897834 | AC68: 1816.321359 | AD68: 1758.328184 | AE68: 1716.948999 | AF68: 1699.488168 | AG68: 1648.191023 | AH68: 1607.878243 | AI68: 1538.564082 | AJ68: 1522.06127 | AK68: 1630.913718 | AL68: 1830.002723 | AM68: 2022.136722 | AN68: 2007.575998 | AO68: 1989.931918 | AP68: 1954.193053 | AQ68: 1778.716998 | AR68: 1637.54228
A69: 2018-01-03T19:00:00 | B69: 6127 | C69: 2939.682924 | D69: 2018-01-03 | E69: 20 | G69: 6990 | H69: 3264.559513 | S69: 2018-03-08 | T69: 67 | U69: 1552.168912 | V69: 1551.092157 | W69: 1523.363672 | X69: 1507.259112 | Y69: 1593.40032 | Z69: 1748.111833 | AA69: 1966.375523 | AB69: 1932.89223 | AC69: 1758.22168 | AD69: 1616.263007 | AE69: 1490.725363 | AF69: 1400.330633 | AG69: 1338.996845 | AH69: 1274.658692 | AI69: 1198.677434 | AJ69: 1195.772246 | AK69: 1304.991526 | AL69: 1519.497187 | AM69: 1761.481585 | AN69: 1889.864536 | AO69: 1904.623266 | AP69: 1829.183826 | AQ69: 1700.735612 | AR69: 1595.097338
A70: 2018-01-03T20:00:00 | B70: 6081 | C70: 2936.178227 | D70: 2018-01-03 | E70: 21 | G70: 6986 | H70: 3263.429144 | S70: 2018-03-09 | T70: 68 | U70: 1538.354225 | V70: 1496.113347 | W70: 1530.964493 | X70: 1547.308602 | Y70: 1619.425753 | Z70: 1759.520022 | AA70: 1957.437168 | AB70: 1926.968347 | AC70: 1798.298523 | AD70: 1636.126355 | AE70: 1474.357623 | AF70: 1320.505006 | AG70: 1230.299403 | AH70: 1167.934973 | AI70: 1148.637173 | AJ70: 1182.965388 | AK70: 1321.799284 | AL70: 1390.685446 | AM70: 1518.442341 | AN70: 1612.830048 | AO70: 1631.196044 | AP70: 1557.739949 | AQ70: 1434.39681 | AR70: 1388.354838
A71: 2018-01-03T21:00:00 | B71: 5960 | C71: 2888.540854 | D71: 2018-01-03 | E71: 22 | G71: 6976 | H71: 3262.448382 | S71: 2018-03-10 | T71: 69 | U71: 1266.15892 | V71: 1289.466696 | W71: 1242.631203 | X71: 1271.874858 | Y71: 1302.825616 | Z71: 1374.850214 | AA71: 1506.749077 | AB71: 1567.004447 | AC71: 1582.641082 | AD71: 1503.005355 | AE71: 1437.915417 | AF71: 1344.459285 | AG71: 1244.605393 | AH71: 1216.063736 | AI71: 1193.542215 | AJ71: 1203.677661 | AK71: 1260.001936 | AL71: 1396.864456 | AM71: 1491.69162 | AN71: 1479.275958 | AO71: 1465.268259 | AP71: 1404.146353 | AQ71: 1335.249108 | AR71: 1243.151702
A72: 2018-01-03T22:00:00 | B72: 5752 | C72: 2722.014137 | D72: 2018-01-03 | E72: 23 | G72: 6975 | H72: 3261.558944 | S72: 2018-03-11 | T72: 70 | U72: 1174.644011 | V72: 1160.597274 | W72: 0 | X72: 1165.271223 | Y72: 1130.554372 | Z72: 1166.20421 | AA72: 1260.438826 | AB72: 1418.92769 | AC72: 1492.719392 | AD72: 1641.796206 | AE72: 1709.754681 | AF72: 1793.0984 | AG72: 1890.669104 | AH72: 1875.471279 | AI72: 1865.34186 | AJ72: 1865.891717 | AK72: 1935.012253 | AL72: 1964.263389 | AM72: 2024.929865 | AN72: 2028.616155 | AO72: 2023.209207 | AP72: 1927.157245 | AQ72: 1741.945683 | AR72: 1596.334635
A73: 2018-01-03T23:00:00 | B73: 5624 | C73: 2618.609249 | D73: 2018-01-03 | E73: 24 | G73: 6961 | H73: 3259.741097 | S73: 2018-03-12 | T73: 71 | U73: 1517.093093 | V73: 1485.637835 | W73: 1465.766775 | X73: 1458.466256 | Y73: 1527.812233 | Z73: 1653.120159 | AA73: 1834.916756 | AB73: 1879.050205 | AC73: 1803.004244 | AD73: 1774.633032 | AE73: 1761.292017 | AF73: 1748.550492 | AG73: 1706.663297 | AH73: 1646.218376 | AI73: 1481.994363 | AJ73: 1361.392594 | AK73: 1361.992636 | AL73: 1482.807773 | AM73: 1588.569277 | AN73: 1764.69043 | AO73: 1800.516715 | AP73: 1753.550994 | AQ73: 1637.74869 | AR73: 1517.647757
A74: 2018-01-04 | B74: 5585 | C74: 2571.935314 | D74: 2018-01-04 | E74: 1 | G74: 6960 | H74: 3256.017594 | S74: 2018-03-13 | T74: 72 | U74: 1473.078315 | V74: 1469.373319 | W74: 1442.342901 | X74: 1466.394524 | Y74: 1504.515068 | Z74: 1620.405078 | AA74: 1815.068529 | AB74: 1872.748059 | AC74: 1790.681806 | AD74: 1584.928132 | AE74: 1422.564125 | AF74: 1354.438523 | AG74: 1255.75815 | AH74: 1230.522418 | AI74: 1167.269332 | AJ74: 1141.779883 | AK74: 1226.841302 | AL74: 1362.793367 | AM74: 1506.726615 | AN74: 1708.377264 | AO74: 1813.316668 | AP74: 1768.043354 | AQ74: 1655.660429 | AR74: 1495.532822
A75: 2018-01-04T01:00:00 | B75: 5569 | C75: 2544.597461 | D75: 2018-01-04 | E75: 2 | G75: 6959 | H75: 3250.933878 | S75: 2018-03-14 | T75: 73 | U75: 1469.398848 | V75: 1477.718855 | W75: 1490.8482 | X75: 1519.312184 | Y75: 1603.394846 | Z75: 1745.319077 | AA75: 1971.379773 | AB75: 1975.370136 | AC75: 1809.547668 | AD75: 1583.979094 | AE75: 1473.868148 | AF75: 1356.619015 | AG75: 1308.348069 | AH75: 1210.273772 | AI75: 1148.430891 | AJ75: 1097.37433 | AK75: 1143.255128 | AL75: 1240.732596 | AM75: 1366.888068 | AN75: 1509.110133 | AO75: 1584.408709 | AP75: 1554.27313 | AQ75: 1448.156684 | AR75: 1319.726264
A76: 2018-01-04T02:00:00 | B76: 5593 | C76: 2570.696329 | D76: 2018-01-04 | E76: 3 | G76: 6957 | H76: 3249.700228 | S76: 2018-03-15 | T76: 74 | U76: 1261.255051 | V76: 1249.992043 | W76: 1223.371892 | X76: 1237.19172 | Y76: 1288.230983 | Z76: 1394.137322 | AA76: 1565.5665 | AB76: 1557.437657 | AC76: 1367.708007 | AD76: 1246.810231 | AE76: 1091.868945 | AF76: 1015.321986 | AG76: 970.9154893 | AH76: 919.2306179 | AI76: 911.8531073 | AJ76: 871.455478 | AK76: 921.7447148 | AL76: 980.7610972 | AM76: 1099.660703 | AN76: 1219.655431 | AO76: 1275.075217 | AP76: 1226.595722 | AQ76: 1089.219208 | AR76: 967.7182575
A77: 2018-01-04T03:00:00 | B77: 5659 | C77: 2589.628365 | D77: 2018-01-04 | E77: 4 | G77: 6956 | H77: 3246.388456 | S77: 2018-03-16 | T77: 75 | U77: 872.5652653 | V77: 857.248741 | W77: 890.1653346 | X77: 896.3205517 | Y77: 996.6881249 | Z77: 1133.806489 | AA77: 1338.006042 | AB77: 1417.472674 | AC77: 1383.430995 | AD77: 1396.869543 | AE77: 1389.417476 | AF77: 1348.912258 | AG77: 1277.303964 | AH77: 1238.163034 | AI77: 1187.487394 | AJ77: 1193.777226 | AK77: 1344.447833 | AL77: 1459.822809 | AM77: 1493.449427 | AN77: 1566.280227 | AO77: 1554.792976 | AP77: 1481.26964 | AQ77: 1408.113131 | AR77: 1277.781236
A78: 2018-01-04T04:00:00 | B78: 5793 | C78: 2684.956601 | D78: 2018-01-04 | E78: 5 | G78: 6951 | H78: 3245.8368 | S78: 2018-03-17 | T78: 76 | U78: 1171.496846 | V78: 1123.94619 | W78: 1086.138874 | X78: 1060.485878 | Y78: 1051.277974 | Z78: 1064.810007 | AA78: 1189.388138 | AB78: 1302.239725 | AC78: 1404.750987 | AD78: 1455.524687 | AE78: 1443.79588 | AF78: 1428.502921 | AG78: 1451.721698 | AH78: 1467.502684 | AI78: 1465.637855 | AJ78: 1426.895032 | AK78: 1482.116427 | AL78: 1487.156856 | AM78: 1524.63942 | AN78: 1547.385405 | AO78: 1570.364308 | AP78: 1525.324171 | AQ78: 1419.643795 | AR78: 1339.06889
A79: 2018-01-04T05:00:00 | B79: 6086 | C79: 2835.109181 | D79: 2018-01-04 | E79: 6 | G79: 6947 | H79: 3245.051666 | S79: 2018-03-18 | T79: 77 | U79: 1235.214938 | V79: 1180.10128 | W79: 1178.179376 | X79: 1131.148174 | Y79: 1161.126522 | Z79: 1179.437365 | AA79: 1251.433598 | AB79: 1412.124465 | AC79: 1532.650512 | AD79: 1591.899898 | AE79: 1591.696685 | AF79: 1612.250731 | AG79: 1618.770774 | AH79: 1621.318573 | AI79: 1575.022008 | AJ79: 1569.008625 | AK79: 1620.04922 | AL79: 1634.381353 | AM79: 1663.832414 | AN79: 1703.440212 | AO79: 1724.502171 | AP79: 1597.43175 | AQ79: 1469.732915 | AR79: 1306.110257
A80: 2018-01-04T06:00:00 | B80: 6465 | C80: 2958.913636 | D80: 2018-01-04 | E80: 7 | G80: 6942 | H80: 3244.156148 | S80: 2018-03-19 | T80: 78 | U80: 1217.546253 | V80: 1179.008531 | W80: 1157.007846 | X80: 1161.137631 | Y80: 1190.34866 | Z80: 1331.808556 | AA80: 1506.336047 | AB80: 1524.444115 | AC80: 1467.244994 | AD80: 1456.834311 | AE80: 1424.630596 | AF80: 1396.293578 | AG80: 1433.463783 | AH80: 1476.905673 | AI80: 1455.448291 | AJ80: 1511.898162 | AK80: 1522.947008 | AL80: 1670.460922 | AM80: 1716.309757 | AN80: 1726.956736 | AO80: 1692.714639 | AP80: 1572.395877 | AQ80: 1464.836762 | AR80: 1298.16496
A81: 2018-01-04T07:00:00 | B81: 6632 | C81: 2952.846297 | D81: 2018-01-04 | E81: 8 | G81: 6937 | H81: 3243.638018 | S81: 2018-03-20 | T81: 79 | U81: 1188.929848 | V81: 1184.916767 | W81: 1187.038693 | X81: 1191.297214 | Y81: 1245.365166 | Z81: 1380.814196 | AA81: 1587.533217 | AB81: 1641.076206 | AC81: 1615.778101 | AD81: 1647.325329 | AE81: 1571.958591 | AF81: 1477.491523 | AG81: 1398.714353 | AH81: 1373.447202 | AI81: 1307.000688 | AJ81: 1318.516621 | AK81: 1367.33637 | AL81: 1478.039876 | AM81: 1628.223471 | AN81: 1720.942154 | AO81: 1758.96737 | AP81: 1701.362668 | AQ81: 1554.788556 | AR81: 1397.191314
A82: 2018-01-04T08:00:00 | B82: 6485 | C82: 2834.678165 | D82: 2018-01-04 | E82: 9 | G82: 6936 | H82: 3243.55117 | S82: 2018-03-21 | T82: 80 | U82: 1336.741228 | V82: 1313.095901 | W82: 1283.817044 | X82: 1327.18007 | Y82: 1364.181678 | Z82: 1541.039879 | AA82: 1716.753295 | AB82: 1744.576832 | AC82: 1530.485581 | AD82: 1405.45776 | AE82: 1350.671378 | AF82: 1316.940814 | AG82: 1273.569912 | AH82: 1192.252429 | AI82: 1178.107111 | AJ82: 1158.233435 | AK82: 1206.297353 | AL82: 1291.477208 | AM82: 1399.15091 | AN82: 1529.987499 | AO82: 1663.701575 | AP82: 1620.230349 | AQ82: 1533.079598 | AR82: 1431.376381
A83: 2018-01-04T09:00:00 | B83: 6302 | C83: 2718.185555 | D83: 2018-01-04 | E83: 10 | G83: 6936 | H83: 3242.450713 | S83: 2018-03-22 | T83: 81 | U83: 1379.15622 | V83: 1355.023391 | W83: 1400.148121 | X83: 1412.516098 | Y83: 1469.503713 | Z83: 1598.014153 | AA83: 1782.218184 | AB83: 1798.273609 | AC83: 1672.446694 | AD83: 1548.334411 | AE83: 1427.092382 | AF83: 1375.654766 | AG83: 1329.902743 | AH83: 1233.136322 | AI83: 1239.721427 | AJ83: 1206.638976 | AK83: =OFFSET($C$1,($T83-1)*24+AK$2,0) -> 1205.897594 | AL83: 1289.667139 | AM83: 1341.335983 | AN83: 1392.789401 | AO83: 1539.794095 | AP83: 1525.929947 | AQ83: 1394.774166 | AR83: 1217.002143
A84: 2018-01-04T10:00:00 | B84: 6113 | C84: 2556.00932 | D84: 2018-01-04 | E84: 11 | G84: 6935 | H84: 3236.280415 | S84: 2018-03-23 | T84: 82 | U84: =OFFSET($C$1,($T84-1)*24+U$2,0) -> 1223.396598 | V84: 1155.364678 | W84: 1144.791399 | X84: 1162.255272 | Y84: 1178.391576 | Z84: 1293.856213 | AA84: 1448.113097 | AB84: 1502.017984 | AC84: 1431.920339 | AD84: 1377.120958 | AE84: 1376.333685 | AF84: 1321.180714 | AG84: 1290.018339 | AH84: 1305.690611 | AI84: 1326.39473 | AJ84: 1343.271435 | AK84: 1404.880905 | AL84: 1509.528369 | AM84: 1567.13917 | AN84: 1611.456461 | AO84: 1595.10705 | AP84: 1541.19829 | AQ84: 1441.49631 | AR84: 1345.550045
A85: 2018-01-04T11:00:00 | B85: 5921 | C85: 2412.363404 | D85: 2018-01-04 | E85: 12 | G85: 6930 | H85: 3231.167327 | S85: 2018-03-24 | T85: 83 | U85: 1243.905131 | V85: 1187.638973 | W85: 1183.942766 | X85: 1165.560833 | Y85: 1169.492916 | Z85: 1197.90571 | AA85: 1281.942424 | AB85: 1428.200844 | AC85: 1546.953932 | AD85: 1567.644808 | AE85: 1601.318662 | AF85: 1565.966817 | AG85: 1581.433558 | AH85: 1562.652048 | AI85: 1534.807978 | AJ85: 1545.121592 | AK85: 1568.485336 | AL85: 1603.887322 | AM85: 1629.731264 | AN85: 1667.368889 | AO85: 1677.020306 | AP85: 1611.798087 | AQ85: 1506.979417 | AR85: 1425.988747
A86: 2018-01-04T12:00:00 | B86: 5783 | C86: 2390.919877 | D86: 2018-01-04 | E86: 13 | G86: 6928 | H86: 3229.401572 | S86: 2018-03-25 | T86: 84 | U86: 1323.871147 | V86: 1322.120855 | W86: 1323.365596 | X86: 1322.621 | Y86: 1346.747718 | Z86: 1375.13752 | AA86: 1511.75853 | AB86: 1646.700913 | AC86: 1718.1818 | AD86: 1703.939829 | AE86: 1667.245357 | AF86: 1624.984467 | AG86: 1613.974896 | AH86: 1557.264321 | AI86: 1506.922946 | AJ86: 1496.87956 | AK86: 1524.591757 | AL86: 1538.282807 | AM86: 1599.523118 | AN86: 1671.858544 | AO86: 1657.576127 | AP86: 1607.889078 | AQ86: 1482.02342 | AR86: 1333.97631
A87: 2018-01-04T13:00:00 | B87: 5680 | C87: 2333.441073 | D87: 2018-01-04 | E87: 14 | G87: 6925 | H87: 3227.043402 | S87: 2018-03-26 | T87: 85 | U87: 1261.253582 | V87: 1267.241207 | W87: 1232.209326 | X87: 1224.177482 | Y87: 1318.367026 | Z87: 1422.503152 | AA87: 1608.270796 | AB87: 1642.790742 | AC87: 1564.401691 | AD87: 1588.26119 | AE87: 1567.196103 | AF87: 1569.52542 | AG87: 1553.644856 | AH87: 1520.688751 | AI87: 1471.71858 | AJ87: 1478.864903 | AK87: 1536.329868 | AL87: 1663.986284 | AM87: 1696.850261 | AN87: 1699.57331 | AO87: 1631.675597 | AP87: 1512.359421 | AQ87: 1349.123304 | AR87: 1216.999503
A88: 2018-01-04T14:00:00 | B88: 5616 | C88: 2322.660629 | D88: 2018-01-04 | E88: 15 | G88: 6923 | H88: 3215.788885 | S88: 2018-03-27 | T88: 86 | U88: 1079.754848 | V88: 994.4530123 | W88: 985.0625904 | X88: 935.8796631 | Y88: 947.6708751 | Z88: 1036.863059 | AA88: 1188.063338 | AB88: 1264.491994 | AC88: 1183.764196 | AD88: 1163.30021 | AE88: 1130.481864 | AF88: 1189.621204 | AG88: 1190.889785 | AH88: 1228.975196 | AI88: 1247.02324 | AJ88: 1244.274223 | AK88: 1332.550902 | AL88: 1448.659426 | AM88: 1556.232334 | AN88: 1562.572785 | AO88: 1577.103498 | AP88: 1497.006618 | AQ88: 1333.803262 | AR88: 1221.598492
A89: 2018-01-04T15:00:00 | B89: 5674 | C89: 2367.554531 | D89: 2018-01-04 | E89: 16 | G89: 6923 | H89: 3213.032712 | S89: 2018-03-28 | T89: 87 | U89: 1131.588947 | V89: 1125.21589 | W89: 1083.499625 | X89: 1089.292166 | Y89: 1132.030833 | Z89: 1229.11636 | AA89: 1405.022805 | AB89: 1468.53578 | AC89: 1449.887302 | AD89: 1428.335321 | AE89: 1409.96916 | AF89: 1287.294987 | AG89: 1288.597556 | AH89: 1215.798947 | AI89: 1260.033898 | AJ89: 1255.86488 | AK89: 1332.436666 | AL89: 1421.663853 | AM89: 1455.590541 | AN89: 1512.500045 | AO89: 1525.169581 | AP89: 1406.835713 | AQ89: 1268.048032 | AR89: 1136.261625
A90: 2018-01-04T16:00:00 | B90: 5899 | C90: 2582.331572 | D90: 2018-01-04 | E90: 17 | G90: 6914 | H90: 3213.005248 | S90: 2018-03-29 | T90: 88 | U90: 1049.662149 | V90: 1004.559606 | W90: 993.9959943 | X90: 983.8244211 | Y90: 1056.993815 | Z90: 1124.699434 | AA90: 1275.683336 | AB90: 1375.74516 | AC90: 1363.803843 | AD90: 1344.522139 | AE90: 1392.198549 | AF90: 1342.543547 | AG90: 1391.109117 | AH90: 1416.665705 | AI90: 1377.846544 | AJ90: 1428.918527 | AK90: 1489.596152 | AL90: 1515.536416 | AM90: 1657.445203 | AN90: 1699.652085 | AO90: 1669.715445 | AP90: 1602.798566 | AQ90: 1478.92225 | AR90: 1287.789201
A91: 2018-01-04T17:00:00 | B91: 6182 | C91: 2896.122275 | D91: 2018-01-04 | E91: 18 | G91: 6913 | H91: 3212.441927 | S91: 2018-03-30 | T91: 89 | U91: 1249.614549 | V91: 1199.468808 | W91: 1213.642244 | X91: 1139.662885 | Y91: 1204.758163 | Z91: 1349.077073 | AA91: 1493.175414 | AB91: 1517.323447 | AC91: 1413.209099 | AD91: 1388.520584 | AE91: 1312.976713 | AF91: 1230.477666 | AG91: 1154.518011 | AH91: 1150.081002 | AI91: 1100.537472 | AJ91: 1072.416621 | AK91: 1067.370653 | AL91: 1141.999451 | AM91: 1184.588471 | AN91: 1220.078204 | AO91: 1335.105538 | AP91: 1341.877937 | AQ91: 1371.308085 | AR91: 1298.885221
A92: 2018-01-04T18:00:00 | B92: 6163 | C92: 2951.838397 | D92: 2018-01-04 | E92: 19 | G92: 6911 | H92: 3212.378478 | S92: 2018-03-31 | T92: 90 | U92: 1288.605103 | V92: 1261.004063 | W92: 1251.162291 | X92: 1244.204024 | Y92: 1255.672591 | Z92: 1308.765876 | AA92: 1386.428983 | AB92: 1505.262003 | AC92: 1554.146371 | AD92: 1646.347886 | AE92: 1645.832757 | AF92: 1588.037942 | AG92: 1533.974318 | AH92: 1486.143434 | AI92: 1479.841701 | AJ92: 1523.790078 | AK92: 1447.879468 | AL92: 1479.401688 | AM92: 1491.809667 | AN92: 1529.78916 | AO92: 1534.938794 | AP92: 1528.770165 | AQ92: 1464.745341 | AR92: 1343.003171
A93: 2018-01-04T19:00:00 | B93: 6101 | C93: 2959.801249 | D93: 2018-01-04 | E93: 20 | G93: 6898 | H93: 3212.248702 | S93: 2018-04-01 | T93: 91 | U93: 1284.706471 | V93: 1235.387124 | W93: 1219.040826 | X93: 1229.578662 | Y93: 1261.334493 | Z93: 1356.708951 | AA93: 1523.456084 | AB93: 1724.492527 | AC93: 1803.059335 | AD93: 1756.90408 | AE93: 1699.415532 | AF93: 1704.121075 | AG93: 1716.865127 | AH93: 1687.996821 | AI93: 1774.606935 | AJ93: 1824.883917 | AK93: 1901.849032 | AL93: 1967.715607 | AM93: 2069.707905 | AN93: 2114.2868 | AO93: 2145.152684 | AP93: 2056.362793 | AQ93: 1803.55093 | AR93: 1649.721358
A94: 2018-01-04T20:00:00 | B94: 5994 | C94: 2893.346392 | D94: 2018-01-04 | E94: 21 | G94: 6896 | H94: 3210.735819 | S94: 2018-04-02 | T94: 92 | U94: 1563.973062 | V94: 1531.481549 | W94: 1496.484201 | X94: 1478.078855 | Y94: 1581.301451 | Z94: 1720.339814 | AA94: 1875.254453 | AB94: 1945.249416 | AC94: 1895.395927 | AD94: 1846.253637 | AE94: 1847.618151 | AF94: 1815.176226 | AG94: 1815.879179 | AH94: 1789.174441 | AI94: 1781.936054 | AJ94: 1774.739372 | AK94: 1894.349172 | AL94: 1994.869817 | AM94: 2033.790584 | AN94: 1999.366436 | AO94: 1966.486974 | AP94: 1797.170713 | AQ94: 1626.474255 | AR94: 1451.524145
A95: 2018-01-04T21:00:00 | B95: 5799 | C95: 2771.035861 | D95: 2018-01-04 | E95: 22 | G95: 6885 | H95: 3208.12119 | S95: 2018-04-03 | T95: 93 | U95: 1325.706753 | V95: 1270.884214 | W95: 1204.916099 | X95: 1180.286469 | Y95: 1190.353469 | Z95: 1296.951556 | AA95: 1433.093853 | AB95: 1444.922196 | AC95: 1355.887352 | AD95: 1277.106333 | AE95: 1295.200866 | AF95: 1134.281633 | AG95: 1102.455468 | AH95: 1039.536139 | AI95: 1092.454224 | AJ95: 1098.875289 | AK95: 1226.141304 | AL95: 1450.52477 | AM95: 1592.830182 | AN95: 1669.435609 | AO95: 1730.833994 | AP95: 1661.258976 | AQ95: 1561.555649 | AR95: 1465.588389
A96: 2018-01-04T22:00:00 | B96: 5515 | C96: 2553.934881 | D96: 2018-01-04 | E96: 23 | G96: 6876 | H96: 3207.579626 | S96: 2018-04-04 | T96: 94 | U96: 1425.275564 | V96: 1454.718389 | W96: 1448.323215 | X96: 1479.771181 | Y96: 1554.703712 | Z96: 1730.689681 | AA96: 1866.758988 | AB96: 1899.696591 | AC96: 1840.327275 | AD96: 1711.806599 | AE96: 1639.020651 | AF96: 1498.001067 | AG96: 1478.748315 | AH96: 1365.228291 | AI96: 1326.195999 | AJ96: 1322.780219 | AK96: 1282.716322 | AL96: 1422.640097 | AM96: 1495.801565 | AN96: 1632.614416 | AO96: 1785.749777 | AP96: 1754.443785 | AQ96: 1631.125399 | AR96: 1557.993197
A97: 2018-01-04T23:00:00 | B97: 5324 | C97: 2439.518983 | D97: 2018-01-04 | E97: 24 | G97: 6872 | H97: 3205.428126 | S97: 2018-04-05 | T97: 95 | U97: 1478.259508 | V97: 1505.147005 | W97: 1472.846488 | X97: 1512.882067 | Y97: 1562.365855 | Z97: 1697.317849 | AA97: 1896.413935 | AB97: 1870.17515 | AC97: 1682.000565 | AD97: 1397.695977 | AE97: 1311.269931 | AF97: 1166.380443 | AG97: 1062.880209 | AH97: 1025.498268 | AI97: 983.7593734 | AJ97: 962.0315918 | AK97: 982.5148338 | AL97: 1061.774514 | AM97: 1156.77632 | AN97: 1269.082441 | AO97: 1337.601877 | AP97: 1314.362157 | AQ97: 1222.000574 | AR97: 1102.873533
A98: 2018-01-05 | B98: 5221 | C98: 2345.726984 | D98: 2018-01-05 | E98: 1 | G98: 6872 | H98: 3205.191971 | S98: 2018-04-06 | T98: 96 | U98: 1030.344393 | V98: 998.5275104 | W98: 959.2209674 | X98: 985.9080623 | Y98: 1060.813468 | Z98: 1192.101706 | AA98: 1380.667623 | AB98: 1443.436837 | AC98: 1293.653018 | AD98: 1285.33663 | AE98: 1185.807119 | AF98: 1171.659394 | AG98: 1144.526813 | AH98: 1091.119955 | AI98: 1063.339328 | AJ98: 1177.217585 | AK98: 1255.992843 | AL98: 1467.649123 | AM98: 1568.223661 | AN98: 1679.402912 | AO98: 1745.997533 | AP98: 1722.300583 | AQ98: 1681.195142 | AR98: 1588.695683
A99: 2018-01-05T01:00:00 | B99: 5177 | C99: 2310.249121 | D99: 2018-01-05 | E99: 2 | G99: 6871 | H99: 3205.188256 | S99: 2018-04-07 | T99: 97 | U99: 1551.194147 | V99: 1504.295447 | W99: 1515.281369 | X99: 1517.29088 | Y99: 1565.986145 | Z99: 1633.551044 | AA99: 1760.28641 | AB99: 1903.934591 | AC99: 1905.471908 | AD99: 1848.331539 | AE99: 1752.673984 | AF99: 1669.825498 | AG99: 1585.54458 | AH99: 1481.651166 | AI99: 1377.749902 | AJ99: =OFFSET($C$1,($T99-1)*24+AJ$2,0) -> 1368.002466 | AK99: 1348.992148 | AL99: 1365.244761 | AM99: 1440.560377 | AN99: 1576.763149 | AO99: 1644.67697 | AP99: 1699.070609 | AQ99: 1615.656556 | AR99: 1575.016239
A100: 2018-01-05T02:00:00 | B100: 5184 | C100: 2301.025279 | D100: 2018-01-05 | E100: 3 | G100: 6870 | H100: 3203.996145 | S100: 2018-04-08 | T100: 98 | U100: =OFFSET($C$1,($T100-1)*24+U$2,0) -> 1493.201966 | V100: 1492.335349 | W100: 1505.694445 | X100: 1517.192526 | Y100: 1531.456913 | Z100: 1569.187568 | AA100: 1672.715243 | AB100: 1799.990319 | AC100: 1842.666741 | AD100: 1896.718072 | AE100: 1798.871924 | AF100: 1773.253325 | AG100: 1739.033069 | AH100: 1698.5292 | AI100: 1686.027451 | AJ100: 1648.78578 | AK100: 1732.555274 | AL100: 1837.139162 | AM100: 1907.849777 | AN100: 1892.993283 | AO100: 1910.115879 | AP100: 1785.659609 | AQ100: 1620.663402 | AR100: 1478.359232
A101: 2018-01-05T03:00:00 | B101: 5212 | C101: 2307.294884 | D101: 2018-01-05 | E101: 4 | G101: 6867 | H101: 3197.7124 | S101: 2018-04-09 | T101: 99 | U101: 1379.214467 | V101: 1350.704511 | W101: 1330.955007 | X101: 1350.111023 | Y101: 1411.444037 | Z101: 1514.271376 | AA101: 1729.382838 | AB101: 1728.134902 | AC101: 1592.689365 | AD101: 1485.286339 | AE101: 1336.403693 | AF101: 1234.21297 | AG101: 1200.640176 | AH101: 1111.752551 | AI101: 1111.955651 | AJ101: 1068.15511 | AK101: 1124.937712 | AL101: 1264.183781 | AM101: 1430.419902 | AN101: 1547.213886 | AO101: 1617.386446 | AP101: 1546.97691 | AQ101: 1410.250846 | AR101: 1293.036518
A102: 2018-01-05T04:00:00 | B102: 5352 | C102: 2396.802845 | D102: 2018-01-05 | E102: 5 | G102: 6866 | H102: 3195.837588 | S102: 2018-04-10 | T102: 100 | U102: 1213.151376 | V102: 1218.474433 | W102: 1196.109659 | X102: 1212.599755 | Y102: 1275.308702 | Z102: 1409.678045 | AA102: 1591.337846 | AB102: 1602.292022 | AC102: 1520.933096 | AD102: 1425.53546 | AE102: 1340.013301 | AF102: 1261.680927 | AG102: 1249.667298 | AH102: 1113.930121 | AI102: 1038.888876 | AJ102: 998.2094698 | AK102: 1049.03307 | AL102: 1126.385871 | AM102: 1235.307454 | AN102: 1357.20668 | AO102: 1461.755981 | AP102: 1427.509178 | AQ102: 1289.785792 | AR102: 1158.396271
A103: 2018-01-05T05:00:00 | B103: 5597 | C103: 2519.335907 | D103: 2018-01-05 | E103: 6 | G103: 6857 | H103: 3195.499776 | S103: 2018-04-11 | T103: 101 | U103: 1105.47895 | V103: 1070.857176 | W103: 1061.87426 | X103: 1037.416378 | Y103: 1079.329569 | Z103: 1226.756964 | AA103: 1372.366487 | AB103: 1376.055467 | AC103: 1191.95379 | AD103: 1008.476887 | AE103: 940.9698335 | AF103: 859.3117055 | AG103: 842.2759345 | AH103: 838.0680189 | AI103: 839.7376789 | AJ103: 883.8248575 | AK103: 912.58921 | AL103: 991.83133 | AM103: 1064.052609 | AN103: 1144.33553 | AO103: 1228.791156 | AP103: 1127.995526 | AQ103: 987.4663821 | AR103: 869.7043943
A104: 2018-01-05T06:00:00 | B104: 5927 | C104: 2655.278512 | D104: 2018-01-05 | E104: 7 | G104: 6853 | H104: 3193.611963 | S104: 2018-04-12 | T104: 102 | U104: 783.0540935 | V104: 738.5062899 | W104: 723.7073832 | X104: 707.9363948 | Y104: 736.2718719 | Z104: 848.5338177 | AA104: 1017.682446 | AB104: 1035.314145 | AC104: 910.8689089 | AD104: 785.8813728 | AE104: 856.6579165 | AF104: 831.28945 | AG104: 797.0418903 | AH104: 870.3583747 | AI104: 877.8789077 | AJ104: 930.7123238 | AK104: 1041.008778 | AL104: 1214.842192 | AM104: 1284.760029 | AN104: 1346.013684 | AO104: 1424.370949 | AP104: 1317.744628 | AQ104: 1183.158594 | AR104: 941.0792837
A105: 2018-01-05T07:00:00 | B105: 6038 | C105: 2658.805207 | D105: 2018-01-05 | E105: 8 | G105: 6852 | H105: 3193.130777 | S105: 2018-04-13 | T105: 103 | U105: 833.6203205 | V105: 774.3586305 | W105: 762.1805654 | X105: 662.6837312 | Y105: 663.6790087 | Z105: 775.6525556 | AA105: 919.5027735 | AB105: 970.0191626 | AC105: 945.9811799 | AD105: 948.9244987 | AE105: 893.2437875 | AF105: 889.9958048 | AG105: 912.9568187 | AH105: 906.3007441 | AI105: 973.6268659 | AJ105: 1012.798793 | AK105: 1060.791812 | AL105: 1171.045334 | AM105: 1227.448341 | AN105: 1262.635699 | AO105: 1290.983987 | AP105: 1184.84688 | AQ105: 1054.518394 | AR105: 924.9385823
A106: 2018-01-05T08:00:00 | B106: 6042 | C106: 2633.811349 | D106: 2018-01-05 | E106: 9 | G106: 6851 | H106: 3192.907416 | S106: 2018-04-14 | T106: 104 | U106: 820.816313 | V106: 767.6850984 | W106: 716.1786434 | X106: 698.6599909 | Y106: 679.5809567 | Z106: 674.4225402 | AA106: 749.818011 | AB106: 869.7415293 | AC106: 983.1714743 | AD106: 1055.829103 | AE106: 1118.846772 | AF106: 1144.796647 | AG106: 1153.845471 | AH106: 1131.424359 | AI106: 1131.465912 | AJ106: 1133.815126 | AK106: 1163.90113 | AL106: 1179.333372 | AM106: 1187.234651 | AN106: 1199.319816 | AO106: 1299.84558 | AP106: 1286.484564 | AQ106: 1172.257568 | AR106: 1071.840799
A107: 2018-01-05T09:00:00 | B107: 5980 | C107: 2545.698928 | D107: 2018-01-05 | E107: 10 | G107: 6847 | H107: 3192.738305 | S107: 2018-04-15 | T107: 105 | U107: 1008.146543 | V107: 1010.544295 | W107: 989.8373237 | X107: 1000.924086 | Y107: 1006.723904 | Z107: 1048.625147 | AA107: 1159.262568 | AB107: 1400.689254 | AC107: 1477.127405 | AD107: 1581.884917 | AE107: 1621.667977 | AF107: 1627.153559 | AG107: 1683.144499 | AH107: 1703.891316 | AI107: 1711.909396 | AJ107: 1758.594361 | AK107: 1837.021865 | AL107: 1900.702934 | AM107: 1977.184837 | AN107: 2012.885018 | AO107: 1960.92867 | AP107: 1858.514705 | AQ107: 1740.606842 | AR107: 1580.273452
A108: 2018-01-05T10:00:00 | B108: 5873 | C108: 2477.062399 | D108: 2018-01-05 | E108: 11 | G108: 6847 | H108: 3189.47751 | S108: 2018-04-16 | T108: 106 | U108: 1457.397909 | V108: 1459.596192 | W108: 1452.874952 | X108: 1450.658316 | Y108: 1538.565093 | Z108: 1689.181256 | AA108: 1881.879273 | AB108: 1955.593579 | AC108: 1865.058817 | AD108: 1857.226307 | AE108: 1731.824206 | AF108: 1616.824019 | AG108: 1421.276948 | AH108: 1454.648423 | AI108: 1364.05772 | AJ108: 1221.641529 | AK108: 1217.281928 | AL108: 1318.024058 | AM108: 1381.867493 | AN108: 1504.725801 | AO108: 1593.077844 | AP108: 1541.680365 | AQ108: 1449.463805 | AR108: 1324.25543
A109: 2018-01-05T11:00:00 | B109: 5714 | C109: 2349.226526 | D109: 2018-01-05 | E109: 12 | G109: 6845 | H109: 3188.153738 | S109: 2018-04-17 | T109: 107 | U109: 1275.753409 | V109: 1252.472397 | W109: 1321.462361 | X109: 1330.589977 | Y109: 1395.831512 | Z109: 1538.466992 | AA109: 1751.046116 | AB109: 1657.571338 | AC109: 1446.687778 | AD109: 1321.411432 | AE109: 1204.658743 | AF109: 1076.404452 | AG109: 1015.939379 | AH109: 961.6993461 | AI109: 889.6859712 | AJ109: 840.4768461 | AK109: 955.9902087 | AL109: 1057.787079 | AM109: 1140.981748 | AN109: 1227.049677 | AO109: 1298.386696 | AP109: 1221.007452 | AQ109: 1078.223438 | AR109: 961.6245424
A110: 2018-01-05T12:00:00 | B110: 5558 | C110: 2244.643018 | D110: 2018-01-05 | E110: 13 | G110: 6839 | H110: 3187.340465 | S110: 2018-04-18 | T110: 108 | U110: 930.1664703 | V110: 876.7065273 | W110: 855.9256434 | X110: 880.1502244 | Y110: 951.0750685 | Z110: 1100.517623 | AA110: 1292.440019 | AB110: 1282.080603 | AC110: 1079.685427 | AD110: 973.964632 | AE110: 927.1946689 | AF110: 880.2313603 | AG110: 889.2947259 | AH110: 901.4856575 | AI110: 917.2174327 | AJ110: 959.8114065 | AK110: 1009.430682 | AL110: 1187.912186 | AM110: 1291.772066 | AN110: 1385.165756 | AO110: 1426.708436 | AP110: 1373.596752 | AQ110: 1261.654719 | AR110: 1167.647353
A111: 2018-01-05T13:00:00 | B111: 5459 | C111: 2201.662366 | D111: 2018-01-05 | E111: 14 | G111: 6837 | H111: 3185.127904 | S111: 2018-04-19 | T111: 109 | U111: 1142.634444 | V111: 1128.568311 | W111: 1119.754 | X111: 1146.874996 | Y111: 1212.985479 | Z111: 1386.999736 | AA111: 1586.410383 | AB111: 1592.012518 | AC111: 1430.873255 | AD111: 1332.967988 | AE111: 1204.201502 | AF111: 1136.118437 | AG111: 1086.853902 | AH111: 1076.27836 | AI111: 1004.127782 | AJ111: 973.1109782 | AK111: 1033.447129 | AL111: 1120.591935 | AM111: 1155.064105 | AN111: 1166.897454 | AO111: 1410.337267 | AP111: 1376.244813 | AQ111: 1254.702377 | AR111: 1183.647195
A112: 2018-01-05T14:00:00 | B112: 5361 | C112: 2151.733917 | D112: 2018-01-05 | E112: 15 | G112: 6837 | H112: 3183.364672 | S112: 2018-04-20 | T112: 110 | U112: 1125.355376 | V112: 1094.009285 | W112: 1132.885772 | X112: 1138.732954 | Y112: 1225.66043 | Z112: 1362.394328 | AA112: 1564.356566 | AB112: 1476.38316 | AC112: 1322.904813 | AD112: 1175.835817 | AE112: 1072.278644 | AF112: 1018.684945 | AG112: 949.9213762 | AH112: 932.1896014 | AI112: 911.9172398 | AJ112: 908.9204321 | AK112: 875.2707288 | AL112: 984.7958076 | AM112: 1032.081649 | AN112: 1087.699637 | AO112: 1153.897616 | AP112: 1141.100007 | AQ112: 1083.620508 | AR112: 1012.244797
A113: 2018-01-05T15:00:00 | B113: 5339 | C113: 2215.991544 | D113: 2018-01-05 | E113: 16 | G113: 6835 | H113: 3180.01902 | S113: 2018-04-21 | T113: 111 | U113: 919.5437185 | V113: 929.2977127 | W113: 941.1709568 | X113: 944.6326708 | Y113: 969.6725023 | Z113: 1047.916109 | AA113: 1176.698583 | AB113: 1233.098004 | AC113: 1244.829747 | AD113: 1204.35733 | AE113: 1156.883225 | AF113: 1096.816913 | AG113: 1041.046814 | AH113: 986.1461097 | AI113: 969.7347971 | AJ113: 984.6908009 | AK113: 1017.67667 | AL113: 1061.595556 | AM113: 1078.367194 | AN113: 1104.127154 | AO113: 1126.869946 | AP113: 1098.148597 | AQ113: 1018.974386 | AR113: 900.9868858
A114: 2018-01-05T16:00:00 | B114: 5543 | C114: 2424.143534 | D114: 2018-01-05 | E114: 17 | G114: 6834 | H114: 3179.188303 | S114: 2018-04-22 | T114: 112 | U114: 816.8058729 | V114: 782.4442533 | W114: 756.3084275 | X114: 759.5775261 | Y114: 745.4891716 | Z114: 775.302261 | AA114: 890.3443644 | AB114: 1013.136761 | AC114: 1145.87486 | AD114: 1217.444734 | AE114: 1200.414135 | AF114: 1206.382519 | AG114: 1234.304914 | AH114: 1206.499034 | AI114: 1211.145068 | AJ114: 1244.417352 | AK114: 1297.724604 | AL114: 1361.042763 | AM114: 1383.144301 | AN114: 1384.282063 | AO114: 1349.069466 | AP114: 1243.005267 | AQ114: 1100.151118 | AR114: 959.2986341
A115: 2018-01-05T17:00:00 | B115: 5900 | C115: 2685.093187 | D115: 2018-01-05 | E115: 18 | G115: 6830 | H115: 3178.233708 | S115: 2018-04-23 | T115: 113 | U115: 815.6964201 | V115: 800.2496776 | W115: 785.701396 | X115: 788.1680884 | Y115: 810.6274242 | Z115: 934.7276822 | AA115: 1151.131425 | AB115: 1148.101111 | AC115: 1095.106181 | AD115: 1024.519399 | AE115: 1070.481142 | AF115: 1031.471753 | AG115: 1003.264907 | AH115: 1020.855574 | AI115: 1035.164317 | AJ115: 1002.010217 | AK115: =OFFSET($C$1,($T115-1)*24+AK$2,0) -> 1102.413028 | AL115: 1205.487865 | AM115: 1264.289925 | AN115: 1284.211238 | AO115: 1294.214308 | AP115: 1222.186645 | AQ115: 1067.861253 | AR115: 911.2426976
A116: 2018-01-05T18:00:00 | B116: 5936 | C116: 2780.004284 | D116: 2018-01-05 | E116: 19 | G116: 6823 | H116: 3177.299449 | S116: 2018-04-24 | T116: 114 | U116: =OFFSET($C$1,($T116-1)*24+U$2,0) -> 830.7951191 | V116: 783.2297547 | W116: 743.1495391 | X116: 747.0009777 | Y116: 749.5018454 | Z116: 879.2672591 | AA116: 1072.022513 | AB116: 1091.315843 | AC116: 1010.144915 | AD116: 985.4416237 | AE116: 927.8247699 | AF116: 892.2198544 | AG116: 928.5732552 | AH116: 920.6561513 | AI116: 866.8958752 | AJ116: 897.3873168 | AK116: 930.1864112 | AL116: 1073.899856 | AM116: 1077.770618 | AN116: 1098.548321 | AO116: 1195.285433 | AP116: 1189.247573 | AQ116: 1023.460058 | AR116: 869.3364431
A117: 2018-01-05T19:00:00 | B117: 5948 | C117: 2806.688705 | D117: 2018-01-05 | E117: 20 | G117: 6823 | H117: 3174.747479 | S117: 2018-04-25 | T117: 115 | U117: 795.13898 | V117: 765.9525075 | W117: 725.6069386 | X117: 732.9223048 | Y117: 790.0391755 | Z117: 904.1659465 | AA117: 1090.493023 | AB117: 1094.247873 | AC117: 958.5035686 | AD117: 897.9353844 | AE117: 837.0379275 | AF117: 834.2664804 | AG117: 835.807446 | AH117: 858.6859875 | AI117: 845.3015133 | AJ117: 868.5057601 | AK117: 963.155119 | AL117: 1083.553182 | AM117: 1156.739661 | AN117: 1179.953015 | AO117: 1212.063759 | AP117: 1170.015738 | AQ117: 1033.986713 | AR117: 903.5924955
A118: 2018-01-05T20:00:00 | B118: 5895 | C118: 2841.068438 | D118: 2018-01-05 | E118: 21 | G118: 6822 | H118: 3171.78602 | S118: 2018-04-26 | T118: 116 | U118: 823.4904568 | V118: 754.2917627 | W118: 745.0438291 | X118: 737.5394253 | Y118: 778.7271793 | Z118: 890.7415367 | AA118: 1044.011105 | AB118: 1112.072046 | AC118: 993.8087575 | AD118: 932.5405785 | AE118: 840.1027066 | AF118: 879.080062 | AG118: 939.7568037 | AH118: 907.4819878 | AI118: 901.2272781 | AJ118: 845.4413637 | AK118: 925.7513637 | AL118: 1041.239379 | AM118: 1107.439851 | AN118: 1031.435787 | AO118: 1194.977259 | AP118: 1132.493083 | AQ118: 1018.053662 | AR118: 864.8725069
A119: 2018-01-05T21:00:00 | B119: 5812 | C119: 2799.704205 | D119: 2018-01-05 | E119: 22 | G119: 6819 | H119: 3171.137973 | S119: 2018-04-27 | T119: 117 | U119: 794.5211906 | V119: 733.0738168 | W119: 710.0094061 | X119: 691.2626718 | Y119: 753.6471982 | Z119: 861.0784112 | AA119: 1045.579943 | AB119: 1085.72922 | AC119: 969.8134763 | AD119: 919.4107013 | AE119: 880.0738226 | AF119: 852.1038066 | AG119: 848.4605912 | AH119: 884.3683038 | AI119: 844.0515474 | AJ119: 873.4719573 | AK119: 929.1546235 | AL119: 1030.372597 | AM119: 1054.737693 | AN119: 1073.234347 | AO119: 1125.607866 | AP119: 1092.423452 | AQ119: 1006.284847 | AR119: 923.0855122
A120: 2018-01-05T22:00:00 | B120: 5636 | C120: 2687.983952 | D120: 2018-01-05 | E120: 23 | G120: 6819 | H120: 3164.423297 | S120: 2018-04-28 | T120: 118 | U120: 757.5973315 | V120: 716.1965309 | W120: 661.2270298 | X120: 679.2749396 | Y120: 692.338432 | Z120: 757.8441955 | AA120: 843.4629547 | AB120: 962.6311743 | AC120: 1036.047423 | AD120: 1011.98293 | AE120: 1004.368665 | AF120: 977.4742965 | AG120: 951.6139754 | AH120: 943.4510756 | AI120: 943.202921 | AJ120: 987.3858268 | AK120: 1018.418146 | AL120: 1054.972565 | AM120: 1060.053386 | AN120: 1058.713213 | AO120: 1114.89103 | AP120: 1100.967425 | AQ120: 1026.651695 | AR120: 940.5001353
A121: 2018-01-05T23:00:00 | B121: 5498 | C121: 2600.368311 | D121: 2018-01-05 | E121: 24 | G121: 6817 | H121: 3162.195817 | S121: 2018-04-29 | T121: 119 | U121: 877.0001787 | V121: 846.1402372 | W121: 831.8756774 | X121: 875.7067938 | Y121: 831.3714858 | Z121: 890.2480105 | AA121: 970.6853048 | AB121: 1093.317707 | AC121: 1157.428593 | AD121: 1155.349813 | AE121: 1130.179229 | AF121: 1075.026692 | AG121: 1051.886416 | AH121: 1054.727186 | AI121: 1038.78173 | AJ121: 1016.948229 | AK121: 1064.029191 | AL121: 1136.178618 | AM121: 1137.557203 | AN121: 1125.943011 | AO121: 1208.732436 | AP121: 1183.858508 | AQ121: 995.6401963 | AR121: 868.4063989
A122: 2018-01-06 | B122: 5433 | C122: 2555.10408 | D122: 2018-01-06 | E122: 1 | G122: 6814 | H122: 3161.981836 | S122: 2018-04-30 | T122: 120 | U122: 739.7694205 | V122: 722.354884 | W122: 700.7879518 | X122: 688.5600915 | Y122: 747.1700177 | Z122: 882.8030503 | AA122: 1073.185725 | AB122: 1056.007629 | AC122: 954.7038644 | AD122: 887.8187529 | AE122: 847.7882375 | AF122: 808.6794398 | AG122: 826.680246 | AH122: 810.0207765 | AI122: 851.5904677 | AJ122: 929.9525117 | AK122: 996.3469249 | AL122: 1170.858331 | AM122: 1254.817157 | AN122: 1265.072532 | AO122: 1356.262989 | AP122: 1290.279633 | AQ122: 1090.010751 | AR122: 917.4434895
A123: 2018-01-06T01:00:00 | B123: 5393 | C123: 2508.597582 | D123: 2018-01-06 | E123: 2 | G123: 6813 | H123: 3159.492024 | S123: 2018-05-01 | T123: 121 | U123: 727.6668688 | V123: 603.8721343 | W123: 615.6556226 | X123: 586.8248954 | Y123: 607.0818654 | Z123: 682.1822726 | AA123: 833.2606728 | AB123: 845.1238393 | AC123: 826.1713946 | AD123: 807.7182712 | AE123: 757.2039385 | AF123: 777.8076172 | AG123: 890.2927774 | AH123: 953.7837708 | AI123: 1038.857669 | AJ123: 1094.536798 | AK123: 1236.976442 | AL123: 1389.810742 | AM123: 1466.547689 | AN123: 1387.598038 | AO123: 1449.288403 | AP123: 1417.16258 | AQ123: 1230.968159 | AR123: 1062.745344
A124: 2018-01-06T02:00:00 | B124: 5394 | C124: 2514.079782 | D124: 2018-01-06 | E124: 3 | G124: 6812 | H124: 3158.128121 | S124: 2018-05-02 | T124: 122 | U124: 883.9368653 | V124: 772.0008068 | W124: 709.1635385 | X124: 665.5643629 | Y124: 677.2397191 | Z124: 751.7053113 | AA124: 891.9343157 | AB124: 950.9146024 | AC124: 928.7593097 | AD124: 966.80082 | AE124: 1017.008651 | AF124: 1049.521137 | AG124: 1131.023974 | AH124: 1216.214499 | AI124: 1285.842897 | AJ124: 1396.661146 | AK124: 1568.918446 | AL124: 1731.128487 | AM124: 1781.263931 | AN124: 1811.657683 | AO124: 1811.440296 | AP124: 1728.934311 | AQ124: 1530.549476 | AR124: 1299.4037
A125: 2018-01-06T03:00:00 | B125: 5431 | C125: 2516.15208 | D125: 2018-01-06 | E125: 4 | G125: 6811 | H125: 3158.068502 | S125: 2018-05-03 | T125: 123 | U125: 1099.770063 | V125: 1016.448503 | W125: 908.8748695 | X125: 912.4318581 | Y125: 887.8909326 | Z125: 867.0012556 | AA125: 1018.746464 | AB125: 1046.99122 | AC125: 1017.353979 | AD125: 1010.841508 | AE125: 1033.77464 | AF125: 997.1880363 | AG125: 974.1219973 | AH125: 997.0893612 | AI125: 1010.00313 | AJ125: 1014.235833 | AK125: 1055.191395 | AL125: 1210.349974 | AM125: 1269.372638 | AN125: 1311.499124 | AO125: 1306.980091 | AP125: 1243.875825 | AQ125: 1089.844131 | AR125: 873.5925772
A126: 2018-01-06T04:00:00 | B126: 5511 | C126: 2539.268594 | D126: 2018-01-06 | E126: 5 | G126: 6806 | H126: 3157.813022 | S126: 2018-05-04 | T126: 124 | U126: 758.6275507 | V126: 699.6931602 | W126: 663.7997567 | X126: 610.5783123 | Y126: 646.1198556 | Z126: 686.2987236 | AA126: 840.3296241 | AB126: 889.986303 | AC126: 872.6177459 | AD126: 881.9387339 | AE126: 933.7851463 | AF126: 941.0773821 | AG126: 1001.272911 | AH126: 1032.55864 | AI126: 1053.150775 | AJ126: 1129.016311 | AK126: 1188.308224 | AL126: 1259.319789 | AM126: 1278.234056 | AN126: 1209.136242 | AO126: 1079.150623 | AP126: 1069.864269 | AQ126: 966.6373571 | AR126: 851.292016
A127: 2018-01-06T05:00:00 | B127: 5658 | C127: 2617.494271 | D127: 2018-01-06 | E127: 6 | G127: 6804 | H127: 3156.719187 | S127: 2018-05-05 | T127: 125 | U127: 736.6227959 | V127: 637.5524032 | W127: 599.6118504 | X127: 582.7458 | Y127: 604.4394197 | Z127: 601.8299324 | AA127: 651.2734053 | AB127: 754.5978332 | AC127: 879.1477162 | AD127: 941.9598663 | AE127: 969.66018 | AF127: 1036.973583 | AG127: 1142.160342 | AH127: 1209.371562 | AI127: 1310.07763 | AJ127: 1424.339298 | AK127: 1491.907057 | AL127: 1546.391467 | AM127: 1559.474429 | AN127: 1375.787511 | AO127: 1298.111698 | AP127: 1186.502817 | AQ127: 1016.794259 | AR127: 859.0617847
A128: 2018-01-06T06:00:00 | B128: 5836 | C128: 2710.783161 | D128: 2018-01-06 | E128: 7 | G128: 6796 | H128: 3153.957481 | S128: 2018-05-06 | T128: 126 | U128: 703.6546286 | V128: 627.3194926 | W128: 620.950471 | X128: 603.6134268 | Y128: 585.3021177 | Z128: 584.2694598 | AA128: 632.6214613 | AB128: 739.6136572 | AC128: 827.0645302 | AD128: 887.7544192 | AE128: 975.0974436 | AF128: 1036.669585 | AG128: 1217.809179 | AH128: 1342.320555 | AI128: 1471.677598 | AJ128: 1616.739492 | AK128: 1714.021585 | AL128: 1821.269336 | AM128: 1782.051887 | AN128: 1706.730242 | AO128: 1648.450534 | AP128: 1464.94604 | AQ128: 1219.349697 | AR128: 982.1034713
A129: 2018-01-06T07:00:00 | B129: 5965 | C129: 2852.469026 | D129: 2018-01-06 | E129: 8 | G129: 6795 | H129: 3153.240432 | S129: 2018-05-07 | T129: 127 | U129: 782.3381933 | V129: 670.4737964 | W129: 618.033755 | X129: 607.7685956 | Y129: 640.0223767 | Z129: 684.5913736 | AA129: 834.5798616 | AB129: 872.3853298 | AC129: 863.7945664 | AD129: 837.6470247 | AE129: 886.320106 | AF129: 969.0565807 | AG129: 1001.224379 | AH129: 1103.905873 | AI129: 1175.797154 | AJ129: 1319.990568 | AK129: 1467.599549 | AL129: 1642.87169 | AM129: 1703.499606 | AN129: 1562.016343 | AO129: 1442.923877 | AP129: 1280.988568 | AQ129: 1137.287458 | AR129: 936.9580916
A130: 2018-01-06T08:00:00 | B130: 5965 | C130: 2892.799201 | D130: 2018-01-06 | E130: 9 | G130: 6792 | H130: 3151.83897 | S130: 2018-05-08 | T130: 128 | U130: 825.796459 | V130: 679.1962645 | W130: 605.3488138 | X130: 584.8019625 | Y130: 604.9825494 | Z130: 678.8800307 | AA130: 818.2780776 | AB130: 842.6472774 | AC130: 781.3680624 | AD130: 829.7158933 | AE130: 848.3524419 | AF130: 883.5600707 | AG130: 939.2415283 | AH130: 1016.812748 | AI130: 1167.944797 | AJ130: 1291.178397 | AK130: 1490.078022 | AL130: 1656.988837 | AM130: 1597.356834 | AN130: 1575.642426 | AO130: 1591.23871 | AP130: 1529.30085 | AQ130: 1262.452487 | AR130: 1027.17746
A131: 2018-01-06T09:00:00 | B131: 5861 | C131: 2842.242602 | D131: =ROUNDDOWN(A131,0) -> 2018-01-06 | E131: =ROUND((A131-D131)*24,0)+1 -> 10 | G131: 6792 | H131: 3148.343438 | S131: 2018-05-09 | T131: 129 | U131: 887.4979636 | V131: 741.9486178 | W131: 715.0973305 | X131: 667.6434731 | Y131: 690.6098286 | Z131: 716.1011347 | AA131: 867.2634165 | AB131: 918.1908937 | AC131: 893.7185424 | AD131: 877.7928614 | AE131: 935.5514112 | AF131: 1021.32658 | AG131: 1208.368629 | AH131: 1346.438313 | AI131: 1529.747437 | AJ131: =OFFSET($C$1,($T131-1)*24+AJ$2,0) -> 1686.266001 | AK131: 1858.345352 | AL131: 2041.21574 | AM131: 2048.349392 | AN131: 1953.88095 | AO131: 1879.320791 | AP131: 1728.93393 | AQ131: 1505.930402 | AR131: 1198.751627
A132: 2018-01-06T10:00:00 | B132: 5688 | C132: 2734.998477 | D132: 2018-01-06 | E132: 11 | G132: 6789 | H132: 3145.91934 | S132: 2018-05-10 | T132: 130 | U132: =OFFSET($C$1,($T132-1)*24+U$2,0) -> 979.8520981 | V132: 842.7069301 | W132: 746.5164211 | X132: 689.1620625 | Y132: 681.3345451 | Z132: 718.2757682 | AA132: 847.9736465 | AB132: 903.6179863 | AC132: 899.9447075 | AD132: 943.03096 | AE132: 1076.399648 | AF132: 1182.645882 | AG132: 1361.21131 | AH132: 1539.735441 | AI132: 1745.222947 | AJ132: 1923.911017 | AK132: 2048.702124 | AL132: 2160.843439 | AM132: 2196.733269 | AN132: 2089.060783 | AO132: 2040.923385 | AP132: 1924.456561 | AQ132: 1679.734662 | AR132: 1420.574161
A133: 2018-01-06T11:00:00 | B133: 5534 | C133: 2626.195301 | D133: 2018-01-06 | E133: 12 | G133: 6785 | H133: 3143.956957 | S133: 2018-05-11 | T133: 131 | U133: 1168.580648 | V133: 1016.409959 | W133: 847.5474136 | X133: 816.0485927 | Y133: 784.9979962 | Z133: 825.2566263 | AA133: 938.1366591 | AB133: 1034.591567 | AC133: 1020.989706 | AD133: 1084.863653 | AE133: 1212.033151 | AF133: 1366.381772 | AG133: 1550.835931 | AH133: 1610.745679 | AI133: 1630.219137 | AJ133: 1803.505607 | AK133: 2044.691287 | AL133: 2184.994578 | AM133: 2164.408895 | AN133: 2014.387476 | AO133: 1910.385523 | AP133: 1795.669218 | AQ133: 1628.722162 | AR133: 1394.955281
A134: 2018-01-06T12:00:00 | B134: 5329 | C134: 2502.581127 | D134: 2018-01-06 | E134: 13 | G134: 6780 | H134: 3136.545487 | S134: 2018-05-12 | T134: 132 | U134: 1138.739591 | V134: 988.9710776 | W134: 879.2576371 | X134: 828.4961778 | Y134: 769.0495964 | Z134: 811.6278276 | AA134: 867.043916 | AB134: 988.3214356 | AC134: 1184.226026 | AD134: 1410.988733 | AE134: 1594.125047 | AF134: 1729.469268 | AG134: 1838.01655 | AH134: 1991.175334 | AI134: 2135.415873 | AJ134: 2285.618759 | AK134: 2411.497799 | AL134: 2460.146085 | AM134: 2420.696129 | AN134: 2235.979018 | AO134: 2121.381839 | AP134: 1964.323601 | AQ134: 1746.139684 | AR134: 1525.331043
A135: 2018-01-06T13:00:00 | B135: 5174 | C135: 2398.409926 | D135: 2018-01-06 | E135: 14 | G135: 6777 | H135: 3136.0373 | S135: 2018-05-13 | T135: 133 | U135: 1267.565002 | V135: 1108.997638 | W135: 974.1163519 | X135: 920.0744462 | Y135: 858.5593717 | Z135: 795.7090941 | AA135: 844.9908278 | AB135: 1060.607747 | AC135: 1345.306596 | AD135: 1645.862967 | AE135: 1813.010199 | AF135: 1994.489228 | AG135: 2232.200315 | AH135: 2423.826387 | AI135: 2558.411034 | AJ135: 2648.460966 | AK135: 2714.715332 | AL135: 2749.324794 | AM135: 2727.718022 | AN135: 2542.360763 | AO135: 2450.632183 | AP135: 2258.943998 | AQ135: 1959.294258 | AR135: 1637.83447
A136: 2018-01-06T14:00:00 | B136: 5072 | C136: 2362.394334 | D136: 2018-01-06 | E136: 15 | G136: 6774 | H136: 3133.79111 | S136: 2018-05-14 | T136: 134 | U136: 1383.115043 | V136: 1192.465756 | W136: 1076.343617 | X136: 1038.158584 | Y136: 996.9847316 | Z136: 979.0197387 | AA136: 1116.07303 | AB136: 1229.777583 | AC136: 1305.766942 | AD136: 1431.436304 | AE136: 1652.914469 | AF136: 1801.212466 | AG136: 1964.459793 | AH136: 2193.096311 | AI136: 2358.080168 | AJ136: 2524.500237 | AK136: 2672.839362 | AL136: 2669.158143 | AM136: 2408.200295 | AN136: 2126.339412 | AO136: 1962.994419 | AP136: 1766.495499 | AQ136: 1512.501668 | AR136: 1269.067909
A137: 2018-01-06T15:00:00 | B137: 5092 | C137: 2395.0146 | D137: 2018-01-06 | E137: 16 | G137: 6773 | H137: 3133.654807 | S137: 2018-05-15 | T137: 135 | U137: 1095.937326 | V137: 971.0505396 | W137: 911.1607633 | X137: 836.1079278 | Y137: 831.5049289 | Z137: 887.7427336 | AA137: 981.3013276 | AB137: 1035.385739 | AC137: 1066.494048 | AD137: 1066.252056 | AE137: 1124.673003 | AF137: 1166.551222 | AG137: 1165.630681 | AH137: 1287.665014 | AI137: 1476.780857 | AJ137: 1664.685336 | AK137: 1852.364199 | AL137: 2044.206615 | AM137: 2113.07892 | AN137: 2025.606272 | AO137: 1920.032033 | AP137: 1754.813755 | AQ137: 1508.681764 | AR137: 1206.946117
A138: 2018-01-06T16:00:00 | B138: 5338 | C138: 2547.751956 | D138: 2018-01-06 | E138: 17 | G138: 6770 | H138: 3132.266118 | S138: 2018-05-16 | T138: 136 | U138: 1035.83014 | V138: 849.8496884 | W138: 833.0769673 | X138: 804.8877524 | Y138: 764.2675309 | Z138: 813.9477472 | AA138: 954.7464094 | AB138: 999.8301864 | AC138: 1038.258424 | AD138: 1080.73158 | AE138: 1183.819383 | AF138: 1334.357883 | AG138: 1513.140148 | AH138: 1723.871686 | AI138: 1888.284709 | AJ138: 2027.544236 | AK138: 2188.29273 | AL138: 2309.07442 | AM138: 2291.778651 | AN138: 2117.92911 | AO138: 2039.442218 | AP138: 1855.907442 | AQ138: 1561.941888 | AR138: 1286.583204
A139: 2018-01-06T17:00:00 | B139: 5740 | C139: 2799.194095 | D139: 2018-01-06 | E139: 18 | G139: 6770 | H139: 3131.779469 | S139: 2018-05-17 | T139: 137 | U139: 1053.08083 | V139: 917.1714881 | W139: 822.7328184 | X139: 810.2777166 | Y139: 783.1796386 | Z139: 836.578916 | AA139: 968.9647897 | AB139: 1011.13283 | AC139: 1068.178834 | AD139: 1150.445946 | AE139: 1313.603767 | AF139: 1487.581565 | AG139: 1568.35205 | AH139: 1633.076337 | AI139: 1719.782436 | AJ139: 1700.245583 | AK139: 1819.441102 | AL139: 1861.311876 | AM139: 1858.900216 | AN139: 1784.59046 | AO139: 1736.329924 | AP139: 1686.776388 | AQ139: 1499.092891 | AR139: 1236.008585
A140: 2018-01-06T18:00:00 | B140: 5777 | C140: 2849.871877 | D140: 2018-01-06 | E140: 19 | G140: 6769 | H140: 3131.611857 | S140: 2018-05-18 | T140: 138 | U140: 1031.800377 | V140: 911.1919969 | W140: 846.9564174 | X140: 828.309638 | Y140: 814.230674 | Z140: 878.9924409 | AA140: 973.9555159 | AB140: 1016.994097 | AC140: 1011.351053 | AD140: 994.8815471 | AE140: 969.173962 | AF140: 994.6507073 | AG140: 1006.982226 | AH140: 1061.502043 | AI140: 1089.581798 | AJ140: 1155.602897 | AK140: 1266.138114 | AL140: 1361.824134 | AM140: 1346.514558 | AN140: 1347.285468 | AO140: 1307.313887 | AP140: 1253.933561 | AQ140: 1154.301487 | AR140: 982.68841
A141: 2018-01-06T19:00:00 | B141: 5785 | C141: 2860.256795 | D141: 2018-01-06 | E141: 20 | G141: 6769 | H141: 3131.011014 | S141: 2018-05-19 | T141: 139 | U141: 866.9188943 | V141: 767.7352849 | W141: 697.4266255 | X141: 713.8179436 | Y141: 690.3614826 | Z141: 692.4732282 | AA141: 741.2004875 | AB141: 864.1946242 | AC141: 1011.698391 | AD141: 1089.925374 | AE141: 1271.127156 | AF141: 1438.463372 | AG141: 1593.585861 | AH141: 1713.369682 | AI141: 1783.558658 | AJ141: 1718.028047 | AK141: 1610.340247 | AL141: 1542.294237 | AM141: 1521.0757 | AN141: 1445.072954 | AO141: 1364.577484 | AP141: 1365.831977 | AQ141: 1237.033386 | AR141: 1072.546055
A142: 2018-01-06T20:00:00 | B142: 5717 | C142: 2813.706694 | D142: 2018-01-06 | E142: 21 | G142: 6767 | H142: 3130.564761 | S142: 2018-05-20 | T142: 140 | U142: 892.8137121 | V142: 775.3615139 | W142: 698.176385 | X142: 700.8702028 | Y142: 667.2969617 | Z142: 657.605553 | AA142: 689.7696214 | AB142: 785.6412564 | AC142: 924.7468833 | AD142: 1075.916623 | AE142: 1214.7515 | AF142: 1246.845194 | AG142: 1354.794871 | AH142: 1494.05023 | AI142: 1665.285355 | AJ142: 1837.652757 | AK142: 1990.238004 | AL142: 2049.984271 | AM142: 2041.486921 | AN142: 1939.818314 | AO142: 1843.593241 | AP142: 1730.367108 | AQ142: 1508.873871 | AR142: 1239.588256
A143: 2018-01-06T21:00:00 | B143: 5619 | C143: 2753.672396 | D143: 2018-01-06 | E143: 22 | G143: 6765 | H143: 3128.301849 | S143: 2018-05-21 | T143: 141 | U143: 1012.565592 | V143: 873.2613821 | W143: 814.7763171 | X143: 770.8621704 | Y143: 742.6419846 | Z143: 774.1151002 | AA143: 884.4713577 | AB143: 944.2033768 | AC143: 883.6548138 | AD143: 879.3131676 | AE143: 971.1400562 | AF143: 1061.545189 | AG143: 1169.80416 | AH143: 1251.662294 | AI143: 1393.233252 | AJ143: 1523.562383 | AK143: 1738.467358 | AL143: 1914.641472 | AM143: 1972.9967 | AN143: 1920.378576 | AO143: 1849.450888 | AP143: 1723.555594 | AQ143: 1474.671194 | AR143: 1204.720044
A144: 2018-01-06T22:00:00 | B144: 5428 | C144: 2603.270633 | D144: 2018-01-06 | E144: 23 | G144: 6764 | H144: 3123.235672 | S144: 2018-05-22 | T144: 142 | U144: 1028.602852 | V144: 913.9392635 | W144: 835.5636638 | X144: 795.6354568 | Y144: 785.2565157 | Z144: 827.329763 | AA144: 938.534702 | AB144: 1009.332929 | AC144: 1055.784202 | AD144: 1128.705619 | AE144: 1285.23277 | AF144: 1417.115555 | AG144: 1606.863869 | AH144: 1793.909989 | AI144: 1921.700747 | AJ144: 2108.210933 | AK144: 2292.866826 | AL144: 2459.768704 | AM144: 2441.496586 | AN144: 2283.557632 | AO144: 2165.272931 | AP144: 1974.6153 | AQ144: 1707.325235 | AR144: 1414.64521
A145: 2018-01-06T23:00:00 | B145: 5267 | C145: 2494.748471 | D145: 2018-01-06 | E145: 24 | G145: 6764 | H145: 3123.221148 | S145: 2018-05-23 | T145: 143 | U145: 1148.502547 | V145: 991.7280149 | W145: 917.3266291 | X145: 834.0596866 | Y145: 816.5473716 | Z145: 846.9911132 | AA145: 956.8776494 | AB145: 1054.756959 | AC145: 1128.918914 | AD145: 1194.374842 | AE145: 1317.03252 | AF145: 1514.911066 | AG145: 1753.787604 | AH145: 1943.447492 | AI145: 2113.588152 | AJ145: 2288.207648 | AK145: 2446.245455 | AL145: 2527.526202 | AM145: 2499.309815 | AN145: 2330.007424 | AO145: 2207.097632 | AP145: 2086.324715 | AQ145: 1863.293418 | AR145: 1516.559893
A146: 2018-01-07 | B146: 5157 | C146: 2399.904048 | D146: 2018-01-07 | E146: 1 | G146: 6761 | H146: 3120.392463 | S146: 2018-05-24 | T146: 144 | U146: 1249.967269 | V146: 1054.983001 | W146: 949.0942271 | X146: 899.3064361 | Y146: 846.4841521 | Z146: 871.8771809 | AA146: 1002.584479 | AB146: 1101.979375 | AC146: 1219.198473 | AD146: 1349.3928 | AE146: 1541.168725 | AF146: 1744.561117 | AG146: 1945.191849 | AH146: 2095.186297 | AI146: 2295.727175 | AJ146: 2426.224413 | AK146: 2554.859003 | AL146: 2636.922027 | AM146: 2630.825215 | AN146: 2455.586471 | AO146: 2290.372489 | AP146: 2118.666671 | AQ146: 1853.994312 | AR146: 1571.339991
A147: 2018-01-07T01:00:00 | B147: 5045 | C147: 2329.798089 | D147: 2018-01-07 | E147: 2 | G147: 6761 | H147: 3118.440751 | S147: 2018-05-25 | T147: 145 | U147: 1296.789535 | V147: 1146.716579 | W147: 1012.612047 | X147: 952.0172581 | Y147: 932.2464913 | Z147: 938.4555557 | AA147: 1036.951008 | AB147: 1162.976968 | AC147: 1280.674727 | AD147: 1437.87066 | AE147: 1651.677684 | AF147: 1813.215285 | AG147: 1983.801043 | AH147: 2137.551265 | AI147: 2018.119331 | AJ147: 2041.936493 | AK147: =OFFSET($C$1,($T147-1)*24+AK$2,0) -> 2129.439367 | AL147: 2298.325106 | AM147: 2285.631319 | AN147: 2106.535399 | AO147: 2001.009379 | AP147: 1925.833993 | AQ147: 1764.241586 | AR147: 1529.389365
A148: 2018-01-07T02:00:00 | B148: 4963 | C148: 2264.757034 | D148: 2018-01-07 | E148: 3 | G148: 6761 | H148: 3118.127851 | S148: 2018-05-26 | T148: 146 | U148: =OFFSET($C$1,($T148-1)*24+U$2,0) -> 1348.459998 | V148: 1131.559815 | W148: 1035.039547 | X148: 975.6902954 | Y148: 935.1119222 | Z148: 907.7339429 | AA148: 963.4873408 | AB148: 1083.152675 | AC148: 1372.311734 | AD148: 1597.726557 | AE148: 1917.185071 | AF148: 2139.222647 | AG148: 2386.752969 | AH148: 2572.026815 | AI148: 2707.038344 | AJ148: 2848.342374 | AK148: 2950.74347 | AL148: 2963.017758 | AM148: 2941.554807 | AN148: 2758.756316 | AO148: 2596.967715 | AP148: 2462.460728 | AQ148: 2239.385905 | AR148: 1929.086025
A149: 2018-01-07T03:00:00 | B149: 4935 | C149: 2229.859913 | D149: 2018-01-07 | E149: 4 | G149: 6761 | H149: 3116.8166 | S149: 2018-05-27 | T149: 147 | U149: 1673.858903 | V149: 1454.846853 | W149: 1255.504302 | X149: 1183.234198 | Y149: 1085.554967 | Z149: 1085.838398 | AA149: 1057.842398 | AB149: 1260.23253 | AC149: 1653.541205 | AD149: 1920.123711 | AE149: 2144.272942 | AF149: 2401.486707 | AG149: 2670.345922 | AH149: 2900.235028 | AI149: 2967.617878 | AJ149: 2993.797604 | AK149: 2845.932246 | AL149: 2833.864592 | AM149: 2772.375533 | AN149: 2631.234525 | AO149: 2526.078227 | AP149: 2375.761024 | AQ149: 2169.540998 | AR149: 1861.13375
A150: 2018-01-07T04:00:00 | B150: 4925 | C150: 2187.382096 | D150: 2018-01-07 | E150: 5 | G150: 6761 | H150: 3113.061269 | S150: 2018-05-28 | T150: 148 | U150: 1593.212534 | V150: 1387.571392 | W150: 1249.567807 | X150: 1140.527546 | Y150: 1105.990066 | Z150: 1019.340325 | AA150: 1084.03004 | AB150: 1250.050899 | AC150: 1610.716413 | AD150: 1953.594483 | AE150: 2398.077699 | AF150: 2698.690814 | AG150: 2876.556141 | AH150: 3010.057881 | AI150: 3077.855163 | AJ150: 3171.137973 | AK150: 3259.741097 | AL150: 3287.557308 | AM150: 3263.429144 | AN150: 3077.748111 | AO150: 2836.125156 | AP150: 2672.220812 | AQ150: 2390.279633 | AR150: 1962.04089
A151: 2018-01-07T05:00:00 | B151: 4994 | C151: 2225.244646 | D151: 2018-01-07 | E151: 6 | G151: 6760 | H151: 3112.279113 | S151: 2018-05-29 | T151: 149 | U151: 1728.78463 | V151: 1549.327929 | W151: 1393.240323 | X151: 1312.751388 | Y151: 1247.961813 | Z151: 1198.931428 | AA151: 1255.191229 | AB151: 1267.099495 | AC151: 1305.331533 | AD151: 1492.44989 | AE151: 1648.362351 | AF151: 1614.552109 | AG151: 1767.705132 | AH151: 1871.738149 | AI151: 1982.378964 | AJ151: 2066.296135 | AK151: 2333.830944 | AL151: 2358.018028 | AM151: 2376.629207 | AN151: 2320.253028 | AO151: 2228.913607 | AP151: 2199.615603 | AQ151: 1986.624048 | AR151: 1669.037134
A152: 2018-01-07T06:00:00 | B152: 5056 | C152: 2268.548891 | D152: 2018-01-07 | E152: 7 | G152: 6758 | H152: 3107.612747 | S152: 2018-05-30 | T152: 150 | U152: 1429.148479 | V152: 1269.241212 | W152: 1165.393773 | X152: 1117.502626 | Y152: 1035.651263 | Z152: 1096.520354 | AA152: 1191.220719 | AB152: 1277.757876 | AC152: 1347.837487 | AD152: 1504.451918 | AE152: 1690.555525 | AF152: 1896.907557 | AG152: 2091.464845 | AH152: 2271.11056 | AI152: 2506.85634 | AJ152: 2664.662249 | AK152: 2760.577854 | AL152: 2864.865361 | AM152: 2770.086025 | AN152: 2635.881045 | AO152: 2465.673791 | AP152: 2304.775931 | AQ152: 2043.196438 | AR152: 1753.491505
A153: 2018-01-07T07:00:00 | B153: 5102 | C153: 2351.366291 | D153: 2018-01-07 | E153: 8 | G153: 6757 | H153: 3107.452263 | S153: 2018-05-31 | T153: 151 | U153: 1511.118293 | V153: 1357.849875 | W153: 1212.23238 | X153: 1135.34797 | Y153: 1093.901495 | Z153: 1123.844704 | AA153: 1226.087933 | AB153: 1304.658755 | AC153: 1416.877383 | AD153: 1394.964629 | AE153: 1447.233784 | AF153: 1667.482118 | AG153: 1809.09471 | AH153: 1974.921284 | AI153: 2164.157534 | AJ153: 2261.919641 | AK153: 2318.441713 | AL153: 2485.51947 | AM153: 2572.716425 | AN153: 2437.158132 | AO153: 2276.571409 | AP153: 2182.928704 | AQ153: 1946.147493 | AR153: 1659.939994
A154: 2018-01-07T08:00:00 | B154: 5166 | C154: 2409.769619 | D154: 2018-01-07 | E154: 9 | G154: 6755 | H154: 3105.565884 | S154: 2018-06-01 | T154: 152 | U154: 1430.235721 | V154: 1258.056616 | W154: 1096.713392 | X154: 1042.499583 | Y154: 994.6904656 | Z154: 1030.537124 | AA154: 1156.643326 | AB154: 1296.428976 | AC154: 1449.365041 | AD154: 1642.785944 | AE154: 1894.049396 | AF154: 2175.338548 | AG154: 2422.450624 | AH154: 2597.179124 | AI154: 2701.221968 | AJ154: 2873.446208 | AK154: 2996.789832 | AL154: 3091.523517 | AM154: 3027.604374 | AN154: 2834.409392 | AO154: 2637.999053 | AP154: 2488.153449 | AQ154: 2239.912405 | AR154: 2031.426989
A155: 2018-01-07T09:00:00 | B155: 5148 | C155: 2426.19753 | D155: 2018-01-07 | E155: 10 | G155: 6755 | H155: 3100.106342 | S155: 2018-06-02 | T155: 153 | U155: 1761.961937 | V155: 1546.994653 | W155: 1403.261371 | X155: 1288.929135 | Y155: 1170.009758 | Z155: 1201.068032 | AA155: 1210.048406 | AB155: 1331.190882 | AC155: 1491.194041 | AD155: 1765.80065 | AE155: 1894.34567 | AF155: 1865.656419 | AG155: 1802.834484 | AH155: 1940.094171 | AI155: 2110.533575 | AJ155: 2296.376903 | AK155: 2407.948329 | AL155: 2400.511964 | AM155: 2338.566232 | AN155: 2209.969442 | AO155: 2088.717486 | AP155: 1992.328798 | AQ155: 1840.739126 | AR155: 1613.245073
A156: 2018-01-07T10:00:00 | B156: 5099 | C156: 2419.079177 | D156: 2018-01-07 | E156: 11 | G156: 6753 | H156: 3098.724725 | S156: 2018-06-03 | T156: 154 | U156: 1400.829076 | V156: 1240.428323 | W156: 1083.105132 | X156: 984.3681897 | Y156: 900.0116222 | Z156: 895.1771128 | AA156: 913.1865583 | AB156: 1045.990073 | AC156: 1177.195819 | AD156: 1436.528686 | AE156: 1567.391224 | AF156: 1719.018337 | AG156: 1873.853011 | AH156: 1988.733405 | AI156: 2099.814242 | AJ156: 2230.169878 | AK156: 2364.813495 | AL156: 2366.012098 | AM156: 2310.872348 | AN156: 2180.894784 | AO156: 1997.448654 | AP156: 1852.170915 | AQ156: 1604.818752 | AR156: 1277.199835
A157: 2018-01-07T11:00:00 | B157: 5067 | C157: 2446.054387 | D157: 2018-01-07 | E157: 12 | G157: 6753 | H157: 3098.057266 | S157: 2018-06-04 | T157: 155 | U157: 1058.851606 | V157: 938.7424454 | W157: 846.9660161 | X157: 758.988758 | Y157: 745.2473098 | Z157: 797.7670245 | AA157: 930.9596547 | AB157: 975.0104504 | AC157: 986.6802867 | AD157: 1063.541243 | AE157: 1114.989543 | AF157: 1217.700318 | AG157: 1360.228351 | AH157: 1505.275854 | AI157: 1664.048125 | AJ157: 1693.628903 | AK157: 1782.434697 | AL157: 1876.125144 | AM157: 1866.45528 | AN157: 1794.404379 | AO157: 1718.109497 | AP157: 1628.519025 | AQ157: 1439.287301 | AR157: 1224.556413
A158: 2018-01-07T12:00:00 | B158: 5020 | C158: 2449.482187 | D158: 2018-01-07 | E158: 13 | G158: 6750 | H158: 3097.909855 | S158: 2018-06-05 | T158: 156 | U158: 1043.952343 | V158: 920.9467764 | W158: 798.4905838 | X158: 762.000974 | Y158: 739.1086539 | Z158: 782.9118519 | AA158: 925.9699171 | AB158: 971.8872737 | AC158: 1050.941094 | AD158: 1150.444798 | AE158: 1256.859629 | AF158: 1351.442016 | AG158: 1603.313176 | AH158: 1794.564713 | AI158: 1995.785619 | AJ158: 2264.083265 | AK158: 2441.718124 | AL158: 2684.620514 | AM158: 2659.47379 | AN158: 2488.89492 | AO158: 2281.163264 | AP158: 2131.521222 | AQ158: 1874.486022 | AR158: 1536.770254
A159: 2018-01-07T13:00:00 | B159: 4997 | C159: 2443.786633 | D159: 2018-01-07 | E159: 14 | G159: 6750 | H159: 3095.281822 | S159: 2018-06-06 | T159: 157 | U159: 1297.353689 | V159: 1130.130457 | W159: 984.3898301 | X159: 901.3089764 | Y159: 879.2967893 | Z159: 910.4736422 | AA159: 1030.33768 | AB159: 1145.271463 | AC159: 1233.579201 | AD159: 1340.531167 | AE159: 1592.078061 | AF159: 1758.428212 | AG159: 2014.069459 | AH159: 2268.589893 | AI159: 2435.774144 | AJ159: 2574.093481 | AK159: 2769.736621 | AL159: 2890.77062 | AM159: 2830.156702 | AN159: 2651.382494 | AO159: 2512.582142 | AP159: 2323.34257 | AQ159: 2086.78807 | AR159: 1799.552438
A160: 2018-01-07T14:00:00 | B160: 4963 | C160: 2424.102687 | D160: 2018-01-07 | E160: 15 | G160: 6748 | H160: 3093.644094 | S160: 2018-06-07 | T160: 158 | U160: 1511.165138 | V160: 1272.987136 | W160: 1160.036138 | X160: 1057.551621 | Y160: 1036.332515 | Z160: 1097.527783 | AA160: 1173.613362 | AB160: 1273.61357 | AC160: 1404.30749 | AD160: 1537.751047 | AE160: 1856.232095 | AF160: 2105.15652 | AG160: 2283.17734 | AH160: 2537.665408 | AI160: 2698.66388 | AJ160: 2910.591566 | AK160: 3050.759916 | AL160: 3116.8166 | AM160: 3085.661169 | AN160: 2932.113423 | AO160: 2769.713913 | AP160: 2589.120516 | AQ160: 2323.641002 | AR160: 2012.499798
A161: 2018-01-07T15:00:00 | B161: 4973 | C161: 2423.516814 | D161: 2018-01-07 | E161: 16 | G161: 6747 | H161: 3093.49155 | S161: 2018-06-08 | T161: 159 | U161: 1691.12595 | V161: 1476.16304 | W161: 1309.357162 | X161: 1198.525778 | Y161: 1150.160071 | Z161: 1169.127196 | AA161: 1244.216924 | AB161: 1304.810892 | AC161: 1511.206031 | AD161: 1679.30387 | AE161: 1937.256201 | AF161: 2174.954476 | AG161: 2424.647681 | AH161: 2615.241783 | AI161: 2775.264178 | AJ161: 2883.279348 | AK161: 2933.900955 | AL161: 2981.024542 | AM161: 2906.911279 | AN161: 2790.221998 | AO161: 2591.169918 | AP161: 2505.847561 | AQ161: 2225.53226 | AR161: 1962.276737
A162: 2018-01-07T16:00:00 | B162: 5118 | C162: 2522.75447 | D162: 2018-01-07 | E162: 17 | G162: 6747 | H162: 3091.523517 | S162: 2018-06-09 | T162: 160 | U162: 1702.043296 | V162: 1506.496381 | W162: 1402.167727 | X162: 1305.666481 | Y162: 1227.890321 | Z162: 1193.226431 | AA162: 1243.592493 | AB162: 1365.882898 | AC162: 1566.624941 | AD162: 1776.88942 | AE162: 1985.281144 | AF162: 2017.885455 | AG162: 1977.830377 | AH162: 1897.204924 | AI162: 1880.752126 | AJ162: 2032.414817 | AK162: 2197.629993 | AL162: 2339.400511 | AM162: 2382.589024 | AN162: 2283.94486 | AO162: 2118.180665 | AP162: 1984.024931 | AQ162: 1813.57968 | AR162: 1604.045798
A163: 2018-01-07T17:00:00 | B163: 5301 | C163: 2627.398143 | D163: 2018-01-07 | E163: 18 | G163: 6745 | H163: 3090.228274 | S163: 2018-06-10 | T163: 161 | U163: 1345.173069 | V163: 1233.166208 | W163: 1117.857254 | X163: 1081.827904 | Y163: 1035.673019 | Z163: 985.0548235 | AA163: 1053.921413 | AB163: 1214.034036 | AC163: 1515.357992 | AD163: 1874.205463 | AE163: 2145.226099 | AF163: 2397.192876 | AG163: 2684.667822 | AH163: 2869.898068 | AI163: 3048.265196 | AJ163: =OFFSET($C$1,($T163-1)*24+AJ$2,0) -> 3156.719187 | AK163: 3242.450713 | AL163: 3279.172985 | AM163: 3212.378478 | AN163: 3036.947396 | AO163: 2848.577342 | AP163: 2666.595633 | AQ163: 2354.782791 | AR163: 2048.920267
A164: 2018-01-07T18:00:00 | B164: 5233 | C164: 2569.978353 | D164: 2018-01-07 | E164: 19 | G164: 6744 | H164: 3089.859184 | S164: 2018-06-11 | T164: 162 | U164: =OFFSET($C$1,($T164-1)*24+U$2,0) -> 1771.706944 | V164: 1531.276839 | W164: 1396.487668 | X164: 1335.441319 | Y164: 1198.598895 | Z164: 1203.661756 | AA164: 1302.086367 | AB164: 1346.01597 | AC164: 1403.845247 | AD164: 1596.06119 | AE164: 1869.35308 | AF164: 2131.280736 | AG164: 2385.073483 | AH164: 2669.007178 | AI164: 2824.416435 | AJ164: 2970.059378 | AK164: 3183.364672 | AL164: 3274.787954 | AM164: 3276.240639 | AN164: 3158.128121 | AO164: 2992.068836 | AP164: 2836.180474 | AQ164: 2559.632963 | AR164: 2245.594136
A165: 2018-01-07T19:00:00 | B165: 5133 | C165: 2496.195089 | D165: 2018-01-07 | E165: 20 | G165: 6741 | H165: 3089.78741 | S165: 2018-06-12 | T165: 163 | U165: 1956.315118 | V165: 1727.398454 | W165: 1551.384292 | X165: 1448.935152 | Y165: 1414.929122 | Z165: 1405.712987 | AA165: 1426.135434 | AB165: 1377.630442 | AC165: 1494.860493 | AD165: 1586.663357 | AE165: 1817.959644 | AF165: 2026.89604 | AG165: 2170.681706 | AH165: 2344.084694 | AI165: 2465.977501 | AJ165: 2644.637474 | AK165: 2872.745891 | AL165: 3016.681082 | AM165: 2959.887994 | AN165: 2792.701936 | AO165: 2693.64744 | AP165: 2531.22193 | AQ165: 2247.216557 | AR165: 1907.829817
A166: 2018-01-07T20:00:00 | B166: 4980 | C166: 2385.165791 | D166: 2018-01-07 | E166: 21 | G166: 6740 | H166: 3089.659208 | S166: 2018-06-13 | T166: 164 | U166: 1627.318717 | V166: 1440.081826 | W166: 1308.919873 | X166: 1251.713298 | Y166: 1215.233406 | Z166: 1207.840788 | AA166: 1349.464687 | AB166: 1453.31496 | AC166: 1533.565798 | AD166: 1717.612827 | AE166: 1950.589651 | AF166: 2225.234548 | AG166: 2395.888905 | AH166: 2567.967633 | AI166: 2727.222447 | AJ166: 2882.024388 | AK166: 3002.792089 | AL166: 3071.075222 | AM166: 2957.282146 | AN166: 2731.572137 | AO166: 2570.311892 | AP166: 2365.762983 | AQ166: 2128.870833 | AR166: 1739.071669
A167: 2018-01-07T21:00:00 | B167: 4770 | C167: 2232.616851 | D167: 2018-01-07 | E167: 22 | G167: 6736 | H167: 3086.925117 | S167: 2018-06-14 | T167: 165 | U167: 1519.900839 | V167: 1286.599757 | W167: 1167.821024 | X167: 1093.105564 | Y167: 1064.691531 | Z167: 1083.69203 | AA167: 1176.82979 | AB167: 1282.484482 | AC167: 1414.930414 | AD167: 1524.050013 | AE167: 1683.431961 | AF167: 1965.143987 | AG167: 2161.524589 | AH167: 2414.305034 | AI167: 2685.673613 | AJ167: 2856.158575 | AK167: 2900.100387 | AL167: 2718.77596 | AM167: 2486.347835 | AN167: 2349.844553 | AO167: 2258.656795 | AP167: 2127.294304 | AQ167: 1880.597109 | AR167: 1568.224203
A168: 2018-01-07T22:00:00 | B168: 4523 | C168: 2027.373354 | D168: 2018-01-07 | E168: 23 | G168: 6735 | H168: 3085.92259 | S168: 2018-06-15 | T168: 166 | U168: 1319.47535 | V168: 1171.548351 | W168: 1061.871057 | X168: 989.4784788 | Y168: 1003.093873 | Z168: 1025.458949 | AA168: 1109.721461 | AB168: 1228.332384 | AC168: 1405.231446 | AD168: 1607.301324 | AE168: 1852.015632 | AF168: 2145.408924 | AG168: 2422.94589 | AH168: 2703.42581 | AI168: 2880.91914 | AJ168: 3016.568572 | AK168: 3189.47751 | AL168: 3286.722196 | AM168: 3205.428126 | AN168: 3007.335831 | AO168: 2809.077372 | AP168: 2611.883624 | AQ168: 2379.541607 | AR168: 2129.944466
A169: 2018-01-07T23:00:00 | B169: 4296 | C169: 1832.34302 | D169: 2018-01-07 | E169: 24 | G169: 6733 | H169: 3085.661169 | S169: 2018-06-16 | T169: 167 | U169: 1859.733724 | V169: 1634.899628 | W169: 1440.825993 | X169: 1373.990804 | Y169: 1255.315268 | Z169: 1252.156376 | AA169: 1298.204478 | AB169: 1495.144919 | AC169: 1788.082611 | AD169: 2140.337447 | AE169: 2491.113311 | AF169: 2758.124465 | AG169: 2958.302462 | AH169: 3071.952876 | AI169: 3185.127904 | AJ169: 3295.102151 | AK169: 3370.163187 | AL169: 3337.426165 | AM169: 3265.297072 | AN169: 3093.49155 | AO169: 2909.518999 | AP169: 2772.323578 | AQ169: 2563.868385 | AR169: 2339.047174
A170: 2018-01-08 | B170: 4198 | C170: 1748.327971 | D170: 2018-01-08 | E170: 1 | G170: 6731 | H170: 3084.332677 | S170: 2018-06-17 | T170: 168 | U170: 2097.182953 | V170: 1893.39733 | W170: 1702.516149 | X170: 1538.88403 | Y170: 1442.412971 | Z170: 1390.539751 | AA170: 1402.221955 | AB170: 1585.708707 | AC170: 1965.067475 | AD170: 2287.748789 | AE170: 2548.349902 | AF170: 2775.366285 | AG170: 3005.510721 | AH170: 3174.747479 | AI170: 3294.550258 | AJ170: 3370.33981 | AK170: 3438.252279 | AL170: 3443.183379 | AM170: 3354.756823 | AN170: 3213.005248 | AO170: 3066.077284 | AP170: 2940.538646 | AQ170: 2697.213703 | AR170: 2403.811673
A171: 2018-01-08T01:00:00 | B171: 4092 | C171: 1652.986704 | D171: 2018-01-08 | E171: 2 | G171: 6729 | H171: 3081.617236 | S171: 2018-06-18 | T171: 169 | U171: 2118.040942 | V171: 1913.925853 | W171: 1755.100078 | X171: 1603.547597 | Y171: 1544.441485 | Z171: 1526.507348 | AA171: 1609.640192 | AB171: 1741.171828 | AC171: 1900.159354 | AD171: 2132.55963 | AE171: 2364.372977 | AF171: 2591.353895 | AG171: 2851.529308 | AH171: 3060.734683 | AI171: 3203.996145 | AJ171: 3274.594018 | AK171: 3385.767721 | AL171: 3463.96227 | AM171: 3460.196865 | AN171: 3264.559513 | AO171: 3089.78741 | AP171: 2941.532052 | AQ171: 2648.629324 | AR171: 2317.461753
A172: 2018-01-08T02:00:00 | B172: 4068 | C172: 1643.102508 | D172: 2018-01-08 | E172: 3 | G172: 6724 | H172: 3078.346532 | S172: 2018-06-19 | T172: 170 | U172: 2063.62138 | V172: 1836.306639 | W172: 1679.8626 | X172: 1546.459054 | Y172: 1465.911588 | Z172: 1482.570272 | AA172: 1582.821031 | AB172: 1706.617862 | AC172: 1853.313253 | AD172: 2015.922137 | AE172: 2267.363744 | AF172: 2463.376986 | AG172: 2693.923953 | AH172: 2831.933051 | AI172: 2990.801174 | AJ172: 3097.909855 | AK172: 3192.907416 | AL172: 3262.448382 | AM172: 3048.029971 | AN172: 2709.108932 | AO172: 2568.766673 | AP172: 2398.654843 | AQ172: 2155.355421 | AR172: 1883.893394
A173: 2018-01-08T03:00:00 | B173: 4070 | C173: 1623.95077 | D173: 2018-01-08 | E173: 4 | G173: 6724 | H173: 3077.855163 | S173: 2018-06-20 | T173: 171 | U173: 1612.727492 | V173: 1447.443867 | W173: 1289.528742 | X173: 1226.908263 | Y173: 1184.841092 | Z173: 1240.417475 | AA173: 1347.144729 | AB173: 1380.712766 | AC173: 1437.148935 | AD173: 1514.426149 | AE173: 1681.523171 | AF173: 1930.514292 | AG173: 2171.8614 | AH173: 2371.98207 | AI173: 2575.606372 | AJ173: 2713.509464 | AK173: 2891.264384 | AL173: 2945.057302 | AM173: 2734.605555 | AN173: 2471.540369 | AO173: 2315.171319 | AP173: 2182.776439 | AQ173: 1974.237011 | AR173: 1744.052514
A174: 2018-01-08T04:00:00 | B174: 4207 | C174: 1700.984676 | D174: 2018-01-08 | E174: 5 | G174: 6723 | H174: 3077.748111 | S174: 2018-06-21 | T174: 172 | U174: 1510.811962 | V174: 1308.95596 | W174: 1209.729341 | X174: 1145.39758 | Y174: 1072.111959 | Z174: 1123.168644 | AA174: 1202.325422 | AB174: 1339.940705 | AC174: 1364.482419 | AD174: 1440.48427 | AE174: 1524.929329 | AF174: 1708.606074 | AG174: 1826.10064 | AH174: 1996.658509 | AI174: 2121.713461 | AJ174: 2155.919795 | AK174: 2231.499151 | AL174: 2178.37021 | AM174: 2026.644388 | AN174: 1883.905706 | AO174: 1855.967332 | AP174: 1798.232829 | AQ174: 1598.749396 | AR174: 1370.291201
A175: 2018-01-08T05:00:00 | B175: 4437 | C175: 1819.474722 | D175: 2018-01-08 | E175: 6 | G175: 6723 | H175: 3076.930015 | S175: 2018-06-22 | T175: 173 | U175: 1154.972342 | V175: 1009.163171 | W175: 940.6745083 | X175: 892.0280823 | Y175: 871.6512069 | Z175: 930.3432908 | AA175: 1041.622575 | AB175: 1105.473449 | AC175: 1074.06201 | AD175: 1110.47191 | AE175: 1220.738163 | AF175: 1315.648146 | AG175: 1377.669398 | AH175: 1417.622041 | AI175: 1428.560434 | AJ175: 1481.89646 | AK175: 1540.964143 | AL175: 1605.2843 | AM175: 1596.355962 | AN175: 1558.621008 | AO175: 1500.336969 | AP175: 1452.678587 | AQ175: 1374.711468 | AR175: 1211.574642
A176: 2018-01-08T06:00:00 | B176: 4768 | C176: 1958.211909 | D176: 2018-01-08 | E176: 7 | G176: 6721 | H176: 3076.798175 | S176: 2018-06-23 | T176: 174 | U176: 1051.874977 | V176: 925.317224 | W176: 859.2817407 | X176: 813.656686 | Y176: 815.3022248 | Z176: 806.3298018 | AA176: 895.1832956 | AB176: 1003.907969 | AC176: 1147.75484 | AD176: 1306.68256 | AE176: 1472.565129 | AF176: 1613.944114 | AG176: 1797.145 | AH176: 1950.153576 | AI176: 2013.813678 | AJ176: 2098.368607 | AK176: 2157.43496 | AL176: 2264.061209 | AM176: 2274.136543 | AN176: 2136.657082 | AO176: 1936.59571 | AP176: 1841.596667 | AQ176: 1706.329311 | AR176: 1451.665406
A177: 2018-01-08T07:00:00 | B177: 4914 | C177: 1966.920521 | D177: 2018-01-08 | E177: 8 | G177: 6715 | H177: 3075.651909 | S177: 2018-06-24 | T177: 175 | U177: 1241.461935 | V177: 1045.609771 | W177: 926.3650245 | X177: 854.6033267 | Y177: 843.2254566 | Z177: 850.9760418 | AA177: 846.3783797 | AB177: 1067.458993 | AC177: 1283.274014 | AD177: 1494.673446 | AE177: 1812.098847 | AF177: 1989.839669 | AG177: 2102.88362 | AH177: 2118.974846 | AI177: 2203.779516 | AJ177: 2262.434723 | AK177: 2255.695013 | AL177: 2278.074663 | AM177: 2159.224895 | AN177: 2001.931858 | AO177: 1965.756653 | AP177: 1882.832511 | AQ177: 1675.103563 | AR177: 1422.485973
A178: 2018-01-08T08:00:00 | B178: 4940 | C178: 1955.156198 | D178: 2018-01-08 | E178: 9 | G178: 6713 | H178: 3071.952876 | S178: 2018-06-25 | T178: 176 | U178: 1219.302129 | V178: 1068.254231 | W178: 984.1648464 | X178: 948.9621313 | Y178: 933.9592426 | Z178: 968.0290368 | AA178: 1065.590875 | AB178: 1131.368979 | AC178: 1184.301474 | AD178: 1199.113262 | AE178: 1276.946119 | AF178: 1442.125388 | AG178: 1657.485197 | AH178: 1909.558208 | AI178: 2033.402515 | AJ178: 2199.613768 | AK178: 2450.999907 | AL178: 2609.191514 | AM178: 2619.899511 | AN178: 2501.929749 | AO178: 2385.444799 | AP178: 2272.678471 | AQ178: 2016.057369 | AR178: 1733.672132
A179: 2018-01-08T09:00:00 | B179: 4920 | C179: 1907.279251 | D179: 2018-01-08 | E179: 10 | G179: 6713 | H179: 3071.728212 | S179: 2018-06-26 | T179: 177 | U179: 1479.194208 | V179: 1301.212795 | W179: 1181.918335 | X179: 1126.753286 | Y179: 1111.376284 | Z179: 1114.298269 | AA179: 1211.491331 | AB179: 1303.250029 | AC179: 1253.422089 | AD179: 1208.919116 | AE179: 1314.741233 | AF179: 1524.698898 | AG179: 1678.905062 | AH179: 1662.64776 | AI179: 1718.2873 | AJ179: 1735.98102 | AK179: =OFFSET($C$1,($T179-1)*24+AK$2,0) -> 1799.345986 | AL179: 1870.017817 | AM179: 1839.527456 | AN179: 1729.155212 | AO179: 1663.147124 | AP179: 1610.892454 | AQ179: 1420.495369 | AR179: 1218.974368
A180: 2018-01-08T10:00:00 | B180: 4933 | C180: 1896.231096 | D180: 2018-01-08 | E180: 11 | G180: 6710 | H180: 3071.075222 | S180: 2018-06-27 | T180: 178 | U180: =OFFSET($C$1,($T180-1)*24+U$2,0) -> 1054.320425 | V180: 911.9845215 | W180: 846.2267863 | X180: 839.3881419 | Y180: 858.0662359 | Z180: 951.7226112 | AA180: 1051.19084 | AB180: 1119.363597 | AC180: 1134.314643 | AD180: 1283.022211 | AE180: 1394.083469 | AF180: 1621.311132 | AG180: 1900.7365 | AH180: 2152.60322 | AI180: 2357.71898 | AJ180: 2520.443763 | AK180: 2745.006168 | AL180: 3001.47253 | AM180: 3028.595789 | AN180: 2891.896533 | AO180: 2742.989881 | AP180: 2598.963007 | AQ180: 2359.00607 | AR180: 2066.043467
A181: 2018-01-08T11:00:00 | B181: 4931 | C181: 1876.014931 | D181: 2018-01-08 | E181: 12 | G181: 6706 | H181: 3070.127951 | S181: 2018-06-28 | T181: 179 | U181: 1817.855354 | V181: 1623.895039 | W181: 1471.425635 | X181: 1360.487197 | Y181: 1348.197376 | Z181: 1367.260809 | AA181: 1514.016721 | AB181: 1529.841394 | AC181: 1537.245143 | AD181: 1549.896199 | AE181: 1644.874123 | AF181: 1864.865139 | AG181: 2147.400008 | AH181: 2481.427133 | AI181: 2827.723936 | AJ181: 3100.106342 | AK181: 3278.123151 | AL181: 3210.735819 | AM181: 2790.725636 | AN181: 2603.66638 | AO181: 2405.597943 | AP181: 2266.945911 | AQ181: 1993.20039 | AR181: 1719.962515
A182: 2018-01-08T12:00:00 | B182: 4916 | C182: 1862.978357 | D182: 2018-01-08 | E182: 13 | G182: 6706 | H182: 3066.175201 | S182: 2018-06-29 | T182: 180 | U182: 1519.848902 | V182: 1331.601674 | W182: 1223.826665 | X182: 1143.587136 | Y182: 1128.0074 | Z182: 1177.645043 | AA182: 1284.854021 | AB182: 1367.074433 | AC182: 1458.389672 | AD182: 1622.882044 | AE182: 1877.331619 | AF182: 2139.829449 | AG182: 2323.712114 | AH182: 2626.57015 | AI182: 2817.815816 | AJ182: 3056.049464 | AK182: 3227.043402 | AL182: 3319.811906 | AM182: 3250.933878 | AN182: 3136.545487 | AO182: 3013.335776 | AP182: 2881.138265 | AQ182: 2662.544112 | AR182: 2364.351874
A183: 2018-01-08T13:00:00 | B183: 4877 | C183: 1876.083857 | D183: 2018-01-08 | E183: 14 | G183: 6705 | H183: 3066.077284 | S183: 2018-06-30 | T183: 181 | U183: 2111.241347 | V183: 1882.467806 | W183: 1674.03583 | X183: 1575.932084 | Y183: 1498.212177 | Z183: 1481.946344 | AA183: 1496.287948 | AB183: 1703.873177 | AC183: 1990.134003 | AD183: 2311.086931 | AE183: 2568.087821 | AF183: 2829.440908 | AG183: 3032.747134 | AH183: 3197.7124 | AI183: 3305.163291 | AJ183: 3374.88328 | AK183: 3417.799838 | AL183: 3399.636849 | AM183: 3292.344906 | AN183: 3133.79111 | AO183: 2948.880066 | AP183: 2808.507818 | AQ183: 2564.44039 | AR183: 2294.718522
A184: 2018-01-08T14:00:00 | B184: 4799 | C184: 1876.292893 | D184: 2018-01-08 | E184: 15 | G184: 6701 | H184: 3063.941968 | S184: 2018-07-01 | T184: 182 | U184: 1974.712382 | V184: 1769.546243 | W184: 1617.145005 | X184: 1497.932059 | Y184: 1446.729097 | Z184: 1401.146356 | AA184: 1426.93593 | AB184: 1597.604213 | AC184: 1852.85014 | AD184: 2141.692534 | AE184: 2464.448742 | AF184: 2689.854936 | AG184: 2873.554869 | AH184: 3043.330212 | AI184: 3148.343438 | AJ184: 3215.788885 | AK184: 3243.638018 | AL184: 3208.12119 | AM184: 3053.271264 | AN184: 2812.516587 | AO184: 2674.488145 | AP184: 2535.554003 | AQ184: 2302.171329 | AR184: 2005.065443
A185: 2018-01-08T15:00:00 | B185: 4779 | C185: 1892.187056 | D185: 2018-01-08 | E185: 16 | G185: 6699 | H185: 3063.786465 | S185: 2018-07-02 | T185: 183 | U185: 1750.408752 | V185: 1551.630837 | W185: 1442.651791 | X185: 1292.942359 | Y185: 1275.722358 | Z185: 1275.772535 | AA185: 1400.483762 | AB185: 1464.58965 | AC185: 1602.275066 | AD185: 1813.730923 | AE185: 2113.589445 | AF185: 2265.845129 | AG185: 2470.702316 | AH185: 2612.377698 | AI185: 2676.00685 | AJ185: 2786.050543 | AK185: 2984.066113 | AL185: 3063.941968 | AM185: 3076.798175 | AN185: 2923.771443 | AO185: 2780.324989 | AP185: 2684.567111 | AQ185: 2431.849655 | AR185: 2141.796397
A186: 2018-01-08T16:00:00 | B186: 4887 | C186: 2037.840866 | D186: 2018-01-08 | E186: 17 | G186: 6697 | H186: 3061.13805 | S186: 2018-07-03 | T186: 184 | U186: 1852.854921 | V186: 1683.548148 | W186: 1500.863785 | X186: 1357.955869 | Y186: 1334.307622 | Z186: 1325.326284 | AA186: 1365.182928 | AB186: 1415.370574 | AC186: 1628.052999 | AD186: 1952.856005 | AE186: 2241.549383 | AF186: 2426.526426 | AG186: 2603.88962 | AH186: 2828.158573 | AI186: 2899.877962 | AJ186: 3006.4873 | AK186: 3107.452263 | AL186: 3036.027503 | AM186: 2975.038255 | AN186: 2830.483387 | AO186: 2719.948357 | AP186: 2585.494005 | AQ186: 2430.32975 | AR186: 2185.247682
A187: 2018-01-08T17:00:00 | B187: 5124 | C187: 2258.540825 | D187: 2018-01-08 | E187: 18 | G187: 6697 | H187: 3060.734683 | S187: 2018-07-04 | T187: 185 | U187: 1921.844664 | V187: 1738.939685 | W187: 1520.870588 | X187: 1425.720989 | Y187: 1387.995393 | Z187: 1268.549468 | AA187: 1338.247554 | AB187: 1582.017796 | AC187: 1861.656955 | AD187: 2225.047775 | AE187: 2582.819546 | AF187: 2759.231847 | AG187: 2948.592008 | AH187: 3153.957481 | AI187: 3272.420987 | AJ187: 3352.363082 | AK187: 3388.663503 | AL187: 3462.044826 | AM187: 3332.535663 | AN187: 3145.91934 | AO187: 2921.207723 | AP187: 2764.984628 | AQ187: 2589.308499 | AR187: 2388.560549
A188: 2018-01-08T18:00:00 | B188: 5112 | C188: 2310.56221 | D188: 2018-01-08 | E188: 19 | G188: 6694 | H188: 3059.269686 | S188: 2018-07-05 | T188: 186 | U188: 2093.818215 | V188: 1859.577995 | W188: 1695.370837 | X188: 1558.645192 | Y188: 1518.811737 | Z188: 1473.905332 | AA188: 1466.379056 | AB188: 1572.043411 | AC188: 1744.919966 | AD188: 2044.590452 | AE188: 2485.156135 | AF188: 2733.534745 | AG188: 2929.594746 | AH188: 3118.440751 | AI188: 3205.191971 | AJ188: 3340.062419 | AK188: 3439.233967 | AL188: 3378.75695 | AM188: 3229.401572 | AN188: 3000.05238 | AO188: 2878.341003 | AP188: 2711.221997 | AQ188: 2440.740998 | AR188: 2127.430025
A189: 2018-01-08T19:00:00 | B189: 5076 | C189: 2335.303461 | D189: 2018-01-08 | E189: 20 | G189: 6691 | H189: 3056.459477 | S189: 2018-07-06 | T189: 187 | U189: 1875.199505 | V189: 1623.334912 | W189: 1514.689404 | X189: 1369.651753 | Y189: 1320.400492 | Z189: 1347.393783 | AA189: 1341.228579 | AB189: 1371.756237 | AC189: 1630.160938 | AD189: 1846.855147 | AE189: 2170.02172 | AF189: 2399.478706 | AG189: 2550.057733 | AH189: 2757.988375 | AI189: 2859.365322 | AJ189: 2903.991129 | AK189: 2968.619555 | AL189: 2924.822523 | AM189: 2931.883657 | AN189: 2717.327323 | AO189: 2435.051353 | AP189: 2238.652243 | AQ189: 2081.213521 | AR189: 1795.538833
A190: 2018-01-08T20:00:00 | B190: 4991 | C190: 2311.388021 | D190: 2018-01-08 | E190: 21 | G190: 6690 | H190: 3056.049464 | S190: 2018-07-07 | T190: 188 | U190: 1548.140761 | V190: 1284.785041 | W190: 1154.827724 | X190: 1059.97707 | Y190: 972.211964 | Z190: 957.228811 | AA190: 968.2595291 | AB190: 1053.236253 | AC190: 1272.302203 | AD190: 1449.630735 | AE190: 1654.27941 | AF190: 1790.434856 | AG190: 1980.888299 | AH190: 2102.708744 | AI190: 2207.902917 | AJ190: 2361.094666 | AK190: 2459.136659 | AL190: 2432.25321 | AM190: 2343.638712 | AN190: 2182.847555 | AO190: 2008.620639 | AP190: 1931.241318 | AQ190: 1734.606979 | AR190: 1513.361
A191: 2018-01-08T21:00:00 | B191: 4817 | C191: 2197.290611 | D191: 2018-01-08 | E191: 22 | G191: 6688 | H191: 3055.344043 | S191: 2018-07-08 | T191: 189 | U191: 1235.028477 | V191: 1071.787485 | W191: 952.6357592 | X191: 901.2443348 | Y191: 850.535805 | Z191: 853.0051044 | AA191: 866.3118014 | AB191: 981.1625457 | AC191: 1232.051027 | AD191: 1476.696502 | AE191: 1686.275394 | AF191: 1856.437292 | AG191: 2165.490178 | AH191: 2400.979518 | AI191: 2543.102017 | AJ191: 2781.618287 | AK191: 2968.833472 | AL191: 3054.340637 | AM191: 3046.169759 | AN191: 2949.579301 | AO191: 2680.274887 | AP191: 2516.995357 | AQ191: 2278.269806 | AR191: 1973.38572
A192: 2018-01-08T22:00:00 | B192: 4538 | C192: 2012.258352 | D192: 2018-01-08 | E192: 23 | G192: 6687 | H192: 3054.340637 | S192: 2018-07-09 | T192: 190 | U192: 1695.900866 | V192: 1482.56884 | W192: 1363.126334 | X192: 1263.941877 | Y192: 1213.916118 | Z192: 1208.700556 | AA192: 1281.730309 | AB192: 1426.922324 | AC192: 1646.638533 | AD192: 1880.830067 | AE192: 2098.620928 | AF192: 2279.360201 | AG192: 2499.791377 | AH192: 2717.71038 | AI192: 2870.970827 | AJ192: 2930.491831 | AK192: 3024.877725 | AL192: 3130.564761 | AM192: 3178.233708 | AN192: 3023.053706 | AO192: 2843.534797 | AP192: 2668.210609 | AQ192: 2417.898804 | AR192: 2093.223006
A193: 2018-01-08T23:00:00 | B193: 4367 | C193: 1886.78254 | D193: 2018-01-08 | E193: 24 | G193: 6686 | H193: 3053.271264 | S193: 2018-07-10 | T193: 191 | U193: 1838.946379 | V193: 1606.556692 | W193: 1455.73501 | X193: 1373.424899 | Y193: 1292.359579 | Z193: 1276.47793 | AA193: 1344.996388 | AB193: 1445.859408 | AC193: 1701.03104 | AD193: 1943.78295 | AE193: 2215.762799 | AF193: 2510.47484 | AG193: 2724.000482 | AH193: 2914.334686 | AI193: 3061.13805 | AJ193: 3177.299449 | AK193: 3348.76977 | AL193: 3477.821692 | AM193: 3457.16922 | AN193: 3293.286698 | AO193: 3123.235672 | AP193: 2913.575 | AQ193: 2654.323431 | AR193: 2341.791994
A194: 2018-01-09 | B194: 4228 | C194: 1782.919668 | D194: 2018-01-09 | E194: 1 | G194: 6683 | H194: 3050.759916 | S194: 2018-07-11 | T194: 192 | U194: 2089.663336 | V194: 1870.826306 | W194: 1695.527307 | X194: 1604.024084 | Y194: 1478.726909 | Z194: 1506.288954 | AA194: 1467.062128 | AB194: 1583.213136 | AC194: 1709.732346 | AD194: 1909.63443 | AE194: 2087.626608 | AF194: 2347.417004 | AG194: 2553.491829 | AH194: 2785.942711 | AI194: 2938.8956 | AJ194: 3089.659208 | AK194: 3213.032712 | AL194: 3326.630323 | AM194: 3243.55117 | AN194: 3041.087159 | AO194: 2795.954925 | AP194: 2626.42961 | AQ194: 2325.704721 | AR194: 2005.109564
A195: 2018-01-09T01:00:00 | B195: 4188 | C195: 1757.391096 | D195: =ROUNDDOWN(A195,0) -> 2018-01-09 | E195: =ROUND((A195-D195)*24,0)+1 -> 2 | G195: 6683 | H195: 3048.265196 | S195: 2018-07-12 | T195: 193 | U195: 1758.899691 | V195: 1517.131209 | W195: 1379.202443 | X195: 1303.030988 | Y195: 1210.710146 | Z195: 1204.865826 | AA195: 1297.148389 | AB195: 1417.908458 | AC195: 1574.334993 | AD195: 1749.278426 | AE195: 1992.643117 | AF195: 2261.200873 | AG195: 2469.644503 | AH195: 2708.876107 | AI195: 2890.740716 | AJ195: =OFFSET($C$1,($T195-1)*24+AJ$2,0) -> 3059.269686 | AK195: 3195.499776 | AL195: 3322.001122 | AM195: 3288.697763 | AN195: 3113.061269 | AO195: 2894.172852 | AP195: 2735.961317 | AQ195: 2456.659392 | AR195: 2151.574349
A196: 2018-01-09T02:00:00 | B196: 4159 | C196: 1698.667325 | D196: 2018-01-09 | E196: 3 | G196: 6682 | H196: 3048.029971 | S196: 2018-07-13 | T196: 194 | U196: =OFFSET($C$1,($T196-1)*24+U$2,0) -> 1838.197082 | V196: 1642.425234 | W196: 1471.658872 | X196: 1303.889056 | Y196: 1255.872611 | Z196: 1243.615256 | AA196: 1315.098443 | AB196: 1477.463223 | AC196: 1671.302878 | AD196: 1903.279488 | AE196: 2169.866819 | AF196: 2443.24376 | AG196: 2655.854522 | AH196: 2917.551615 | AI196: 3085.92259 | AJ196: 3246.388456 | AK196: 3384.562331 | AL196: 3447.061268 | AM196: 3378.935784 | AN196: 3212.248702 | AO196: 3013.819697 | AP196: 2860.564709 | AQ196: 2601.453613 | AR196: 2375.481342
A197: 2018-01-09T03:00:00 | B197: 4209 | C197: 1721.844286 | D197: 2018-01-09 | E197: 4 | G197: 6676 | H197: 3047.89795 | S197: 2018-07-14 | T197: 195 | U197: 2139.024316 | V197: 1931.875117 | W197: 1836.337226 | X197: 1743.23948 | Y197: 1639.856586 | Z197: 1572.55741 | AA197: 1561.827027 | AB197: 1685.337722 | AC197: 1959.001932 | AD197: 2313.938584 | AE197: 2594.484182 | AF197: 2893.505431 | AG197: 3120.392463 | AH197: 3310.916865 | AI197: 3339.357383 | AJ197: 3325.91048 | AK197: 3179.188303 | AL197: 2916.440874 | AM197: 2708.119615 | AN197: 2492.776729 | AO197: 2337.7309 | AP197: 2186.469419 | AQ197: 1988.455936 | AR197: 1758.789709
A198: 2018-01-09T04:00:00 | B198: 4320 | C198: 1782.972128 | D198: 2018-01-09 | E198: 5 | G198: 6676 | H198: 3046.169759 | S198: 2018-07-15 | T198: 196 | U198: 1530.310559 | V198: 1396.277098 | W198: 1254.638933 | X198: 1161.41593 | Y198: 1113.587253 | Z198: 1117.228461 | AA198: 1133.278764 | AB198: 1292.742912 | AC198: 1533.531703 | AD198: 1770.231724 | AE198: 1960.940159 | AF198: 2203.183868 | AG198: 2385.015237 | AH198: 2535.195183 | AI198: 2653.151302 | AJ198: 2806.901607 | AK198: 2951.457793 | AL198: 3011.901061 | AM198: 3017.761637 | AN198: 2872.307063 | AO198: 2675.636288 | AP198: 2553.986619 | AQ198: 2308.839735 | AR198: 2032.512349
